Workbook

Sheet Instructions
B1: NZ Transport Agency (Waka Kotahi)
B2: MODE SHIFT CHANGE MODEL | D2: Project Manager | E2: Glen Koorey
B3: v4, Mar 2026 | D3: Contributing Project Staff | E3: Glen Koorey, John Lieswyn, Megan Gregory, Pim van den Top, Azrie Azizi, Nick Reid, Finn Blanchard
B4: Original v3 model developed by ViaStrada Ltd originally for NZTA Research Project ART22-03 "Mode shift impacts on safety" (Research Report 728)
B5: Additional v4 model updates sponsored by Transportation Group NZ and TGNZ Modelling User Group
B7: INSTRUCTIONS
B8: The FrontEnd tab allows you to see the existing state of travel mode usage and safety for any of the main cities or NZ overall. It also helps you to estimate the potential effects of changing different inputs in terms of trip mode usage. Most results are presented as a range of low-high estimates.
B10: The drop-downs on the lefthand side allow you to select a particular geographic area (from NZ overall to the five "Tier 1" cities, or the eight "Tier 2" cities), as well as sub-selecting a particular age group, gender, or ethnicity group if desired.
B12: Caution: Data from smaller subsets of geographic area, age group, or ethnicity should be treated with care, as the smaller values are likely to be not as accurate as more aggregated values.
B14: Due to the data limitations of smaller numbers, only one demographic sub-group of age/gender/ethnicity can be selected at a time. To select a different demographic, you must first return the currently selected demographic back to "All".
B16: The data on the lefthand side of the front end presents the existing usage (per year) for each travel mode in person-kms travelled (PKT), vehicle-kms travelled (VKT), time travelled (hrs), and individual trips. It also shows the existing numbers of Deaths & Serious Injuries (DSIs) for each mode (including the casualty rate per billion person-kms or hrs).
B18: The Updated Base % values may not always reflect the Existing mode trip usage if other infrastructure/speed improvements (see the Settings tab) have increased the amount of travel by that mode first - a coloured value indicates that the original Base percentage of Trips has been changed.
B20: The yellow cells in the middle allow you to increase the desired future amount of mode change for each non-motor car mode using the drop-down selectors (in 0.5%-1.0% absolute percentage increments). At present, the model assumes a direct substitution of trips travelled from cars/light vehicles to the selected new mode(s) - there may also be a subsequent change in overall VKT and PKT.
B22: The red drop-down box in the middle allows you to adjust the overall amount of trips expected by all modes up or down (in 1% relative percentage increments).
B24: The data on the righthand side of the front end presents the estimated future usage (per year) for each travel mode (some presented as ranges) in terms of trip numbers, person-kms travelled (PKT), vehicle-kms travelled (VKT), and time travelled (hrs).
B26: The orange box at the bottom right of the FrontEnd tab shows the final calculated changes to DSIs for each mode, both in terms of a range of values and the DSI rates per person-kms or hrs.
B28: The Settings tab allows you to make further changes regarding improvements to active/public transport infrastructure and speed management
B30: There are various settings at the lefthand side of the Settings tab that allow you to improve various aspects of the existing public transport, cycling or pedestrian facilities and levels of service (LoS). The relative expected changes to mode usage and DSI safety are also shown (these are reflected in the Future mode Base Usage and DSI rates)
B32: On the righthand side of the Settings tab, you can specify sections of roads with various speed limits that you want to change to lower limits or to introduce some traffic calming. Ensure that you do not select more kms of roads to change than are physically present! The model will indicate the resulting reduction in DSIs and likely corresponding increases to public and active transport modes.
B34: It is important to note that the model should not be used solely to justify or target any particular modal mix. Mode shares affect many different societal factors, including travel time, travel reliability, greenhouse gas emissions, accessibility, public health, and community severance. All of these effects – together with safety effects – need to be considered in a comprehensive cost-benefit analysis before policy-makers implement measures to target a particular modal profile.

Sheet FrontEnd
B2: MODE SHIFT MODEL | C2: v4 | D2: OVERVIEW | P2: Note: the values below are absolute percentage point changes
D3: EXISTING mode usage/yr | K3: Base | M3: FUTURE mode usage | AB3: Average | AC3: Average | AD3: Average
B4: Select AREA to model | E4: '000 PKT/yr | F4: %PKT | G4: '000 VKT/yr | H4: '000 Hrs/yr | I4: %Hrs | J4: '000 Trips/yr | K4: %Trips | N4: Updated Base % | P4: Change -> | S4: New %Trips | V4: Estimated New '000 Trips/yr | Y4: Estimated '000 PKT/yr | AB4: '000 VKT/yr | AC4: VKT Pct Diff | AD4: '000 hrs/yr
B5: ALL of New Zealand | C5: =HYPERLINK("#" & ADDRESS(ROW(),COLUMN()-1),CHAR(128)) -> € | D5: Cars/Light Vehs | E5: ='BackendCalcs-LO'!H5 -> 52209991.82 | F5: ='BackendCalcs-LO'!J5 -> 0.9374285045 | G5: ='BackendCalcs-LO'!I5 -> 43508326.52 | H5: ='BackendCalcs-LO'!L5 -> 11556683.87 | I5: ='BackendCalcs-LO'!M5 -> 0.9089021329 | J5: ='BackendCalcs-LO'!N5 -> 5823173.726 | K5: ='BackendCalcs-LO'!O5 -> 0.838354983 | L5: =D5 -> Cars/Light Vehs | M5: =1-SUM(M6:M13) -> 0.841544562 | N5: - | O5: =1-SUM(O6:O13) -> 0.8348347363 | P5: (Abs %) | R5: ='BackendCalcs-LO'!R5 -> 0.841544562 | S5: - | T5: ='BackendCalcs-HI'!R5 -> 0.8348347363 | U5: ='BackendCalcs-LO'!S5 -> 5260795.551 | V5: - | W5: ='BackendCalcs-HI'!S5 -> 6378594.487 | X5: ='BackendCalcs-LO'!T5 -> 42879786.8 | Y5: - | Z5: ='BackendCalcs-HI'!T5 -> 63544265.2 | AB5: =('BackendCalcs-LO'!U5+'BackendCalcs-HI'!U5)*0.5 -> 44061091.64 | AC5: =(AB5-G5)/G5 -> 0.0127048124 | AD5: =('BackendCalcs-LO'!V5+'BackendCalcs-HI'!V5)*0.5 -> 11778484.18 | AE5: =L5 -> Cars/Light Vehs
D6: Trucks | E6: ='BackendCalcs-LO'!H6 -> 463187.1234 | F6: ='BackendCalcs-LO'!J6 -> 0.008316507957 | G6: ='BackendCalcs-LO'!I6 -> 441130.5937 | H6: ='BackendCalcs-LO'!L6 -> 115307.9338 | I6: ='BackendCalcs-LO'!M6 -> 0.009068659152 | J6: ='BackendCalcs-LO'!N6 -> 41046.69224 | K6: ='BackendCalcs-LO'!O6 -> 0.005909440554 | L6: =D6 -> Trucks | M6: ='BackendCalcs-LO'!Z6 -> 0.005909440554 | N6: - | O6: ='BackendCalcs-HI'!Z6 -> 0.005909440554 | P6: + 0.0% = | Q6: =HYPERLINK("#" & ADDRESS(ROW(),COLUMN()-1),CHAR(128)) -> € | R6: ='BackendCalcs-LO'!R6 -> 0.005909440554 | S6: - | T6: ='BackendCalcs-HI'!R6 -> 0.005909440554 | U6: ='BackendCalcs-LO'!S6 -> 36942.02301 | V6: - | W6: ='BackendCalcs-HI'!S6 -> 45151.36146 | X6: ='BackendCalcs-LO'!T6 -> 378971.2828 | Y6: - | Z6: ='BackendCalcs-HI'!T6 -> 566117.5953 | AB6: =('BackendCalcs-LO'!U6+'BackendCalcs-HI'!U6)*0.5 -> 446811.8211 | AC6: =(AB6-G6)/G6 -> 0.01287878788 | AD6: =('BackendCalcs-LO'!V6+'BackendCalcs-HI'!V6)*0.5 -> 117637.387 | AE6: =L6 -> Trucks
B7: Select AGE GROUP to model | D7: Motorcycles | E7: ='BackendCalcs-LO'!H7 -> 154595.0014 | F7: ='BackendCalcs-LO'!J7 -> 0.002775747628 | G7: ='BackendCalcs-LO'!I7 -> 154595.0014 | H7: ='BackendCalcs-LO'!L7 -> 37118.12303 | I7: ='BackendCalcs-LO'!M7 -> 0.002919240638 | J7: ='BackendCalcs-LO'!N7 -> 17349.99455 | K7: ='BackendCalcs-LO'!O7 -> 0.00249785685 | L7: Motorcycles | M7: ='BackendCalcs-LO'!Z7 -> 0.00249785685 | N7: - | O7: ='BackendCalcs-HI'!Z7 -> 0.00249785685 | P7: + 0.0% = | Q7: =HYPERLINK("#" & ADDRESS(ROW(),COLUMN()-1),CHAR(128)) -> € | R7: ='BackendCalcs-LO'!R7 -> 0.00249785685 | S7: - | T7: ='BackendCalcs-HI'!R7 -> 0.00249785685 | U7: ='BackendCalcs-LO'!S7 -> 15614.99509 | V7: - | W7: ='BackendCalcs-HI'!S7 -> 19084.994 | X7: ='BackendCalcs-LO'!T7 -> 126486.8193 | Y7: - | Z7: ='BackendCalcs-HI'!T7 -> 188949.4462 | AB7: =('BackendCalcs-LO'!U7+'BackendCalcs-HI'!U7)*0.5 -> 157718.1328 | AC7: 0.0202020202 | AD7: =('BackendCalcs-LO'!V7+'BackendCalcs-HI'!V7)*0.5 -> 37867.9841 | AE7: Motorcycles
B8: All AGES | C8: =HYPERLINK("#" & ADDRESS(ROW(),COLUMN()-1),CHAR(128)) -> € | D8: Buses | E8: ='BackendCalcs-LO'!H8 -> 1126479.054 | F8: ='BackendCalcs-LO'!J8 -> 0.02022589044 | G8: ='BackendCalcs-LO'!I8 -> 160623.6067 | H8: ='BackendCalcs-LO'!L8 -> 422530.3191 | I8: ='BackendCalcs-LO'!M8 -> 0.03323087423 | J8: ='BackendCalcs-LO'!N8 -> 130050.5984 | K8: ='BackendCalcs-LO'!O8 -> 0.01872322076 | L8: Buses | M8: ='BackendCalcs-LO'!Z8 -> 0.01858445749 | N8: - | O8: ='BackendCalcs-HI'!Z8 -> 0.01889282032 | P8: + 0.0% = | Q8: € | R8: ='BackendCalcs-LO'!R8 -> 0.01858445749 | S8: - | T8: ='BackendCalcs-HI'!R8 -> 0.01889282032 | U8: ='BackendCalcs-LO'!S8 -> 116178.0798 | V8: - | W8: ='BackendCalcs-HI'!S8 -> 144351.4917 | X8: ='BackendCalcs-LO'!T8 -> 914833.9533 | Y8: - | Z8: ='BackendCalcs-HI'!T8 -> 1389279.196 | AB8: =('BackendCalcs-LO'!U8+'BackendCalcs-HI'!U8)*0.5 -> 160888.1464 | AC8: 0.00164695396 | AD8: =('BackendCalcs-LO'!V8+'BackendCalcs-HI'!V8)*0.5 -> 432124.1755 | AE8: Buses
D9: Trains | E9: ='BackendCalcs-LO'!H9 -> 519566.8398 | F9: ='BackendCalcs-LO'!J9 -> 0.009328803714 | G9: ='BackendCalcs-LO'!I9 -> 8760.05658 | H9: ='BackendCalcs-LO'!L9 -> 265371.6933 | I9: ='BackendCalcs-LO'!M9 -> 0.02087077061 | J9: ='BackendCalcs-LO'!N9 -> 27222.47125 | K9: ='BackendCalcs-LO'!O9 -> 0.00391918488 | L9: Trains | M9: ='BackendCalcs-LO'!Z9 -> 0.00391918488 | N9: - | O9: ='BackendCalcs-HI'!Z9 -> 0.00391918488 | P9: + 0.0% = | Q9: € | R9: ='BackendCalcs-LO'!R9 -> 0.00391918488 | S9: - | T9: ='BackendCalcs-HI'!R9 -> 0.00391918488 | U9: ='BackendCalcs-LO'!S9 -> 24500.22413 | V9: - | W9: ='BackendCalcs-HI'!S9 -> 29944.71838 | X9: ='BackendCalcs-LO'!T9 -> 425100.1417 | Y9: - | Z9: ='BackendCalcs-HI'!T9 -> 635026.1375 | AB9: =('BackendCalcs-LO'!U9+'BackendCalcs-HI'!U9)*0.5 -> 8760.05658 | AC9: 2.07645851e-16 | AD9: =('BackendCalcs-LO'!V9+'BackendCalcs-HI'!V9)*0.5 -> 270732.7376 | AE9: Trains
B10: Select GENDER to model | D10: Ferries | E10: ='BackendCalcs-LO'!H10 -> 119594.6362 | F10: ='BackendCalcs-LO'!J10 -> 0.002147317343 | G10: ='BackendCalcs-LO'!I10 -> 4684.694783 | H10: ='BackendCalcs-LO'!L10 -> 72052.00621 | I10: ='BackendCalcs-LO'!M10 -> 0.00566669668 | J10: ='BackendCalcs-LO'!N10 -> 6121.151238 | K10: ='BackendCalcs-LO'!O10 -> 0.0008812544299 | L10: Ferries | M10: ='BackendCalcs-LO'!Z10 -> 0.0008812544299 | N10: - | O10: ='BackendCalcs-HI'!Z10 -> 0.0008812544299 | P10: + 0.0% = | Q10: € | R10: ='BackendCalcs-LO'!R10 -> 0.0008812544299 | S10: - | T10: ='BackendCalcs-HI'!R10 -> 0.0008812544299 | U10: ='BackendCalcs-LO'!S10 -> 5509.036115 | V10: - | W10: ='BackendCalcs-HI'!S10 -> 6733.266362 | X10: ='BackendCalcs-LO'!T10 -> 97850.15687 | Y10: - | Z10: ='BackendCalcs-HI'!T10 -> 146171.222 | AB10: =('BackendCalcs-LO'!U10+'BackendCalcs-HI'!U10)*0.5 -> 4684.694783 | AC10: 0 | AD10: =('BackendCalcs-LO'!V10+'BackendCalcs-HI'!V10)*0.5 -> 73507.60229 | AE10: Ferries
B11: All GENDERS | C11: =HYPERLINK("#" & ADDRESS(ROW(),COLUMN()-1),CHAR(128)) -> € | D11: Cycles/E-bikes | E11: ='BackendCalcs-LO'!H11 -> 388160.1394 | F11: ='BackendCalcs-LO'!J11 -> 0.006969401187 | G11: ='BackendCalcs-LO'!I11 -> 388160.1394 | H11: ='BackendCalcs-LO'!L11 -> 109459.0056 | I11: ='BackendCalcs-LO'!M11 -> 0.008608656668 | J11: ='BackendCalcs-LO'!N11 -> 104215.7235 | K11: ='BackendCalcs-LO'!O11 -> 0.01500380638 | L11: Cycles/E-bikes | M11: ='BackendCalcs-LO'!Z11 -> 0.01493632523 | N11: - | O11: ='BackendCalcs-HI'!Z11 -> 0.01507724217 | P11: + 0.0% = | Q11: € | R11: ='BackendCalcs-LO'!R11 -> 0.01493632523 | S11: - | T11: ='BackendCalcs-HI'!R11 -> 0.01507724217 | U11: ='BackendCalcs-LO'!S11 -> 93372.30238 | V11: - | W11: ='BackendCalcs-HI'!S11 -> 115198.3855 | X11: ='BackendCalcs-LO'!T11 -> 316157.1951 | Y11: - | Z11: ='BackendCalcs-HI'!T11 -> 476739.9762 | AB11: =('BackendCalcs-LO'!U11+'BackendCalcs-HI'!U11)*0.5 -> 396448.5857 | AC11: 0.02135316178 | AD11: =('BackendCalcs-LO'!V11+'BackendCalcs-HI'!V11)*0.5 -> 111796.3015 | AE11: Cycles/E-bikes
D12: Wheeled Devices* | E12: ='BackendCalcs-LO'!H12 -> 17280.83896 | F12: ='BackendCalcs-LO'!J12 -> 0.0003102768351 | G12: ='BackendCalcs-LO'!I12 -> 17280.83896 | H12: ='BackendCalcs-LO'!L12 -> 3053.034488 | I12: ='BackendCalcs-LO'!M12 -> 0.0002401129588 | J12: ='BackendCalcs-LO'!N12 -> 8185.465911 | K12: ='BackendCalcs-LO'!O12 -> 0.001178451212 | L12: =D28 -> Wheeled Devices | M12: ='BackendCalcs-LO'!Z12 -> 0.001158573021 | N12: - | O12: ='BackendCalcs-HI'!Z12 -> 0.00122355676 | P12: + 0.0% = | Q12: € | R12: ='BackendCalcs-LO'!R12 -> 0.001158573021 | S12: - | T12: ='BackendCalcs-HI'!R12 -> 0.00122355676 | U12: ='BackendCalcs-LO'!S12 -> 7242.653648 | V12: - | W12: ='BackendCalcs-HI'!S12 -> 9348.64359 | X12: ='BackendCalcs-LO'!T12 -> 13900.3729 | Y12: - | Z12: ='BackendCalcs-HI'!T12 -> 21929.43853 | AB12: =('BackendCalcs-LO'!U12+'BackendCalcs-HI'!U12)*0.5 -> 17914.90572 | AC12: 0.03669189644 | AD12: =('BackendCalcs-LO'!V12+'BackendCalcs-HI'!V12)*0.5 -> 3165.056113 | AE12: Wheeled Devices
B13: Select ETHNICITY to model | D13: Pedestrians | E13: ='BackendCalcs-LO'!H13 -> 696049.8856 | F13: ='BackendCalcs-LO'!J13 -> 0.01249755038 | G13: ='BackendCalcs-LO'!I13 -> 696049.8856 | H13: ='BackendCalcs-LO'!L13 -> 133416.5882 | I13: ='BackendCalcs-LO'!M13 -> 0.01049285616 | J13: ='BackendCalcs-LO'!N13 -> 788586.4811 | K13: ='BackendCalcs-LO'!O13 -> 0.1135318019 | L13: Pedestrians | M13: ='BackendCalcs-LO'!Z13 -> 0.1105683455 | N13: - | O13: ='BackendCalcs-HI'!Z13 -> 0.1167639077 | P13: + 0.0% = | Q13: € | R13: ='BackendCalcs-LO'!R13 -> 0.1105683455 | S13: - | T13: ='BackendCalcs-HI'!R13 -> 0.1167639077 | U13: ='BackendCalcs-LO'!S13 -> 691202.209 | V13: - | W13: ='BackendCalcs-HI'!S13 -> 892140.1871 | X13: ='BackendCalcs-LO'!T13 -> 554630.1458 | Y13: - | Z13: ='BackendCalcs-HI'!T13 -> 874946.7702 | AB13: =('BackendCalcs-LO'!U13+'BackendCalcs-HI'!U13)*0.5 -> 714788.458 | AC13: 0.02692130665 | AD13: =('BackendCalcs-LO'!V13+'BackendCalcs-HI'!V13)*0.5 -> 137008.3371 | AE13: Pedestrians
B14: All ETHNICITIES | C14: =HYPERLINK("#" & ADDRESS(ROW(),COLUMN()-1),CHAR(128)) -> € | D14: TOTAL | E14: ='BackendCalcs-LO'!H14 -> 55694905.34 | G14: ='BackendCalcs-LO'!I14 -> 45379611.34 | H14: ='BackendCalcs-LO'!L14 -> 12714992.57 | J14: ='BackendCalcs-LO'!N14 -> 6945952.305 | O14: Overall travel change (trips): | P14: 0 | Q14: € | S14: =======> | U14: ='BackendCalcs-LO'!S14 -> 6251357.074 | V14: - | W14: ='BackendCalcs-HI'!S14 -> 7640547.535 | X14: ='BackendCalcs-LO'!T14 -> 45707716.87 | Y14: - | Z14: ='BackendCalcs-HI'!T14 -> 67843424.98 | AB14: =('BackendCalcs-LO'!U14+'BackendCalcs-HI'!U14)*0.5 -> 45969106.45 | AC14: 0.0129903076 | AD14: =('BackendCalcs-LO'!V14+'BackendCalcs-HI'!V14)*0.5 -> 12962323.76 | AE14: TOTAL
B15: Note: only one demographic group (age, gender, ethnicity) can be selected at a time | D15: *Note: Wheeled Devices includes e-scooters, skateboards, pedestrian mobility devices, etc.
D17: EXISTING mode DSIs/yr | G17: Casualty rates | L17: FUTURE mode DSIs/yr | U17: Casualty rates
E18: DSIs/yr | G18: per Bn P.kms | H18: per Bn hrs | N18: Estimated DSIs/yr | Q18: Abs Difference | V18: Est. Risk per Bn P.kms | X18: Ave Pct Diff | AA18: Est. Risk per Bn hrs | AC18: Ave Pct Diff
D19: Cars/Light Vehs | E19: ='BackendCalcs-LO'!H19 -> 1457.166667 | G19: ='BackendCalcs-LO'!J19 -> 27.90972792 | H19: ='BackendCalcs-LO'!K19 -> 126.0886499 | L19: =D19 -> Cars/Light Vehs | M19: ='BackendCalcs-LO'!P19 -> 1156.083763 | N19: - | O19: ='BackendCalcs-HI'!P19 -> 1898.479353 | P19: ='BackendCalcs-LO'!M19 -> -0.2066221456 | Q19: - | R19: ='BackendCalcs-HI'!M19 -> 0.3028566991 | U19: ='BackendCalcs-LO'!Q19 -> 26.96104271 | V19: - | W19: ='BackendCalcs-HI'!Q19 -> 29.87648606 | X19: =IF(ISERROR('BackendCalcs-LO'!R19+'BackendCalcs-HI'!R19),"N/A",('BackendCalcs-LO'!R19+'BackendCalcs-HI'!R19)*0.5) -> 0.01823867519 | Z19: ='BackendCalcs-LO'!S19 -> 121.8027451 | AA19: - | AB19: ='BackendCalcs-HI'!S19 -> 134.9739346 | AC19: =IF(ISERROR('BackendCalcs-LO'!T19+'BackendCalcs-HI'!T19),"N/A",('BackendCalcs-LO'!T19+'BackendCalcs-HI'!T19)*0.5) -> 0.01823867519 | AD19: =L19 -> Cars/Light Vehs
D20: Trucks | E20: ='BackendCalcs-LO'!H20 -> 20.33333333 | G20: ='BackendCalcs-LO'!J20 -> 43.89874482 | H20: ='BackendCalcs-LO'!K20 -> 176.3394128 | L20: Trucks | M20: ='BackendCalcs-LO'!P20 -> 16.16148257 | N20: - | O20: ='BackendCalcs-HI'!P20 -> 26.45788518 | P20: ='BackendCalcs-LO'!M20 -> -0.2051729883 | Q20: - | R20: ='BackendCalcs-HI'!M20 -> 0.3012074681 | U20: ='BackendCalcs-LO'!Q20 -> 42.64566553 | V20: - | W20: ='BackendCalcs-HI'!Q20 -> 46.73567012 | X20: =IF(ISERROR('BackendCalcs-LO'!R20+'BackendCalcs-HI'!R20),"N/A",('BackendCalcs-LO'!R20+'BackendCalcs-HI'!R20)*0.5) -> 0.01803976426 | Z20: ='BackendCalcs-LO'!S20 -> 171.305846 | AA20: - | AB20: ='BackendCalcs-HI'!S20 -> 187.7352225 | AC20: =IF(ISERROR('BackendCalcs-LO'!T20+'BackendCalcs-HI'!T20),"N/A",('BackendCalcs-LO'!T20+'BackendCalcs-HI'!T20)*0.5) -> 0.01803976426 | AD20: =L20 -> Trucks
D21: Motorcycles | E21: ='BackendCalcs-LO'!H21 -> 377.3333333 | G21: ='BackendCalcs-LO'!J21 -> 2440.786118 | H21: ='BackendCalcs-LO'!K21 -> 10165.74392 | L21: Motorcycles | M21: ='BackendCalcs-LO'!P21 -> 289.1384281 | N21: - | O21: ='BackendCalcs-HI'!P21 -> 510.7926007 | P21: ='BackendCalcs-LO'!M21 -> -0.2337320809 | Q21: - | R21: ='BackendCalcs-HI'!M21 -> 0.3536906379 | U21: ='BackendCalcs-LO'!Q21 -> 2285.917455 | V21: - | W21: ='BackendCalcs-HI'!Q21 -> 2703.329441 | X21: =IF(ISERROR('BackendCalcs-LO'!R21+'BackendCalcs-HI'!R21),"N/A",('BackendCalcs-LO'!R21+'BackendCalcs-HI'!R21)*0.5) -> 0.02205737315 | Z21: ='BackendCalcs-LO'!S21 -> 9520.7242 | AA21: - | AB21: ='BackendCalcs-HI'!S21 -> 11259.22284 | AC21: =IF(ISERROR('BackendCalcs-LO'!T21+'BackendCalcs-HI'!T21),"N/A",('BackendCalcs-LO'!T21+'BackendCalcs-HI'!T21)*0.5) -> 0.02205737315 | AD21: Motorcycles
D22: Buses | E22: ='BackendCalcs-LO'!H22 -> 7 | G22: ='BackendCalcs-LO'!J22 -> 6.214052519 | H22: ='BackendCalcs-LO'!K22 -> 16.56685848 | L22: Buses | M22: ='BackendCalcs-LO'!P22 -> 5.729281944 | N22: - | O22: ='BackendCalcs-HI'!P22 -> 8.730767017 | P22: ='BackendCalcs-LO'!M22 -> -0.1815311508 | Q22: - | R22: ='BackendCalcs-HI'!M22 -> 0.247252431 | U22: ='BackendCalcs-LO'!Q22 -> 6.262646815 | V22: - | W22: ='BackendCalcs-HI'!Q22 -> 6.284386206 | X22: =IF(ISERROR('BackendCalcs-LO'!R22+'BackendCalcs-HI'!R22),"N/A",('BackendCalcs-LO'!R22+'BackendCalcs-HI'!R22)*0.5) -> 0.009569277259 | Z22: ='BackendCalcs-LO'!S22 -> 16.69641239 | AA22: - | AB22: ='BackendCalcs-HI'!S22 -> 16.75437029 | AC22: =IF(ISERROR('BackendCalcs-LO'!T22+'BackendCalcs-HI'!T22),"N/A",('BackendCalcs-LO'!T22+'BackendCalcs-HI'!T22)*0.5) -> 0.009569277259 | AD22: Buses
D23: Trains | E23: ='BackendCalcs-LO'!H23 -> 6.166666667 | G23: ='BackendCalcs-LO'!J23 -> 11.86886112 | H23: ='BackendCalcs-LO'!K23 -> 23.23784647 | L23: Trains | M23: ='BackendCalcs-LO'!P23 -> 5.71851297 | N23: - | O23: ='BackendCalcs-HI'!P23 -> 6.797194198 | P23: ='BackendCalcs-LO'!M23 -> -0.07267357245 | Q23: - | R23: ='BackendCalcs-HI'!M23 -> 0.1022477077 | U23: ='BackendCalcs-LO'!Q23 -> 13.45215494 | V23: - | W23: ='BackendCalcs-HI'!Q23 -> 10.70380225 | X23: =IF(ISERROR('BackendCalcs-LO'!R23+'BackendCalcs-HI'!R23),"N/A",('BackendCalcs-LO'!R23+'BackendCalcs-HI'!R23)*0.5) -> 0.01761900029 | Z23: ='BackendCalcs-LO'!S23 -> 26.33775118 | AA23: - | AB23: ='BackendCalcs-HI'!S23 -> 20.956797 | AC23: =IF(ISERROR('BackendCalcs-LO'!T23+'BackendCalcs-HI'!T23),"N/A",('BackendCalcs-LO'!T23+'BackendCalcs-HI'!T23)*0.5) -> 0.01761900029 | AD23: Trains
D24: Ferries | E24: ='BackendCalcs-LO'!H24 -> 0 | G24: ='BackendCalcs-LO'!J24 -> 0 | H24: ='BackendCalcs-LO'!K24 -> 0 | L24: Ferries | M24: ='BackendCalcs-LO'!P24 -> 0 | N24: - | O24: ='BackendCalcs-HI'!P24 -> 0 | P24: ='BackendCalcs-LO'!M24 -> N/A | Q24: - | R24: ='BackendCalcs-HI'!M24 -> N/A | U24: ='BackendCalcs-LO'!Q24 -> 0 | V24: - | W24: ='BackendCalcs-HI'!Q24 -> 0 | X24: =IF(ISERROR('BackendCalcs-LO'!R24+'BackendCalcs-HI'!R24),"N/A",('BackendCalcs-LO'!R24+'BackendCalcs-HI'!R24)*0.5) -> N/A | Z24: ='BackendCalcs-LO'!S24 -> 0 | AA24: - | AB24: ='BackendCalcs-HI'!S24 -> 0 | AC24: =IF(ISERROR('BackendCalcs-LO'!T24+'BackendCalcs-HI'!T24),"N/A",('BackendCalcs-LO'!T24+'BackendCalcs-HI'!T24)*0.5) -> N/A | AD24: Ferries
D25: Cycles/E-bikes | E25: ='BackendCalcs-LO'!H25 -> 207.8333333 | G25: ='BackendCalcs-LO'!J25 -> 535.4319319 | H25: ='BackendCalcs-LO'!K25 -> 1898.732153 | L25: Cycles/E-bikes | M25: ='BackendCalcs-LO'!P25 -> 186.7189285 | N25: - | O25: ='BackendCalcs-HI'!P25 -> 238.6764306 | P25: ='BackendCalcs-LO'!M25 -> -0.1015929664 | Q25: - | R25: ='BackendCalcs-HI'!M25 -> 0.1484030343 | U25: ='BackendCalcs-LO'!Q25 -> 590.5888949 | V25: - | W25: ='BackendCalcs-HI'!Q25 -> 500.6427875 | X25: =IF(ISERROR('BackendCalcs-LO'!R25+'BackendCalcs-HI'!R25),"N/A",('BackendCalcs-LO'!R25+'BackendCalcs-HI'!R25)*0.5) -> 0.01901998877 | Z25: ='BackendCalcs-LO'!S25 -> 2094.328069 | AA25: - | AB25: ='BackendCalcs-HI'!S25 -> 1775.363965 | AC25: =IF(ISERROR('BackendCalcs-LO'!T25+'BackendCalcs-HI'!T25),"N/A",('BackendCalcs-LO'!T25+'BackendCalcs-HI'!T25)*0.5) -> 0.01901998877 | AD25: Cycles/E-bikes
D26: Collisions | E26: ='BackendCalcs-LO'!H26 -> 167.3333333 | G26: ='BackendCalcs-LO'!J26 -> 431.0935522 | H26: ='BackendCalcs-LO'!K26 -> 1528.730618 | L26: Collisions | M26: ='BackendCalcs-LO'!P26 -> 153.731599 | N26: - | O26: ='BackendCalcs-HI'!P26 -> 188.934154 | P26: ='BackendCalcs-LO'!M26 -> -0.08128526477 | Q26: - | R26: ='BackendCalcs-HI'!M26 -> 0.1290885696 | U26: ='BackendCalcs-LO'!Q26 -> 486.2505153 | V26: - | W26: ='BackendCalcs-HI'!Q26 -> 396.3044079 | X26: =IF(ISERROR('BackendCalcs-LO'!R26+'BackendCalcs-HI'!R26),"N/A",('BackendCalcs-LO'!R26+'BackendCalcs-HI'!R26)*0.5) -> 0.02362343227 | Z26: ='BackendCalcs-LO'!S26 -> 1724.326534 | AA26: - | AB26: ='BackendCalcs-HI'!S26 -> 1405.362431 | AC26: =IF(ISERROR('BackendCalcs-LO'!T26+'BackendCalcs-HI'!T26),"N/A",('BackendCalcs-LO'!T26+'BackendCalcs-HI'!T26)*0.5) -> 0.02362343227 | AD26: Collisions
D27: User only | E27: ='BackendCalcs-LO'!H27 -> 40.5 | G27: ='BackendCalcs-LO'!J27 -> 104.3383797 | H27: ='BackendCalcs-LO'!K27 -> 370.0015342 | L27: User only | M27: ='BackendCalcs-LO'!P27 -> 32.98732946 | N27: - | O27: ='BackendCalcs-HI'!P27 -> 49.74227664 | P27: ='BackendCalcs-LO'!M27 -> -0.185498038 | Q27: - | R27: ='BackendCalcs-HI'!M27 -> 0.2282043616 | U27: ='BackendCalcs-LO'!Q27 -> 104.3383797 | V27: - | W27: ='BackendCalcs-HI'!Q27 -> 104.3383797 | X27: =IF(ISERROR('BackendCalcs-LO'!R27+'BackendCalcs-HI'!R27),"N/A",('BackendCalcs-LO'!R27+'BackendCalcs-HI'!R27)*0.5) -> 0 | Z27: ='BackendCalcs-LO'!S27 -> 370.0015342 | AA27: - | AB27: ='BackendCalcs-HI'!S27 -> 370.0015342 | AC27: =IF(ISERROR('BackendCalcs-LO'!T27+'BackendCalcs-HI'!T27),"N/A",('BackendCalcs-LO'!T27+'BackendCalcs-HI'!T27)*0.5) -> 0 | AD27: User only
D28: Wheeled Devices | E28: ='BackendCalcs-LO'!H28 -> 130.5 | G28: ='BackendCalcs-LO'!J28 -> 7551.71669 | H28: ='BackendCalcs-LO'!K28 -> 42744.35828 | L28: Wheeled Devices | M28: ='BackendCalcs-LO'!P28 -> 105.7599655 | N28: - | O28: ='BackendCalcs-HI'!P28 -> 164.690339 | P28: ='BackendCalcs-LO'!M28 -> -0.1895788081 | Q28: - | R28: ='BackendCalcs-HI'!M28 -> 0.2619949351 | U28: ='BackendCalcs-LO'!Q28 -> 7608.426502 | V28: - | W28: ='BackendCalcs-HI'!Q28 -> 7510.011658 | X28: =IF(ISERROR('BackendCalcs-LO'!R28+'BackendCalcs-HI'!R28),"N/A",('BackendCalcs-LO'!R28+'BackendCalcs-HI'!R28)*0.5) -> 0.0009934682134 | Z28: ='BackendCalcs-LO'!S28 -> 43065.34815 | AA28: - | AB28: ='BackendCalcs-HI'!S28 -> 42508.29873 | AC28: =IF(ISERROR('BackendCalcs-LO'!T28+'BackendCalcs-HI'!T28),"N/A",('BackendCalcs-LO'!T28+'BackendCalcs-HI'!T28)*0.5) -> 0.0009934682134 | AD28: Wheeled Devices
D29: Collisions | E29: ='BackendCalcs-LO'!H29 -> 7 | G29: ='BackendCalcs-LO'!J29 -> 405.0729259 | H29: ='BackendCalcs-LO'!K29 -> 2292.800827 | L29: Collisions | M29: ='BackendCalcs-LO'!P29 -> 6.418952265 | N29: - | O29: ='BackendCalcs-HI'!P29 -> 7.968453898 | P29: ='BackendCalcs-LO'!M29 -> -0.08300681926 | Q29: - | R29: ='BackendCalcs-HI'!M29 -> 0.1383505569 | U29: ='BackendCalcs-LO'!Q29 -> 461.7827387 | V29: - | W29: ='BackendCalcs-HI'!Q29 -> 363.3678941 | X29: =IF(ISERROR('BackendCalcs-LO'!R29+'BackendCalcs-HI'!R29),"N/A",('BackendCalcs-LO'!R29+'BackendCalcs-HI'!R29)*0.5) -> 0.01852108598 | Z29: ='BackendCalcs-LO'!S29 -> 2613.790697 | AA29: - | AB29: ='BackendCalcs-HI'!S29 -> 2056.74128 | AC29: =IF(ISERROR('BackendCalcs-LO'!T29+'BackendCalcs-HI'!T29),"N/A",('BackendCalcs-LO'!T29+'BackendCalcs-HI'!T29)*0.5) -> 0.01852108598 | AD29: Collisions
D30: User only | E30: ='BackendCalcs-LO'!H30 -> 123.5 | G30: ='BackendCalcs-LO'!J30 -> 7146.643764 | H30: ='BackendCalcs-LO'!K30 -> 40451.55745 | L30: User only | M30: ='BackendCalcs-LO'!P30 -> 99.34101328 | N30: - | O30: ='BackendCalcs-HI'!P30 -> 156.7218851 | P30: ='BackendCalcs-LO'!M30 -> -0.1956193256 | Q30: - | R30: ='BackendCalcs-HI'!M30 -> 0.2690031185 | U30: ='BackendCalcs-LO'!Q30 -> 7146.643764 | V30: - | W30: ='BackendCalcs-HI'!Q30 -> 7146.643764 | X30: =IF(ISERROR('BackendCalcs-LO'!R30+'BackendCalcs-HI'!R30),"N/A",('BackendCalcs-LO'!R30+'BackendCalcs-HI'!R30)*0.5) -> 0 | Z30: ='BackendCalcs-LO'!S30 -> 40451.55745 | AA30: - | AB30: ='BackendCalcs-HI'!S30 -> 40451.55745 | AC30: =IF(ISERROR('BackendCalcs-LO'!T30+'BackendCalcs-HI'!T30),"N/A",('BackendCalcs-LO'!T30+'BackendCalcs-HI'!T30)*0.5) -> 0 | AD30: User only
D31: Pedestrians | E31: ='BackendCalcs-LO'!H31 -> 1295.5 | G31: ='BackendCalcs-LO'!J31 -> 1861.217173 | H31: ='BackendCalcs-LO'!K31 -> 9710.186847 | L31: Pedestrians | M31: ='BackendCalcs-LO'!P31 -> 1049.105597 | N31: - | O31: ='BackendCalcs-HI'!P31 -> 1618.487499 | P31: ='BackendCalcs-LO'!M31 -> -0.1901925149 | Q31: - | R31: ='BackendCalcs-HI'!M31 -> 0.2493149352 | U31: ='BackendCalcs-LO'!Q31 -> 1891.540885 | V31: - | W31: ='BackendCalcs-HI'!Q31 -> 1849.81253 | X31: =IF(ISERROR('BackendCalcs-LO'!R31+'BackendCalcs-HI'!R31),"N/A",('BackendCalcs-LO'!R31+'BackendCalcs-HI'!R31)*0.5) -> 0.00508244558 | Z31: ='BackendCalcs-LO'!S31 -> 9868.389189 | AA31: - | AB31: ='BackendCalcs-HI'!S31 -> 9650.687498 | AC31: =IF(ISERROR('BackendCalcs-LO'!T31+'BackendCalcs-HI'!T31),"N/A",('BackendCalcs-LO'!T31+'BackendCalcs-HI'!T31)*0.5) -> 0.00508244558 | AD31: Pedestrians
D32: Collisions | E32: ='BackendCalcs-LO'!H32 -> 325.8333333 | G32: ='BackendCalcs-LO'!J32 -> 468.1177888 | H32: ='BackendCalcs-LO'!K32 -> 2442.225046 | L32: Collisions | M32: ='BackendCalcs-LO'!P32 -> 276.4506826 | N32: - | O32: ='BackendCalcs-HI'!P32 -> 399.5996922 | P32: ='BackendCalcs-LO'!M32 -> -0.1515580074 | Q32: - | R32: ='BackendCalcs-HI'!M32 -> 0.2263929171 | U32: ='BackendCalcs-LO'!Q32 -> 498.4415014 | V32: - | W32: ='BackendCalcs-HI'!Q32 -> 456.7131462 | X32: =IF(ISERROR('BackendCalcs-LO'!R32+'BackendCalcs-HI'!R32),"N/A",('BackendCalcs-LO'!R32+'BackendCalcs-HI'!R32)*0.5) -> 0.02020759565 | Z32: ='BackendCalcs-LO'!S32 -> 2600.427388 | AA32: - | AB32: ='BackendCalcs-HI'!S32 -> 2382.725697 | AC32: =IF(ISERROR('BackendCalcs-LO'!T32+'BackendCalcs-HI'!T32),"N/A",('BackendCalcs-LO'!T32+'BackendCalcs-HI'!T32)*0.5) -> 0.02020759565 | AD32: Collisions
D33: User only | E33: ='BackendCalcs-LO'!H33 -> 969.6666667 | G33: ='BackendCalcs-LO'!J33 -> 1393.099384 | H33: ='BackendCalcs-LO'!K33 -> 7267.9618 | L33: User only | M33: ='BackendCalcs-LO'!P33 -> 772.6549143 | N33: - | O33: ='BackendCalcs-HI'!P33 -> 1218.887806 | P33: ='BackendCalcs-LO'!M33 -> -0.2031747188 | Q33: - | R33: ='BackendCalcs-HI'!M33 -> 0.2570173321 | U33: ='BackendCalcs-LO'!Q33 -> 1393.099384 | V33: - | W33: ='BackendCalcs-HI'!Q33 -> 1393.099384 | X33: =IF(ISERROR('BackendCalcs-LO'!R33+'BackendCalcs-HI'!R33),"N/A",('BackendCalcs-LO'!R33+'BackendCalcs-HI'!R33)*0.5) -> 0 | Z33: ='BackendCalcs-LO'!S33 -> 7267.9618 | AA33: - | AB33: ='BackendCalcs-HI'!S33 -> 7267.9618 | AC33: =IF(ISERROR('BackendCalcs-LO'!T33+'BackendCalcs-HI'!T33),"N/A",('BackendCalcs-LO'!T33+'BackendCalcs-HI'!T33)*0.5) -> -5.551115123e-17 | AD33: User only
D34: TOTAL | E34: ='BackendCalcs-LO'!H34 -> 3501.833333 | G34: ='BackendCalcs-LO'!J34 -> 62.87529015 | H34: ='BackendCalcs-LO'!K34 -> 275.409782 | L34: TOTAL | M34: ='BackendCalcs-LO'!P34 -> 2814.41596 | N34: - | O34: ='BackendCalcs-HI'!P34 -> 4473.112069 | P34: ='BackendCalcs-LO'!M34 -> -0.1963021389 | Q34: - | R34: ='BackendCalcs-HI'!M34 -> 0.2773629248 | U34: ='BackendCalcs-LO'!Q34 -> 61.57419693 | V34: - | W34: ='BackendCalcs-HI'!Q34 -> 65.93287515 | X34: =IF(ISERROR('BackendCalcs-LO'!R34+'BackendCalcs-HI'!R34),"N/A",('BackendCalcs-LO'!R34+'BackendCalcs-HI'!R34)*0.5) -> 0.013968061 | Z34: ='BackendCalcs-LO'!S34 -> 269.7533624 | AA34: - | AB34: ='BackendCalcs-HI'!S34 -> 288.7489382 | AC34: =IF(ISERROR('BackendCalcs-LO'!T34+'BackendCalcs-HI'!T34),"N/A",('BackendCalcs-LO'!T34+'BackendCalcs-HI'!T34)*0.5) -> 0.01394782794 | AD34: TOTAL

Sheet Settings
B1: MODE SHIFT MODEL | C1: v4 | E1: Note: the values below are proprtionate percentage changes | L1: Note: the values below are absolute percentage point changes
B2: Facility Settings | E2: Improve Facilities/LoS? | L2: Speed Management | N2: ="for " & B5 & " streets/roads" -> for ALL of New Zealand streets/roads
F3: Improve Bus ped'n access? | G3: NO | H3: =HYPERLINK("#" & ADDRESS(ROW(),COLUMN()-1),CHAR(128)) -> € | L3: Enter details below for new sections of road with speed management
B4: Area: | F4: Decrease ped'n DSIs by: | G4: ='BackendCalcs-LO'!R58-1 -> 0 | H4: - | I4: ='BackendCalcs-HI'!R58-1 -> 0 | L4: Current Spd Lim | M4: Roads (km) at Spd Lim | N4: Change (km) | O4: New Spd Lim | Q4: Traf. Calming?
B5: ='BackendCalcs-LO'!D55 -> ALL of New Zealand | F5: Improve Train ped'n access? | G5: NO | H5: =HYPERLINK("#" & ADDRESS(ROW(),COLUMN()-1),CHAR(128)) -> € | L5: 100 | M5: =_xlfn.IFNA(VLOOKUP(L5,'BackendCalcs-LO'!$M$103:$U$110,9),0) -> 8.238942765 | N5: 0 | O5: 80 | Q5: NO
B6: Age Group: | F6: Decrease ped'n DSIs by: | G6: ='BackendCalcs-LO'!R60-1 -> 0 | H6: - | I6: ='BackendCalcs-HI'!R60-1 -> 0 | L6: 80 | M6: =_xlfn.IFNA(VLOOKUP(L6,'BackendCalcs-LO'!$M$103:$U$110,9),0) -> 25.51932875 | N6: 0 | O6: 60 | Q6: NO
B7: ='BackendCalcs-LO'!D56 -> All AGES | L7: 70 | M7: =_xlfn.IFNA(VLOOKUP(L7,'BackendCalcs-LO'!$M$103:$U$110,9),0) -> 1.273617611 | N7: 0 | O7: 60 | Q7: NO
B8: Gender: | F8: Improve Cycle Network | G8: ="for " & B5 -> for ALL of New Zealand | L8: 60 | M8: =_xlfn.IFNA(VLOOKUP(L8,'BackendCalcs-LO'!$M$103:$U$110,9),0) -> 474.7499103 | N8: 0 | O8: 50 | Q8: YES
B9: ='BackendCalcs-LO'!D57 -> All GENDERS | F9: Existing Network Length (km): | G9: ='Cyc-QoS-Calcs'!K34/1000 -> 5501.753925 | L9: 50 | M9: =_xlfn.IFNA(VLOOKUP(L9,'BackendCalcs-LO'!$M$103:$U$110,9),0) -> 3756.575406 | N9: 0 | O9: 40 | Q9: YES
B10: Ethnicity: | F10: Additional Cycle Facilities: | L10: 40 | M10: =_xlfn.IFNA(VLOOKUP(L10,'BackendCalcs-LO'!$M$103:$U$110,9),0) -> 39.2830818 | N10: 0 | O10: 30 | Q10: YES
B11: ='BackendCalcs-LO'!D58 -> All ETHNICITIES | F11: Painted cycle lanes (km) | G11: 0 | L11: 50 | M11: =_xlfn.IFNA(VLOOKUP(L11,'BackendCalcs-LO'!$M$103:$U$110,9),0) -> 3756.575406 | N11: 0 | O11: 30 | Q11: YES
F12: Separated infrastructure (km) | G12: 0 | M12: =_xlfn.IFNA(VLOOKUP(L12,'BackendCalcs-LO'!$M$103:$U$110,9),0) -> 0
F13: N'hood Greenways (km) | G13: 0 | M13: =_xlfn.IFNA(VLOOKUP(L13,'BackendCalcs-LO'!$M$103:$U$110,9),0) -> 0
F14: Go Dutch?* | G14: NO | H14: =HYPERLINK("#" & ADDRESS(ROW(),COLUMN()-1),CHAR(128)) -> € | M14: =_xlfn.IFNA(VLOOKUP(L14,'BackendCalcs-LO'!$M$103:$U$110,9),0) -> 0
E15: *Assumes all cycleways meets full best practice guidance | M15: =_xlfn.IFNA(VLOOKUP(L15,'BackendCalcs-LO'!$M$103:$U$110,9),0) -> 0
F16: Increase (prop) cycling trips by: | G16: ='Cyc-QoS-Calcs'!I4-1 -> 0 | H16: - | I16: ='Cyc-QoS-Calcs'!J4-1 -> 0 | M16: =_xlfn.IFNA(VLOOKUP(L16,'BackendCalcs-LO'!$M$103:$U$110,9),0) -> 0
F17: Decrease cycling DSIs by: | G17: ='Cyc-QoS-Calcs'!L4-1 -> 0 | H17: - | I17: ='Cyc-QoS-Calcs'!M4-1 -> 0 | M17: =_xlfn.IFNA(VLOOKUP(L17,'BackendCalcs-LO'!$M$103:$U$110,9),0) -> 0
M18: =_xlfn.IFNA(VLOOKUP(L18,'BackendCalcs-LO'!$M$103:$U$110,9),0) -> 0
F19: Improve Ped'n LoS by: | G19: 0 | H19: =HYPERLINK("#" & ADDRESS(ROW(),COLUMN()-1),CHAR(128)) -> € | M19: =_xlfn.IFNA(VLOOKUP(L19,'BackendCalcs-LO'!$M$103:$U$110,9),0) -> 0
F20: Increase (prop) ped'n trips by: | G20: ='BackendCalcs-LO'!O54-1 -> 0 | H20: - | I20: ='BackendCalcs-HI'!O54-1 -> 0 | M20: =_xlfn.IFNA(VLOOKUP(L20,'BackendCalcs-LO'!$M$103:$U$110,9),0) -> 0
F21: Decrease ped'n DSIs by: | G21: ='BackendCalcs-LO'!P54-1 -> 0 | H21: - | I21: ='BackendCalcs-HI'!P54-1 -> 0 | M21: =_xlfn.IFNA(VLOOKUP(L21,'BackendCalcs-LO'!$M$103:$U$110,9),0) -> 0
L22: Network road length changes -> | N22: ='BackendCalcs-LO'!X73 -> OK - no inconsistencies
E23: First/Last-Mile Trips with extra PT
F24: Increase (prop) car trips by: | G24: ='BackendCalcs-LO'!Q44 -> -0.001163991261 | H24: - | I24: ='BackendCalcs-HI'!Q44 -> 0.00143582278 | N24: Decrease road and active mode DSIs by: | O24: ='BackendCalcs-LO'!T100-1 -> 0 | P24: - | Q24: ='BackendCalcs-HI'!T100-1 -> 0
F25: Increase (prop) bike/scoot trips by: | G25: ='BackendCalcs-LO'!R44 -> -0.004497602019 | H25: - | I25: ='BackendCalcs-HI'!R44 -> 0.004894477656 | N25: Increase (abs) pedestrian trips by: | O25: ='BackendCalcs-LO'!AB100 -> 0 | P25: - | Q25: ='BackendCalcs-HI'!AB101 -> 0
F26: Increase (prop) ped'n/scoot trips by: | G26: ='BackendCalcs-LO'!S44 -> -0.02610243412 | H26: - | I26: ='BackendCalcs-HI'!S44 -> 0.02846872628 | N26: Increase (abs) cycling/wheeled device trips by: | O26: ='BackendCalcs-LO'!Z108 -> 0 | P26: - | Q26: ='BackendCalcs-HI'!Z109 -> 0
F27: Increase (prop) bus trips by: | G27: ='BackendCalcs-LO'!T44 -> -0.007411292819 | H27: - | I27: ='BackendCalcs-HI'!T44 -> 0.009058246778 | N27: Increase (abs) PT trips by: | O27: ='BackendCalcs-LO'!AB104 -> 0 | P27: - | Q27: ='BackendCalcs-HI'!AB105 -> 0

Sheet BackendCalcs-LO (hidden)
A1: BackEnd Calculations (low estimates)
B2: Lookup tables | Y2: Change Lookups | AB2: Increment: | AC2: 0.005 | AK2: 0.01
C3: Selected | D3: Search Criteria | F3: Existing mode usage/yr | P3: Future mode usage/yr | S3: Future Values | Z3: 0 | AA3: =Z3+$AC$2 -> 0.005 | AB3: 0.01 | AC3: 0.015 | AD3: 0.02 | AE3: 0.025 | AF3: 0.03 | AG3: 0.035 | AH3: 0.04 | AI3: 0.045 | AJ3: 0.05 | AK3: =AJ3+$AK$2 -> 0.06 | AL3: =AK3+$AK$2 -> 0.07 | AM3: =AL3+$AK$2 -> 0.08 | AN3: =AM3+$AK$2 -> 0.09 | AO3: =AN3+$AK$2 -> 0.1
B4: Area | C4: =VLOOKUP(FrontEnd!B5,'BackendCalcs-LO'!B5:C20,2,FALSE) -> 1 | D4: =VLOOKUP(C4,SearchArea,2) -> * | H4: 000 PKT/yr | I4: 000 VKT/yr | J4: % PKT | K4: %VKT | L4: 000 Hrs/yr | M4: %hrs | N4: 000 Trips/yr | O4: Mode share | P4: VKT % Diff | Q4: +/- %kms | S4: 000 Trips/yr | T4: 000 PKT/yr | U4: 000 VKT/yr | V4: '000 hrs/yr | Y4: Selected | Z4: 1 | AA4: 2 | AB4: 3 | AC4: 4 | AD4: 5 | AE4: 6 | AF4: 7 | AG4: 8 | AH4: 9 | AI4: 10 | AJ4: 11 | AK4: 12 | AL4: 13 | AM4: 14 | AN4: 15 | AO4: 16 | AQ4: Drop-down lists | BG4: Selected
B5: ALL of New Zealand | C5: 1 | D5: * | F5: Motor car | H5: =SUMIFS(INDIRECT($D$52 & "$D$19:$D$885"),INDIRECT($D$52 & "$A$19:$A$885"),$F5&"*",INDIRECT($D$52 & "$B$19:$B$885"),$D$4,INDIRECT($D$52 & "$C$19:$C$885"),$D$53)/1000 -> 52209991.82 | I5: =IFERROR(H5/V48,0) -> 43508326.52 | J5: =H5/H$14 -> 0.9374285045 | K5: =I5/I$14 -> 0.958763754 | L5: =IFERROR(H5*AD46*1.1,0) -> 11556683.87 | M5: =L5/L$14 -> 0.9089021329 | N5: =IFERROR(H5/AC46/1.1,0) -> 5823173.726 | O5: =N5/$N$14 -> 0.838354983 | P5: =IF(I5=0,"N/A",U5/I5-1) -> -0.1429968901 | Q5: =F5 -> Motor car | R5: =1-SUM(R6:R13) -> 0.841544562 | S5: =R5*$S$14 -> 5260795.551 | T5: =S5*AC46 -> 42879786.8 | U5: =IFERROR(T5/AB46,0) -> 37286771.13 | V5: =IF(H5=0,0,L5*T5/H5) -> 9491442.6 | W5: =Q5 -> Motor car | X5: 2 | Z5: =O5*(1+Q41/I5) -> 0.8371839776 | AP5: =F5 -> Motor car
B6: All TIER 1 Cities | C6: 2 | D6: 1:* | F6: Truck | H6: 463187.1234 | I6: =IFERROR(H6/(AB47+0.05),0) -> 441130.5937 | J6: =H6/H$14 -> 0.008316507957 | K6: 0.009720898455 | L6: =IFERROR(H6*AD47*1.1,0) -> 115307.9338 | M6: =L6/L$14 -> 0.009068659152 | N6: =IFERROR(H6/AC47/1.1,0) -> 41046.69224 | O6: =N6/$N$14 -> 0.005909440554 | P6: -0.1409090909 | Q6: =F6 -> Truck | R6: =Y6 -> 0.005909440554 | S6: =R6*$S$14 -> 36942.02301 | T6: =S6*AC47 -> 378971.2828 | U6: =IFERROR(T6/AB47,0) -> 378971.2828 | V6: =IF(H6=0,0,L6*T6/H6) -> 94342.85491 | W6: =Q6 -> Truck | X6: 3 | Y6: =HLOOKUP(IF(ISNA(_xlfn.XMATCH(BG6,AQ6:BF6)),1,_xlfn.XMATCH(BG6,AQ6:BF6)),$Z$4:$AO$13,X6) -> 0.005909440554 | Z6: =O6 -> 0.005909440554 | AA6: =$Z6+AA$3 -> 0.01090944055 | AB6: 0.01590944055 | AC6: 0.02090944055 | AD6: 0.02590944055 | AE6: 0.03090944055 | AF6: 0.03590944055 | AG6: 0.04090944055 | AH6: 0.04590944055 | AI6: 0.05090944055 | AJ6: 0.05590944055 | AK6: 0.06590944055 | AL6: 0.07590944055 | AM6: 0.08590944055 | AN6: 0.09590944055 | AO6: 0.1059094406 | AP6: Truck | AQ6: ="+ " & TEXT(Z$3,"0.0% =") -> + 0.0% = | AR6: + 0.5% = | AS6: + 1.0% = | AT6: + 1.5% = | AU6: + 2.0% = | AV6: + 2.5% = | AW6: + 3.0% = | AX6: + 3.5% = | AY6: + 4.0% = | AZ6: + 4.5% = | BA6: + 5.0% = | BB6: + 6.0% = | BC6: + 7.0% = | BD6: + 8.0% = | BE6: + 9.0% = | BF6: + 10.0% = | BG6: =FrontEnd!P6 -> + 0.0% =
B7: Auckland | C7: 3 | D7: 1:Auckland | F7: Motorcycle | H7: 154595.0014 | I7: =IFERROR(H7/AB48,0) -> 154595.0014 | J7: 0.002775747628 | K7: 0.003406706159 | L7: 37118.12303 | M7: 0.002919240638 | N7: 17349.99455 | O7: 0.00249785685 | P7: -0.1818181818 | Q7: Motorcycle | R7: 0.00249785685 | S7: 15614.99509 | T7: =S7*AC48 -> 126486.8193 | U7: =IFERROR(T7/AB48,0) -> 126486.8193 | V7: 30369.37339 | W7: Motorcycle | X7: 4 | Y7: 0.00249785685 | Z7: =O7 -> 0.00249785685 | AA7: 0.00749785685 | AB7: 0.01249785685 | AC7: 0.01749785685 | AD7: 0.02249785685 | AE7: 0.02749785685 | AF7: 0.03249785685 | AG7: 0.03749785685 | AH7: 0.04249785685 | AI7: 0.04749785685 | AJ7: 0.05249785685 | AK7: 0.06249785685 | AL7: 0.07249785685 | AM7: 0.08249785685 | AN7: 0.09249785685 | AO7: 0.1024978569 | AP7: Motorcycle | AQ7: + 0.0% = | AR7: + 0.5% = | AS7: + 1.0% = | AT7: + 1.5% = | AU7: + 2.0% = | AV7: + 2.5% = | AW7: + 3.0% = | AX7: + 3.5% = | AY7: + 4.0% = | AZ7: + 4.5% = | BA7: + 5.0% = | BB7: + 6.0% = | BC7: + 7.0% = | BD7: + 8.0% = | BE7: + 9.0% = | BF7: + 10.0% = | BG7: =FrontEnd!P7 -> + 0.0% =
B8: Hamilton | C8: 4 | D8: 1:Hamilton | F8: Bus | H8: 1126479.054 | I8: =IFERROR(H8/AB49/1.1,0) -> 160623.6067 | J8: 0.02022589044 | K8: 0.003539554482 | L8: 422530.3191 | M8: 0.03323087423 | N8: 130050.5984 | O8: 0.01872322076 | P8: -0.1066701635 | Q8: Bus | R8: 0.01858445749 | S8: 116178.0798 | T8: =S8*AC49 -> 914833.9533 | U8: =IFERROR(T8/AB49,0) -> 143489.8603 | V8: 343144.4917 | W8: Bus | X8: 5 | Y8: 0.01858445749 | Z8: =(O8+$AB$104)*(1+T41/H8) -> 0.01858445749 | AA8: 0.02358445749 | AB8: 0.02858445749 | AC8: 0.03358445749 | AD8: 0.03858445749 | AE8: 0.04358445749 | AF8: 0.04858445749 | AG8: 0.05358445749 | AH8: 0.05858445749 | AI8: 0.06358445749 | AJ8: 0.06858445749 | AK8: 0.07858445749 | AL8: 0.08858445749 | AM8: 0.09858445749 | AN8: 0.1085844575 | AO8: 0.1185844575 | AP8: Bus | AQ8: + 0.0% = | AR8: + 0.5% = | AS8: + 1.0% = | AT8: + 1.5% = | AU8: + 2.0% = | AV8: + 2.5% = | AW8: + 3.0% = | AX8: + 3.5% = | AY8: + 4.0% = | AZ8: + 4.5% = | BA8: + 5.0% = | BB8: + 6.0% = | BC8: + 7.0% = | BD8: + 8.0% = | BE8: + 9.0% = | BF8: + 10.0% = | BG8: =FrontEnd!P8 -> + 0.0% =
B9: Tauranga | C9: 5 | D9: 1:Tauranga | F9: Train | H9: 519566.8398 | I9: =IFERROR(H9/AB50/1.1,0) -> 8760.05658 | J9: 0.009328803714 | K9: 0.0001930394801 | L9: 265371.6933 | M9: 0.02087077061 | N9: 27222.47125 | O9: 0.00391918488 | P9: -0.1 | Q9: Train | R9: 0.00391918488 | S9: 24500.22413 | T9: =S9*AC50 -> 425100.1417 | U9: =IFERROR(T9/AB50,0) -> 7884.050922 | V9: 217122.2945 | W9: Train | X9: 6 | Y9: 0.00391918488 | Z9: =IF(O9=0,0,O9+$AB$104) -> 0.00391918488 | AA9: 0.00891918488 | AB9: 0.01391918488 | AC9: 0.01891918488 | AD9: 0.02391918488 | AE9: 0.02891918488 | AF9: 0.03391918488 | AG9: 0.03891918488 | AH9: 0.04391918488 | AI9: 0.04891918488 | AJ9: 0.05391918488 | AK9: 0.06391918488 | AL9: 0.07391918488 | AM9: 0.08391918488 | AN9: 0.09391918488 | AO9: 0.1039191849 | AP9: Train | AQ9: + 0.0% = | AR9: + 0.5% = | AS9: + 1.0% = | AT9: + 1.5% = | AU9: + 2.0% = | AV9: + 2.5% = | AW9: + 3.0% = | AX9: + 3.5% = | AY9: + 4.0% = | AZ9: + 4.5% = | BA9: + 5.0% = | BB9: + 6.0% = | BC9: + 7.0% = | BD9: + 8.0% = | BE9: + 9.0% = | BF9: + 10.0% = | BG9: =FrontEnd!P9 -> + 0.0% =
B10: Wellington | C10: 6 | D10: 1:Wellington | F10: Ferry | H10: 119594.6362 | I10: 4684.694783 | J10: 0.002147317343 | K10: 0.0001032334708 | L10: 72052.00621 | M10: 0.00566669668 | N10: 6121.151238 | O10: 0.0008812544299 | P10: -0.1 | Q10: Ferry | R10: =Y10 -> 0.0008812544299 | S10: 5509.036115 | T10: =S10*AC51 -> 97850.15687 | U10: =IFERROR(T10/AB51,0) -> 4216.225304 | V10: 58951.64144 | W10: Ferry | X10: 7 | Y10: 0.0008812544299 | Z10: =O10 -> 0.0008812544299 | AA10: 0.00588125443 | AB10: 0.01088125443 | AC10: 0.01588125443 | AD10: 0.02088125443 | AE10: 0.02588125443 | AF10: 0.03088125443 | AG10: 0.03588125443 | AH10: 0.04088125443 | AI10: 0.04588125443 | AJ10: 0.05088125443 | AK10: 0.06088125443 | AL10: 0.07088125443 | AM10: 0.08088125443 | AN10: 0.09088125443 | AO10: 0.1008812544 | AP10: Ferry | AQ10: + 0.0% = | AR10: + 0.5% = | AS10: + 1.0% = | AT10: + 1.5% = | AU10: + 2.0% = | AV10: + 2.5% = | AW10: + 3.0% = | AX10: + 3.5% = | AY10: + 4.0% = | AZ10: + 4.5% = | BA10: + 5.0% = | BB10: + 6.0% = | BC10: + 7.0% = | BD10: + 8.0% = | BE10: + 9.0% = | BF10: + 10.0% = | BG10: =FrontEnd!P10 -> + 0.0% =
B11: Christchurch | C11: 7 | D11: 1:Christchurch | F11: Bicycle | H11: 388160.1394 | I11: =IFERROR(H11/AB52,0) -> 388160.1394 | J11: 0.006969401187 | K11: 0.008553624149 | L11: 109459.0056 | M11: 0.008608656668 | N11: 104215.7235 | O11: 0.01500380638 | P11: -0.185498038 | Q11: Bicycle | R11: =Y11 -> 0.01493632523 | S11: 93372.30238 | T11: =S11*AC52 -> 316157.1951 | U11: =IFERROR(T11/AB52,0) -> 316157.1951 | V11: 89154.57482 | W11: Bicycle | X11: 8 | Y11: 0.01493632523 | Z11: =(O11+Z108)*S49*(1+IFERROR((R41)/H11,0)*(1-$T$42)) -> 0.01493632523 | AA11: 0.01993632523 | AB11: 0.02493632523 | AC11: 0.02993632523 | AD11: 0.03493632523 | AE11: 0.03993632523 | AF11: 0.04493632523 | AG11: 0.04993632523 | AH11: 0.05493632523 | AI11: 0.05993632523 | AJ11: 0.06493632523 | AK11: 0.07493632523 | AL11: 0.08493632523 | AM11: 0.09493632523 | AN11: 0.1049363252 | AO11: 0.1149363252 | AP11: Bicycle | AQ11: + 0.0% = | AR11: + 0.5% = | AS11: + 1.0% = | AT11: + 1.5% = | AU11: + 2.0% = | AV11: + 2.5% = | AW11: + 3.0% = | AX11: + 3.5% = | AY11: + 4.0% = | AZ11: + 4.5% = | BA11: + 5.0% = | BB11: + 6.0% = | BC11: + 7.0% = | BD11: + 8.0% = | BE11: + 9.0% = | BF11: + 10.0% = | BG11: =FrontEnd!P11 -> + 0.0% =
B12: All TIER 2 Cities | C12: 8 | D12: 2:* | F12: Wheeled device | H12: 17280.83896 | I12: =IFERROR(H12/AB53,0) -> 17280.83896 | J12: 0.0003102768351 | K12: 0.0003808062355 | L12: 3053.034488 | M12: 0.0002401129588 | N12: 8185.465911 | O12: 0.001178451212 | P12: -0.1956193256 | Q12: Wheeled device | R12: 0.001158573021 | S12: 7242.653648 | T12: =S12*AC53 -> 13900.3729 | U12: =IFERROR(T12/AB53,0) -> 13900.3729 | V12: 2455.80194 | W12: Wheeled device | X12: 9 | Y12: 0.001158573021 | Z12: =(O12*(1+Z108/O11))*(1+IFERROR((R41)/H12,0)*$T$42+(O12*(1+AB100/O13))*(1+IFERROR((S41)/H12,0)*$T$43)) -> 0.001158573021 | AA12: 0.006158573021 | AB12: 0.01115857302 | AC12: 0.01615857302 | AD12: 0.02115857302 | AE12: 0.02615857302 | AF12: 0.03115857302 | AG12: 0.03615857302 | AH12: 0.04115857302 | AI12: 0.04615857302 | AJ12: 0.05115857302 | AK12: 0.06115857302 | AL12: 0.07115857302 | AM12: 0.08115857302 | AN12: 0.09115857302 | AO12: 0.101158573 | AP12: Wheeled device | AQ12: + 0.0% = | AR12: + 0.5% = | AS12: + 1.0% = | AT12: + 1.5% = | AU12: + 2.0% = | AV12: + 2.5% = | AW12: + 3.0% = | AX12: + 3.5% = | AY12: + 4.0% = | AZ12: + 4.5% = | BA12: + 5.0% = | BB12: + 6.0% = | BC12: + 7.0% = | BD12: + 8.0% = | BE12: + 9.0% = | BF12: + 10.0% = | BG12: =FrontEnd!P12 -> + 0.0% =
B13: Whangārei | C13: 9 | D13: 2:Whangārei | F13: Pedestrian | H13: 696049.8856 | I13: =IFERROR(H13/AB54,0) -> 696049.8856 | J13: 0.01249755038 | K13: 0.01533838358 | L13: 133416.5882 | M13: 0.01049285616 | N13: 788586.4811 | O13: =N13/$N$14 -> 0.1135318019 | P13: =IF(I13=0,"N/A",U13/I13-1) -> -0.2031747188 | Q13: Pedestrian | R13: =Y13 -> 0.1105683455 | S13: =R13*$S$14 -> 691202.209 | T13: =S13*AC54 -> 554630.1458 | U13: =IFERROR(T13/AB54,0) -> 554630.1458 | V13: 106309.7104 | W13: Pedestrian | X13: 10 | Y13: 0.1105683455 | Z13: =O13*AA100*(1+IFERROR((S41)/H13,0)*(1-$T$43))*O54 -> 0.1105683455 | AA13: 0.1155683455 | AB13: 0.1205683455 | AC13: 0.1255683455 | AD13: 0.1305683455 | AE13: 0.1355683455 | AF13: 0.1405683455 | AG13: 0.1455683455 | AH13: 0.1505683455 | AI13: 0.1555683455 | AJ13: 0.1605683455 | AK13: 0.1705683455 | AL13: 0.1805683455 | AM13: 0.1905683455 | AN13: 0.2005683455 | AO13: 0.2105683455 | AP13: Pedestrian | AQ13: + 0.0% = | AR13: + 0.5% = | AS13: + 1.0% = | AT13: + 1.5% = | AU13: + 2.0% = | AV13: + 2.5% = | AW13: + 3.0% = | AX13: + 3.5% = | AY13: + 4.0% = | AZ13: + 4.5% = | BA13: + 5.0% = | BB13: + 6.0% = | BC13: + 7.0% = | BD13: + 8.0% = | BE13: + 9.0% = | BF13: + 10.0% = | BG13: =FrontEnd!P13 -> + 0.0% =
B14: Rotorua | C14: 10 | D14: 2:Rotorua | F14: TOTAL | H14: =SUM(H5:H13) -> 55694905.34 | I14: =SUM(I5:I13) -> 45379611.34 | L14: =SUM(L5:L13) -> 12714992.57 | N14: =SUM(N5:N13) -> 6945952.305 | P14: =IF(I14=0,"N/A",U14/I14-1) -> -0.1442741367 | S14: =N14*(1+R15)*0.9 -> 6251357.074 | T14: =SUM(T5:T13) -> 45707716.87 | U14: =SUM(U5:U13) -> 38832507.09 | V14: =SUM(V5:V13) -> 10433293.34
B15: New Plymouth | C15: 11 | D15: 2:New Plymouth | H15: =SUM(H5:H7) -> 52827773.95 | I15: =SUM(I5:I8) -> 44264675.72 | J15: M.Vehs | Q15: Overall travel change: | R15: =H39 -> 0 | S15: =SUM(S5:S7) -> 5313352.569 | T15: =SUM(T5:T7) -> 43385244.91 | U15: =SUM(U5:U8) -> 37935719.1 | V15: M.Vehs
B16: Napier Hastings | C16: 12 | D16: 2:Napier Hastings
B17: Palmerston North | C17: 13 | D17: 2:Palmerston North | F17: Existing mode DSIs/yr | P17: Future mode DSI/yr | U17: New | W17: Tier 1 Default DSI Rates | Y17: Mode share less than:
B18: Nelson Tasman | C18: 14 | D18: 2:Nelson Tasman | H18: DSIs | J18: /Bn P.kms | K18: /Bn hrs | M18: Abs Diff | P18: =H18 -> DSIs | Q18: =J18 -> /Bn P.kms | R18: % Diff P.kms | S18: =K18 -> /Bn hrs | T18: % Diff hrs | U18: DSIs | W18: /B.km | X18: /B.hr | Y18: 0.001
B19: Dunedin | C19: 15 | D19: 2:Dunedin | F19: Motor car | H19: =SUMIFS('MOH_Injs-2Modes'!$K$3:$K$34000,'MOH_Injs-2Modes'!$B$3:$B$34000,F19&"*",'MOH_Injs-2Modes'!$E$3:$E$34000,"<>"&$D$48,'MOH_Injs-2Modes'!$G$3:$G$34000,'BackendCalcs-LO'!$D$4,'MOH_Injs-2Modes'!$J$3:$J$34000,$D$22,'MOH_Injs-2Modes'!$I$3:$I$34000,$D$40,'MOH_Injs-2Modes'!$H$3:$H$34000,$D$34)/$H$37 -> 1457.166667 | J19: =IF(H5=0,"N/A",H19/H5*1000000) -> 27.90972792 | K19: =IF(L5=0,"N/A",H19/L5*1000000) -> 126.0886499 | M19: =IF(H19=0,"N/A",P19/H19-1) -> -0.2066221456 | P19: =U19 -> 1156.083763 | Q19: =IF(T5=0,"N/A",P19/T5*1000000) -> 26.96104271 | R19: =IF(ISERROR(Q19/J19),"N/A",Q19/J19-1) -> -0.03399120245 | S19: =IF(V5=0,"N/A",P19/V5*1000000) -> 121.8027451 | T19: =IF(ISERROR(S19/K19),"N/A",S19/K19-1) -> -0.03399120245 | U19: =IF(I5=0,U5*W19*0.000001,H19*(U5/I5)^$X$60*($U$15/$I$15)^$Y$60)*$M$64 -> 1156.083763 | V19: =F19 -> Motor car | W19: 25.83566963 | X19: 122.3801054 | Y19: use default DSI rates
B20: Queenstown | C20: 16 | D20: 2:Queenstown | F20: Truck | H20: =SUMIFS('MOH_Injs-2Modes'!$K$3:$K$34000,'MOH_Injs-2Modes'!$B$3:$B$34000,F20&"*",'MOH_Injs-2Modes'!$E$3:$E$34000,"<>"&$D$48,'MOH_Injs-2Modes'!$G$3:$G$34000,'BackendCalcs-LO'!$D$4,'MOH_Injs-2Modes'!$J$3:$J$34000,$D$22,'MOH_Injs-2Modes'!$I$3:$I$34000,$D$40,'MOH_Injs-2Modes'!$H$3:$H$34000,$D$34)/$H$37 -> 20.33333333 | J20: 43.89874482 | K20: 176.3394128 | M20: -0.2051729883 | P20: 16.16148257 | Q20: 42.64566553 | R20: -0.02854476352 | S20: 171.305846 | T20: =IF(ISERROR(S20/K20),"N/A",S20/K20-1) -> -0.02854476352 | U20: =IF(I6=0,U6*W20*0.000001,H20*(U6/I6)^$X$60*($U$15/$I$15)^$Y$60)*$M$64 -> 16.16148257 | V20: =F20 -> Truck | W20: 88.32538724 | X20: 359.0409531
F21: Motorcycle | H21: =SUMIFS('MOH_Injs-2Modes'!$K$3:$K$34000,'MOH_Injs-2Modes'!$B$3:$B$34000,F21&"*",'MOH_Injs-2Modes'!$E$3:$E$34000,"<>"&$D$48,'MOH_Injs-2Modes'!$G$3:$G$34000,'BackendCalcs-LO'!$D$4,'MOH_Injs-2Modes'!$J$3:$J$34000,$D$22,'MOH_Injs-2Modes'!$I$3:$I$34000,$D$40,'MOH_Injs-2Modes'!$H$3:$H$34000,$D$34)/$H$37 -> 377.3333333 | J21: 2440.786118 | K21: 10165.74392 | M21: -0.2337320809 | P21: 289.1384281 | Q21: 2285.917455 | R21: -0.06345032107 | S21: 9520.7242 | T21: -0.06345032107 | U21: =IF(I7=0,U7*W21*0.000001,H21*(U7/I7)^$X$60*($U$15/$I$15)^$Y$60)*$M$64 -> 289.1384281 | V21: Motorcycle | W21: 1861.438929 | X21: 7361.191495
B22: Age Group | C22: =VLOOKUP(FrontEnd!B8,'BackendCalcs-LO'!B23:C32,2,FALSE) -> 1 | D22: =VLOOKUP(C22,SearchAge,2) -> * | F22: Bus | H22: =SUMIFS('MOH_Injs-2Modes'!$K$3:$K$34000,'MOH_Injs-2Modes'!$B$3:$B$34000,F22&"*",'MOH_Injs-2Modes'!$E$3:$E$34000,"<>"&$D$48,'MOH_Injs-2Modes'!$G$3:$G$34000,'BackendCalcs-LO'!$D$4,'MOH_Injs-2Modes'!$J$3:$J$34000,$D$22,'MOH_Injs-2Modes'!$I$3:$I$34000,$D$40,'MOH_Injs-2Modes'!$H$3:$H$34000,$D$34)/$H$37 -> 7 | J22: 6.214052519 | K22: 16.56685848 | M22: -0.1815311508 | P22: 5.729281944 | Q22: 6.262646815 | R22: 0.007820065248 | S22: 16.69641239 | T22: 0.007820065248 | U22: =IF(I8=0,U8*W22*0.000001,H22*(U8/I8)^$X$60*($U$15/$I$15)^$Y$60)*$M$64 -> 5.729281944 | V22: Bus | W22: 5.688061919 | X22: 17.17247162
B23: All AGES | C23: 1 | D23: * | F23: Train | H23: =SUMIFS('MOH_Injs-2Modes'!$K$3:$K$34000,'MOH_Injs-2Modes'!$B$3:$B$34000,F23&"*",'MOH_Injs-2Modes'!$E$3:$E$34000,"<>"&$D$48,'MOH_Injs-2Modes'!$G$3:$G$34000,'BackendCalcs-LO'!$D$4,'MOH_Injs-2Modes'!$J$3:$J$34000,$D$22,'MOH_Injs-2Modes'!$I$3:$I$34000,$D$40,'MOH_Injs-2Modes'!$H$3:$H$34000,$D$34)/$H$37 -> 6.166666667 | J23: 11.86886112 | K23: 23.23784647 | M23: -0.07267357245 | P23: 5.71851297 | Q23: 13.45215494 | R23: 0.133398967 | S23: 26.33775118 | T23: 0.133398967 | U23: =IF(I9=0,U9*W23*0.000001,H23*($U$15/$I$15)^$Y$61*(U9/I9)^$X$61) -> 5.71851297 | V23: Train | W23: 7.400325933 | X23: 18.11953504
B24: =IF(C34*C40<>1,"","0 to 9") -> 0 to 9 | C24: 2 | D24: 0 to 9 | F24: Ferry | H24: =SUMIFS('MOH_Injs-2Modes'!$K$3:$K$34000,'MOH_Injs-2Modes'!$B$3:$B$34000,F24&"*",'MOH_Injs-2Modes'!$E$3:$E$34000,"<>"&$D$48,'MOH_Injs-2Modes'!$G$3:$G$34000,'BackendCalcs-LO'!$D$4,'MOH_Injs-2Modes'!$J$3:$J$34000,$D$22,'MOH_Injs-2Modes'!$I$3:$I$34000,$D$40,'MOH_Injs-2Modes'!$H$3:$H$34000,$D$34)/$H$37 -> 0 | J24: 0 | K24: 0 | M24: N/A | P24: 0 | Q24: 0 | R24: N/A | S24: 0 | T24: N/A | U24: =IF(I10=0,U10*W24*0.000001,H24*U10/I10) -> 0 | V24: Ferry | W24: 0 | X24: 0
B25: =IF(C34*C40<>1,"","10 to 19") -> 10 to 19 | C25: 3 | D25: 10 to 19 | F25: Bicycle | G25: All | H25: =SUM(H26:H27) -> 207.8333333 | J25: =SUM(J26:J27) -> 535.4319319 | K25: =SUM(K26:K27) -> 1898.732153 | M25: -0.1015929664 | P25: 186.7189285 | Q25: =SUM(Q26:Q27) -> 590.5888949 | R25: 0.1030139589 | S25: =SUM(S26:S27) -> 2094.328069 | T25: 0.1030139589 | U25: =SUM(U26:U27) -> 186.7189285 | V25: Bicycle | W25: 473.7144796 | X25: 1785.792426
B26: =IF(C34*C40<>1,"","20 to 29") -> 20 to 29 | C26: 4 | D26: 20 to 29 | F26: Bicycle | G26: Collisions | H26: =SUMIFS('MOH_Injs-2Modes'!$K$3:$K$34000,'MOH_Injs-2Modes'!$B$3:$B$34000,F26&"*",'MOH_Injs-2Modes'!$E$3:$E$34000,"<>"&$D$48,'MOH_Injs-2Modes'!$G$3:$G$34000,'BackendCalcs-LO'!$D$4,'MOH_Injs-2Modes'!$J$3:$J$34000,$D$22,'MOH_Injs-2Modes'!$I$3:$I$34000,$D$40,'MOH_Injs-2Modes'!$H$3:$H$34000,$D$34,'MOH_Injs-2Modes'!$C$3:$C$34000,"<>"&$F$40)/$H$37 -> 167.3333333 | J26: =IF(H11=0,"N/A",H26/H11*1000000) -> 431.0935522 | K26: =IF(L11=0,"N/A",H26/L11*1000000) -> 1528.730618 | M26: -0.08128526477 | P26: 153.731599 | Q26: =IF(T$11=0,"N/A",P26/T$11*1000000) -> 486.2505153 | R26: 0.1279466203 | S26: =IF(V11=0,"N/A",P26/V11*1000000) -> 1724.326534 | T26: 0.1279466203 | U26: =IF(I11=0,U11*W26*0.000001,H26*($U$15/$I$15)^$Y$58*(U11/I11)^$X$58)*S51*$M$64 -> 153.731599 | V26: =G26 -> Collisions | W26: 378.8340759 | X26: 1428.115569
B27: =IF(C34*C40<>1,"","30 to 39") -> 30 to 39 | C27: 5 | D27: 30 to 39 | F27: Bicycle | G27: User only | H27: =SUMIFS('MOH_Injs-2Modes'!$K$3:$K$34000,'MOH_Injs-2Modes'!$B$3:$B$34000,F27&"*",'MOH_Injs-2Modes'!$E$3:$E$34000,"<>"&$D$48,'MOH_Injs-2Modes'!$G$3:$G$34000,'BackendCalcs-LO'!$D$4,'MOH_Injs-2Modes'!$J$3:$J$34000,$D$22,'MOH_Injs-2Modes'!$I$3:$I$34000,$D$40,'MOH_Injs-2Modes'!$H$3:$H$34000,$D$34,'MOH_Injs-2Modes'!$C$3:$C$34000,$F$40)/$H$37 -> 40.5 | J27: =IF(H11=0,"N/A",H27/H11*1000000) -> 104.3383797 | K27: =IF(L11=0,"N/A",H27/L11*1000000) -> 370.0015342 | M27: -0.185498038 | P27: 32.98732946 | Q27: =IF(T$11=0,"N/A",P27/T$11*1000000) -> 104.3383797 | R27: 0 | S27: =IF(V11=0,"N/A",P27/V11*1000000) -> 370.0015342 | T27: 0 | U27: =IF(OR(I11=0,O11<$Y$18),U11*W27*0.000001,H27*(1+P11))*S51 -> 32.98732946 | V27: =G27 -> User only | W27: 94.88040376 | X27: 357.6768575
B28: =IF(C34*C40<>1,"","40 to 49") -> 40 to 49 | C28: 6 | D28: 40 to 49 | F28: Wheeled device | G28: All | H28: =SUM(H29:H30) -> 130.5 | J28: =SUM(J29:J30) -> 7551.71669 | K28: =SUM(K29:K30) -> 42744.35828 | M28: -0.1895788081 | P28: 105.7599655 | Q28: =SUM(Q29:Q30) -> 7608.426502 | R28: 0.007509525995 | S28: =SUM(S29:S30) -> 43065.34815 | T28: 0.007509525995 | U28: =SUM(U29:U30) -> 105.7599655 | V28: Wheeled device | W28: =W25*$Y$28 -> 473.7144796 | X28: 1785.792426 | Y28: 1
B29: =IF(C34*C40<>1,"","50 to 59") -> 50 to 59 | C29: 7 | D29: 50 to 59 | F29: Wheeled device | G29: Collisions | H29: =SUMIFS('MOH_Injs-2Modes'!$K$3:$K$34000,'MOH_Injs-2Modes'!$B$3:$B$34000,F29&"*",'MOH_Injs-2Modes'!$E$3:$E$34000,"<>"&$D$48,'MOH_Injs-2Modes'!$G$3:$G$34000,'BackendCalcs-LO'!$D$4,'MOH_Injs-2Modes'!$J$3:$J$34000,$D$22,'MOH_Injs-2Modes'!$I$3:$I$34000,$D$40,'MOH_Injs-2Modes'!$H$3:$H$34000,$D$34,'MOH_Injs-2Modes'!$C$3:$C$34000,"<>"&$F$40)/$H$37 -> 7 | J29: =IF(H12=0,"N/A",H29/H12*1000000) -> 405.0729259 | K29: =IF(L12=0,"N/A",H29/L12*1000000) -> 2292.800827 | M29: -0.08300681926 | P29: 6.418952265 | Q29: =IF(T$12=0,"N/A",P29/T$12*1000000) -> 461.7827387 | R29: 0.1399990203 | S29: =IF(V12=0,"N/A",P29/V12*1000000) -> 2613.790697 | T29: 0.1399990203 | U29: =IF(I12=0,U12*W29*0.000001,H29*($U$15/$I$15)^$Y$58*(U12/I12)^$X$58)*S51*$M$64 -> 6.418952265 | V29: =G29 -> Collisions | W29: 378.8340759 | X29: 1428.115569 | Y29: Scaling factor relative
B30: =IF(C34*C40<>1,"","60 to 69") -> 60 to 69 | C30: 8 | D30: 60 to 69 | F30: Wheeled device | G30: User only | H30: =SUMIFS('MOH_Injs-2Modes'!$K$3:$K$34000,'MOH_Injs-2Modes'!$B$3:$B$34000,F30&"*",'MOH_Injs-2Modes'!$E$3:$E$34000,"<>"&$D$48,'MOH_Injs-2Modes'!$G$3:$G$34000,'BackendCalcs-LO'!$D$4,'MOH_Injs-2Modes'!$J$3:$J$34000,$D$22,'MOH_Injs-2Modes'!$I$3:$I$34000,$D$40,'MOH_Injs-2Modes'!$H$3:$H$34000,$D$34,'MOH_Injs-2Modes'!$C$3:$C$34000,$F$40)/$H$37 -> 123.5 | J30: =IF(H12=0,"N/A",H30/H12*1000000) -> 7146.643764 | K30: =IF(L12=0,"N/A",H30/L12*1000000) -> 40451.55745 | M30: -0.1956193256 | P30: 99.34101328 | Q30: =IF(T$12=0,"N/A",P30/T$12*1000000) -> 7146.643764 | R30: 0 | S30: =IF(V12=0,"N/A",P30/V12*1000000) -> 40451.55745 | T30: 0 | U30: =IF(OR(I12=0,O12<$Y$18),U12*W30*0.000001,H30*(1+P12))*S51 -> 99.34101328 | V30: =G30 -> User only | W30: 94.88040376 | X30: 357.6768575 | Y30: to cycle crash rate *
B31: =IF(C34*C40<>1,"","70 to 79") -> 70 to 79 | C31: 9 | D31: 70 to 79 | F31: Pedestrian | G31: All | H31: =SUM(H32:H33) -> 1295.5 | J31: =SUM(J32:J33) -> 1861.217173 | K31: =SUM(K32:K33) -> 9710.186847 | M31: -0.1901925149 | P31: 1049.105597 | Q31: =SUM(Q32:Q33) -> 1891.540885 | R31: 0.01629240963 | S31: =SUM(S32:S33) -> 9868.389189 | T31: 0.01629240963 | U31: =SUM(U32:U33) -> 1049.105597 | V31: Pedestrian | W31: 1691.275104 | X31: 9657.035828
B32: =IF(C34*C40<>1,"","80+") -> 80+ | C32: 10 | D32: 80+ | F32: Pedestrian | G32: Collisions | H32: =SUMIFS('MOH_Injs-2Modes'!$K$3:$K$34000,'MOH_Injs-2Modes'!$B$3:$B$34000,F32&"*",'MOH_Injs-2Modes'!$E$3:$E$34000,"<>"&$D$48,'MOH_Injs-2Modes'!$G$3:$G$34000,'BackendCalcs-LO'!$D$4,'MOH_Injs-2Modes'!$J$3:$J$34000,$D$22,'MOH_Injs-2Modes'!$I$3:$I$34000,$D$40,'MOH_Injs-2Modes'!$H$3:$H$34000,$D$34,'MOH_Injs-2Modes'!$C$3:$C$34000,"<>"&$F$40)/$H$37 -> 325.8333333 | J32: =IF(H13=0,"N/A",H32/H13*1000000) -> 468.1177888 | K32: =IF(L13=0,"N/A",H32/L13*1000000) -> 2442.225046 | M32: -0.1515580074 | P32: 276.4506826 | Q32: =IF(T$13=0,"N/A",P32/T$13*1000000) -> 498.4415014 | R32: 0.064777954 | S32: =IF(V13=0,"N/A",P32/V13*1000000) -> 2600.427388 | T32: 0.064777954 | U32: =IF(I13=0,U13*W32*0.000001,H32*($U$15/$I$15)^$Y$59*(U13/I13)^$X$59)*P54*R58*R60*$M$64 -> 276.4506826 | V32: =G32 -> Collisions | W32: 407.2732996 | X32: 2325.49562
F33: Pedestrian | G33: User only | H33: =SUMIFS('MOH_Injs-2Modes'!$K$3:$K$34000,'MOH_Injs-2Modes'!$B$3:$B$34000,F33&"*",'MOH_Injs-2Modes'!$E$3:$E$34000,"<>"&$D$48,'MOH_Injs-2Modes'!$G$3:$G$34000,'BackendCalcs-LO'!$D$4,'MOH_Injs-2Modes'!$J$3:$J$34000,$D$22,'MOH_Injs-2Modes'!$I$3:$I$34000,$D$40,'MOH_Injs-2Modes'!$H$3:$H$34000,$D$34,'MOH_Injs-2Modes'!$C$3:$C$34000,$F$40)/$H$37 -> 969.6666667 | J33: =IF(H13=0,"N/A",H33/H13*1000000) -> 1393.099384 | K33: =IF(L13=0,"N/A",H33/L13*1000000) -> 7267.9618 | M33: -0.2031747188 | P33: 772.6549143 | Q33: =IF(T$13=0,"N/A",P33/T$13*1000000) -> 1393.099384 | R33: 0 | S33: =IF(V13=0,"N/A",P33/V13*1000000) -> 7267.9618 | T33: -1.110223025e-16 | U33: =IF(OR(I13=0,O13<$Y$18),U13*W33*0.000001,H33*(1+P13))*P54*R58*R60 -> 772.6549143 | V33: =G33 -> User only | W33: 1284.001804 | X33: 7331.540208
B34: Gender | C34: =VLOOKUP(FrontEnd!B11,'BackendCalcs-LO'!B35:C38,2,FALSE) -> 1 | D34: =VLOOKUP(C34,SearchGender,2) -> * | F34: TOTAL | H34: =SUM(H19:H33)-H25-H28-H31 -> 3501.833333 | J34: =IF(H14=0,"N/A",H34/H14*1000000) -> 62.87529015 | K34: =IF(L14=0,"N/A",H34/L14*1000000) -> 275.409782 | M34: -0.1963021389 | P34: 2814.41596 | Q34: =IF(T14=0,"N/A",P34/T14*1000000) -> 61.57419693 | R34: -0.02069323601 | S34: =IF(V14=0,"N/A",P34/V14*1000000) -> 269.7533624 | T34: -0.02053819438 | U34: =SUM(U19:U33)-U25-U28-U31 -> 2814.41596
B35: All GENDERS | C35: 1 | D35: *
B36: =IF(C22*C40<>1,"","Male") -> Male | C36: 2 | D36: Male | G36: Yrs of Travel Data: | H36: 7 | I36: 4 | J36: Yrs Wheeled Device | M36: PT Chains increases | P36: Average kms per km of main PT mode travelled by supporting mode | W36: kms per PT km
B37: =IF(C22*C40<>1,"","Female") -> Female | C37: 3 | D37: Female | G37: Yrs of Injury Data: | H37: 6 | M37: Mode | N37: Extra PKT | O37: Location | Q37: Driven | R37: Biked | S37: Walked | T37: Bussed | V37: Drive | W37: Bike | X37: Walk | Y37: Bus
B38: =IF(C22*C40<>1,"","Another/Unknown") -> Another/Unknown | C38: 4 | D38: Another/Unknown | M38: Bus | N38: =T8-H8 -> -211645.1002 | O38: =$D$4 -> * | Q38: =IFERROR(SUMIFS(TripChains!H$4:H$25,TripChains!$A$4:$A$25,'BackendCalcs-LO'!$M38,TripChains!$B$4:$B$25,'BackendCalcs-LO'!$O38)*$N38/SUMIFS(TripChains!$G$4:$G$25,TripChains!$A$4:$A$25,'BackendCalcs-LO'!$M38,TripChains!$B$4:$B$25,'BackendCalcs-LO'!$O38),0) -> -35289.85212 | R38: =IFERROR(SUMIFS(TripChains!I$4:I$25,TripChains!$A$4:$A$25,'BackendCalcs-LO'!$M38,TripChains!$B$4:$B$25,'BackendCalcs-LO'!$O38)*$N38/SUMIFS(TripChains!$G$4:$G$25,TripChains!$A$4:$A$25,'BackendCalcs-LO'!$M38,TripChains!$B$4:$B$25,'BackendCalcs-LO'!$O38),0) -> -1172.266371 | S38: =IFERROR(SUMIFS(TripChains!J$4:J$25,TripChains!$A$4:$A$25,'BackendCalcs-LO'!$M38,TripChains!$B$4:$B$25,'BackendCalcs-LO'!$O38)*$N38/SUMIFS(TripChains!$G$4:$G$25,TripChains!$A$4:$A$25,'BackendCalcs-LO'!$M38,TripChains!$B$4:$B$25,'BackendCalcs-LO'!$O38),0) -> -15200.00365 | T38: 0 | V38: =IF(ISERROR(Q38/$N38),"N/A",Q38/$N38) -> 0.1667406998 | W38: 0.005538830666 | X38: 0.07181835834 | Y38: 0
F39: Secondary mode | G39: % Travel Change | H39: =FrontEnd!P14 -> 0 | M39: Train | N39: =T9-H9 -> -94466.69815 | O39: =$D$4 -> * | Q39: =IFERROR(SUMIFS(TripChains!H$4:H$25,TripChains!$A$4:$A$25,'BackendCalcs-LO'!$M39,TripChains!$B$4:$B$25,'BackendCalcs-LO'!$O39)*$N39/SUMIFS(TripChains!$G$4:$G$25,TripChains!$A$4:$A$25,'BackendCalcs-LO'!$M39,TripChains!$B$4:$B$25,'BackendCalcs-LO'!$O39),0) -> -15955.2296 | R39: =IFERROR(SUMIFS(TripChains!I$4:I$25,TripChains!$A$4:$A$25,'BackendCalcs-LO'!$M39,TripChains!$B$4:$B$25,'BackendCalcs-LO'!$O39)*$N39/SUMIFS(TripChains!$G$4:$G$25,TripChains!$A$4:$A$25,'BackendCalcs-LO'!$M39,TripChains!$B$4:$B$25,'BackendCalcs-LO'!$O39),0) -> -677.9935336 | S39: =IFERROR(SUMIFS(TripChains!J$4:J$25,TripChains!$A$4:$A$25,'BackendCalcs-LO'!$M39,TripChains!$B$4:$B$25,'BackendCalcs-LO'!$O39)*$N39/SUMIFS(TripChains!$G$4:$G$25,TripChains!$A$4:$A$25,'BackendCalcs-LO'!$M39,TripChains!$B$4:$B$25,'BackendCalcs-LO'!$O39),0) -> -5674.099479 | T39: =IFERROR(SUMIFS(TripChains!K$4:K$25,TripChains!$A$4:$A$25,'BackendCalcs-LO'!$M39,TripChains!$B$4:$B$25,'BackendCalcs-LO'!$O39)*$N39/SUMIFS(TripChains!$G$4:$G$25,TripChains!$A$4:$A$25,'BackendCalcs-LO'!$M39,TripChains!$B$4:$B$25,'BackendCalcs-LO'!$O39),0) -> -5745.17867 | V39: 0.1688979282 | W39: 0.007177063949 | X39: 0.06006454751 | Y39: 0.06081697342
B40: Ethnicity | C40: =VLOOKUP(FrontEnd!B14,'BackendCalcs-LO'!B41:C46,2,FALSE) -> 1 | D40: =VLOOKUP(C40,SearchEthnic,2) -> * | F40: None | G40: =G41-$H$60 -> -0.2 | M40: Ferry | N40: =T10-H10 -> -21744.4793 | O40: * | Q40: =IFERROR(SUMIFS(TripChains!H$4:H$25,TripChains!$A$4:$A$25,'BackendCalcs-LO'!$M40,TripChains!$B$4:$B$25,'BackendCalcs-LO'!$O40)*$N40/SUMIFS(TripChains!$G$4:$G$25,TripChains!$A$4:$A$25,'BackendCalcs-LO'!$M40,TripChains!$B$4:$B$25,'BackendCalcs-LO'!$O40),0) -> -9526.892478 | R40: =IFERROR(SUMIFS(TripChains!I$4:I$25,TripChains!$A$4:$A$25,'BackendCalcs-LO'!$M40,TripChains!$B$4:$B$25,'BackendCalcs-LO'!$O40)*$N40/SUMIFS(TripChains!$G$4:$G$25,TripChains!$A$4:$A$25,'BackendCalcs-LO'!$M40,TripChains!$B$4:$B$25,'BackendCalcs-LO'!$O40),0) -> -203.6104794 | S40: =IFERROR(SUMIFS(TripChains!J$4:J$25,TripChains!$A$4:$A$25,'BackendCalcs-LO'!$M40,TripChains!$B$4:$B$25,'BackendCalcs-LO'!$O40)*$N40/SUMIFS(TripChains!$G$4:$G$25,TripChains!$A$4:$A$25,'BackendCalcs-LO'!$M40,TripChains!$B$4:$B$25,'BackendCalcs-LO'!$O40),0) -> -500.7160337 | T40: =IFERROR(SUMIFS(TripChains!K$4:K$25,TripChains!$A$4:$A$25,'BackendCalcs-LO'!$M40,TripChains!$B$4:$B$25,'BackendCalcs-LO'!$O40)*$N40/SUMIFS(TripChains!$G$4:$G$25,TripChains!$A$4:$A$25,'BackendCalcs-LO'!$M40,TripChains!$B$4:$B$25,'BackendCalcs-LO'!$O40),0) -> -2603.487449 | V40: 0.4381292532 | W40: 0.009363778113 | X40: 0.02302727174 | Y40: 0.1197309631
B41: All ETHNICITIES | C41: 1 | D41: * | G41: -0.19 | P41: TOTAL ('000 km) | Q41: =SUM(Q38:Q40) -> -60771.9742 | R41: =SUM(R38:R40) -> -2053.870384 | S41: =SUM(S38:S40) -> -21374.81916 | T41: =SUM(T38:T40) -> -8348.66612
B42: =IF(C22*C34<>1,"","Māori") -> Māori | C42: 2 | D42: Māori | G42: -0.18 | S42: Assume some first/last-mile Bike trips are split across Wheeled Devices too: | T42: 0.15 | U42: WD | V42: * | AA42: Average occupancy & trip distances | AC42: =D$4 -> *
B43: =IF(C22*C34<>1,"","Pacific People") -> Pacific People | C43: 3 | D43: Pacific People | G43: -0.17 | S43: Assume some first/last-mile Walk trips are split across Wheeled Devices too: | T43: 0.15 | U43: WD | V43: * | AA43: Occupancy LO (%) | AB43: -0.1 | AC43: Occupancy HI (%) | AD43: 0.1
B44: =IF(C22*C34<>1,"","Asian") -> Asian | C44: 4 | D44: Asian | G44: -0.16 | P44: % Extra Trips: | Q44: =Q41/H5 -> -0.001163991261 | R44: =R41*(1-T42)/H11 -> -0.004497602019 | S44: =S41*(1-T43)/H13 -> -0.02610243412 | T44: =T41/H8 -> -0.007411292819 | AA44: Trip dist LO (km) | AB44: -0.1 | AC44: Trip dist HI (km) | AD44: 0.1
B45: =IF(C22*C34<>1,"","European") -> European | C45: 5 | D45: European | G45: -0.15 | AB45: Occupancy rates | AC45: Avg trip dist (km) | AD45: Avg trip time (hrs)
B46: =IF(C22*C34<>1,"","Other") -> Other | C46: 6 | D46: Other | G46: -0.14 | N46: Ped'n LoS Increase | P46: * | AA46: Motor car | AB46: =V52 -> 1.15 | AC46: =_xlfn.XLOOKUP($D$4,TripLengths!$A$4:$A$19,_xlfn.XLOOKUP(AA46,TripLengths!$C$3:$K$3,TripLengths!$C$4:$K$19))*(1+AB$44) -> 8.150817949 | AD46: =_xlfn.XLOOKUP($D$4,TripLengths!$A$24:$A$39,_xlfn.XLOOKUP(AA46,TripLengths!$C$23:$K$23,TripLengths!$C$24:$K$39))/60*(1+AB$44) -> 0.2012273107
G47: -0.13 | N47: %Improvem't | O47: %Inc Trips | P47: %Dec DSIs | S47: Cycling QoS Increase | V47: Current private veh occupancy rate: | AA47: Truck | AB47: 1 | AC47: =_xlfn.XLOOKUP($D$4,TripLengths!$A$4:$A$19,_xlfn.XLOOKUP(AA47,TripLengths!$C$3:$K$3,TripLengths!$C$4:$K$19))*(1+AB$44) -> 10.25854168 | AD47: =_xlfn.XLOOKUP($D$4,TripLengths!$A$24:$A$39,_xlfn.XLOOKUP(AA47,TripLengths!$C$23:$K$23,TripLengths!$C$24:$K$39))/60*(1+AB$44) -> 0.2263132739
B48: Severity | C48: 1 | D48: Minor Injury | G48: -0.12 | M48: 1 | N48: 0 | O48: 1 | P48: 1 | Q48: 1 | S48: Increase in trips: | V48: =OccupancyRates!M24 -> 1.2 | AA48: Motorcycle | AB48: 1 | AC48: =_xlfn.XLOOKUP($D$4,TripLengths!$A$4:$A$19,_xlfn.XLOOKUP(AA48,TripLengths!$C$3:$K$3,TripLengths!$C$4:$K$19))*(1+AB$44) -> 8.100343202 | AD48: =_xlfn.XLOOKUP($D$4,TripLengths!$A$24:$A$39,_xlfn.XLOOKUP(AA48,TripLengths!$C$23:$K$23,TripLengths!$C$24:$K$39))/60*(1+AB$44) -> 0.2182719228
C49: 2 | D49: Serious Injury | G49: -0.11 | M49: 2 | N49: 0.05 | O49: 1.04 | P49: 0.96 | Q49: 2 | S49: ='Cyc-QoS-Calcs'!I4 -> 1 | V49: Range (+/-) | AA49: Bus | AB49: =_xlfn.IFNA(VLOOKUP($D$4,OccupancyRates!C$6:I$20,3,FALSE),0)*(1+AB$43) -> 6.3756 | AC49: =_xlfn.XLOOKUP($D$4,TripLengths!$A$4:$A$19,_xlfn.XLOOKUP(AA49,TripLengths!$C$3:$K$3,TripLengths!$C$4:$K$19))*(1+AB$44) -> 7.874411032 | AD49: =_xlfn.XLOOKUP($D$4,TripLengths!$A$24:$A$39,_xlfn.XLOOKUP(AA49,TripLengths!$C$23:$K$23,TripLengths!$C$24:$K$39))/60*(1+AB$44) -> 0.3409903369
C50: 3 | D50: Fatality | G50: -0.1 | M50: 3 | N50: 0.1 | O50: =O49+(O49-O48) -> 1.08 | P50: =P49+(P49-P48) -> 0.92 | Q50: 3 | S50: Decrease in DSIs: | V50: 0.05 | AA50: Train | AB50: =_xlfn.IFNA(VLOOKUP($D$4,OccupancyRates!C$6:I$20,5,FALSE),0)*(1+AB$43) -> 53.919 | AC50: =_xlfn.XLOOKUP($D$4,TripLengths!$A$4:$A$19,_xlfn.XLOOKUP(AA50,TripLengths!$C$3:$K$3,TripLengths!$C$4:$K$19))*(1+AB$44) -> 17.35086746 | AD50: =_xlfn.XLOOKUP($D$4,TripLengths!$A$24:$A$39,_xlfn.XLOOKUP(AA50,TripLengths!$C$23:$K$23,TripLengths!$C$24:$K$39))/60*(1+AB$44) -> 0.4643233083
G51: -0.09 | M51: 4 | N51: 0.15 | O51: =O50+(O50-O49) -> 1.12 | P51: =P50+(P50-P49) -> 0.88 | Q51: 4 | S51: ='Cyc-QoS-Calcs'!L4 -> 1 | V51: New occupancy rate: | AA51: Ferry | AB51: =_xlfn.IFNA(VLOOKUP($D$4,OccupancyRates!C$6:I$20,7,FALSE),0)*(1+AB$43) -> 23.208 | AC51: =_xlfn.XLOOKUP($D$4,TripLengths!$A$4:$A$19,_xlfn.XLOOKUP(AA51,TripLengths!$C$3:$K$3,TripLengths!$C$4:$K$19))*(1+AB$44) -> 17.76175629 | AD51: =_xlfn.XLOOKUP($D$4,TripLengths!$A$24:$A$39,_xlfn.XLOOKUP(AA51,TripLengths!$C$23:$K$23,TripLengths!$C$24:$K$39))/60*(1+AB$44) -> 0.5476986755
C52: HHTS Dataset to use: | D52: =IF($D$22<>"*","'HHTS-Tier-Age'!",IF($D$34<>"*","'HHTS-Tier-Gender'!",IF($D$40<>"*","'HHTS-Tier-Ethnicity'!","'HHTS-Tier-Gender'!"))) -> 'HHTS-Tier-Gender'! | G52: -0.08 | M52: 5 | N52: 0.2 | O52: =O51+(O51-O50) -> 1.16 | P52: =P51+(P51-P50) -> 0.84 | Q52: 5 | V52: =V48-V50 -> 1.15 | AA52: Bicycle | AB52: 1 | AC52: =_xlfn.XLOOKUP($D$4,TripLengths!$A$4:$A$19,_xlfn.XLOOKUP(AA52,TripLengths!$C$3:$K$3,TripLengths!$C$4:$K$19))*(1+AB$44) -> 3.385984784 | AD52: =_xlfn.XLOOKUP($D$4,TripLengths!$A$24:$A$39,_xlfn.XLOOKUP(AA52,TripLengths!$C$23:$K$23,TripLengths!$C$24:$K$39))/60*(1+AB$44) -> 0.2563585923
C53: HHTS Sub-group to use: | D53: =IF($D$22<>"*",D22,IF($D$34<>"*",D34,IF($D$40<>"*",D40,"*"))) -> * | G53: -0.07 | M53: Selected: | AA53: Wheeled Device | AB53: 1 | AC53: =_xlfn.XLOOKUP($D$4,TripLengths!$A$4:$A$19,_xlfn.XLOOKUP(AA53,TripLengths!$C$3:$K$3,TripLengths!$C$4:$K$19))*(1+AB$44) -> 1.919237558 | AD53: =_xlfn.XLOOKUP($D$4,TripLengths!$A$24:$A$39,_xlfn.XLOOKUP(AA53,TripLengths!$C$23:$K$23,TripLengths!$C$24:$K$39))/60*(1+AB$44) -> 0.1606105991
G54: -0.06 | M54: =VLOOKUP(Settings!G19,N48:Q52,4,FALSE) -> 1 | N54: =VLOOKUP($M$54,$M$48:$P$52,2,FALSE) -> 0 | O54: =VLOOKUP($M$54,$M$48:$P$52,3,FALSE) -> 1 | P54: =VLOOKUP($M$54,$M$48:$P$52,4,FALSE) -> 1 | AA54: Pedestrian | AB54: 1 | AC54: =_xlfn.XLOOKUP($D$4,TripLengths!$A$4:$A$19,_xlfn.XLOOKUP(AA54,TripLengths!$C$3:$K$3,TripLengths!$C$4:$K$19))*(1+AB$44) -> 0.8024137345 | AD54: =_xlfn.XLOOKUP($D$4,TripLengths!$A$24:$A$39,_xlfn.XLOOKUP(AA54,TripLengths!$C$23:$K$23,TripLengths!$C$24:$K$39))/60*(1+AB$44) -> 0.1742516018
B55: Area | D55: =INDEX(B5:B20,_xlfn.XMATCH(D4,D5:D20),1) -> ALL of New Zealand | G55: -0.05
B56: Age Group | D56: =INDEX(B23:B32,_xlfn.XMATCH(D22,D23:D32),1) -> All AGES | G56: -0.04 | M56: Improve PT Access for Ped Safety | P56: * | U56: Crash prediction models | W56: * | Y56: M.Veh (Q)
B57: Gender | D57: =INDEX(B35:B38,_xlfn.XMATCH(D34,D35:D38),1) -> All GENDERS | G57: -0.03 | M57: Improve? | N57: Bus DSI | O57: Train DSI | Q57: Scaled Ped DSI from Bus use: | V57: Mode | W57: Relationship | X57: b1 | Y57: b2
B58: Ethnicity | D58: =INDEX(B41:B46,_xlfn.XMATCH(D40,D41:D46),1) -> All ETHNICITIES | G58: -0.02 | M58: NO | N58: 1 | O58: 1 | Q58: =IFERROR(S38/N38,0)*T8/T$13 -> 0.1184606953 | R58: =IF(N60="YES",1-(1-N59)*Q58,1) -> 1 | V58: Cycling / Wheeled Dev C | W58: K x C^b1 x Q^b2 | X58: 0.15 | Y58: 0.35
G59: -0.01 | H59: Increment: | M59: YES | N59: 0.85 | O59: 0.85 | Q59: Scaled Ped DSI from Train use: | V59: Pedestrian P | W59: K x P^b1 x Q^b2 | X59: 0.35 | Y59: 0.55
G60: 0 | H60: 0.01 | M60: Selected: | N60: =Settings!G3 -> NO | O60: =Settings!G5 -> NO | Q60: =IFERROR(S39/N39,0)*T9/T$13 -> 0.04603689116 | R60: =IF(O60="YES",1-(1-O59)*Q60,1) -> 1 | V60: Motor Vehicle M | W60: K x M^b1 x Q^b2 | X60: 0.75 | Y60: 0.75
G61: =G60+$H$60 -> 0.01 | V61: Train T | W61: K x T^b1 x Q^b2 | X61: 0.35 | Y61: 0.25
G62: 0.02
G63: 0.03 | M63: DSI decrease in all modes due to speed changes (excl. train, ferry) | W63: Elvik exp'l relationship:
G64: 0.04 | M64: =T100 -> 1 | W64: exponent: | X64: 0.06
G65: 0.05 | W65: base spd: | X65: 20
G66: 0.06 | N66: Existing speed breakdown | W66: Avg free speed reduction per 10 km/h: | X66: 2.5 | Y66: or with traffic calming
G67: 0.07 | M67: Spd Lim | N67: Tot Km | O67: % | P67: Total VKT | Q67: Ave Free Spd | R67: Rel. Risk | S67: Weighted Risk
G68: 0.08 | U68: Speed Limit | V68: New Ave Free Spd | X68: Traf Calming options by new PSL
G69: 0.09 | M69: 30 | N69: =VLOOKUP($D$4,'SpdChange-Calcs'!$A$6:$I$18,2,FALSE) -> 611.66 | O69: =N69/$N$77 -> 0.1243893934 | P69: =VLOOKUP($D$4,'SpdChange-Calcs'!$A$23:$I$35,2, FALSE) -> 1379476 | Q69: =IF(VLOOKUP($D$4,'SpdChange-Calcs'!$A$40:$I$52,2,FALSE)<$X$65,$X$65,VLOOKUP($D$4,'SpdChange-Calcs'!$A$40:$I$52,2,FALSE)) -> 20 | R69: =EXP((Q69-$X$65)*$X$64) -> 1 | S69: =P69*R69 -> 1379476 | U69: 30 | V69: =MAX(IFERROR((P69*Q69+SUMPRODUCT(($O$81:$O$97=U69)*_xlfn.IFNA($U$81:$U$97,0)*_xlfn.IFNA($R$81:$R$97,0))-SUMPRODUCT(($N$81:$N$97=U69)*_xlfn.IFNA($S$81:$S$97,0)*_xlfn.IFNA($R$81:$R$97,0)))/(P69+SUMIF($O$81:$O$97,U69,$R$81:$R$97)-SUMIF($N$81:$N$97,U69,$R$81:$R$97)),Q69),$X$65) -> 20 | X69: ≤50k | Y69: YES | Z69: NO
G70: 0.1 | M70: 40 | N70: =VLOOKUP($D$4,'SpdChange-Calcs'!$A$6:$I$18,3,FALSE) -> 39.2830818 | O70: =N70/$N$77 -> 0.007988749823 | P70: =VLOOKUP($D$4,'SpdChange-Calcs'!$A$23:$I$35,3, FALSE) -> 122691.9949 | Q70: =IF(VLOOKUP($D$4,'SpdChange-Calcs'!$A$40:$I$52,3,FALSE)<$X$65,$X$65,VLOOKUP($D$4,'SpdChange-Calcs'!$A$40:$I$52,3,FALSE)) -> 29.17948718 | R70: =EXP((Q70-$X$65)*$X$64) -> 1.734586802 | S70: 212819.915 | U70: 40 | V70: =MAX(IFERROR((P70*Q70+SUMPRODUCT(($O$81:$O$97=U70)*_xlfn.IFNA($U$81:$U$97,0)*_xlfn.IFNA($R$81:$R$97,0))-SUMPRODUCT(($N$81:$N$97=U70)*_xlfn.IFNA($S$81:$S$97,0)*_xlfn.IFNA($R$81:$R$97,0)))/(P70+SUMIF($O$81:$O$97,U70,$R$81:$R$97)-SUMIF($N$81:$N$97,U70,$R$81:$R$97)),Q70),$X$65) -> 29.17948718 | X70: >50k | Y70: NO
G71: 0.11 | M71: 50 | N71: =VLOOKUP($D$4,'SpdChange-Calcs'!$A$6:$I$18,4,FALSE) -> 3756.575406 | O71: =N71/$N$77 -> 0.7639507833 | P71: =VLOOKUP($D$4,'SpdChange-Calcs'!$A$23:$I$35,4, FALSE) -> 16726988.06 | Q71: =IF(VLOOKUP($D$4,'SpdChange-Calcs'!$A$40:$I$52,4,FALSE)<$X$65,$X$65,VLOOKUP($D$4,'SpdChange-Calcs'!$A$40:$I$52,4,FALSE)) -> 24.33462399 | R71: =EXP((Q71-$X$65)*$X$64) -> 1.297030524 | S71: 21695414.09 | U71: 50 | V71: =MAX(IFERROR((P71*Q71+SUMPRODUCT(($O$81:$O$97=U71)*_xlfn.IFNA($U$81:$U$97,0)*_xlfn.IFNA($R$81:$R$97,0))-SUMPRODUCT(($N$81:$N$97=U71)*_xlfn.IFNA($S$81:$S$97,0)*_xlfn.IFNA($R$81:$R$97,0)))/(P71+SUMIF($O$81:$O$97,U71,$R$81:$R$97)-SUMIF($N$81:$N$97,U71,$R$81:$R$97)),Q71),$X$65) -> 24.33462399
G72: 0.12 | M72: 60 | N72: =VLOOKUP($D$4,'SpdChange-Calcs'!$A$6:$I$18,5,FALSE) -> 474.7499103 | O72: =N72/$N$77 -> 0.09654686161 | P72: =VLOOKUP($D$4,'SpdChange-Calcs'!$A$23:$I$35,5, FALSE) -> 1366003.246 | Q72: =IF(VLOOKUP($D$4,'SpdChange-Calcs'!$A$40:$I$52,5,FALSE)<$X$65,$X$65,VLOOKUP($D$4,'SpdChange-Calcs'!$A$40:$I$52,5,FALSE)) -> 46.38724374 | R72: =EXP((Q72-$X$65)*$X$64) -> 4.870685194 | S72: 6653371.784 | U72: 60 | V72: =MAX(IFERROR((P72*Q72+SUMPRODUCT(($O$81:$O$97=U72)*_xlfn.IFNA($U$81:$U$97,0)*_xlfn.IFNA($R$81:$R$97,0))-SUMPRODUCT(($N$81:$N$97=U72)*_xlfn.IFNA($S$81:$S$97,0)*_xlfn.IFNA($R$81:$R$97,0)))/(P72+SUMIF($O$81:$O$97,U72,$R$81:$R$97)-SUMIF($N$81:$N$97,U72,$R$81:$R$97)),Q72),$X$65) -> 46.38724374 | X72: Road network status
G73: 0.13 | M73: 70 | N73: =VLOOKUP($D$4,'SpdChange-Calcs'!$A$6:$I$18,6,FALSE) -> 1.273617611 | O73: =N73/$N$77 -> 0.0002590074911 | P73: =VLOOKUP($D$4,'SpdChange-Calcs'!$A$23:$I$35,6, FALSE) -> 7812.126636 | Q73: =IF(VLOOKUP($D$4,'SpdChange-Calcs'!$A$40:$I$52,6,FALSE)<$X$65,$X$65,VLOOKUP($D$4,'SpdChange-Calcs'!$A$40:$I$52,6,FALSE)) -> 35 | R73: =EXP((Q73-$X$65)*$X$64) -> 2.459603111 | S73: 19214.73098 | U73: 70 | V73: =MAX(IFERROR((P73*Q73+SUMPRODUCT(($O$81:$O$97=U73)*_xlfn.IFNA($U$81:$U$97,0)*_xlfn.IFNA($R$81:$R$97,0))-SUMPRODUCT(($N$81:$N$97=U73)*_xlfn.IFNA($S$81:$S$97,0)*_xlfn.IFNA($R$81:$R$97,0)))/(P73+SUMIF($O$81:$O$97,U73,$R$81:$R$97)-SUMIF($N$81:$N$97,U73,$R$81:$R$97)),Q73),$X$65) -> 35 | X73: =IF(COUNTIF(O103:O110,"<0"),X77,X76) -> OK - no inconsistencies
G74: 0.14 | M74: 80 | N74: =VLOOKUP($D$4,'SpdChange-Calcs'!$A$6:$I$18,7,FALSE) -> 25.51932875 | O74: =N74/$N$77 -> 0.005189703141 | P74: =VLOOKUP($D$4,'SpdChange-Calcs'!$A$23:$I$35,7, FALSE) -> 453099.8093 | Q74: =IF(VLOOKUP($D$4,'SpdChange-Calcs'!$A$40:$I$52,7,FALSE)<$X$65,$X$65,VLOOKUP($D$4,'SpdChange-Calcs'!$A$40:$I$52,7,FALSE)) -> 65 | R74: =EXP((Q74-$X$65)*$X$64) -> 14.87973172 | S74: 6742003.608 | U74: 80 | V74: =MAX(IFERROR((P74*Q74+SUMPRODUCT(($O$81:$O$97=U74)*_xlfn.IFNA($U$81:$U$97,0)*_xlfn.IFNA($R$81:$R$97,0))-SUMPRODUCT(($N$81:$N$97=U74)*_xlfn.IFNA($S$81:$S$97,0)*_xlfn.IFNA($R$81:$R$97,0)))/(P74+SUMIF($O$81:$O$97,U74,$R$81:$R$97)-SUMIF($N$81:$N$97,U74,$R$81:$R$97)),Q74),$X$65) -> 65
G75: 0.15 | M75: 90 | N75: =VLOOKUP($D$4,'SpdChange-Calcs'!$A$6:$I$18,8,FALSE) -> 0 | O75: =N75/$N$77 -> 0 | P75: =VLOOKUP($D$4,'SpdChange-Calcs'!$A$23:$I$35,8, FALSE) -> 0 | Q75: =IF(VLOOKUP($D$4,'SpdChange-Calcs'!$A$40:$I$52,8,FALSE)<$X$65,$X$65,VLOOKUP($D$4,'SpdChange-Calcs'!$A$40:$I$52,8,FALSE)) -> 50.79166667 | R75: =EXP((Q75-$X$65)*$X$64) -> 6.343939832 | S75: 0 | U75: 90 | V75: =MAX(IFERROR((P75*Q75+SUMPRODUCT(($O$81:$O$97=U75)*_xlfn.IFNA($U$81:$U$97,0)*_xlfn.IFNA($R$81:$R$97,0))-SUMPRODUCT(($N$81:$N$97=U75)*_xlfn.IFNA($S$81:$S$97,0)*_xlfn.IFNA($R$81:$R$97,0)))/(P75+SUMIF($O$81:$O$97,U75,$R$81:$R$97)-SUMIF($N$81:$N$97,U75,$R$81:$R$97)),Q75),$X$65) -> 50.79166667 | X75: Messages:
G76: 0.16 | M76: 100 | N76: =VLOOKUP($D$4,'SpdChange-Calcs'!$A$6:$I$18,9,FALSE) -> 8.238942765 | O76: =N76/$N$77 -> 0.001675501248 | P76: =VLOOKUP($D$4,'SpdChange-Calcs'!$A$23:$I$35,9, FALSE) -> 19109.76001 | Q76: =IF(VLOOKUP($D$4,'SpdChange-Calcs'!$A$40:$I$52,9,FALSE)<$X$65,$X$65,VLOOKUP($D$4,'SpdChange-Calcs'!$A$40:$I$52,9,FALSE)) -> 36.58333333 | R76: =EXP((Q76-$X$65)*$X$64) -> 2.704724341 | S76: 51686.63305 | U76: 100 | V76: =MAX(IFERROR((P76*Q76+SUMPRODUCT(($O$81:$O$97=U76)*_xlfn.IFNA($U$81:$U$97,0)*_xlfn.IFNA($R$81:$R$97,0))-SUMPRODUCT(($N$81:$N$97=U76)*_xlfn.IFNA($S$81:$S$97,0)*_xlfn.IFNA($R$81:$R$97,0)))/(P76+SUMIF($O$81:$O$97,U76,$R$81:$R$97)-SUMIF($N$81:$N$97,U76,$R$81:$R$97)),Q76),$X$65) -> 36.58333333 | X76: OK - no inconsistencies
G77: 0.17 | M77: TOTAL | N77: =SUM(N69:N76) -> 4917.300287 | O77: =SUM(O69:O76) -> 1 | P77: =SUM(P69:P76) -> 20075181 | R77: Total Risk score: | S77: =SUM(S69:S76) -> 36753986.76 | T77: Old QoS/Risk ratio | X77: More roads changed than available!
G78: 0.18 | R78: Existing cycling QoS: | S78: ='Cyc-QoS-Calcs'!K33 -> 9964861.878 | T78: =S78/S77 -> 0.2711232918
G79: 0.19
G80: 0.2 | M80: Changed km | N80: Curr Spd Lim | O80: New Spd Lim | P80: Traf. Calming? | Q80: Valid entry? | R80: Changed VKT | S80: Current Free Spd | T80: Current Rel. Risk | U80: Changed free spd | V80: New Rel. Risk | W80: New ave free spd
M81: =Settings!N5 -> 0 | N81: =Settings!L5 -> 100 | O81: =Settings!O5 -> 80 | P81: =Settings!Q5 -> NO | Q81: =IF(AND(O81>50,P81=$Y$69),$Y$70,$Y$69) -> YES | R81: =IFERROR((M81/VLOOKUP(N81,$M$69:$N$77,2)) * VLOOKUP(N81,$M$69:$P$77,4),0) -> 0 | S81: =_xlfn.IFNA(VLOOKUP(N81,$M$69:$R$77,5),$X$65) -> 36.58333333 | T81: =EXP((S81-$X$65)*$X$64) -> 2.704724341 | U81: =MAX(_xlfn.IFNA(VLOOKUP(N81,$M$69:$Q$76,5)-(N81-O81)*IF(P81="YES",2,1)*$X$66/10,0),$X$65) -> 31.58333333 | V81: =EXP((U81-$X$65)*$X$64) -> 2.003709074 | W81: =_xlfn.IFNA(VLOOKUP(O81,$U$69:$V$76,2),0) -> 65
M82: =Settings!N6 -> 0 | N82: =Settings!L6 -> 80 | O82: =Settings!O6 -> 60 | P82: =Settings!Q6 -> NO | Q82: =IF(AND(O82>50,P82=$Y$69),$Y$70,$Y$69) -> YES | R82: =IFERROR((M82/VLOOKUP(N82,$M$69:$N$77,2)) * VLOOKUP(N82,$M$69:$P$77,4),0) -> 0 | S82: =_xlfn.IFNA(VLOOKUP(N82,$M$69:$R$77,5),$X$65) -> 65 | T82: =EXP((S82-$X$65)*$X$64) -> 14.87973172 | U82: =MAX(_xlfn.IFNA(VLOOKUP(N82,$M$69:$Q$76,5)-(N82-O82)*IF(P82="YES",2,1)*$X$66/10,0),$X$65) -> 60 | V82: =EXP((U82-$X$65)*$X$64) -> 11.02317638 | W82: =_xlfn.IFNA(VLOOKUP(O82,$U$69:$V$76,2),0) -> 46.38724374
M83: =Settings!N7 -> 0 | N83: =Settings!L7 -> 70 | O83: =Settings!O7 -> 60 | P83: =Settings!Q7 -> NO | Q83: =IF(AND(O83>50,P83=$Y$69),$Y$70,$Y$69) -> YES | R83: =IFERROR((M83/VLOOKUP(N83,$M$69:$N$77,2)) * VLOOKUP(N83,$M$69:$P$77,4),0) -> 0 | S83: =_xlfn.IFNA(VLOOKUP(N83,$M$69:$R$77,5),$X$65) -> 35 | T83: =EXP((S83-$X$65)*$X$64) -> 2.459603111 | U83: =MAX(_xlfn.IFNA(VLOOKUP(N83,$M$69:$Q$76,5)-(N83-O83)*IF(P83="YES",2,1)*$X$66/10,0),$X$65) -> 32.5 | V83: =EXP((U83-$X$65)*$X$64) -> 2.117000017 | W83: =_xlfn.IFNA(VLOOKUP(O83,$U$69:$V$76,2),0) -> 46.38724374
M84: =Settings!N8 -> 0 | N84: =Settings!L8 -> 60 | O84: =Settings!O8 -> 50 | P84: =Settings!Q8 -> YES | Q84: =IF(AND(O84>50,P84=$Y$69),$Y$70,$Y$69) -> YES | R84: =IFERROR((M84/VLOOKUP(N84,$M$69:$N$77,2)) * VLOOKUP(N84,$M$69:$P$77,4),0) -> 0 | S84: =_xlfn.IFNA(VLOOKUP(N84,$M$69:$R$77,5),$X$65) -> 46.38724374 | T84: =EXP((S84-$X$65)*$X$64) -> 4.870685194 | U84: =MAX(_xlfn.IFNA(VLOOKUP(N84,$M$69:$Q$76,5)-(N84-O84)*IF(P84="YES",2,1)*$X$66/10,0),$X$65) -> 41.38724374 | V84: =EXP((U84-$X$65)*$X$64) -> 3.608292339 | W84: =_xlfn.IFNA(VLOOKUP(O84,$U$69:$V$76,2),0) -> 24.33462399
M85: =Settings!N9 -> 0 | N85: =Settings!L9 -> 50 | O85: =Settings!O9 -> 40 | P85: =Settings!Q9 -> YES | Q85: =IF(AND(O85>50,P85=$Y$69),$Y$70,$Y$69) -> YES | R85: =IFERROR((M85/VLOOKUP(N85,$M$69:$N$77,2)) * VLOOKUP(N85,$M$69:$P$77,4),0) -> 0 | S85: =_xlfn.IFNA(VLOOKUP(N85,$M$69:$R$77,5),$X$65) -> 24.33462399 | T85: =EXP((S85-$X$65)*$X$64) -> 1.297030524 | U85: =MAX(_xlfn.IFNA(VLOOKUP(N85,$M$69:$Q$76,5)-(N85-O85)*IF(P85="YES",2,1)*$X$66/10,0),$X$65) -> 20 | V85: =EXP((U85-$X$65)*$X$64) -> 1 | W85: =_xlfn.IFNA(VLOOKUP(O85,$U$69:$V$76,2),0) -> 29.17948718
M86: =Settings!N10 -> 0 | N86: =Settings!L10 -> 40 | O86: =Settings!O10 -> 30 | P86: =Settings!Q10 -> YES | Q86: =IF(AND(O86>50,P86=$Y$69),$Y$70,$Y$69) -> YES | R86: =IFERROR((M86/VLOOKUP(N86,$M$69:$N$77,2)) * VLOOKUP(N86,$M$69:$P$77,4),0) -> 0 | S86: =_xlfn.IFNA(VLOOKUP(N86,$M$69:$R$77,5),$X$65) -> 29.17948718 | T86: =EXP((S86-$X$65)*$X$64) -> 1.734586802 | U86: =MAX(_xlfn.IFNA(VLOOKUP(N86,$M$69:$Q$76,5)-(N86-O86)*IF(P86="YES",2,1)*$X$66/10,0),$X$65) -> 24.17948718 | V86: =EXP((U86-$X$65)*$X$64) -> 1.285013509 | W86: =_xlfn.IFNA(VLOOKUP(O86,$U$69:$V$76,2),0) -> 20
M87: =Settings!N11 -> 0 | N87: =Settings!L11 -> 50 | O87: =Settings!O11 -> 30 | P87: =Settings!Q11 -> YES | Q87: =IF(AND(O87>50,P87=$Y$69),$Y$70,$Y$69) -> YES | R87: =IFERROR((M87/VLOOKUP(N87,$M$69:$N$77,2)) * VLOOKUP(N87,$M$69:$P$77,4),0) -> 0 | S87: =_xlfn.IFNA(VLOOKUP(N87,$M$69:$R$77,5),$X$65) -> 24.33462399 | T87: =EXP((S87-$X$65)*$X$64) -> 1.297030524 | U87: =MAX(_xlfn.IFNA(VLOOKUP(N87,$M$69:$Q$76,5)-(N87-O87)*IF(P87="YES",2,1)*$X$66/10,0),$X$65) -> 20 | V87: =EXP((U87-$X$65)*$X$64) -> 1 | W87: =_xlfn.IFNA(VLOOKUP(O87,$U$69:$V$76,2),0) -> 20
M88: =Settings!N12 -> 0 | N88: =Settings!L12 -> 0 | O88: =Settings!O12 -> 0 | P88: =Settings!Q12 -> 0 | Q88: =IF(AND(O88>50,P88=$Y$69),$Y$70,$Y$69) -> YES | R88: =IFERROR((M88/VLOOKUP(N88,$M$69:$N$77,2)) * VLOOKUP(N88,$M$69:$P$77,4),0) -> 0 | S88: =_xlfn.IFNA(VLOOKUP(N88,$M$69:$R$77,5),$X$65) -> 20 | T88: =EXP((S88-$X$65)*$X$64) -> 1 | U88: =MAX(_xlfn.IFNA(VLOOKUP(N88,$M$69:$Q$76,5)-(N88-O88)*IF(P88="YES",2,1)*$X$66/10,0),$X$65) -> 20 | V88: =EXP((U88-$X$65)*$X$64) -> 1 | W88: =_xlfn.IFNA(VLOOKUP(O88,$U$69:$V$76,2),0) -> 0
M89: =Settings!N13 -> 0 | N89: =Settings!L13 -> 0 | O89: =Settings!O13 -> 0 | P89: =Settings!Q13 -> 0 | Q89: =IF(AND(O89>50,P89=$Y$69),$Y$70,$Y$69) -> YES | R89: =IFERROR((M89/VLOOKUP(N89,$M$69:$N$77,2)) * VLOOKUP(N89,$M$69:$P$77,4),0) -> 0 | S89: =_xlfn.IFNA(VLOOKUP(N89,$M$69:$R$77,5),$X$65) -> 20 | T89: =EXP((S89-$X$65)*$X$64) -> 1 | U89: =MAX(_xlfn.IFNA(VLOOKUP(N89,$M$69:$Q$76,5)-(N89-O89)*IF(P89="YES",2,1)*$X$66/10,0),$X$65) -> 20 | V89: =EXP((U89-$X$65)*$X$64) -> 1 | W89: =_xlfn.IFNA(VLOOKUP(O89,$U$69:$V$76,2),0) -> 0
M90: =Settings!N14 -> 0 | N90: =Settings!L14 -> 0 | O90: =Settings!O14 -> 0 | P90: =Settings!Q14 -> 0 | Q90: =IF(AND(O90>50,P90=$Y$69),$Y$70,$Y$69) -> YES | R90: =IFERROR((M90/VLOOKUP(N90,$M$69:$N$77,2)) * VLOOKUP(N90,$M$69:$P$77,4),0) -> 0 | S90: =_xlfn.IFNA(VLOOKUP(N90,$M$69:$R$77,5),$X$65) -> 20 | T90: =EXP((S90-$X$65)*$X$64) -> 1 | U90: =MAX(_xlfn.IFNA(VLOOKUP(N90,$M$69:$Q$76,5)-(N90-O90)*IF(P90="YES",2,1)*$X$66/10,0),$X$65) -> 20 | V90: =EXP((U90-$X$65)*$X$64) -> 1 | W90: =_xlfn.IFNA(VLOOKUP(O90,$U$69:$V$76,2),0) -> 0
M91: =Settings!N15 -> 0 | N91: =Settings!L15 -> 0 | O91: =Settings!O15 -> 0 | P91: =Settings!Q15 -> 0 | Q91: =IF(AND(O91>50,P91=$Y$69),$Y$70,$Y$69) -> YES | R91: =IFERROR((M91/VLOOKUP(N91,$M$69:$N$77,2)) * VLOOKUP(N91,$M$69:$P$77,4),0) -> 0 | S91: =_xlfn.IFNA(VLOOKUP(N91,$M$69:$R$77,5),$X$65) -> 20 | T91: =EXP((S91-$X$65)*$X$64) -> 1 | U91: =MAX(_xlfn.IFNA(VLOOKUP(N91,$M$69:$Q$76,5)-(N91-O91)*IF(P91="YES",2,1)*$X$66/10,0),$X$65) -> 20 | V91: =EXP((U91-$X$65)*$X$64) -> 1 | W91: =_xlfn.IFNA(VLOOKUP(O91,$U$69:$V$76,2),0) -> 0
M92: =Settings!N16 -> 0 | N92: =Settings!L16 -> 0 | O92: =Settings!O16 -> 0 | P92: =Settings!Q16 -> 0 | Q92: =IF(AND(O92>50,P92=$Y$69),$Y$70,$Y$69) -> YES | R92: =IFERROR((M92/VLOOKUP(N92,$M$69:$N$77,2)) * VLOOKUP(N92,$M$69:$P$77,4),0) -> 0 | S92: =_xlfn.IFNA(VLOOKUP(N92,$M$69:$R$77,5),$X$65) -> 20 | T92: =EXP((S92-$X$65)*$X$64) -> 1 | U92: =MAX(_xlfn.IFNA(VLOOKUP(N92,$M$69:$Q$76,5)-(N92-O92)*IF(P92="YES",2,1)*$X$66/10,0),$X$65) -> 20 | V92: =EXP((U92-$X$65)*$X$64) -> 1 | W92: =_xlfn.IFNA(VLOOKUP(O92,$U$69:$V$76,2),0) -> 0
M93: =Settings!N17 -> 0 | N93: =Settings!L17 -> 0 | O93: =Settings!O17 -> 0 | P93: =Settings!Q17 -> 0 | Q93: =IF(AND(O93>50,P93=$Y$69),$Y$70,$Y$69) -> YES | R93: =IFERROR((M93/VLOOKUP(N93,$M$69:$N$77,2)) * VLOOKUP(N93,$M$69:$P$77,4),0) -> 0 | S93: =_xlfn.IFNA(VLOOKUP(N93,$M$69:$R$77,5),$X$65) -> 20 | T93: =EXP((S93-$X$65)*$X$64) -> 1 | U93: =MAX(_xlfn.IFNA(VLOOKUP(N93,$M$69:$Q$76,5)-(N93-O93)*IF(P93="YES",2,1)*$X$66/10,0),$X$65) -> 20 | V93: =EXP((U93-$X$65)*$X$64) -> 1 | W93: =_xlfn.IFNA(VLOOKUP(O93,$U$69:$V$76,2),0) -> 0
M94: =Settings!N18 -> 0 | N94: =Settings!L18 -> 0 | O94: =Settings!O18 -> 0 | P94: =Settings!Q18 -> 0 | Q94: =IF(AND(O94>50,P94=$Y$69),$Y$70,$Y$69) -> YES | R94: =IFERROR((M94/VLOOKUP(N94,$M$69:$N$77,2)) * VLOOKUP(N94,$M$69:$P$77,4),0) -> 0 | S94: =_xlfn.IFNA(VLOOKUP(N94,$M$69:$R$77,5),$X$65) -> 20 | T94: =EXP((S94-$X$65)*$X$64) -> 1 | U94: =MAX(_xlfn.IFNA(VLOOKUP(N94,$M$69:$Q$76,5)-(N94-O94)*IF(P94="YES",2,1)*$X$66/10,0),$X$65) -> 20 | V94: =EXP((U94-$X$65)*$X$64) -> 1 | W94: =_xlfn.IFNA(VLOOKUP(O94,$U$69:$V$76,2),0) -> 0
M95: =Settings!N19 -> 0 | N95: =Settings!L19 -> 0 | O95: =Settings!O19 -> 0 | P95: =Settings!Q19 -> 0 | Q95: =IF(AND(O95>50,P95=$Y$69),$Y$70,$Y$69) -> YES | R95: =IFERROR((M95/VLOOKUP(N95,$M$69:$N$77,2)) * VLOOKUP(N95,$M$69:$P$77,4),0) -> 0 | S95: =_xlfn.IFNA(VLOOKUP(N95,$M$69:$R$77,5),$X$65) -> 20 | T95: =EXP((S95-$X$65)*$X$64) -> 1 | U95: =MAX(_xlfn.IFNA(VLOOKUP(N95,$M$69:$Q$76,5)-(N95-O95)*IF(P95="YES",2,1)*$X$66/10,0),$X$65) -> 20 | V95: =EXP((U95-$X$65)*$X$64) -> 1 | W95: =_xlfn.IFNA(VLOOKUP(O95,$U$69:$V$76,2),0) -> 0
M96: =Settings!N20 -> 0 | N96: =Settings!L20 -> 0 | O96: =Settings!O20 -> 0 | P96: =Settings!Q20 -> 0 | Q96: =IF(AND(O96>50,P96=$Y$69),$Y$70,$Y$69) -> YES | R96: =IFERROR((M96/VLOOKUP(N96,$M$69:$N$77,2)) * VLOOKUP(N96,$M$69:$P$77,4),0) -> 0 | S96: =_xlfn.IFNA(VLOOKUP(N96,$M$69:$R$77,5),$X$65) -> 20 | T96: =EXP((S96-$X$65)*$X$64) -> 1 | U96: =MAX(_xlfn.IFNA(VLOOKUP(N96,$M$69:$Q$76,5)-(N96-O96)*IF(P96="YES",2,1)*$X$66/10,0),$X$65) -> 20 | V96: =EXP((U96-$X$65)*$X$64) -> 1 | W96: =_xlfn.IFNA(VLOOKUP(O96,$U$69:$V$76,2),0) -> 0
M97: =Settings!N21 -> 0 | N97: =Settings!L21 -> 0 | O97: =Settings!O21 -> 0 | P97: =Settings!Q21 -> 0 | Q97: =IF(AND(O97>50,P97=$Y$69),$Y$70,$Y$69) -> YES | R97: =IFERROR((M97/VLOOKUP(N97,$M$69:$N$77,2)) * VLOOKUP(N97,$M$69:$P$77,4),0) -> 0 | S97: =_xlfn.IFNA(VLOOKUP(N97,$M$69:$R$77,5),$X$65) -> 20 | T97: =EXP((S97-$X$65)*$X$64) -> 1 | U97: =MAX(_xlfn.IFNA(VLOOKUP(N97,$M$69:$Q$76,5)-(N97-O97)*IF(P97="YES",2,1)*$X$66/10,0),$X$65) -> 20 | V97: =EXP((U97-$X$65)*$X$64) -> 1 | W97: =_xlfn.IFNA(VLOOKUP(O97,$U$69:$V$76,2),0) -> 0
Q98: Total VKT changed | R98: =SUM(R81:R97) -> 0 | S98: =R98/P77 -> 0
W99: For every 1% decrease in Weighted Risk: ==> | Z99: =1-T100 -> 0 | AA99: Prop% | AB99: Abs%
T100: =IF(X73=X76,T111/$S$77,1) -> 1 | U100: fewer DSIs | W100: Low (prop) increase in walk modeshare: | Y100: 0.004 | Z100: =Z$99*100*Y100 -> 0 | AA100: =1+Z100 -> 1 | AB100: =AA100*O13-O13 -> 0
N101: Future speed breakdown | T101: | | W101: High (prop) increase in walk modeshare: | Y101: 0.006 | Z101: =Z$99*100*Y101 -> 0 | AA101: =1+Z101 -> 1 | AB101: =AA101*O13-O13 -> 0
M102: Spd Lim | N102: Changed Km | O102: New Tot Km | P102: % | Q102: New Total VKT | R102: New Ave Free Spd | S102: New Rel. Risk | T102: New W'gted Risk | U102: Original km unchanged
M103: 30 | N103: =O103-N69 -> 0 | O103: =N69+SUMIF($O$81:$O$97,"="&M103,$M$81:$M$97)-SUMIF($N$81:$N$97,"="&M103,$M$81:$M$97) -> 611.66 | P103: =O103/$O$111 -> 0.1243893934 | Q103: =P69+SUMIF($O$81:$O$97,"="&M103,$R$81:$R$97)-SUMIF($N$81:$N$97,"="&M103,$R$81:$R$97) -> 1379476 | R103: =IFERROR(VLOOKUP(M103,$U$69:$V$76,2),VLOOKUP(M103,M$69:Q$76,5)) -> 20 | S103: =EXP((R103-$X$65)*$X$64) -> 1 | T103: =Q103*S103 -> 1379476 | U103: =N69+N103 -> 611.66 | W103: For every 1% decrease in Weighted Risk: ==> | Z103: =1-T100 -> 0 | AA103: Prop% | AB103: Abs%
M104: 40 | N104: 0 | O104: =N70+SUMIF($O$81:$O$98,"="&M104,$M$81:$M$98)-SUMIF($N$81:$N$98,"="&M104,$M$81:$M$98) -> 39.2830818 | P104: =O104/$O$111 -> 0.007988749823 | Q104: =P70+SUMIF($O$81:$O$97,"="&M104,$R$81:$R$97)-SUMIF($N$81:$N$97,"="&M104,$R$81:$R$97) -> 122691.9949 | R104: =IFERROR(VLOOKUP(M104,$U$69:$V$76,2),VLOOKUP(M104,M$69:Q$76,5)) -> 29.17948718 | S104: =EXP((R104-$X$65)*$X$64) -> 1.734586802 | T104: 212819.915 | U104: 39.2830818 | W104: Low (prop) increase in PT modeshare: | Y104: 0.04 | Z104: =Z$103*100*Y104 -> 0 | AA104: =1+Z104 -> 1 | AB104: =AA104*(O8+O9)-O8-O9 -> 0
M105: 50 | N105: 0 | O105: =N71+SUMIF($O$81:$O$98,"="&M105,$M$81:$M$98)-SUMIF($N$81:$N$98,"="&M105,$M$81:$M$98) -> 3756.575406 | P105: =O105/$O$111 -> 0.7639507833 | Q105: =P71+SUMIF($O$81:$O$97,"="&M105,$R$81:$R$97)-SUMIF($N$81:$N$97,"="&M105,$R$81:$R$97) -> 16726988.06 | R105: =IFERROR(VLOOKUP(M105,$U$69:$V$76,2),VLOOKUP(M105,M$69:Q$76,5)) -> 24.33462399 | S105: =EXP((R105-$X$65)*$X$64) -> 1.297030524 | T105: 21695414.09 | U105: 3756.575406 | W105: High (prop) increase in PT modeshare: | Y105: 0.06 | Z105: =Z$103*100*Y105 -> 0 | AA105: =1+Z105 -> 1 | AB105: =AA105*(O8+O9)-O8-O9 -> 0
M106: 60 | N106: 0 | O106: =N72+SUMIF($O$81:$O$98,"="&M106,$M$81:$M$98)-SUMIF($N$81:$N$98,"="&M106,$M$81:$M$98) -> 474.7499103 | P106: =O106/$O$111 -> 0.09654686161 | Q106: =P72+SUMIF($O$81:$O$97,"="&M106,$R$81:$R$97)-SUMIF($N$81:$N$97,"="&M106,$R$81:$R$97) -> 1366003.246 | R106: =IFERROR(VLOOKUP(M106,$U$69:$V$76,2),VLOOKUP(M106,M$69:Q$76,5)) -> 46.38724374 | S106: =EXP((R106-$X$65)*$X$64) -> 4.870685194 | T106: 6653371.784 | U106: 474.7499103
M107: 70 | N107: 0 | O107: =N73+SUMIF($O$81:$O$98,"="&M107,$M$81:$M$98)-SUMIF($N$81:$N$98,"="&M107,$M$81:$M$98) -> 1.273617611 | P107: =O107/$O$111 -> 0.0002590074911 | Q107: =P73+SUMIF($O$81:$O$97,"="&M107,$R$81:$R$97)-SUMIF($N$81:$N$97,"="&M107,$R$81:$R$97) -> 7812.126636 | R107: =IFERROR(VLOOKUP(M107,$U$69:$V$76,2),VLOOKUP(M107,M$69:Q$76,5)) -> 35 | S107: =EXP((R107-$X$65)*$X$64) -> 2.459603111 | T107: 19214.73098 | U107: 1.273617611 | W107: For every 1% (absolute) increase in QoS/Risk ratio: ==> | Z107: =Z111-X111 -> 0
M108: 80 | N108: 0 | O108: =N74+SUMIF($O$81:$O$98,"="&M108,$M$81:$M$98)-SUMIF($N$81:$N$98,"="&M108,$M$81:$M$98) -> 25.51932875 | P108: =O108/$O$111 -> 0.005189703141 | Q108: =P74+SUMIF($O$81:$O$97,"="&M108,$R$81:$R$97)-SUMIF($N$81:$N$97,"="&M108,$R$81:$R$97) -> 453099.8093 | R108: =IFERROR(VLOOKUP(M108,$U$69:$V$76,2),VLOOKUP(M108,M$69:Q$76,5)) -> 65 | S108: =EXP((R108-$X$65)*$X$64) -> 14.87973172 | T108: 6742003.608 | U108: 25.51932875 | W108: Low (abs) increase in cycling modeshare: | Y108: 0.006 | Z108: =Z$107*100*Y108 -> 0
M109: 90 | N109: 0 | O109: =N75+SUMIF($O$81:$O$98,"="&M109,$M$81:$M$98)-SUMIF($N$81:$N$98,"="&M109,$M$81:$M$98) -> 0 | P109: =O109/$O$111 -> 0 | Q109: =P75+SUMIF($O$81:$O$97,"="&M109,$R$81:$R$97)-SUMIF($N$81:$N$97,"="&M109,$R$81:$R$97) -> 0 | R109: =IFERROR(VLOOKUP(M109,$U$69:$V$76,2),VLOOKUP(M109,M$69:Q$76,5)) -> 50.79166667 | S109: =EXP((R109-$X$65)*$X$64) -> 6.343939832 | T109: 0 | U109: 0 | W109: High (abs) increase in cycling modeshare: | Y109: 0.008 | Z109: =Z$107*100*Y109 -> 0
M110: 100 | N110: 0 | O110: =N76+SUMIF($O$81:$O$98,"="&M110,$M$81:$M$98)-SUMIF($N$81:$N$98,"="&M110,$M$81:$M$98) -> 8.238942765 | P110: =O110/$O$111 -> 0.001675501248 | Q110: =P76+SUMIF($O$81:$O$97,"="&M110,$R$81:$R$97)-SUMIF($N$81:$N$97,"="&M110,$R$81:$R$97) -> 19109.76001 | R110: =IFERROR(VLOOKUP(M110,$U$69:$V$76,2),VLOOKUP(M110,M$69:Q$76,5)) -> 36.58333333 | S110: =EXP((R110-$X$65)*$X$64) -> 2.704724341 | T110: 51686.63305 | U110: 8.238942765
M111: TOTAL | O111: =SUM(O103:O110) -> 4917.300287 | P111: =SUM(P103:P110) -> 1 | Q111: =SUM(Q103:Q110) -> 20075181 | S111: New Risk score: | T111: =SUM(T103:T110) -> 36753986.76 | U111: New QoS/Risk ratio | W111: Old Q/R | X111: =T78 -> 0.2711232918 | Y111: New Q/R | Z111: =U112 -> 0.2711232918
S112: New cycling QoS: | T112: ='Cyc-QoS-Calcs'!M33 -> 9964861.878 | U112: =T112/T111 -> 0.2711232918

Sheet BackendCalcs-HI (hidden)
A1: BackEnd Calculations (high estimates)
B2: Lookup tables | Y2: Change Lookups | AB2: Increment: | AC2: 0.005 | AK2: 0.01
C3: Selected | D3: Search Criteria | F3: Existing mode usage/yr | P3: Future mode usage/yr | S3: Future Values | Z3: 0 | AA3: =Z3+$AC$2 -> 0.005 | AB3: 0.01 | AC3: 0.015 | AD3: 0.02 | AE3: 0.025 | AF3: 0.03 | AG3: 0.035 | AH3: 0.04 | AI3: 0.045 | AJ3: 0.05 | AK3: =AJ3+$AK$2 -> 0.06 | AL3: =AK3+$AK$2 -> 0.07 | AM3: =AL3+$AK$2 -> 0.08 | AN3: =AM3+$AK$2 -> 0.09 | AO3: =AN3+$AK$2 -> 0.1
B4: Area | C4: =VLOOKUP(FrontEnd!B5,'BackendCalcs-HI'!B5:C20,2,FALSE) -> 1 | D4: =VLOOKUP(C4,SearchArea,2) -> * | H4: 000 PKT/yr | I4: 000 VKT/yr | J4: % PKT | K4: %VKT | L4: 000 Hrs/yr | M4: %hrs | N4: 000 Trips/yr | O4: Mode share | P4: VKT % Diff | Q4: +/- %kms | S4: 000 Trips/yr | T4: 000 PKT/yr | U4: 000 VKT/yr | V4: '000 hrs/yr | Y4: Selected | Z4: 1 | AA4: 2 | AB4: 3 | AC4: 4 | AD4: 5 | AE4: 6 | AF4: 7 | AG4: 8 | AH4: 9 | AI4: 10 | AJ4: 11 | AK4: 12 | AL4: 13 | AM4: 14 | AN4: 15 | AO4: 16 | AQ4: Drop-down lists | BG4: Selected
B5: ALL of New Zealand | C5: 1 | D5: * | F5: Motor car | H5: =SUMIFS(INDIRECT($D$52 & "$D$19:$D$885"),INDIRECT($D$52 & "$A$19:$A$885"),$F5&"*",INDIRECT($D$52 & "$B$19:$B$885"),$D$4,INDIRECT($D$52 & "$C$19:$C$885"),$D$53)/1000 -> 52209991.82 | I5: =IFERROR(H5/V48,0) -> 43508326.52 | J5: =H5/H$14 -> 0.9374285045 | K5: =I5/I$14 -> 0.958763754 | L5: =IFERROR(H5*AD46*0.9,0) -> 11556683.87 | M5: =L5/L$14 -> 0.9089021329 | N5: =IFERROR(H5/AC46/0.9,0) -> 5823173.726 | O5: =N5/$N$14 -> 0.838354983 | P5: =IF(I5=0,"N/A",U5/I5-1) -> 0.1684065149 | Q5: =F5 -> Motor car | R5: =1-SUM(R6:R13) -> 0.8348347363 | S5: =R5*$S$14 -> 6378594.487 | T5: =S5*AC46 -> 63544265.2 | U5: =IFERROR(T5/AB46,0) -> 50835412.16 | V5: =IF(H5=0,0,L5*T5/H5) -> 14065525.75 | W5: =Q5 -> Motor car | X5: 2 | Z5: =O5*(1+Q41/I5) -> 0.839799458 | AP5: =F5 -> Motor car
B6: All TIER 1 Cities | C6: 2 | D6: 1:* | F6: Truck | H6: 463187.1234 | I6: =IFERROR(H6/(AB47-0.05),0) -> 441130.5937 | J6: =H6/H$14 -> 0.008316507957 | K6: 0.009720898455 | L6: =IFERROR(H6*AD47*0.9,0) -> 115307.9338 | M6: =L6/L$14 -> 0.009068659152 | N6: =IFERROR(H6/AC47/0.9,0) -> 41046.69224 | O6: =N6/$N$14 -> 0.005909440554 | P6: 0.1666666667 | Q6: =F6 -> Truck | R6: =Y6 -> 0.005909440554 | S6: =R6*$S$14 -> 45151.36146 | T6: =S6*AC47 -> 566117.5953 | U6: =IFERROR(T6/AB47,0) -> 514652.3593 | V6: =IF(H6=0,0,L6*T6/H6) -> 140931.9191 | W6: =Q6 -> Truck | X6: 3 | Y6: =HLOOKUP(IF(ISNA(_xlfn.XMATCH(BG6,AQ6:BF6)),1,_xlfn.XMATCH(BG6,AQ6:BF6)),$Z$4:$AO$13,X6) -> 0.005909440554 | Z6: =O6 -> 0.005909440554 | AA6: =$Z6+AA$3 -> 0.01090944055 | AB6: 0.01590944055 | AC6: 0.02090944055 | AD6: 0.02590944055 | AE6: 0.03090944055 | AF6: 0.03590944055 | AG6: 0.04090944055 | AH6: 0.04590944055 | AI6: 0.05090944055 | AJ6: 0.05590944055 | AK6: 0.06590944055 | AL6: 0.07590944055 | AM6: 0.08590944055 | AN6: 0.09590944055 | AO6: 0.1059094406 | AP6: Truck | AQ6: ="+ " & TEXT(Z$3,"0.0% =") -> + 0.0% = | AR6: + 0.5% = | AS6: + 1.0% = | AT6: + 1.5% = | AU6: + 2.0% = | AV6: + 2.5% = | AW6: + 3.0% = | AX6: + 3.5% = | AY6: + 4.0% = | AZ6: + 4.5% = | BA6: + 5.0% = | BB6: + 6.0% = | BC6: + 7.0% = | BD6: + 8.0% = | BE6: + 9.0% = | BF6: + 10.0% = | BG6: =FrontEnd!P6 -> + 0.0% =
B7: Auckland | C7: 3 | D7: 1:Auckland | F7: Motorcycle | H7: 154595.0014 | I7: =IFERROR(H7/AB48,0) -> 154595.0014 | J7: 0.002775747628 | K7: 0.003406706159 | L7: 37118.12303 | M7: 0.002919240638 | N7: 17349.99455 | O7: 0.00249785685 | P7: 0.2222222222 | Q7: Motorcycle | R7: 0.00249785685 | S7: 19084.994 | T7: =S7*AC48 -> 188949.4462 | U7: =IFERROR(T7/AB48,0) -> 188949.4462 | V7: 45366.59481 | W7: Motorcycle | X7: 4 | Y7: 0.00249785685 | Z7: =O7 -> 0.00249785685 | AA7: 0.00749785685 | AB7: 0.01249785685 | AC7: 0.01749785685 | AD7: 0.02249785685 | AE7: 0.02749785685 | AF7: 0.03249785685 | AG7: 0.03749785685 | AH7: 0.04249785685 | AI7: 0.04749785685 | AJ7: 0.05249785685 | AK7: 0.06249785685 | AL7: 0.07249785685 | AM7: 0.08249785685 | AN7: 0.09249785685 | AO7: 0.1024978569 | AP7: Motorcycle | AQ7: + 0.0% = | AR7: + 0.5% = | AS7: + 1.0% = | AT7: + 1.5% = | AU7: + 2.0% = | AV7: + 2.5% = | AW7: + 3.0% = | AX7: + 3.5% = | AY7: + 4.0% = | AZ7: + 4.5% = | BA7: + 5.0% = | BB7: + 6.0% = | BC7: + 7.0% = | BD7: + 8.0% = | BE7: + 9.0% = | BF7: + 10.0% = | BG7: =FrontEnd!P7 -> + 0.0% =
B8: Hamilton | C8: 4 | D8: 1:Hamilton | F8: Bus | H8: 1126479.054 | I8: =IFERROR(H8/AB49/0.9,0) -> 160623.6067 | J8: 0.02022589044 | K8: 0.003539554482 | L8: 422530.3191 | M8: 0.03323087423 | N8: 130050.5984 | O8: 0.01872322076 | P8: 0.1099640715 | Q8: Bus | R8: 0.01889282032 | S8: 144351.4917 | T8: =S8*AC49 -> 1389279.196 | U8: =IFERROR(T8/AB49,0) -> 178286.4325 | V8: 521103.8593 | W8: Bus | X8: 5 | Y8: 0.01889282032 | Z8: =(O8+$AB$104)*(1+T41/H8) -> 0.01889282032 | AA8: 0.02389282032 | AB8: 0.02889282032 | AC8: 0.03389282032 | AD8: 0.03889282032 | AE8: 0.04389282032 | AF8: 0.04889282032 | AG8: 0.05389282032 | AH8: 0.05889282032 | AI8: 0.06389282032 | AJ8: 0.06889282032 | AK8: 0.07889282032 | AL8: 0.08889282032 | AM8: 0.09889282032 | AN8: 0.1088928203 | AO8: 0.1188928203 | AP8: Bus | AQ8: + 0.0% = | AR8: + 0.5% = | AS8: + 1.0% = | AT8: + 1.5% = | AU8: + 2.0% = | AV8: + 2.5% = | AW8: + 3.0% = | AX8: + 3.5% = | AY8: + 4.0% = | AZ8: + 4.5% = | BA8: + 5.0% = | BB8: + 6.0% = | BC8: + 7.0% = | BD8: + 8.0% = | BE8: + 9.0% = | BF8: + 10.0% = | BG8: =FrontEnd!P8 -> + 0.0% =
B9: Tauranga | C9: 5 | D9: 1:Tauranga | F9: Train | H9: 519566.8398 | I9: =IFERROR(H9/AB50/0.9,0) -> 8760.05658 | J9: 0.009328803714 | K9: 0.0001930394801 | L9: 265371.6933 | M9: 0.02087077061 | N9: 27222.47125 | O9: 0.00391918488 | P9: 0.1 | Q9: Train | R9: 0.00391918488 | S9: 29944.71838 | T9: =S9*AC50 -> 635026.1375 | U9: =IFERROR(T9/AB50,0) -> 9636.062238 | V9: 324343.1807 | W9: Train | X9: 6 | Y9: 0.00391918488 | Z9: =IF(O9=0,0,O9+$AB$104) -> 0.00391918488 | AA9: 0.00891918488 | AB9: 0.01391918488 | AC9: 0.01891918488 | AD9: 0.02391918488 | AE9: 0.02891918488 | AF9: 0.03391918488 | AG9: 0.03891918488 | AH9: 0.04391918488 | AI9: 0.04891918488 | AJ9: 0.05391918488 | AK9: 0.06391918488 | AL9: 0.07391918488 | AM9: 0.08391918488 | AN9: 0.09391918488 | AO9: 0.1039191849 | AP9: Train | AQ9: + 0.0% = | AR9: + 0.5% = | AS9: + 1.0% = | AT9: + 1.5% = | AU9: + 2.0% = | AV9: + 2.5% = | AW9: + 3.0% = | AX9: + 3.5% = | AY9: + 4.0% = | AZ9: + 4.5% = | BA9: + 5.0% = | BB9: + 6.0% = | BC9: + 7.0% = | BD9: + 8.0% = | BE9: + 9.0% = | BF9: + 10.0% = | BG9: =FrontEnd!P9 -> + 0.0% =
B10: Wellington | C10: 6 | D10: 1:Wellington | F10: Ferry | H10: 119594.6362 | I10: 4684.694783 | J10: 0.002147317343 | K10: 0.0001032334708 | L10: 72052.00621 | M10: 0.00566669668 | N10: 6121.151238 | O10: 0.0008812544299 | P10: 0.1 | Q10: Ferry | R10: =Y10 -> 0.0008812544299 | S10: 6733.266362 | T10: =S10*AC51 -> 146171.222 | U10: =IFERROR(T10/AB51,0) -> 5153.164261 | V10: 88063.56315 | W10: Ferry | X10: 7 | Y10: 0.0008812544299 | Z10: =O10 -> 0.0008812544299 | AA10: 0.00588125443 | AB10: 0.01088125443 | AC10: 0.01588125443 | AD10: 0.02088125443 | AE10: 0.02588125443 | AF10: 0.03088125443 | AG10: 0.03588125443 | AH10: 0.04088125443 | AI10: 0.04588125443 | AJ10: 0.05088125443 | AK10: 0.06088125443 | AL10: 0.07088125443 | AM10: 0.08088125443 | AN10: 0.09088125443 | AO10: 0.1008812544 | AP10: Ferry | AQ10: + 0.0% = | AR10: + 0.5% = | AS10: + 1.0% = | AT10: + 1.5% = | AU10: + 2.0% = | AV10: + 2.5% = | AW10: + 3.0% = | AX10: + 3.5% = | AY10: + 4.0% = | AZ10: + 4.5% = | BA10: + 5.0% = | BB10: + 6.0% = | BC10: + 7.0% = | BD10: + 8.0% = | BE10: + 9.0% = | BF10: + 10.0% = | BG10: =FrontEnd!P10 -> + 0.0% =
B11: Christchurch | C11: 7 | D11: 1:Christchurch | F11: Bicycle | H11: 388160.1394 | I11: =IFERROR(H11/AB52,0) -> 388160.1394 | J11: 0.006969401187 | K11: 0.008553624149 | L11: 109459.0056 | M11: 0.008608656668 | N11: 104215.7235 | O11: 0.01500380638 | P11: 0.2282043616 | Q11: Bicycle | R11: =Y11 -> 0.01507724217 | S11: 115198.3855 | T11: =S11*AC52 -> 476739.9762 | U11: =IFERROR(T11/AB52,0) -> 476739.9762 | V11: 134438.0281 | W11: Bicycle | X11: 8 | Y11: 0.01507724217 | Z11: =(O11+Z108)*S49*(1+IFERROR((R41)/H11,0)*(1-$T$42)) -> 0.01507724217 | AA11: 0.02007724217 | AB11: 0.02507724217 | AC11: 0.03007724217 | AD11: 0.03507724217 | AE11: 0.04007724217 | AF11: 0.04507724217 | AG11: 0.05007724217 | AH11: 0.05507724217 | AI11: 0.06007724217 | AJ11: 0.06507724217 | AK11: 0.07507724217 | AL11: 0.08507724217 | AM11: 0.09507724217 | AN11: 0.1050772422 | AO11: 0.1150772422 | AP11: Bicycle | AQ11: + 0.0% = | AR11: + 0.5% = | AS11: + 1.0% = | AT11: + 1.5% = | AU11: + 2.0% = | AV11: + 2.5% = | AW11: + 3.0% = | AX11: + 3.5% = | AY11: + 4.0% = | AZ11: + 4.5% = | BA11: + 5.0% = | BB11: + 6.0% = | BC11: + 7.0% = | BD11: + 8.0% = | BE11: + 9.0% = | BF11: + 10.0% = | BG11: =FrontEnd!P11 -> + 0.0% =
B12: All TIER 2 Cities | C12: 8 | D12: 2:* | F12: Wheeled device | H12: 17280.83896 | I12: =IFERROR(H12/AB53,0) -> 17280.83896 | J12: 0.0003102768351 | K12: 0.0003808062355 | L12: 3053.034488 | M12: 0.0002401129588 | N12: 8185.465911 | O12: 0.001178451212 | P12: 0.2690031185 | Q12: Wheeled device | R12: 0.00122355676 | S12: 9348.64359 | T12: =S12*AC53 -> 21929.43853 | U12: =IFERROR(T12/AB53,0) -> 21929.43853 | V12: 3874.310286 | W12: Wheeled device | X12: 9 | Y12: 0.00122355676 | Z12: =(O12*(1+Z108/O11))*(1+IFERROR((R41)/H12,0)*$T$42+(O12*(1+AB100/O13))*(1+IFERROR((S41)/H12,0)*$T$43)) -> 0.00122355676 | AA12: 0.00622355676 | AB12: 0.01122355676 | AC12: 0.01622355676 | AD12: 0.02122355676 | AE12: 0.02622355676 | AF12: 0.03122355676 | AG12: 0.03622355676 | AH12: 0.04122355676 | AI12: 0.04622355676 | AJ12: 0.05122355676 | AK12: 0.06122355676 | AL12: 0.07122355676 | AM12: 0.08122355676 | AN12: 0.09122355676 | AO12: 0.1012235568 | AP12: Wheeled device | AQ12: + 0.0% = | AR12: + 0.5% = | AS12: + 1.0% = | AT12: + 1.5% = | AU12: + 2.0% = | AV12: + 2.5% = | AW12: + 3.0% = | AX12: + 3.5% = | AY12: + 4.0% = | AZ12: + 4.5% = | BA12: + 5.0% = | BB12: + 6.0% = | BC12: + 7.0% = | BD12: + 8.0% = | BE12: + 9.0% = | BF12: + 10.0% = | BG12: =FrontEnd!P12 -> + 0.0% =
B13: Whangārei | C13: 9 | D13: 2:Whangārei | F13: Pedestrian | H13: 696049.8856 | I13: =IFERROR(H13/AB54,0) -> 696049.8856 | J13: 0.01249755038 | K13: 0.01533838358 | L13: 133416.5882 | M13: 0.01049285616 | N13: 788586.4811 | O13: =N13/$N$14 -> 0.1135318019 | P13: =IF(I13=0,"N/A",U13/I13-1) -> 0.2570173321 | Q13: Pedestrian | R13: =Y13 -> 0.1167639077 | S13: =R13*$S$14 -> 892140.1871 | T13: =S13*AC54 -> 874946.7702 | U13: =IFERROR(T13/AB54,0) -> 874946.7702 | V13: 167706.9638 | W13: Pedestrian | X13: 10 | Y13: 0.1167639077 | Z13: =O13*AA100*(1+IFERROR((S41)/H13,0)*(1-$T$43))*O54 -> 0.1167639077 | AA13: 0.1217639077 | AB13: 0.1267639077 | AC13: 0.1317639077 | AD13: 0.1367639077 | AE13: 0.1417639077 | AF13: 0.1467639077 | AG13: 0.1517639077 | AH13: 0.1567639077 | AI13: 0.1617639077 | AJ13: 0.1667639077 | AK13: 0.1767639077 | AL13: 0.1867639077 | AM13: 0.1967639077 | AN13: 0.2067639077 | AO13: 0.2167639077 | AP13: Pedestrian | AQ13: + 0.0% = | AR13: + 0.5% = | AS13: + 1.0% = | AT13: + 1.5% = | AU13: + 2.0% = | AV13: + 2.5% = | AW13: + 3.0% = | AX13: + 3.5% = | AY13: + 4.0% = | AZ13: + 4.5% = | BA13: + 5.0% = | BB13: + 6.0% = | BC13: + 7.0% = | BD13: + 8.0% = | BE13: + 9.0% = | BF13: + 10.0% = | BG13: =FrontEnd!P13 -> + 0.0% =
B14: Rotorua | C14: 10 | D14: 2:Rotorua | F14: TOTAL | H14: =SUM(H5:H13) -> 55694905.34 | I14: =SUM(I5:I13) -> 45379611.34 | L14: =SUM(L5:L13) -> 12714992.57 | N14: =SUM(N5:N13) -> 6945952.305 | P14: =IF(I14=0,"N/A",U14/I14-1) -> 0.1702547519 | S14: =N14*(1+R15)*1.1 -> 7640547.535 | T14: =SUM(T5:T13) -> 67843424.98 | U14: =SUM(U5:U13) -> 53105705.81 | V14: =SUM(V5:V13) -> 15491354.17
B15: New Plymouth | C15: 11 | D15: 2:New Plymouth | H15: =SUM(H5:H7) -> 52827773.95 | I15: =SUM(I5:I8) -> 44264675.72 | J15: M.Vehs | Q15: Overall travel change: | R15: =H39 -> 0 | S15: =SUM(S5:S7) -> 6442830.842 | T15: =SUM(T5:T7) -> 64299332.24 | U15: =SUM(U5:U8) -> 51717300.39 | V15: M.Vehs
B16: Napier Hastings | C16: 12 | D16: 2:Napier Hastings
B17: Palmerston North | C17: 13 | D17: 2:Palmerston North | F17: Existing mode DSIs/yr | P17: Future mode DSI/yr | U17: New | W17: Tier 1 Default DSI Rates | Y17: Mode share less than:
B18: Nelson Tasman | C18: 14 | D18: 2:Nelson Tasman | H18: DSIs | J18: /Bn P.kms | K18: /Bn hrs | M18: Abs Diff | P18: =H18 -> DSIs | Q18: =J18 -> /Bn P.kms | R18: % Diff P.kms | S18: =K18 -> /Bn hrs | T18: % Diff hrs | U18: DSIs | W18: /B.km | X18: /B.hr | Y18: 0.001
B19: Dunedin | C19: 15 | D19: 2:Dunedin | F19: Motor car | H19: =SUMIFS('MOH_Injs-2Modes'!$K$3:$K$34000,'MOH_Injs-2Modes'!$B$3:$B$34000,F19&"*",'MOH_Injs-2Modes'!$E$3:$E$34000,"<>"&$D$48,'MOH_Injs-2Modes'!$G$3:$G$34000,'BackendCalcs-HI'!$D$4,'MOH_Injs-2Modes'!$J$3:$J$34000,$D$22,'MOH_Injs-2Modes'!$I$3:$I$34000,$D$40,'MOH_Injs-2Modes'!$H$3:$H$34000,$D$34)/$H$37 -> 1457.166667 | J19: =IF(H5=0,"N/A",H19/H5*1000000) -> 27.90972792 | K19: =IF(L5=0,"N/A",H19/L5*1000000) -> 126.0886499 | M19: =IF(H19=0,"N/A",P19/H19-1) -> 0.3028566991 | P19: =U19 -> 1898.479353 | Q19: =IF(T5=0,"N/A",P19/T5*1000000) -> 29.87648606 | R19: =IF(ISERROR(Q19/J19),"N/A",Q19/J19-1) -> 0.07046855284 | S19: =IF(V5=0,"N/A",P19/V5*1000000) -> 134.9739346 | T19: =IF(ISERROR(S19/K19),"N/A",S19/K19-1) -> 0.07046855284 | U19: =IF(I5=0,U5*W19*0.000001,H19*(U5/I5)^$X$60*($U$15/$I$15)^$Y$60)*$M$64 -> 1898.479353 | V19: =F19 -> Motor car | W19: 25.83566963 | X19: 122.3801054 | Y19: use default DSI rates
B20: Queenstown | C20: 16 | D20: 2:Queenstown | F20: Truck | H20: =SUMIFS('MOH_Injs-2Modes'!$K$3:$K$34000,'MOH_Injs-2Modes'!$B$3:$B$34000,F20&"*",'MOH_Injs-2Modes'!$E$3:$E$34000,"<>"&$D$48,'MOH_Injs-2Modes'!$G$3:$G$34000,'BackendCalcs-HI'!$D$4,'MOH_Injs-2Modes'!$J$3:$J$34000,$D$22,'MOH_Injs-2Modes'!$I$3:$I$34000,$D$40,'MOH_Injs-2Modes'!$H$3:$H$34000,$D$34)/$H$37 -> 20.33333333 | J20: 43.89874482 | K20: 176.3394128 | M20: 0.3012074681 | P20: 26.45788518 | Q20: 46.73567012 | R20: 0.06462429204 | S20: 187.7352225 | T20: =IF(ISERROR(S20/K20),"N/A",S20/K20-1) -> 0.06462429204 | U20: =IF(I6=0,U6*W20*0.000001,H20*(U6/I6)^$X$60*($U$15/$I$15)^$Y$60)*$M$64 -> 26.45788518 | V20: =F20 -> Truck | W20: 88.32538724 | X20: 359.0409531
F21: Motorcycle | H21: =SUMIFS('MOH_Injs-2Modes'!$K$3:$K$34000,'MOH_Injs-2Modes'!$B$3:$B$34000,F21&"*",'MOH_Injs-2Modes'!$E$3:$E$34000,"<>"&$D$48,'MOH_Injs-2Modes'!$G$3:$G$34000,'BackendCalcs-HI'!$D$4,'MOH_Injs-2Modes'!$J$3:$J$34000,$D$22,'MOH_Injs-2Modes'!$I$3:$I$34000,$D$40,'MOH_Injs-2Modes'!$H$3:$H$34000,$D$34)/$H$37 -> 377.3333333 | J21: 2440.786118 | K21: 10165.74392 | M21: 0.3536906379 | P21: 510.7926007 | Q21: 2703.329441 | R21: 0.1075650674 | S21: 11259.22284 | T21: 0.1075650674 | U21: =IF(I7=0,U7*W21*0.000001,H21*(U7/I7)^$X$60*($U$15/$I$15)^$Y$60)*$M$64 -> 510.7926007 | V21: Motorcycle | W21: 1861.438929 | X21: 7361.191495
B22: Age Group | C22: =VLOOKUP(FrontEnd!B8,'BackendCalcs-HI'!B23:C32,2,FALSE) -> 1 | D22: =VLOOKUP(C22,SearchAge,2) -> * | F22: Bus | H22: =SUMIFS('MOH_Injs-2Modes'!$K$3:$K$34000,'MOH_Injs-2Modes'!$B$3:$B$34000,F22&"*",'MOH_Injs-2Modes'!$E$3:$E$34000,"<>"&$D$48,'MOH_Injs-2Modes'!$G$3:$G$34000,'BackendCalcs-HI'!$D$4,'MOH_Injs-2Modes'!$J$3:$J$34000,$D$22,'MOH_Injs-2Modes'!$I$3:$I$34000,$D$40,'MOH_Injs-2Modes'!$H$3:$H$34000,$D$34)/$H$37 -> 7 | J22: 6.214052519 | K22: 16.56685848 | M22: 0.247252431 | P22: 8.730767017 | Q22: 6.284386206 | R22: 0.01131848927 | S22: 16.75437029 | T22: 0.01131848927 | U22: =IF(I8=0,U8*W22*0.000001,H22*(U8/I8)^$X$60*($U$15/$I$15)^$Y$60)*$M$64 -> 8.730767017 | V22: Bus | W22: 5.688061919 | X22: 17.17247162
B23: All AGES | C23: 1 | D23: * | F23: Train | H23: =SUMIFS('MOH_Injs-2Modes'!$K$3:$K$34000,'MOH_Injs-2Modes'!$B$3:$B$34000,F23&"*",'MOH_Injs-2Modes'!$E$3:$E$34000,"<>"&$D$48,'MOH_Injs-2Modes'!$G$3:$G$34000,'BackendCalcs-HI'!$D$4,'MOH_Injs-2Modes'!$J$3:$J$34000,$D$22,'MOH_Injs-2Modes'!$I$3:$I$34000,$D$40,'MOH_Injs-2Modes'!$H$3:$H$34000,$D$34)/$H$37 -> 6.166666667 | J23: 11.86886112 | K23: 23.23784647 | M23: 0.1022477077 | P23: 6.797194198 | Q23: 10.70380225 | R23: -0.09816096642 | S23: 20.956797 | T23: -0.09816096642 | U23: =IF(I9=0,U9*W23*0.000001,H23*($U$15/$I$15)^$Y$61*(U9/I9)^$X$61) -> 6.797194198 | V23: Train | W23: 7.400325933 | X23: 18.11953504
B24: =IF(C34*C40<>1,"","0 to 9") -> 0 to 9 | C24: 2 | D24: 0 to 9 | F24: Ferry | H24: =SUMIFS('MOH_Injs-2Modes'!$K$3:$K$34000,'MOH_Injs-2Modes'!$B$3:$B$34000,F24&"*",'MOH_Injs-2Modes'!$E$3:$E$34000,"<>"&$D$48,'MOH_Injs-2Modes'!$G$3:$G$34000,'BackendCalcs-HI'!$D$4,'MOH_Injs-2Modes'!$J$3:$J$34000,$D$22,'MOH_Injs-2Modes'!$I$3:$I$34000,$D$40,'MOH_Injs-2Modes'!$H$3:$H$34000,$D$34)/$H$37 -> 0 | J24: 0 | K24: 0 | M24: N/A | P24: 0 | Q24: 0 | R24: N/A | S24: 0 | T24: N/A | U24: =IF(I10=0,U10*W24*0.000001,H24*U10/I10) -> 0 | V24: Ferry | W24: 0 | X24: 0
B25: =IF(C34*C40<>1,"","10 to 19") -> 10 to 19 | C25: 3 | D25: 10 to 19 | F25: Bicycle | G25: All | H25: =SUM(H26:H27) -> 207.8333333 | J25: =SUM(J26:J27) -> 535.4319319 | K25: =SUM(K26:K27) -> 1898.732153 | M25: 0.1484030343 | P25: 238.6764306 | Q25: =SUM(Q26:Q27) -> 500.6427875 | R25: -0.06497398136 | S25: =SUM(S26:S27) -> 1775.363965 | T25: -0.06497398136 | U25: =SUM(U26:U27) -> 238.6764306 | V25: Bicycle | W25: 473.7144796 | X25: 1785.792426
B26: =IF(C34*C40<>1,"","20 to 29") -> 20 to 29 | C26: 4 | D26: 20 to 29 | F26: Bicycle | G26: Collisions | H26: =SUMIFS('MOH_Injs-2Modes'!$K$3:$K$34000,'MOH_Injs-2Modes'!$B$3:$B$34000,F26&"*",'MOH_Injs-2Modes'!$E$3:$E$34000,"<>"&$D$48,'MOH_Injs-2Modes'!$G$3:$G$34000,'BackendCalcs-HI'!$D$4,'MOH_Injs-2Modes'!$J$3:$J$34000,$D$22,'MOH_Injs-2Modes'!$I$3:$I$34000,$D$40,'MOH_Injs-2Modes'!$H$3:$H$34000,$D$34,'MOH_Injs-2Modes'!$C$3:$C$34000,"<>"&$F$40)/$H$37 -> 167.3333333 | J26: =IF(H11=0,"N/A",H26/H11*1000000) -> 431.0935522 | K26: =IF(L11=0,"N/A",H26/L11*1000000) -> 1528.730618 | M26: 0.1290885696 | P26: 188.934154 | Q26: =IF(T$11=0,"N/A",P26/T$11*1000000) -> 396.3044079 | R26: -0.08069975573 | S26: =IF(V11=0,"N/A",P26/V11*1000000) -> 1405.362431 | T26: -0.08069975573 | U26: =IF(I11=0,U11*W26*0.000001,H26*($U$15/$I$15)^$Y$58*(U11/I11)^$X$58)*S51*$M$64 -> 188.934154 | V26: =G26 -> Collisions | W26: 378.8340759 | X26: 1428.115569
B27: =IF(C34*C40<>1,"","30 to 39") -> 30 to 39 | C27: 5 | D27: 30 to 39 | F27: Bicycle | G27: User only | H27: =SUMIFS('MOH_Injs-2Modes'!$K$3:$K$34000,'MOH_Injs-2Modes'!$B$3:$B$34000,F27&"*",'MOH_Injs-2Modes'!$E$3:$E$34000,"<>"&$D$48,'MOH_Injs-2Modes'!$G$3:$G$34000,'BackendCalcs-HI'!$D$4,'MOH_Injs-2Modes'!$J$3:$J$34000,$D$22,'MOH_Injs-2Modes'!$I$3:$I$34000,$D$40,'MOH_Injs-2Modes'!$H$3:$H$34000,$D$34,'MOH_Injs-2Modes'!$C$3:$C$34000,$F$40)/$H$37 -> 40.5 | J27: =IF(H11=0,"N/A",H27/H11*1000000) -> 104.3383797 | K27: =IF(L11=0,"N/A",H27/L11*1000000) -> 370.0015342 | M27: 0.2282043616 | P27: 49.74227664 | Q27: =IF(T$11=0,"N/A",P27/T$11*1000000) -> 104.3383797 | R27: 0 | S27: =IF(V11=0,"N/A",P27/V11*1000000) -> 370.0015342 | T27: 0 | U27: =IF(OR(I11=0,O11<$Y$18),U11*W27*0.000001,H27*(1+P11))*S51 -> 49.74227664 | V27: =G27 -> User only | W27: 94.88040376 | X27: 357.6768575
B28: =IF(C34*C40<>1,"","40 to 49") -> 40 to 49 | C28: 6 | D28: 40 to 49 | F28: Wheeled device | G28: All | H28: =SUM(H29:H30) -> 130.5 | J28: =SUM(J29:J30) -> 7551.71669 | K28: =SUM(K29:K30) -> 42744.35828 | M28: 0.2619949351 | P28: 164.690339 | Q28: =SUM(Q29:Q30) -> 7510.011658 | R28: -0.005522589568 | S28: =SUM(S29:S30) -> 42508.29873 | T28: -0.005522589568 | U28: =SUM(U29:U30) -> 164.690339 | V28: Wheeled device | W28: =W25*$Y$28 -> 473.7144796 | X28: 1785.792426 | Y28: 1
B29: =IF(C34*C40<>1,"","50 to 59") -> 50 to 59 | C29: 7 | D29: 50 to 59 | F29: Wheeled device | G29: Collisions | H29: =SUMIFS('MOH_Injs-2Modes'!$K$3:$K$34000,'MOH_Injs-2Modes'!$B$3:$B$34000,F29&"*",'MOH_Injs-2Modes'!$E$3:$E$34000,"<>"&$D$48,'MOH_Injs-2Modes'!$G$3:$G$34000,'BackendCalcs-HI'!$D$4,'MOH_Injs-2Modes'!$J$3:$J$34000,$D$22,'MOH_Injs-2Modes'!$I$3:$I$34000,$D$40,'MOH_Injs-2Modes'!$H$3:$H$34000,$D$34,'MOH_Injs-2Modes'!$C$3:$C$34000,"<>"&$F$40)/$H$37 -> 7 | J29: =IF(H12=0,"N/A",H29/H12*1000000) -> 405.0729259 | K29: =IF(L12=0,"N/A",H29/L12*1000000) -> 2292.800827 | M29: 0.1383505569 | P29: 7.968453898 | Q29: =IF(T$12=0,"N/A",P29/T$12*1000000) -> 363.3678941 | R29: -0.1029568484 | S29: =IF(V12=0,"N/A",P29/V12*1000000) -> 2056.74128 | T29: -0.1029568484 | U29: =IF(I12=0,U12*W29*0.000001,H29*($U$15/$I$15)^$Y$58*(U12/I12)^$X$58)*S51*$M$64 -> 7.968453898 | V29: =G29 -> Collisions | W29: 378.8340759 | X29: 1428.115569 | Y29: Scaling factor relative
B30: =IF(C34*C40<>1,"","60 to 69") -> 60 to 69 | C30: 8 | D30: 60 to 69 | F30: Wheeled device | G30: User only | H30: =SUMIFS('MOH_Injs-2Modes'!$K$3:$K$34000,'MOH_Injs-2Modes'!$B$3:$B$34000,F30&"*",'MOH_Injs-2Modes'!$E$3:$E$34000,"<>"&$D$48,'MOH_Injs-2Modes'!$G$3:$G$34000,'BackendCalcs-HI'!$D$4,'MOH_Injs-2Modes'!$J$3:$J$34000,$D$22,'MOH_Injs-2Modes'!$I$3:$I$34000,$D$40,'MOH_Injs-2Modes'!$H$3:$H$34000,$D$34,'MOH_Injs-2Modes'!$C$3:$C$34000,$F$40)/$H$37 -> 123.5 | J30: =IF(H12=0,"N/A",H30/H12*1000000) -> 7146.643764 | K30: =IF(L12=0,"N/A",H30/L12*1000000) -> 40451.55745 | M30: 0.2690031185 | P30: 156.7218851 | Q30: =IF(T$12=0,"N/A",P30/T$12*1000000) -> 7146.643764 | R30: 0 | S30: =IF(V12=0,"N/A",P30/V12*1000000) -> 40451.55745 | T30: 0 | U30: =IF(OR(I12=0,O12<$Y$18),U12*W30*0.000001,H30*(1+P12))*S51 -> 156.7218851 | V30: =G30 -> User only | W30: 94.88040376 | X30: 357.6768575 | Y30: to cycle crash rate *
B31: =IF(C34*C40<>1,"","70 to 79") -> 70 to 79 | C31: 9 | D31: 70 to 79 | F31: Pedestrian | G31: All | H31: =SUM(H32:H33) -> 1295.5 | J31: =SUM(J32:J33) -> 1861.217173 | K31: =SUM(K32:K33) -> 9710.186847 | M31: 0.2493149352 | P31: 1618.487499 | Q31: =SUM(Q32:Q33) -> 1849.81253 | R31: -0.006127518472 | S31: =SUM(S32:S33) -> 9650.687498 | T31: -0.006127518472 | U31: =SUM(U32:U33) -> 1618.487499 | V31: Pedestrian | W31: 1691.275104 | X31: 9657.035828
B32: =IF(C34*C40<>1,"","80+") -> 80+ | C32: 10 | D32: 80+ | F32: Pedestrian | G32: Collisions | H32: =SUMIFS('MOH_Injs-2Modes'!$K$3:$K$34000,'MOH_Injs-2Modes'!$B$3:$B$34000,F32&"*",'MOH_Injs-2Modes'!$E$3:$E$34000,"<>"&$D$48,'MOH_Injs-2Modes'!$G$3:$G$34000,'BackendCalcs-HI'!$D$4,'MOH_Injs-2Modes'!$J$3:$J$34000,$D$22,'MOH_Injs-2Modes'!$I$3:$I$34000,$D$40,'MOH_Injs-2Modes'!$H$3:$H$34000,$D$34,'MOH_Injs-2Modes'!$C$3:$C$34000,"<>"&$F$40)/$H$37 -> 325.8333333 | J32: =IF(H13=0,"N/A",H32/H13*1000000) -> 468.1177888 | K32: =IF(L13=0,"N/A",H32/L13*1000000) -> 2442.225046 | M32: 0.2263929171 | P32: 399.5996922 | Q32: =IF(T$13=0,"N/A",P32/T$13*1000000) -> 456.7131462 | R32: -0.0243627627 | S32: =IF(V13=0,"N/A",P32/V13*1000000) -> 2382.725697 | T32: -0.0243627627 | U32: =IF(I13=0,U13*W32*0.000001,H32*($U$15/$I$15)^$Y$59*(U13/I13)^$X$59)*P54*R58*R60*$M$64 -> 399.5996922 | V32: =G32 -> Collisions | W32: 407.2732996 | X32: 2325.49562
F33: Pedestrian | G33: User only | H33: =SUMIFS('MOH_Injs-2Modes'!$K$3:$K$34000,'MOH_Injs-2Modes'!$B$3:$B$34000,F33&"*",'MOH_Injs-2Modes'!$E$3:$E$34000,"<>"&$D$48,'MOH_Injs-2Modes'!$G$3:$G$34000,'BackendCalcs-HI'!$D$4,'MOH_Injs-2Modes'!$J$3:$J$34000,$D$22,'MOH_Injs-2Modes'!$I$3:$I$34000,$D$40,'MOH_Injs-2Modes'!$H$3:$H$34000,$D$34,'MOH_Injs-2Modes'!$C$3:$C$34000,$F$40)/$H$37 -> 969.6666667 | J33: =IF(H13=0,"N/A",H33/H13*1000000) -> 1393.099384 | K33: =IF(L13=0,"N/A",H33/L13*1000000) -> 7267.9618 | M33: 0.2570173321 | P33: 1218.887806 | Q33: =IF(T$13=0,"N/A",P33/T$13*1000000) -> 1393.099384 | R33: 0 | S33: =IF(V13=0,"N/A",P33/V13*1000000) -> 7267.9618 | T33: 0 | U33: =IF(OR(I13=0,O13<$Y$18),U13*W33*0.000001,H33*(1+P13))*P54*R58*R60 -> 1218.887806 | V33: =G33 -> User only | W33: 1284.001804 | X33: 7331.540208
B34: Gender | C34: =VLOOKUP(FrontEnd!B11,'BackendCalcs-HI'!B35:C38,2,FALSE) -> 1 | D34: =VLOOKUP(C34,SearchGender,2) -> * | F34: TOTAL | H34: =SUM(H19:H33)-H25-H28-H31 -> 3501.833333 | J34: =IF(H14=0,"N/A",H34/H14*1000000) -> 62.87529015 | K34: =IF(L14=0,"N/A",H34/L14*1000000) -> 275.409782 | M34: 0.2773629248 | P34: 4473.112069 | Q34: =IF(T14=0,"N/A",P34/T14*1000000) -> 65.93287515 | R34: 0.04862935801 | S34: =IF(V14=0,"N/A",P34/V14*1000000) -> 288.7489382 | T34: 0.04843385027 | U34: =SUM(U19:U33)-U25-U28-U31 -> 4473.112069
B35: All GENDERS | C35: 1 | D35: *
B36: =IF(C22*C40<>1,"","Male") -> Male | C36: 2 | D36: Male | G36: Yrs of Travel Data: | H36: 7 | I36: 4 | J36: Yrs Wheeled Device | M36: PT Chains increases | P36: Average kms per km of main PT mode travelled by supporting mode | W36: kms per PT km
B37: =IF(C22*C40<>1,"","Female") -> Female | C37: 3 | D37: Female | G37: Yrs of Injury Data: | H37: 6 | M37: Mode | N37: Extra PKT | O37: Location | Q37: Driven | R37: Biked | S37: Walked | T37: Bussed | V37: Drive | W37: Bike | X37: Walk | Y37: Bus
B38: =IF(C22*C40<>1,"","Another/Unknown") -> Another/Unknown | C38: 4 | D38: Another/Unknown | M38: Bus | N38: =T8-H8 -> 262800.1428 | O38: =$D$4 -> * | Q38: =IFERROR(SUMIFS(TripChains!H$4:H$25,TripChains!$A$4:$A$25,'BackendCalcs-HI'!$M38,TripChains!$B$4:$B$25,'BackendCalcs-HI'!$O38)*$N38/SUMIFS(TripChains!$G$4:$G$25,TripChains!$A$4:$A$25,'BackendCalcs-HI'!$M38,TripChains!$B$4:$B$25,'BackendCalcs-HI'!$O38),0) -> 43819.47971 | R38: =IFERROR(SUMIFS(TripChains!I$4:I$25,TripChains!$A$4:$A$25,'BackendCalcs-HI'!$M38,TripChains!$B$4:$B$25,'BackendCalcs-HI'!$O38)*$N38/SUMIFS(TripChains!$G$4:$G$25,TripChains!$A$4:$A$25,'BackendCalcs-HI'!$M38,TripChains!$B$4:$B$25,'BackendCalcs-HI'!$O38),0) -> 1455.60549 | S38: =IFERROR(SUMIFS(TripChains!J$4:J$25,TripChains!$A$4:$A$25,'BackendCalcs-HI'!$M38,TripChains!$B$4:$B$25,'BackendCalcs-HI'!$O38)*$N38/SUMIFS(TripChains!$G$4:$G$25,TripChains!$A$4:$A$25,'BackendCalcs-HI'!$M38,TripChains!$B$4:$B$25,'BackendCalcs-HI'!$O38),0) -> 18873.87482 | T38: 0 | V38: =IF(ISERROR(Q38/$N38),"N/A",Q38/$N38) -> 0.1667406998 | W38: 0.005538830666 | X38: 0.07181835834 | Y38: 0
F39: Secondary mode | G39: % Travel Change | H39: =FrontEnd!P14 -> 0 | M39: Train | N39: =T9-H9 -> 115459.2977 | O39: =$D$4 -> * | Q39: =IFERROR(SUMIFS(TripChains!H$4:H$25,TripChains!$A$4:$A$25,'BackendCalcs-HI'!$M39,TripChains!$B$4:$B$25,'BackendCalcs-HI'!$O39)*$N39/SUMIFS(TripChains!$G$4:$G$25,TripChains!$A$4:$A$25,'BackendCalcs-HI'!$M39,TripChains!$B$4:$B$25,'BackendCalcs-HI'!$O39),0) -> 19500.83618 | R39: =IFERROR(SUMIFS(TripChains!I$4:I$25,TripChains!$A$4:$A$25,'BackendCalcs-HI'!$M39,TripChains!$B$4:$B$25,'BackendCalcs-HI'!$O39)*$N39/SUMIFS(TripChains!$G$4:$G$25,TripChains!$A$4:$A$25,'BackendCalcs-HI'!$M39,TripChains!$B$4:$B$25,'BackendCalcs-HI'!$O39),0) -> 828.6587633 | S39: =IFERROR(SUMIFS(TripChains!J$4:J$25,TripChains!$A$4:$A$25,'BackendCalcs-HI'!$M39,TripChains!$B$4:$B$25,'BackendCalcs-HI'!$O39)*$N39/SUMIFS(TripChains!$G$4:$G$25,TripChains!$A$4:$A$25,'BackendCalcs-HI'!$M39,TripChains!$B$4:$B$25,'BackendCalcs-HI'!$O39),0) -> 6935.010474 | T39: =IFERROR(SUMIFS(TripChains!K$4:K$25,TripChains!$A$4:$A$25,'BackendCalcs-HI'!$M39,TripChains!$B$4:$B$25,'BackendCalcs-HI'!$O39)*$N39/SUMIFS(TripChains!$G$4:$G$25,TripChains!$A$4:$A$25,'BackendCalcs-HI'!$M39,TripChains!$B$4:$B$25,'BackendCalcs-HI'!$O39),0) -> 7021.885041 | V39: 0.1688979282 | W39: 0.007177063949 | X39: 0.06006454751 | Y39: 0.06081697342
B40: Ethnicity | C40: =VLOOKUP(FrontEnd!B14,'BackendCalcs-HI'!B41:C46,2,FALSE) -> 1 | D40: =VLOOKUP(C40,SearchEthnic,2) -> * | F40: None | G40: =G41-$H$60 -> -0.2 | M40: Ferry | N40: =T10-H10 -> 26576.58582 | O40: * | Q40: =IFERROR(SUMIFS(TripChains!H$4:H$25,TripChains!$A$4:$A$25,'BackendCalcs-HI'!$M40,TripChains!$B$4:$B$25,'BackendCalcs-HI'!$O40)*$N40/SUMIFS(TripChains!$G$4:$G$25,TripChains!$A$4:$A$25,'BackendCalcs-HI'!$M40,TripChains!$B$4:$B$25,'BackendCalcs-HI'!$O40),0) -> 11643.9797 | R40: =IFERROR(SUMIFS(TripChains!I$4:I$25,TripChains!$A$4:$A$25,'BackendCalcs-HI'!$M40,TripChains!$B$4:$B$25,'BackendCalcs-HI'!$O40)*$N40/SUMIFS(TripChains!$G$4:$G$25,TripChains!$A$4:$A$25,'BackendCalcs-HI'!$M40,TripChains!$B$4:$B$25,'BackendCalcs-HI'!$O40),0) -> 248.8572526 | S40: =IFERROR(SUMIFS(TripChains!J$4:J$25,TripChains!$A$4:$A$25,'BackendCalcs-HI'!$M40,TripChains!$B$4:$B$25,'BackendCalcs-HI'!$O40)*$N40/SUMIFS(TripChains!$G$4:$G$25,TripChains!$A$4:$A$25,'BackendCalcs-HI'!$M40,TripChains!$B$4:$B$25,'BackendCalcs-HI'!$O40),0) -> 611.9862634 | T40: =IFERROR(SUMIFS(TripChains!K$4:K$25,TripChains!$A$4:$A$25,'BackendCalcs-HI'!$M40,TripChains!$B$4:$B$25,'BackendCalcs-HI'!$O40)*$N40/SUMIFS(TripChains!$G$4:$G$25,TripChains!$A$4:$A$25,'BackendCalcs-HI'!$M40,TripChains!$B$4:$B$25,'BackendCalcs-HI'!$O40),0) -> 3182.040216 | V40: 0.4381292532 | W40: 0.009363778113 | X40: 0.02302727174 | Y40: 0.1197309631
B41: All ETHNICITIES | C41: 1 | D41: * | G41: -0.19 | P41: TOTAL ('000 km) | Q41: =SUM(Q38:Q40) -> 74964.29559 | R41: =SUM(R38:R40) -> 2533.121506 | S41: =SUM(S38:S40) -> 26420.87156 | T41: =SUM(T38:T40) -> 10203.92526
B42: =IF(C22*C34<>1,"","Māori") -> Māori | C42: 2 | D42: Māori | G42: -0.18 | S42: Assume some first/last-mile Bike trips are split across Wheeled Devices too: | T42: 0.25 | U42: WD | V42: * | AA42: Average occupancy & trip distances | AC42: =D$4 -> *
B43: =IF(C22*C34<>1,"","Pacific People") -> Pacific People | C43: 3 | D43: Pacific People | G43: -0.17 | S43: Assume some first/last-mile Walk trips are split across Wheeled Devices too: | T43: 0.25 | U43: WD | V43: * | AA43: Occupancy LO (%) | AB43: -0.1 | AC43: Occupancy HI (%) | AD43: 0.1
B44: =IF(C22*C34<>1,"","Asian") -> Asian | C44: 4 | D44: Asian | G44: -0.16 | P44: % Extra Trips: | Q44: =Q41/H5 -> 0.00143582278 | R44: =R41*(1-T42)/H11 -> 0.004894477656 | S44: =S41*(1-T43)/H13 -> 0.02846872628 | T44: =T41/H8 -> 0.009058246778 | AA44: Trip dist LO (km) | AB44: -0.1 | AC44: Trip dist HI (km) | AD44: 0.1
B45: =IF(C22*C34<>1,"","European") -> European | C45: 5 | D45: European | G45: -0.15 | AB45: Occupancy rates | AC45: Avg trip dist (km) | AD45: Avg trip time (hrs)
B46: =IF(C22*C34<>1,"","Other") -> Other | C46: 6 | D46: Other | G46: -0.14 | N46: Ped'n LoS Increase | P46: * | AA46: Motor car | AB46: =V52 -> 1.25 | AC46: =_xlfn.XLOOKUP($D$4,TripLengths!$A$4:$A$19,_xlfn.XLOOKUP(AA46,TripLengths!$C$3:$K$3,TripLengths!$C$4:$K$19))*(1+AD$44) -> 9.962110826 | AD46: =_xlfn.XLOOKUP($D$4,TripLengths!$A$24:$A$39,_xlfn.XLOOKUP(AA46,TripLengths!$C$23:$K$23,TripLengths!$C$24:$K$39))/60*(1+AD$44) -> 0.2459444908
G47: -0.13 | N47: %Improvem't | O47: %Inc Trips | P47: %Dec DSIs | S47: Cycling QoS Increase | V47: Current private veh occupancy rate: | AA47: Truck | AB47: 1.1 | AC47: =_xlfn.XLOOKUP($D$4,TripLengths!$A$4:$A$19,_xlfn.XLOOKUP(AA47,TripLengths!$C$3:$K$3,TripLengths!$C$4:$K$19))*(1+AD$44) -> 12.53821761 | AD47: =_xlfn.XLOOKUP($D$4,TripLengths!$A$24:$A$39,_xlfn.XLOOKUP(AA47,TripLengths!$C$23:$K$23,TripLengths!$C$24:$K$39))/60*(1+AD$44) -> 0.2766051126
B48: Severity | C48: 1 | D48: Minor Injury | G48: -0.12 | M48: 1 | N48: 0 | O48: 1 | P48: 1 | Q48: 1 | S48: Increase in trips: | V48: =OccupancyRates!M24 -> 1.2 | AA48: Motorcycle | AB48: 1 | AC48: =_xlfn.XLOOKUP($D$4,TripLengths!$A$4:$A$19,_xlfn.XLOOKUP(AA48,TripLengths!$C$3:$K$3,TripLengths!$C$4:$K$19))*(1+AD$44) -> 9.900419469 | AD48: =_xlfn.XLOOKUP($D$4,TripLengths!$A$24:$A$39,_xlfn.XLOOKUP(AA48,TripLengths!$C$23:$K$23,TripLengths!$C$24:$K$39))/60*(1+AD$44) -> 0.2667767945
C49: 2 | D49: Serious Injury | G49: -0.11 | M49: 2 | N49: 0.05 | O49: 1.06 | P49: 0.94 | Q49: 2 | S49: ='Cyc-QoS-Calcs'!J4 -> 1 | V49: Range (+/-) | AA49: Bus | AB49: =_xlfn.IFNA(VLOOKUP($D$4,OccupancyRates!C$6:I$20,3,FALSE),0)*(1+AD$43) -> 7.7924 | AC49: =_xlfn.XLOOKUP($D$4,TripLengths!$A$4:$A$19,_xlfn.XLOOKUP(AA49,TripLengths!$C$3:$K$3,TripLengths!$C$4:$K$19))*(1+AD$44) -> 9.62428015 | AD49: =_xlfn.XLOOKUP($D$4,TripLengths!$A$24:$A$39,_xlfn.XLOOKUP(AA49,TripLengths!$C$23:$K$23,TripLengths!$C$24:$K$39))/60*(1+AD$44) -> 0.4167659673
C50: 3 | D50: Fatality | G50: -0.1 | M50: 3 | N50: 0.1 | O50: =O49+(O49-O48) -> 1.12 | P50: =P49+(P49-P48) -> 0.88 | Q50: 3 | S50: Decrease in DSIs: | V50: 0.05 | AA50: Train | AB50: =_xlfn.IFNA(VLOOKUP($D$4,OccupancyRates!C$6:I$20,5,FALSE),0)*(1+AD$43) -> 65.901 | AC50: =_xlfn.XLOOKUP($D$4,TripLengths!$A$4:$A$19,_xlfn.XLOOKUP(AA50,TripLengths!$C$3:$K$3,TripLengths!$C$4:$K$19))*(1+AD$44) -> 21.20661579 | AD50: =_xlfn.XLOOKUP($D$4,TripLengths!$A$24:$A$39,_xlfn.XLOOKUP(AA50,TripLengths!$C$23:$K$23,TripLengths!$C$24:$K$39))/60*(1+AD$44) -> 0.5675062657
G51: -0.09 | M51: 4 | N51: 0.15 | O51: =O50+(O50-O49) -> 1.18 | P51: =P50+(P50-P49) -> 0.82 | Q51: 4 | S51: ='Cyc-QoS-Calcs'!M4 -> 1 | V51: New occupancy rate: | AA51: Ferry | AB51: =_xlfn.IFNA(VLOOKUP($D$4,OccupancyRates!C$6:I$20,7,FALSE),0)*(1+AD$43) -> 28.36533333 | AC51: =_xlfn.XLOOKUP($D$4,TripLengths!$A$4:$A$19,_xlfn.XLOOKUP(AA51,TripLengths!$C$3:$K$3,TripLengths!$C$4:$K$19))*(1+AD$44) -> 21.70881325 | AD51: =_xlfn.XLOOKUP($D$4,TripLengths!$A$24:$A$39,_xlfn.XLOOKUP(AA51,TripLengths!$C$23:$K$23,TripLengths!$C$24:$K$39))/60*(1+AD$44) -> 0.6694094923
C52: HHTS Dataset to use: | D52: =IF($D$22<>"*","'HHTS-Tier-Age'!",IF($D$34<>"*","'HHTS-Tier-Gender'!",IF($D$40<>"*","'HHTS-Tier-Ethnicity'!","'HHTS-Tier-Gender'!"))) -> 'HHTS-Tier-Gender'! | G52: -0.08 | M52: 5 | N52: 0.2 | O52: =O51+(O51-O50) -> 1.24 | P52: =P51+(P51-P50) -> 0.76 | Q52: 5 | V52: =V48+V50 -> 1.25 | AA52: Bicycle | AB52: 1 | AC52: =_xlfn.XLOOKUP($D$4,TripLengths!$A$4:$A$19,_xlfn.XLOOKUP(AA52,TripLengths!$C$3:$K$3,TripLengths!$C$4:$K$19))*(1+AD$44) -> 4.138425847 | AD52: =_xlfn.XLOOKUP($D$4,TripLengths!$A$24:$A$39,_xlfn.XLOOKUP(AA52,TripLengths!$C$23:$K$23,TripLengths!$C$24:$K$39))/60*(1+AD$44) -> 0.3133271683
C53: HHTS Sub-group to use: | D53: =IF($D$22<>"*",D22,IF($D$34<>"*",D34,IF($D$40<>"*",D40,"*"))) -> * | G53: -0.07 | M53: Selected: | AA53: Wheeled Device | AB53: 1 | AC53: =_xlfn.XLOOKUP($D$4,TripLengths!$A$4:$A$19,_xlfn.XLOOKUP(AA53,TripLengths!$C$3:$K$3,TripLengths!$C$4:$K$19))*(1+AD$44) -> 2.345734793 | AD53: =_xlfn.XLOOKUP($D$4,TripLengths!$A$24:$A$39,_xlfn.XLOOKUP(AA53,TripLengths!$C$23:$K$23,TripLengths!$C$24:$K$39))/60*(1+AD$44) -> 0.1963018433
G54: -0.06 | M54: =VLOOKUP(Settings!G19,N48:Q52,4,FALSE) -> 1 | N54: =VLOOKUP($M$54,$M$48:$P$52,2,FALSE) -> 0 | O54: =VLOOKUP($M$54,$M$48:$P$52,3,FALSE) -> 1 | P54: =VLOOKUP($M$54,$M$48:$P$52,4,FALSE) -> 1 | AA54: Pedestrian | AB54: 1 | AC54: =_xlfn.XLOOKUP($D$4,TripLengths!$A$4:$A$19,_xlfn.XLOOKUP(AA54,TripLengths!$C$3:$K$3,TripLengths!$C$4:$K$19))*(1+AD$44) -> 0.9807278977 | AD54: =_xlfn.XLOOKUP($D$4,TripLengths!$A$24:$A$39,_xlfn.XLOOKUP(AA54,TripLengths!$C$23:$K$23,TripLengths!$C$24:$K$39))/60*(1+AD$44) -> 0.2129741799
B55: Area | D55: =INDEX(B5:B20,_xlfn.XMATCH(D4,D5:D20),1) -> ALL of New Zealand | G55: -0.05
B56: Age Group | D56: =INDEX(B23:B32,_xlfn.XMATCH(D22,D23:D32),1) -> All AGES | G56: -0.04 | M56: Improve PT Access for Ped Safety | P56: * | U56: Crash prediction models | W56: * | Y56: M.Veh (Q)
B57: Gender | D57: =INDEX(B35:B38,_xlfn.XMATCH(D34,D35:D38),1) -> All GENDERS | G57: -0.03 | M57: Improve? | N57: Bus DSI | O57: Train DSI | Q57: Scaled Ped DSI from Bus use: | V57: Mode | W57: Relationship | X57: b1 | Y57: b2
B58: Ethnicity | D58: =INDEX(B41:B46,_xlfn.XMATCH(D40,D41:D46),1) -> All ETHNICITIES | G58: -0.02 | M58: NO | N58: 1 | O58: 1 | Q58: =IFERROR(S38/N38,0)*T8/T$13 -> 0.1140363672 | R58: =IF(N60="YES",1-(1-N59)*Q58,1) -> 1 | V58: Cycling / Wheeled Dev C | W58: K x C^b1 x Q^b2 | X58: 0.25 | Y58: 0.45
G59: -0.01 | H59: Increment: | M59: YES | N59: 0.75 | O59: 0.75 | Q59: Scaled Ped DSI from Train use: | V59: Pedestrian P | W59: K x P^b1 x Q^b2 | X59: 0.45 | Y59: 0.65
G60: 0 | H60: 0.01 | M60: Selected: | N60: =Settings!G3 -> NO | O60: =Settings!G5 -> NO | Q60: =IFERROR(S39/N39,0)*T9/T$13 -> 0.04359414642 | R60: =IF(O60="YES",1-(1-O59)*Q60,1) -> 1 | V60: Motor Vehicle M | W60: K x M^b1 x Q^b2 | X60: 0.85 | Y60: 0.85
G61: =G60+$H$60 -> 0.01 | V61: Train T | W61: K x T^b1 x Q^b2 | X61: 0.45 | Y61: 0.35
G62: 0.02
G63: 0.03 | M63: DSI decrease in all modes due to speed changes (excl. train, ferry) | W63: Elvik exp'l relationship:
G64: 0.04 | M64: =T100 -> 1 | W64: exponent: | X64: 0.06
G65: 0.05 | W65: base spd: | X65: 20
G66: 0.06 | N66: Existing speed breakdown | W66: Avg free speed reduction per 10 km/h: | X66: 3.5 | Y66: or with traffic calming
G67: 0.07 | M67: Spd Lim | N67: Tot Km | O67: % | P67: Total VKT | Q67: Ave Free Spd | R67: Rel. Risk | S67: Weighted Risk
G68: 0.08 | U68: Speed Limit | V68: New Ave Free Spd | X68: Traf Calming options by new PSL
G69: 0.09 | M69: 30 | N69: =VLOOKUP($D$4,'SpdChange-Calcs'!$A$6:$I$18,2,FALSE) -> 611.66 | O69: =N69/$N$77 -> 0.1243893934 | P69: =VLOOKUP($D$4,'SpdChange-Calcs'!$A$23:$I$35,2, FALSE) -> 1379476 | Q69: =IF(VLOOKUP($D$4,'SpdChange-Calcs'!$A$40:$I$52,2,FALSE)<$X$65,$X$65,VLOOKUP($D$4,'SpdChange-Calcs'!$A$40:$I$52,2,FALSE)) -> 20 | R69: =EXP((Q69-$X$65)*$X$64) -> 1 | S69: =P69*R69 -> 1379476 | U69: 30 | V69: =MAX(IFERROR((P69*Q69+SUMPRODUCT(($O$81:$O$97=U69)*_xlfn.IFNA($U$81:$U$97,0)*_xlfn.IFNA($R$81:$R$97,0))-SUMPRODUCT(($N$81:$N$97=U69)*_xlfn.IFNA($S$81:$S$97,0)*_xlfn.IFNA($R$81:$R$97,0)))/(P69+SUMIF($O$81:$O$97,U69,$R$81:$R$97)-SUMIF($N$81:$N$97,U69,$R$81:$R$97)),Q69),$X$65) -> 20 | X69: ≤50k | Y69: YES | Z69: NO
G70: 0.1 | M70: 40 | N70: =VLOOKUP($D$4,'SpdChange-Calcs'!$A$6:$I$18,3,FALSE) -> 39.2830818 | O70: =N70/$N$77 -> 0.007988749823 | P70: =VLOOKUP($D$4,'SpdChange-Calcs'!$A$23:$I$35,3, FALSE) -> 122691.9949 | Q70: =IF(VLOOKUP($D$4,'SpdChange-Calcs'!$A$40:$I$52,3,FALSE)<$X$65,$X$65,VLOOKUP($D$4,'SpdChange-Calcs'!$A$40:$I$52,3,FALSE)) -> 29.17948718 | R70: =EXP((Q70-$X$65)*$X$64) -> 1.734586802 | S70: 212819.915 | U70: 40 | V70: =MAX(IFERROR((P70*Q70+SUMPRODUCT(($O$81:$O$97=U70)*_xlfn.IFNA($U$81:$U$97,0)*_xlfn.IFNA($R$81:$R$97,0))-SUMPRODUCT(($N$81:$N$97=U70)*_xlfn.IFNA($S$81:$S$97,0)*_xlfn.IFNA($R$81:$R$97,0)))/(P70+SUMIF($O$81:$O$97,U70,$R$81:$R$97)-SUMIF($N$81:$N$97,U70,$R$81:$R$97)),Q70),$X$65) -> 29.17948718 | X70: >50k | Y70: NO
G71: 0.11 | M71: 50 | N71: =VLOOKUP($D$4,'SpdChange-Calcs'!$A$6:$I$18,4,FALSE) -> 3756.575406 | O71: =N71/$N$77 -> 0.7639507833 | P71: =VLOOKUP($D$4,'SpdChange-Calcs'!$A$23:$I$35,4, FALSE) -> 16726988.06 | Q71: =IF(VLOOKUP($D$4,'SpdChange-Calcs'!$A$40:$I$52,4,FALSE)<$X$65,$X$65,VLOOKUP($D$4,'SpdChange-Calcs'!$A$40:$I$52,4,FALSE)) -> 24.33462399 | R71: =EXP((Q71-$X$65)*$X$64) -> 1.297030524 | S71: 21695414.09 | U71: 50 | V71: =MAX(IFERROR((P71*Q71+SUMPRODUCT(($O$81:$O$97=U71)*_xlfn.IFNA($U$81:$U$97,0)*_xlfn.IFNA($R$81:$R$97,0))-SUMPRODUCT(($N$81:$N$97=U71)*_xlfn.IFNA($S$81:$S$97,0)*_xlfn.IFNA($R$81:$R$97,0)))/(P71+SUMIF($O$81:$O$97,U71,$R$81:$R$97)-SUMIF($N$81:$N$97,U71,$R$81:$R$97)),Q71),$X$65) -> 24.33462399
G72: 0.12 | M72: 60 | N72: =VLOOKUP($D$4,'SpdChange-Calcs'!$A$6:$I$18,5,FALSE) -> 474.7499103 | O72: =N72/$N$77 -> 0.09654686161 | P72: =VLOOKUP($D$4,'SpdChange-Calcs'!$A$23:$I$35,5, FALSE) -> 1366003.246 | Q72: =IF(VLOOKUP($D$4,'SpdChange-Calcs'!$A$40:$I$52,5,FALSE)<$X$65,$X$65,VLOOKUP($D$4,'SpdChange-Calcs'!$A$40:$I$52,5,FALSE)) -> 46.38724374 | R72: =EXP((Q72-$X$65)*$X$64) -> 4.870685194 | S72: 6653371.784 | U72: 60 | V72: =MAX(IFERROR((P72*Q72+SUMPRODUCT(($O$81:$O$97=U72)*_xlfn.IFNA($U$81:$U$97,0)*_xlfn.IFNA($R$81:$R$97,0))-SUMPRODUCT(($N$81:$N$97=U72)*_xlfn.IFNA($S$81:$S$97,0)*_xlfn.IFNA($R$81:$R$97,0)))/(P72+SUMIF($O$81:$O$97,U72,$R$81:$R$97)-SUMIF($N$81:$N$97,U72,$R$81:$R$97)),Q72),$X$65) -> 46.38724374 | X72: Road network status
G73: 0.13 | M73: 70 | N73: =VLOOKUP($D$4,'SpdChange-Calcs'!$A$6:$I$18,6,FALSE) -> 1.273617611 | O73: =N73/$N$77 -> 0.0002590074911 | P73: =VLOOKUP($D$4,'SpdChange-Calcs'!$A$23:$I$35,6, FALSE) -> 7812.126636 | Q73: =IF(VLOOKUP($D$4,'SpdChange-Calcs'!$A$40:$I$52,6,FALSE)<$X$65,$X$65,VLOOKUP($D$4,'SpdChange-Calcs'!$A$40:$I$52,6,FALSE)) -> 35 | R73: =EXP((Q73-$X$65)*$X$64) -> 2.459603111 | S73: 19214.73098 | U73: 70 | V73: =MAX(IFERROR((P73*Q73+SUMPRODUCT(($O$81:$O$97=U73)*_xlfn.IFNA($U$81:$U$97,0)*_xlfn.IFNA($R$81:$R$97,0))-SUMPRODUCT(($N$81:$N$97=U73)*_xlfn.IFNA($S$81:$S$97,0)*_xlfn.IFNA($R$81:$R$97,0)))/(P73+SUMIF($O$81:$O$97,U73,$R$81:$R$97)-SUMIF($N$81:$N$97,U73,$R$81:$R$97)),Q73),$X$65) -> 35 | X73: =IF(COUNTIF(O103:O110,"<0"),X77,X76) -> OK - no inconsistencies
G74: 0.14 | M74: 80 | N74: =VLOOKUP($D$4,'SpdChange-Calcs'!$A$6:$I$18,7,FALSE) -> 25.51932875 | O74: =N74/$N$77 -> 0.005189703141 | P74: =VLOOKUP($D$4,'SpdChange-Calcs'!$A$23:$I$35,7, FALSE) -> 453099.8093 | Q74: =IF(VLOOKUP($D$4,'SpdChange-Calcs'!$A$40:$I$52,7,FALSE)<$X$65,$X$65,VLOOKUP($D$4,'SpdChange-Calcs'!$A$40:$I$52,7,FALSE)) -> 65 | R74: =EXP((Q74-$X$65)*$X$64) -> 14.87973172 | S74: 6742003.608 | U74: 80 | V74: =MAX(IFERROR((P74*Q74+SUMPRODUCT(($O$81:$O$97=U74)*_xlfn.IFNA($U$81:$U$97,0)*_xlfn.IFNA($R$81:$R$97,0))-SUMPRODUCT(($N$81:$N$97=U74)*_xlfn.IFNA($S$81:$S$97,0)*_xlfn.IFNA($R$81:$R$97,0)))/(P74+SUMIF($O$81:$O$97,U74,$R$81:$R$97)-SUMIF($N$81:$N$97,U74,$R$81:$R$97)),Q74),$X$65) -> 65
G75: 0.15 | M75: 90 | N75: =VLOOKUP($D$4,'SpdChange-Calcs'!$A$6:$I$18,8,FALSE) -> 0 | O75: =N75/$N$77 -> 0 | P75: =VLOOKUP($D$4,'SpdChange-Calcs'!$A$23:$I$35,8, FALSE) -> 0 | Q75: =IF(VLOOKUP($D$4,'SpdChange-Calcs'!$A$40:$I$52,8,FALSE)<$X$65,$X$65,VLOOKUP($D$4,'SpdChange-Calcs'!$A$40:$I$52,8,FALSE)) -> 50.79166667 | R75: =EXP((Q75-$X$65)*$X$64) -> 6.343939832 | S75: 0 | U75: 90 | V75: =MAX(IFERROR((P75*Q75+SUMPRODUCT(($O$81:$O$97=U75)*_xlfn.IFNA($U$81:$U$97,0)*_xlfn.IFNA($R$81:$R$97,0))-SUMPRODUCT(($N$81:$N$97=U75)*_xlfn.IFNA($S$81:$S$97,0)*_xlfn.IFNA($R$81:$R$97,0)))/(P75+SUMIF($O$81:$O$97,U75,$R$81:$R$97)-SUMIF($N$81:$N$97,U75,$R$81:$R$97)),Q75),$X$65) -> 50.79166667 | X75: Messages:
G76: 0.16 | M76: 100 | N76: =VLOOKUP($D$4,'SpdChange-Calcs'!$A$6:$I$18,9,FALSE) -> 8.238942765 | O76: =N76/$N$77 -> 0.001675501248 | P76: =VLOOKUP($D$4,'SpdChange-Calcs'!$A$23:$I$35,9, FALSE) -> 19109.76001 | Q76: =IF(VLOOKUP($D$4,'SpdChange-Calcs'!$A$40:$I$52,9,FALSE)<$X$65,$X$65,VLOOKUP($D$4,'SpdChange-Calcs'!$A$40:$I$52,9,FALSE)) -> 36.58333333 | R76: =EXP((Q76-$X$65)*$X$64) -> 2.704724341 | S76: 51686.63305 | U76: 100 | V76: =MAX(IFERROR((P76*Q76+SUMPRODUCT(($O$81:$O$97=U76)*_xlfn.IFNA($U$81:$U$97,0)*_xlfn.IFNA($R$81:$R$97,0))-SUMPRODUCT(($N$81:$N$97=U76)*_xlfn.IFNA($S$81:$S$97,0)*_xlfn.IFNA($R$81:$R$97,0)))/(P76+SUMIF($O$81:$O$97,U76,$R$81:$R$97)-SUMIF($N$81:$N$97,U76,$R$81:$R$97)),Q76),$X$65) -> 36.58333333 | X76: OK - no inconsistencies
G77: 0.17 | M77: TOTAL | N77: =SUM(N69:N76) -> 4917.300287 | O77: =SUM(O69:O76) -> 1 | P77: =SUM(P69:P76) -> 20075181 | R77: Total Risk score: | S77: =SUM(S69:S76) -> 36753986.76 | T77: Old QoS/Risk ratio | X77: More roads changed than available!
G78: 0.18 | R78: Existing cycling QoS: | S78: ='Cyc-QoS-Calcs'!K33 -> 9964861.878 | T78: =S78/S77 -> 0.2711232918
G79: 0.19
G80: 0.2 | M80: Changed km | N80: Curr Spd Lim | O80: New Spd Lim | P80: Traf. Calming? | Q80: Valid entry? | R80: Changed VKT | S80: Current Free Spd | T80: Current Rel. Risk | U80: Changed free spd | V80: New Rel. Risk | W80: New ave free spd
M81: =Settings!N5 -> 0 | N81: =Settings!L5 -> 100 | O81: =Settings!O5 -> 80 | P81: =Settings!Q5 -> NO | Q81: =IF(AND(O81>50,P81=$Y$69),$Y$70,$Y$69) -> YES | R81: =IFERROR((M81/VLOOKUP(N81,$M$69:$N$77,2)) * VLOOKUP(N81,$M$69:$P$77,4),0) -> 0 | S81: =_xlfn.IFNA(VLOOKUP(N81,$M$69:$R$77,5),$X$65) -> 36.58333333 | T81: =EXP((S81-$X$65)*$X$64) -> 2.704724341 | U81: =MAX(_xlfn.IFNA(VLOOKUP(N81,$M$69:$Q$76,5)-(N81-O81)*IF(P81="YES",2,1)*$X$66/10,0),$X$65) -> 29.58333333 | V81: =EXP((U81-$X$65)*$X$64) -> 1.777130527 | W81: =_xlfn.IFNA(VLOOKUP(O81,$U$69:$V$76,2),0) -> 65
M82: =Settings!N6 -> 0 | N82: =Settings!L6 -> 80 | O82: =Settings!O6 -> 60 | P82: =Settings!Q6 -> NO | Q82: =IF(AND(O82>50,P82=$Y$69),$Y$70,$Y$69) -> YES | R82: =IFERROR((M82/VLOOKUP(N82,$M$69:$N$77,2)) * VLOOKUP(N82,$M$69:$P$77,4),0) -> 0 | S82: =_xlfn.IFNA(VLOOKUP(N82,$M$69:$R$77,5),$X$65) -> 65 | T82: =EXP((S82-$X$65)*$X$64) -> 14.87973172 | U82: =MAX(_xlfn.IFNA(VLOOKUP(N82,$M$69:$Q$76,5)-(N82-O82)*IF(P82="YES",2,1)*$X$66/10,0),$X$65) -> 58 | V82: =EXP((U82-$X$65)*$X$64) -> 9.77668041 | W82: =_xlfn.IFNA(VLOOKUP(O82,$U$69:$V$76,2),0) -> 46.38724374
M83: =Settings!N7 -> 0 | N83: =Settings!L7 -> 70 | O83: =Settings!O7 -> 60 | P83: =Settings!Q7 -> NO | Q83: =IF(AND(O83>50,P83=$Y$69),$Y$70,$Y$69) -> YES | R83: =IFERROR((M83/VLOOKUP(N83,$M$69:$N$77,2)) * VLOOKUP(N83,$M$69:$P$77,4),0) -> 0 | S83: =_xlfn.IFNA(VLOOKUP(N83,$M$69:$R$77,5),$X$65) -> 35 | T83: =EXP((S83-$X$65)*$X$64) -> 2.459603111 | U83: =MAX(_xlfn.IFNA(VLOOKUP(N83,$M$69:$Q$76,5)-(N83-O83)*IF(P83="YES",2,1)*$X$66/10,0),$X$65) -> 31.5 | V83: =EXP((U83-$X$65)*$X$64) -> 1.993715533 | W83: =_xlfn.IFNA(VLOOKUP(O83,$U$69:$V$76,2),0) -> 46.38724374
M84: =Settings!N8 -> 0 | N84: =Settings!L8 -> 60 | O84: =Settings!O8 -> 50 | P84: =Settings!Q8 -> YES | Q84: =IF(AND(O84>50,P84=$Y$69),$Y$70,$Y$69) -> YES | R84: =IFERROR((M84/VLOOKUP(N84,$M$69:$N$77,2)) * VLOOKUP(N84,$M$69:$P$77,4),0) -> 0 | S84: =_xlfn.IFNA(VLOOKUP(N84,$M$69:$R$77,5),$X$65) -> 46.38724374 | T84: =EXP((S84-$X$65)*$X$64) -> 4.870685194 | U84: =MAX(_xlfn.IFNA(VLOOKUP(N84,$M$69:$Q$76,5)-(N84-O84)*IF(P84="YES",2,1)*$X$66/10,0),$X$65) -> 39.38724374 | V84: =EXP((U84-$X$65)*$X$64) -> 3.200268217 | W84: =_xlfn.IFNA(VLOOKUP(O84,$U$69:$V$76,2),0) -> 24.33462399
M85: =Settings!N9 -> 0 | N85: =Settings!L9 -> 50 | O85: =Settings!O9 -> 40 | P85: =Settings!Q9 -> YES | Q85: =IF(AND(O85>50,P85=$Y$69),$Y$70,$Y$69) -> YES | R85: =IFERROR((M85/VLOOKUP(N85,$M$69:$N$77,2)) * VLOOKUP(N85,$M$69:$P$77,4),0) -> 0 | S85: =_xlfn.IFNA(VLOOKUP(N85,$M$69:$R$77,5),$X$65) -> 24.33462399 | T85: =EXP((S85-$X$65)*$X$64) -> 1.297030524 | U85: =MAX(_xlfn.IFNA(VLOOKUP(N85,$M$69:$Q$76,5)-(N85-O85)*IF(P85="YES",2,1)*$X$66/10,0),$X$65) -> 20 | V85: =EXP((U85-$X$65)*$X$64) -> 1 | W85: =_xlfn.IFNA(VLOOKUP(O85,$U$69:$V$76,2),0) -> 29.17948718
M86: =Settings!N10 -> 0 | N86: =Settings!L10 -> 40 | O86: =Settings!O10 -> 30 | P86: =Settings!Q10 -> YES | Q86: =IF(AND(O86>50,P86=$Y$69),$Y$70,$Y$69) -> YES | R86: =IFERROR((M86/VLOOKUP(N86,$M$69:$N$77,2)) * VLOOKUP(N86,$M$69:$P$77,4),0) -> 0 | S86: =_xlfn.IFNA(VLOOKUP(N86,$M$69:$R$77,5),$X$65) -> 29.17948718 | T86: =EXP((S86-$X$65)*$X$64) -> 1.734586802 | U86: =MAX(_xlfn.IFNA(VLOOKUP(N86,$M$69:$Q$76,5)-(N86-O86)*IF(P86="YES",2,1)*$X$66/10,0),$X$65) -> 22.17948718 | V86: =EXP((U86-$X$65)*$X$64) -> 1.139704742 | W86: =_xlfn.IFNA(VLOOKUP(O86,$U$69:$V$76,2),0) -> 20
M87: =Settings!N11 -> 0 | N87: =Settings!L11 -> 50 | O87: =Settings!O11 -> 30 | P87: =Settings!Q11 -> YES | Q87: =IF(AND(O87>50,P87=$Y$69),$Y$70,$Y$69) -> YES | R87: =IFERROR((M87/VLOOKUP(N87,$M$69:$N$77,2)) * VLOOKUP(N87,$M$69:$P$77,4),0) -> 0 | S87: =_xlfn.IFNA(VLOOKUP(N87,$M$69:$R$77,5),$X$65) -> 24.33462399 | T87: =EXP((S87-$X$65)*$X$64) -> 1.297030524 | U87: =MAX(_xlfn.IFNA(VLOOKUP(N87,$M$69:$Q$76,5)-(N87-O87)*IF(P87="YES",2,1)*$X$66/10,0),$X$65) -> 20 | V87: =EXP((U87-$X$65)*$X$64) -> 1 | W87: =_xlfn.IFNA(VLOOKUP(O87,$U$69:$V$76,2),0) -> 20
M88: =Settings!N12 -> 0 | N88: =Settings!L12 -> 0 | O88: =Settings!O12 -> 0 | P88: =Settings!Q12 -> 0 | Q88: =IF(AND(O88>50,P88=$Y$69),$Y$70,$Y$69) -> YES | R88: =IFERROR((M88/VLOOKUP(N88,$M$69:$N$77,2)) * VLOOKUP(N88,$M$69:$P$77,4),0) -> 0 | S88: =_xlfn.IFNA(VLOOKUP(N88,$M$69:$R$77,5),$X$65) -> 20 | T88: =EXP((S88-$X$65)*$X$64) -> 1 | U88: =MAX(_xlfn.IFNA(VLOOKUP(N88,$M$69:$Q$76,5)-(N88-O88)*IF(P88="YES",2,1)*$X$66/10,0),$X$65) -> 20 | V88: =EXP((U88-$X$65)*$X$64) -> 1 | W88: =_xlfn.IFNA(VLOOKUP(O88,$U$69:$V$76,2),0) -> 0
M89: =Settings!N13 -> 0 | N89: =Settings!L13 -> 0 | O89: =Settings!O13 -> 0 | P89: =Settings!Q13 -> 0 | Q89: =IF(AND(O89>50,P89=$Y$69),$Y$70,$Y$69) -> YES | R89: =IFERROR((M89/VLOOKUP(N89,$M$69:$N$77,2)) * VLOOKUP(N89,$M$69:$P$77,4),0) -> 0 | S89: =_xlfn.IFNA(VLOOKUP(N89,$M$69:$R$77,5),$X$65) -> 20 | T89: =EXP((S89-$X$65)*$X$64) -> 1 | U89: =MAX(_xlfn.IFNA(VLOOKUP(N89,$M$69:$Q$76,5)-(N89-O89)*IF(P89="YES",2,1)*$X$66/10,0),$X$65) -> 20 | V89: =EXP((U89-$X$65)*$X$64) -> 1 | W89: =_xlfn.IFNA(VLOOKUP(O89,$U$69:$V$76,2),0) -> 0
M90: =Settings!N14 -> 0 | N90: =Settings!L14 -> 0 | O90: =Settings!O14 -> 0 | P90: =Settings!Q14 -> 0 | Q90: =IF(AND(O90>50,P90=$Y$69),$Y$70,$Y$69) -> YES | R90: =IFERROR((M90/VLOOKUP(N90,$M$69:$N$77,2)) * VLOOKUP(N90,$M$69:$P$77,4),0) -> 0 | S90: =_xlfn.IFNA(VLOOKUP(N90,$M$69:$R$77,5),$X$65) -> 20 | T90: =EXP((S90-$X$65)*$X$64) -> 1 | U90: =MAX(_xlfn.IFNA(VLOOKUP(N90,$M$69:$Q$76,5)-(N90-O90)*IF(P90="YES",2,1)*$X$66/10,0),$X$65) -> 20 | V90: =EXP((U90-$X$65)*$X$64) -> 1 | W90: =_xlfn.IFNA(VLOOKUP(O90,$U$69:$V$76,2),0) -> 0
M91: =Settings!N15 -> 0 | N91: =Settings!L15 -> 0 | O91: =Settings!O15 -> 0 | P91: =Settings!Q15 -> 0 | Q91: =IF(AND(O91>50,P91=$Y$69),$Y$70,$Y$69) -> YES | R91: =IFERROR((M91/VLOOKUP(N91,$M$69:$N$77,2)) * VLOOKUP(N91,$M$69:$P$77,4),0) -> 0 | S91: =_xlfn.IFNA(VLOOKUP(N91,$M$69:$R$77,5),$X$65) -> 20 | T91: =EXP((S91-$X$65)*$X$64) -> 1 | U91: =MAX(_xlfn.IFNA(VLOOKUP(N91,$M$69:$Q$76,5)-(N91-O91)*IF(P91="YES",2,1)*$X$66/10,0),$X$65) -> 20 | V91: =EXP((U91-$X$65)*$X$64) -> 1 | W91: =_xlfn.IFNA(VLOOKUP(O91,$U$69:$V$76,2),0) -> 0
M92: =Settings!N16 -> 0 | N92: =Settings!L16 -> 0 | O92: =Settings!O16 -> 0 | P92: =Settings!Q16 -> 0 | Q92: =IF(AND(O92>50,P92=$Y$69),$Y$70,$Y$69) -> YES | R92: =IFERROR((M92/VLOOKUP(N92,$M$69:$N$77,2)) * VLOOKUP(N92,$M$69:$P$77,4),0) -> 0 | S92: =_xlfn.IFNA(VLOOKUP(N92,$M$69:$R$77,5),$X$65) -> 20 | T92: =EXP((S92-$X$65)*$X$64) -> 1 | U92: =MAX(_xlfn.IFNA(VLOOKUP(N92,$M$69:$Q$76,5)-(N92-O92)*IF(P92="YES",2,1)*$X$66/10,0),$X$65) -> 20 | V92: =EXP((U92-$X$65)*$X$64) -> 1 | W92: =_xlfn.IFNA(VLOOKUP(O92,$U$69:$V$76,2),0) -> 0
M93: =Settings!N17 -> 0 | N93: =Settings!L17 -> 0 | O93: =Settings!O17 -> 0 | P93: =Settings!Q17 -> 0 | Q93: =IF(AND(O93>50,P93=$Y$69),$Y$70,$Y$69) -> YES | R93: =IFERROR((M93/VLOOKUP(N93,$M$69:$N$77,2)) * VLOOKUP(N93,$M$69:$P$77,4),0) -> 0 | S93: =_xlfn.IFNA(VLOOKUP(N93,$M$69:$R$77,5),$X$65) -> 20 | T93: =EXP((S93-$X$65)*$X$64) -> 1 | U93: =MAX(_xlfn.IFNA(VLOOKUP(N93,$M$69:$Q$76,5)-(N93-O93)*IF(P93="YES",2,1)*$X$66/10,0),$X$65) -> 20 | V93: =EXP((U93-$X$65)*$X$64) -> 1 | W93: =_xlfn.IFNA(VLOOKUP(O93,$U$69:$V$76,2),0) -> 0
M94: =Settings!N18 -> 0 | N94: =Settings!L18 -> 0 | O94: =Settings!O18 -> 0 | P94: =Settings!Q18 -> 0 | Q94: =IF(AND(O94>50,P94=$Y$69),$Y$70,$Y$69) -> YES | R94: =IFERROR((M94/VLOOKUP(N94,$M$69:$N$77,2)) * VLOOKUP(N94,$M$69:$P$77,4),0) -> 0 | S94: =_xlfn.IFNA(VLOOKUP(N94,$M$69:$R$77,5),$X$65) -> 20 | T94: =EXP((S94-$X$65)*$X$64) -> 1 | U94: =MAX(_xlfn.IFNA(VLOOKUP(N94,$M$69:$Q$76,5)-(N94-O94)*IF(P94="YES",2,1)*$X$66/10,0),$X$65) -> 20 | V94: =EXP((U94-$X$65)*$X$64) -> 1 | W94: =_xlfn.IFNA(VLOOKUP(O94,$U$69:$V$76,2),0) -> 0
M95: =Settings!N19 -> 0 | N95: =Settings!L19 -> 0 | O95: =Settings!O19 -> 0 | P95: =Settings!Q19 -> 0 | Q95: =IF(AND(O95>50,P95=$Y$69),$Y$70,$Y$69) -> YES | R95: =IFERROR((M95/VLOOKUP(N95,$M$69:$N$77,2)) * VLOOKUP(N95,$M$69:$P$77,4),0) -> 0 | S95: =_xlfn.IFNA(VLOOKUP(N95,$M$69:$R$77,5),$X$65) -> 20 | T95: =EXP((S95-$X$65)*$X$64) -> 1 | U95: =MAX(_xlfn.IFNA(VLOOKUP(N95,$M$69:$Q$76,5)-(N95-O95)*IF(P95="YES",2,1)*$X$66/10,0),$X$65) -> 20 | V95: =EXP((U95-$X$65)*$X$64) -> 1 | W95: =_xlfn.IFNA(VLOOKUP(O95,$U$69:$V$76,2),0) -> 0
M96: =Settings!N20 -> 0 | N96: =Settings!L20 -> 0 | O96: =Settings!O20 -> 0 | P96: =Settings!Q20 -> 0 | Q96: =IF(AND(O96>50,P96=$Y$69),$Y$70,$Y$69) -> YES | R96: =IFERROR((M96/VLOOKUP(N96,$M$69:$N$77,2)) * VLOOKUP(N96,$M$69:$P$77,4),0) -> 0 | S96: =_xlfn.IFNA(VLOOKUP(N96,$M$69:$R$77,5),$X$65) -> 20 | T96: =EXP((S96-$X$65)*$X$64) -> 1 | U96: =MAX(_xlfn.IFNA(VLOOKUP(N96,$M$69:$Q$76,5)-(N96-O96)*IF(P96="YES",2,1)*$X$66/10,0),$X$65) -> 20 | V96: =EXP((U96-$X$65)*$X$64) -> 1 | W96: =_xlfn.IFNA(VLOOKUP(O96,$U$69:$V$76,2),0) -> 0
M97: =Settings!N21 -> 0 | N97: =Settings!L21 -> 0 | O97: =Settings!O21 -> 0 | P97: =Settings!Q21 -> 0 | Q97: =IF(AND(O97>50,P97=$Y$69),$Y$70,$Y$69) -> YES | R97: =IFERROR((M97/VLOOKUP(N97,$M$69:$N$77,2)) * VLOOKUP(N97,$M$69:$P$77,4),0) -> 0 | S97: =_xlfn.IFNA(VLOOKUP(N97,$M$69:$R$77,5),$X$65) -> 20 | T97: =EXP((S97-$X$65)*$X$64) -> 1 | U97: =MAX(_xlfn.IFNA(VLOOKUP(N97,$M$69:$Q$76,5)-(N97-O97)*IF(P97="YES",2,1)*$X$66/10,0),$X$65) -> 20 | V97: =EXP((U97-$X$65)*$X$64) -> 1 | W97: =_xlfn.IFNA(VLOOKUP(O97,$U$69:$V$76,2),0) -> 0
Q98: Total VKT changed | R98: =SUM(R81:R97) -> 0 | S98: =R98/P77 -> 0
W99: For every 1% decrease in Weighted Risk: ==> | Z99: =1-T100 -> 0 | AA99: Prop% | AB99: Abs%
T100: =IF(X73=X76,T111/$S$77,1) -> 1 | U100: fewer DSIs | W100: Low (prop) increase in walk modeshare: | Y100: 0.004 | Z100: =Z$99*100*Y100 -> 0 | AA100: =1+Z100 -> 1 | AB100: =AA100*O13-O13 -> 0
N101: Future speed breakdown | T101: | | W101: High (prop) increase in walk modeshare: | Y101: 0.006 | Z101: =Z$99*100*Y101 -> 0 | AA101: =1+Z101 -> 1 | AB101: =AA101*O13-O13 -> 0
M102: Spd Lim | N102: Changed Km | O102: New Tot Km | P102: % | Q102: New Total VKT | R102: New Ave Free Spd | S102: New Rel. Risk | T102: New W'gted Risk | U102: Original km unchanged
M103: 30 | N103: =O103-N69 -> 0 | O103: =N69+SUMIF($O$81:$O$97,"="&M103,$M$81:$M$97)-SUMIF($N$81:$N$97,"="&M103,$M$81:$M$97) -> 611.66 | P103: =O103/$O$111 -> 0.1243893934 | Q103: =P69+SUMIF($O$81:$O$97,"="&M103,$R$81:$R$97)-SUMIF($N$81:$N$97,"="&M103,$R$81:$R$97) -> 1379476 | R103: =IFERROR(VLOOKUP(M103,$U$69:$V$76,2),VLOOKUP(M103,M$69:Q$76,5)) -> 20 | S103: =EXP((R103-$X$65)*$X$64) -> 1 | T103: =Q103*S103 -> 1379476 | U103: =N69+N103 -> 611.66 | W103: For every 1% decrease in Weighted Risk: ==> | Z103: =1-T100 -> 0 | AA103: Prop% | AB103: Abs%
M104: 40 | N104: 0 | O104: =N70+SUMIF($O$81:$O$98,"="&M104,$M$81:$M$98)-SUMIF($N$81:$N$98,"="&M104,$M$81:$M$98) -> 39.2830818 | P104: =O104/$O$111 -> 0.007988749823 | Q104: =P70+SUMIF($O$81:$O$97,"="&M104,$R$81:$R$97)-SUMIF($N$81:$N$97,"="&M104,$R$81:$R$97) -> 122691.9949 | R104: =IFERROR(VLOOKUP(M104,$U$69:$V$76,2),VLOOKUP(M104,M$69:Q$76,5)) -> 29.17948718 | S104: =EXP((R104-$X$65)*$X$64) -> 1.734586802 | T104: 212819.915 | U104: 39.2830818 | W104: Low (prop) increase in PT modeshare: | Y104: 0.04 | Z104: =Z$103*100*Y104 -> 0 | AA104: =1+Z104 -> 1 | AB104: =AA104*(O8+O9)-O8-O9 -> 0
M105: 50 | N105: 0 | O105: =N71+SUMIF($O$81:$O$98,"="&M105,$M$81:$M$98)-SUMIF($N$81:$N$98,"="&M105,$M$81:$M$98) -> 3756.575406 | P105: =O105/$O$111 -> 0.7639507833 | Q105: =P71+SUMIF($O$81:$O$97,"="&M105,$R$81:$R$97)-SUMIF($N$81:$N$97,"="&M105,$R$81:$R$97) -> 16726988.06 | R105: =IFERROR(VLOOKUP(M105,$U$69:$V$76,2),VLOOKUP(M105,M$69:Q$76,5)) -> 24.33462399 | S105: =EXP((R105-$X$65)*$X$64) -> 1.297030524 | T105: 21695414.09 | U105: 3756.575406 | W105: High (prop) increase in PT modeshare: | Y105: 0.06 | Z105: =Z$103*100*Y105 -> 0 | AA105: =1+Z105 -> 1 | AB105: =AA105*(O8+O9)-O8-O9 -> 0
M106: 60 | N106: 0 | O106: =N72+SUMIF($O$81:$O$98,"="&M106,$M$81:$M$98)-SUMIF($N$81:$N$98,"="&M106,$M$81:$M$98) -> 474.7499103 | P106: =O106/$O$111 -> 0.09654686161 | Q106: =P72+SUMIF($O$81:$O$97,"="&M106,$R$81:$R$97)-SUMIF($N$81:$N$97,"="&M106,$R$81:$R$97) -> 1366003.246 | R106: =IFERROR(VLOOKUP(M106,$U$69:$V$76,2),VLOOKUP(M106,M$69:Q$76,5)) -> 46.38724374 | S106: =EXP((R106-$X$65)*$X$64) -> 4.870685194 | T106: 6653371.784 | U106: 474.7499103
M107: 70 | N107: 0 | O107: =N73+SUMIF($O$81:$O$98,"="&M107,$M$81:$M$98)-SUMIF($N$81:$N$98,"="&M107,$M$81:$M$98) -> 1.273617611 | P107: =O107/$O$111 -> 0.0002590074911 | Q107: =P73+SUMIF($O$81:$O$97,"="&M107,$R$81:$R$97)-SUMIF($N$81:$N$97,"="&M107,$R$81:$R$97) -> 7812.126636 | R107: =IFERROR(VLOOKUP(M107,$U$69:$V$76,2),VLOOKUP(M107,M$69:Q$76,5)) -> 35 | S107: =EXP((R107-$X$65)*$X$64) -> 2.459603111 | T107: 19214.73098 | U107: 1.273617611 | W107: For every 1% (absolute) increase in QoS/Risk ratio: ==> | Z107: =Z111-X111 -> 0
M108: 80 | N108: 0 | O108: =N74+SUMIF($O$81:$O$98,"="&M108,$M$81:$M$98)-SUMIF($N$81:$N$98,"="&M108,$M$81:$M$98) -> 25.51932875 | P108: =O108/$O$111 -> 0.005189703141 | Q108: =P74+SUMIF($O$81:$O$97,"="&M108,$R$81:$R$97)-SUMIF($N$81:$N$97,"="&M108,$R$81:$R$97) -> 453099.8093 | R108: =IFERROR(VLOOKUP(M108,$U$69:$V$76,2),VLOOKUP(M108,M$69:Q$76,5)) -> 65 | S108: =EXP((R108-$X$65)*$X$64) -> 14.87973172 | T108: 6742003.608 | U108: 25.51932875 | W108: Low (abs) increase in cycling modeshare: | Y108: 0.006 | Z108: =Z$107*100*Y108 -> 0
M109: 90 | N109: 0 | O109: =N75+SUMIF($O$81:$O$98,"="&M109,$M$81:$M$98)-SUMIF($N$81:$N$98,"="&M109,$M$81:$M$98) -> 0 | P109: =O109/$O$111 -> 0 | Q109: =P75+SUMIF($O$81:$O$97,"="&M109,$R$81:$R$97)-SUMIF($N$81:$N$97,"="&M109,$R$81:$R$97) -> 0 | R109: =IFERROR(VLOOKUP(M109,$U$69:$V$76,2),VLOOKUP(M109,M$69:Q$76,5)) -> 50.79166667 | S109: =EXP((R109-$X$65)*$X$64) -> 6.343939832 | T109: 0 | U109: 0 | W109: High (abs) increase in cycling modeshare: | Y109: 0.008 | Z109: =Z$107*100*Y109 -> 0
M110: 100 | N110: 0 | O110: =N76+SUMIF($O$81:$O$98,"="&M110,$M$81:$M$98)-SUMIF($N$81:$N$98,"="&M110,$M$81:$M$98) -> 8.238942765 | P110: =O110/$O$111 -> 0.001675501248 | Q110: =P76+SUMIF($O$81:$O$97,"="&M110,$R$81:$R$97)-SUMIF($N$81:$N$97,"="&M110,$R$81:$R$97) -> 19109.76001 | R110: =IFERROR(VLOOKUP(M110,$U$69:$V$76,2),VLOOKUP(M110,M$69:Q$76,5)) -> 36.58333333 | S110: =EXP((R110-$X$65)*$X$64) -> 2.704724341 | T110: 51686.63305 | U110: 8.238942765
M111: TOTAL | O111: =SUM(O103:O110) -> 4917.300287 | P111: =SUM(P103:P110) -> 1 | Q111: =SUM(Q103:Q110) -> 20075181 | S111: New Risk score: | T111: =SUM(T103:T110) -> 36753986.76 | U111: New QoS/Risk ratio | W111: Old Q/R | X111: =T78 -> 0.2711232918 | Y111: New Q/R | Z111: =U112 -> 0.2711232918
S112: New cycling QoS: | T112: ='Cyc-QoS-Calcs'!M33 -> 9964861.878 | U112: =T112/T111 -> 0.2711232918

Sheet Cyc-QoS-Calcs (hidden)
A1: Cycling Quality of Service (QoS) Calculations
A2: INPUTS | B2: Urban Environment | E2: QoS | F2: % of network covered by cycling infra | G2: Cycling modeshare (JtE + JtW)
B3: =FrontEnd!B5 -> ALL of New Zealand | D3: Existing | E3: =K37 -> 1.81121548 | F3: =K36 -> 0.1918492011 | G3: =K39 -> 0.02 | I3: (low) Relative Mode Increase (high) | L3: (low) DSI Decrease (high)
D4: New | E4: =M37 -> 1.81121548 | F4: =M36 -> 0.1918492011 | G4: =P39 -> 0.02 | H4: =R39 -> 0.02 | I4: =G4/G3 -> 1 | J4: =H4/G3 -> 1 | L4: =O37 -> 1 | M4: =Q37 -> 1
C6: Add cycling infrastructure | E6: Painted lanes (km) | F6: =Settings!G11 -> 0 | H6: Go Dutch?* | I6: =Settings!G14 -> NO
E7: Separated infrastructure (km) | F7: =Settings!G12 -> 0 | H7: *Assumes all infrastructure built to very high standard and meets full best practice guidance
E8: Greenways (km) | F8: =Settings!G13 -> 0
F9: =SUM(F6:F8) -> 0
A11: Tier | C11: Sum of length-weighted QoS | D11: Total cycleway length (km) | E11: Cycleway citywide avg QoS | F11: Total network length (km) | G11: % network with cyc'way | H11: Weighted cycleway QoS | I11: Modeshare | K11: Slope | L11: Y-Int
A12: 1 | B12: All Tier 1 Cities | C12: =SUM(C13:C17) -> 3965513.367 | D12: =SUM(D13:D17) -> 2198.49957 | E12: =C12/D12/1000 -> 1.803736249 | F12: =SUM(F13:F17) -> 11104.3742 | G12: =D12/F12 -> 0.197985004 | H12: =G12*(1/E12) -> 0.1097638328 | I12: =52606/2030847 -> 0.02590347771 | J12: =A12 & ":" &B12 -> 1:All Tier 1 Cities | K12: 0.2639815537 | L12: 0.00653664846
A13: 1 | B13: Auckland | C13: 1526565.511 | D13: 858.6288546 | E13: =C13/D13/1000 -> 1.777910797 | F13: 4986.935859 | G13: 0.1721756363 | H13: 0.09684154941 | I13: 0.0120566513 | J13: =A13 & ":" &B13 -> 1:Auckland
A14: 1 | B14: Christchurch | C14: 1125188.332 | D14: 592.1394115 | E14: =C14/D14/1000 -> 1.900208482 | F14: 2284.045017 | G14: 0.2592503244 | H14: 0.1364325688 | I14: 0.06374246869 | J14: =A14 & ":" &B14 -> 1:Christchurch | O14: DSI Savings (low) | Q14: DSI Savings (high)
A15: 1 | B15: Hamilton | C15: 472242.2304 | D15: 261.6199293 | E15: 1.805069788 | F15: 1026.4884 | G15: 0.2548688609 | H15: 0.1411961258 | I15: 0.03379456621 | J15: 1:Hamilton | K15: Dutch? | L15: NO | M15: YES | O15: NO | P15: YES | Q15: NO | R15: YES
A16: 1 | B16: Tauranga | C16: 362010.6465 | D16: 204.8772955 | E16: 1.766963223 | F16: 788.1665061 | G16: 0.2599416417 | H16: 0.1471120838 | I16: 0.04465444884 | J16: 1:Tauranga | K16: Lanes | L16: 2.3 | M16: 1.6 | O16: 0.95 | P16: 0.85 | Q16: 0.85 | R16: 0.75
A17: 1 | B17: Wellington | C17: 479506.6466 | D17: 281.2340789 | E17: 1.705009039 | F17: 2018.738416 | G17: 0.1393117982 | H17: 0.08170736639 | I17: 0.02684053384 | J17: 1:Wellington | K17: Separated | L17: 1.6 | M17: 1.2 | O17: 0.75 | P17: 0.55 | Q17: 0.65 | R17: 0.45
A18: 2 | B18: All Tier 2 Cities | C18: =SUM(C19:C26) -> 1016917.572 | D18: =SUM(D19:D26) -> 552.3773928 | E18: 1.840983331 | F18: =SUM(F19:F26) -> 3234.37179 | G18: =D18/F18 -> 0.170783518 | H18: 0.0927675526 | I18: =14564/412008 -> 0.03534882818 | J18: 2:All Tier 2 Cities | K18: Greenways | L18: 1.8 | M18: 1 | O18: 0.85 | P18: 0.55 | Q18: 0.75 | R18: 0.45
A19: 2 | B19: Dunedin | C19: 128806.5866 | D19: 71.65155882 | E19: 1.797680172 | F19: 710.0258738 | G19: 0.100914011 | H19: =G19*(1/E19) -> 0.05613568673 | I19: 0.023552959 | J19: 2:Dunedin
A20: 2 | B20: Napier Hastings | C20: 302245.1919 | D20: 159.0501916 | E20: 1.900313284 | F20: 764.164998 | G20: 0.2081359288 | H20: 0.1095271662 | I20: 0.03545107138 | J20: 2:Napier Hastings | K20: These values are loosely based on national averages rounded down (so assumed newer will be better than existing facilities)
A21: 2 | B21: Nelson Tasman | C21: 204908.3147 | D21: 117.23803 | E21: 1.74779732 | F21: 386.8460861 | G21: 0.3030611766 | H21: 0.1733960644 | I21: 0.07281125792 | J21: 2:Nelson Tasman
A22: 2 | B22: New Plymouth | C22: 114116.5775 | D22: 54.47534999 | E22: 2.094829635 | F22: 327.2037983 | G22: 0.1664875233 | H22: 0.07947544781 | I22: 0.03501368321 | J22: 2:New Plymouth | P22: Low | Q22: High
A23: 2 | B23: Palmerston North | C23: 85266.28714 | D23: 44.28212481 | E23: 1.925523843 | F23: 386.3450238 | G23: 0.1146180799 | H23: 0.05952566121 | I23: 0.04373427277 | J23: 2:Palmerston North | O23: Absolute increase (%) per 0.01 CQoS incr: | P23: 0.006 | Q23: 0.008
A24: 2 | B24: Queenstown | C24: 64526.84258 | D24: 36.42963644 | E24: 1.771273306 | F24: 124.4728959 | G24: 0.2926712372 | H24: 0.1652321165 | I24: 0.03086269745 | J24: 2:Queenstown
A25: 2 | B25: Rotorua | C25: 74965.49073 | D25: 44.16359789 | E25: 1.697449807 | F25: 273.7382255 | G25: 0.1613351508 | H25: 0.09504560905 | I25: 0.02635984309 | J25: 2:Rotorua
A26: 2 | B26: Whangārei | C26: 42082.28135 | D26: 25.08690321 | E26: 1.677460187 | F26: 261.5748888 | G26: 0.09590715423 | H26: 0.05717402712 | I26: 0.01378114716 | J26: 2:Whangārei
A27: 0 | B27: ALL of New Zealand | C27: =SUM(C12:C26) -> 9964861.878 | D27: =SUM(D12:D26) -> 5501.753925 | E27: 1.81121548 | F27: =SUM(F12:F26) -> 28677.49198 | G27: 0.1918492011 | H27: 0.1059229027 | I27: 0.02 | J27: 0:ALL of New Zealand | K27: <<- Dummy data to use as required
J29: CALCS
J30: Urban Environment | K30: =B3 -> ALL of New Zealand
K32: Existing | L32: Added | M32: Resultant | O32: DSI savings (low) | Q32: DSI savings (high)
J33: Sum of length-weighted QoS | K33: =VLOOKUP($K$30,$B$12:$I$27,2,FALSE) -> 9964861.878 | L33: =IF(I6="NO",((F6*L16)+(F7*L17)+(F8*L18)),((F6*M16)+(F7*M17)+(F8*M18)))*1000 -> 0 | M33: =SUM(K33:L33) -> 9964861.878 | O33: =IFERROR(IF($I$6="NO",(($F$6*O16)+($F$7*O17)+($F$8*O18))/$F$9,(($F$6*P16)+($F$7*P17)+($F$8*P18))/$F$9),0) -> 0 | P33: Added DSI | Q33: =IFERROR(IF($I$6="NO",(($F$6*Q16)+($F$7*Q17)+($F$8*Q18))/$F$9,(($F$6*R16)+($F$7*R17)+($F$8*R18))/$F$9),0) -> 0 | R33: Added DSI
J34: Cycleway network length (m) | K34: =VLOOKUP($K$30,$B$12:$I$27,3,FALSE)*1000 -> 5501753.925 | L34: =SUM(F6:F8)*1000 -> 0 | M34: =SUM(K34:L34) -> 5501753.925 | O34: =K34*0.001 -> 5501.753925 | P34: Prev | Q34: =M34*0.001 -> 5501.753925 | R34: Prev
J35: Total network length (m) | K35: =VLOOKUP($K$30,$B$12:$I$27,5,FALSE)*1000 -> 28677491.98 | M35: =K35 -> 28677491.98 | O35: =$F$9 -> 0 | P35: Added | Q35: =$F$9 -> 0 | R35: Added
J36: % network with infra | K36: =K34/K35 -> 0.1918492011 | M36: =M34/M35 -> 0.1918492011 | O36: =O34+O35 -> 5501.753925 | P36: New | Q36: =Q34+Q35 -> 5501.753925 | R36: New
J37: Citywide avg cycleway QoS | K37: =K33/K34 -> 1.81121548 | M37: =M33/M34 -> 1.81121548 | O37: =(O34+O35*O33)/O36 -> 1 | P37: Weighted | Q37: =(Q34+Q35*Q33)/Q36 -> 1 | R37: Weighted
J38: Adjusted QoS (model) | K38: =K36*(1/K37) -> 0.1059229027 | M38: =M36*(1/M37) -> 0.1059229027 | O38: Modeshare change
J39: Modeshare | K39: =VLOOKUP($K$30,$B$12:$I$27,8,FALSE) -> 0.02 | O39: Low | P39: =(M38-K38)*100*P23+K39 -> 0.02 | Q39: High | R39: =(M38-K38)*100*Q23+K39 -> 0.02

Sheet Ped-LoS-Calcs (hidden)
A1: Pedestrian Level of Service (LoS) Calculations
A2: For every 0.1 increase in Ped'n LOS we get a:
A3: 2.81% abs improvement in JTEd mode share
A4: 1.14% abs improvement in JTW mode share
A7: Problems:
A8: - Don't have baseline ped LoS for each city
A9: - Does an absolute increase apply the same everywhere?
P21: Modeshare
A22: Baseline Ped LOS | B22: 5.4 | C22: Slope | D22: Intercept | F22: HHTS: | G22: M.km/yr (2015-21) | I22: M.hrs/yr (2015-21) | M22: Tier | O22: Ped'ns | P22: Bus | Q22: Train | R22: Tot PT
A23: JTW Share | B23: =D23+$B$22*C23 -> 0.08026 | C23: 0.1144 | D23: -0.5375 | E23: 0.5 | F23: Work | G23: =54.2+75.6 -> 129.8 | H23: =G23/(G$23+G$24) -> 0.5330595483 | I23: =12.3+16.9 -> 29.2 | J23: =I23/(I$23+I$24) -> 0.5087108014 | M23: 1 | N23: All Tier 1 Cities | O23: 0.01678968484 | P23: 0.02790740745 | Q23: 0.01485019368 | R23: =P23+Q23 -> 0.04275760113
A24: JTEd Share | B24: =D24+$B$22*C24 -> 0.24056 | C24: 0.2814 | D24: -1.279 | E24: =1-E23 -> 0.5 | F24: Educ | G24: =55.7+58 -> 113.7 | H24: =G24/(G$23+G$24) -> 0.4669404517 | I24: =14.9+13.3 -> 28.2 | J24: =I24/(I$23+I$24) -> 0.4912891986 | M24: 1 | N24: Auckland | O24: 0.01413570391 | P24: 0.03262687051 | Q24: 0.01499577955 | R24: =P24+Q24 -> 0.04762265006
A25: Average Share | B25: =D25+$B$22*C25 -> 0.16041 | C25: =C23*$E23+C24*$E24 -> 0.1979 | D25: =D23*$E23+D24*$E24 -> -0.90825 | M25: 1 | N25: Christchurch | O25: 0.01763829281 | P25: 0.01806795992 | Q25: 0 | R25: 0.01806795992
M26: 1 | N26: Hamilton | O26: 0.009002748855 | P26: 0.00696353144 | Q26: 0.001644456303 | R26: 0.008607987742
A27: Baseline + Pct Incr | B27: =B22*(1+C27) -> 5.67 | C27: 0.05 | M27: 1 | N27: Tauranga | O27: 0.009404290387 | P27: 0.0101363405 | Q27: 0 | R27: 0.0101363405
A28: Total Share | B28: =D28+$B$27*C28 -> 0.213843 | C28: =C25 -> 0.1979 | D28: =D25 -> -0.90825 | M28: 1 | N28: Wellington | O28: 0.03134874432 | P28: 0.03867437901 | Q28: 0.04013644406 | R28: 0.07881082307
A29: Growth Factor: | B29: =B28-B25 -> 0.053433 | C29: ="= "&TEXT(B29,"0.0%")&" per "&TEXT(C27,"0%") -> = 5.3% per 5% | M29: 2 | N29: All Tier 2 Cities | O29: 0.01760369478 | P29: 0.01305131357 | Q29: 0 | R29: 0.01305131357
M30: 2 | N30: Dunedin | O30: 0.04059847288 | P30: 0.01417885723 | Q30: 0 | R30: 0.01417885723
B31: => Assume 5% (abs) modeshare increase per 5% PLoS increase | M31: 2 | N31: Napier Hastings | O31: 0.008281687691 | P31: 0.01386423757 | Q31: 0 | R31: 0.01386423757
M32: 2 | N32: Nelson Tasman | O32: 0.0255498447 | P32: 0.01279413973 | Q32: 0 | R32: 0.01279413973
M33: 2 | N33: New Plymouth | O33: 0.01503779976 | P33: 0.004273721545 | Q33: 0 | R33: 0.004273721545
M34: 2 | N34: Palmerston North | O34: 0.01741522418 | P34: 0.00853725539 | Q34: 0 | R34: 0.00853725539
M35: 2 | N35: Queenstown | O35: 0.01979976887 | P35: 0.02585941345 | Q35: 0 | R35: 0.02585941345
M36: 2 | N36: Rotorua | O36: 0.008774407299 | P36: 0.02407380539 | Q36: 0 | R36: 0.02407380539
M37: 2 | N37: Whangārei | O37: 0.0102323188 | P37: 0.006054224767 | Q37: 0 | R37: 0.006054224767
M38: 0 | N38: ALL of New Zealand | O38: 0.01249755038 | P38: 0.02022589044 | Q38: 0.009328803714 | R38: 0.02955469415

Sheet SpdChange-Calcs (hidden)
A1: Speed Change Calculations
A2: Selected urban area | C2: ='BackendCalcs-LO'!D4 -> *
A4: Urban area | B4: Road network lengths by speed limit (km)
B5: ≤30 | C5: 40 | D5: 50 | E5: 60 | F5: 70 | G5: 80 | H5: 90 | I5: 100 | J5: TOTAL
A6: 1:Auckland | B6: 611.66 | C6: 39.2830818 | D6: 3756.575406 | E6: 474.7499103 | F6: 1.273617611 | G6: 25.51932875 | H6: 0 | I6: 8.238942765 | J6: =SUM(B6:I6) -> 4917.300287
A7: 1:Christchurch | B7: 194.634991 | C7: 181.2377129 | D7: 1562.58219 | E7: 210.3324331 | F7: 18.81792111 | G7: 37.52564963 | H7: 0 | I7: 1.484244671 | J7: =SUM(B7:I7) -> 2206.615142
A8: 1:Hamilton | B8: 45.73814515 | C8: 180.3036175 | D8: 640.3331582 | E8: 80.48136875 | F8: 6.195173537 | G8: 194.127502 | H8: 0 | I8: 0 | J8: =SUM(B8:I8) -> 1147.178965
A9: 1:Tauranga | B9: 8.09 | C9: 0 | D9: 562.3750589 | E9: 29.88916505 | F9: 12.25213697 | G9: 31.3575593 | H9: 0.4130903265 | I9: 17.61740346 | J9: 661.994414
A10: 1:Wellington | B10: 66.25 | C10: 19.10836062 | D10: 1627.618476 | E10: 108.2085651 | F10: 32.83468848 | G10: 75.51650383 | H10: 0 | I10: 14.67632462 | J10: =SUM(B10:I10) -> 1944.212919
A11: 2:Dunedin | B11: 79.08220587 | C11: 26.48884631 | D11: 541.3600759 | E11: 14.68113624 | F11: 19.24532374 | G11: 42.72766619 | H11: 0 | I11: 0 | J11: 723.5852543
A12: 2:Napier Hastings | B12: 5.62 | C12: 1.413338344 | D12: 579.0866611 | E12: 14.33409354 | F12: 23.50639874 | G12: 95.8607683 | H12: 0 | I12: 6.391613579 | J12: =SUM(B12:I12) -> 726.2128736
A13: 2:Nelson Tasman | B13: 20.4 | C13: 12.91864611 | D13: 290.178751 | E13: 7.599384253 | F13: 0.3636332036 | G13: 21.20509606 | H13: 0 | I13: 0.7720902573 | J13: =SUM(B13:I13) -> 353.4376009
A14: 2:New Plymouth | B14: 11.9830347 | C14: 5.616340594 | D14: 294.8355994 | E14: 3.07771927 | F14: 17.58510579 | G14: 27.62280205 | H14: 0 | I14: 83.06798079 | J14: =SUM(B14:I14) -> 443.7885826
A15: 2:Palmerston North | B15: 4.648981072 | C15: 0 | D15: 315.0950825 | E15: 12.89563198 | F15: 8.719980423 | G15: 9.441264799 | H15: 0 | I15: 9.920822047 | J15: =SUM(B15:I15) -> 360.7217628
A16: 2:Queenstown | B16: 1.61 | C16: 111.2073593 | D16: 14.82039525 | E16: 0 | F16: 18.69 | G16: 11.71466987 | H16: 0 | I16: 5.983077724 | J16: 164.0255022
A17: 2:Rotorua | B17: 10.46306106 | C17: 0 | D17: 260.7790245 | E17: 20.09190781 | F17: 5.419165658 | G17: 24.27066436 | H17: 0 | I17: 11.33640279 | J17: 332.3602261
A18: 2:Whangārei | B18: 5.620954589 | C18: 39.60746867 | D18: 259.9397885 | E18: 39.15355285 | F18: 11.3980479 | G18: 8.774188686 | H18: 0 | I18: 6.532839801 | J18: =SUM(B18:I18) -> 371.026841
A21: Urban area | B21: Road network VKT by speed limit (km) | M21: R | O21: RK | Q21: RV | R21: Q | S21: QK | T21: QV | V21: Q/R
B22: ≤30 | C22: 40 | D22: 50 | E22: 60 | F22: 70 | G22: 80 | H22: 90 | I22: 100 | J22: TOTAL | L22: Urban area | M22: Total risk score | N22: Tot km | O22: Risk / km | P22: Tot VKT | Q22: Risk / VKT | R22: Tot QoS | S22: QoS / km | T22: QoS / VKT | U22: %Cyc Mode | V22: QR ratio | W22: %Ped Mode | X22: %PT Mode
A23: 1:Auckland | B23: 1379476 | C23: 122691.9949 | D23: 16726988.06 | E23: 1366003.246 | F23: 7812.126636 | G23: 453099.8093 | H23: 0 | I23: 19109.76001 | J23: =SUM(B23:I23) -> 20075181 | L23: 1:Auckland | M23: 36753986.76 | N23: =J6 -> 4917.300287 | O23: =M23/N23 -> 7474.423894 | P23: =J23 -> 20075181 | Q23: =M23/P23 -> 1.830817205 | R23: ='Cyc-QoS-Calcs'!C13 -> 1526565.511 | S23: =R23/N23 -> 310.4478925 | T23: =R23/P23 -> 0.07604242827 | U23: ='Cyc-QoS-Calcs'!I13 -> 0.0120566513 | V23: =R23/M23 -> 0.04153469176 | W23: ='Ped-LoS-Calcs'!O24 -> 0.01413570391 | X23: ='Ped-LoS-Calcs'!R24 -> 0.04762265006
A24: 1:Christchurch | B24: 431617.0923 | C24: 257181.7067 | D24: 5424534.692 | E24: 1675375.836 | F24: 232672.0635 | G24: 184417.0756 | H24: 0 | I24: 11948.07442 | J24: =SUM(B24:I24) -> 8217746.54 | L24: 1:Christchurch | M24: 25029541.97 | N24: =J7 -> 2206.615142 | O24: =M24/N24 -> 11342.95759 | P24: =J24 -> 8217746.54 | Q24: =M24/P24 -> 3.045791428 | R24: ='Cyc-QoS-Calcs'!C14 -> 1125188.332 | S24: =R24/N24 -> 509.9159843 | T24: =R24/P24 -> 0.1369217615 | U24: ='Cyc-QoS-Calcs'!I14 -> 0.06374246869 | V24: =R24/M24 -> 0.04495441161 | W24: ='Ped-LoS-Calcs'!O25 -> 0.01763829281 | X24: ='Ped-LoS-Calcs'!R25 -> 0.01806795992
A25: 1:Hamilton | B25: 97470.34257 | C25: 187071.8899 | D25: 1991646.484 | E25: 594344.9465 | F25: 34206.00146 | G25: 710880.1598 | H25: 0 | I25: 0 | J25: =SUM(B25:I25) -> 3615619.824 | L25: 1:Hamilton | M25: 14973607.74 | N25: 1147.178965 | O25: 13052.54733 | P25: 3615619.824 | Q25: 4.141366756 | R25: ='Cyc-QoS-Calcs'!C15 -> 472242.2304 | S25: 411.6552385 | T25: 0.1306116941 | U25: ='Cyc-QoS-Calcs'!I15 -> 0.03379456621 | V25: 0.0315383065 | W25: ='Ped-LoS-Calcs'!O26 -> 0.009002748855 | X25: ='Ped-LoS-Calcs'!R26 -> 0.008607987742
A26: 1:Tauranga | B26: 22441 | C26: 0 | D26: 1660203.587 | E26: 201643.4236 | F26: 242755.507 | G26: 85953.02576 | H26: 9862.118455 | I26: 129576.3369 | J26: 2352434.998 | L26: 1:Tauranga | M26: 6978502.551 | N26: 661.994414 | O26: 10541.63359 | P26: 2352434.998 | Q26: 2.966501755 | R26: ='Cyc-QoS-Calcs'!C16 -> 362010.6465 | S26: 546.8484912 | T26: 0.1538876299 | U26: ='Cyc-QoS-Calcs'!I16 -> 0.04465444884 | V26: 0.05187511845 | W26: ='Ped-LoS-Calcs'!O27 -> 0.009404290387 | X26: ='Ped-LoS-Calcs'!R27 -> 0.0101363405
A27: 1:Wellington | B27: 258013 | C27: 53718.78145 | D27: 5500378.081 | E27: 178907.4002 | F27: 210494.0554 | G27: 367137.1091 | H27: 0 | I27: 8103.085077 | J27: =SUM(B27:I27) -> 6576751.512 | L27: 1:Wellington | M27: 13376130.23 | N27: 1944.212919 | O27: 6879.971891 | P27: 6576751.512 | Q27: 2.033850634 | R27: ='Cyc-QoS-Calcs'!C17 -> 479506.6466 | S27: 246.6327849 | T27: 0.07290934524 | U27: ='Cyc-QoS-Calcs'!I17 -> 0.02684053384 | V27: 0.03584793496 | W27: ='Ped-LoS-Calcs'!O28 -> 0.03134874432 | X27: ='Ped-LoS-Calcs'!R28 -> 0.07881082307
A28: 2:Dunedin | B28: 101296.9622 | C28: 20772.04036 | D28: 1065937.198 | E28: 98149.63766 | F28: 48123.80051 | G28: 51580.41485 | H28: 0 | I28: 0 | J28: 1385860.054 | L28: 2:Dunedin | M28: 2998681.647 | N28: 723.5852543 | O28: 4144.199498 | P28: 1385860.054 | Q28: 2.163769451 | R28: ='Cyc-QoS-Calcs'!C19 -> 128806.5866 | S28: 178.0116245 | T28: 0.09294342978 | U28: ='Cyc-QoS-Calcs'!I19 -> 0.023552959 | V28: 0.04295440521 | W28: ='Ped-LoS-Calcs'!O30 -> 0.04059847288 | X28: ='Ped-LoS-Calcs'!R30 -> 0.01417885723
A29: 2:Napier Hastings | B29: 18768 | C29: 898.8831866 | D29: 1508640.519 | E29: 60310.00109 | F29: 119841.8434 | G29: 342780.434 | H29: 0 | I29: 4713.34877 | J29: =SUM(B29:I29) -> 2055953.029 | L29: 2:Napier Hastings | M29: 6366139.118 | N29: 726.2128736 | O29: 8766.216283 | P29: 2055953.029 | Q29: 3.096441907 | R29: ='Cyc-QoS-Calcs'!C20 -> 302245.1919 | S29: 416.1936574 | T29: 0.1470097749 | U29: ='Cyc-QoS-Calcs'!I20 -> 0.03545107138 | V29: 0.04747700079 | W29: ='Ped-LoS-Calcs'!O31 -> 0.008281687691 | X29: ='Ped-LoS-Calcs'!R31 -> 0.01386423757
A30: 2:Nelson Tasman | B30: 27105 | C30: 11152.14093 | D30: 837001.8649 | E30: 56328.92046 | F30: 5384.316845 | G30: 140225.6896 | H30: 0 | I30: 84.69900055 | J30: =SUM(B30:I30) -> 1077282.632 | L30: 2:Nelson Tasman | M30: 4153302.692 | N30: 353.4376009 | O30: 11751.16253 | P30: 1077282.632 | Q30: 3.855351019 | R30: ='Cyc-QoS-Calcs'!C21 -> 204908.3147 | S30: 579.7581077 | T30: 0.1902085011 | U30: ='Cyc-QoS-Calcs'!I21 -> 0.07281125792 | V30: 0.04933623429 | W30: ='Ped-LoS-Calcs'!O32 -> 0.0255498447 | X30: ='Ped-LoS-Calcs'!R32 -> 0.01279413973
A31: 2:New Plymouth | B31: 21121.96235 | C31: 4470.45656 | D31: 722767.3633 | E31: 58073.13304 | F31: 27323.87864 | G31: 60996.09702 | H31: 0 | I31: 71670.48766 | J31: =SUM(B31:I31) -> 966423.3786 | L31: 2:New Plymouth | M31: 2794338.314 | N31: 443.7885826 | O31: 6296.552961 | P31: 966423.3786 | Q31: 2.891422513 | R31: ='Cyc-QoS-Calcs'!C22 -> 114116.5775 | S31: 257.1417607 | T31: 0.1180813503 | U31: ='Cyc-QoS-Calcs'!I22 -> 0.03501368321 | V31: 0.04083849724 | W31: ='Ped-LoS-Calcs'!O33 -> 0.01503779976 | X31: ='Ped-LoS-Calcs'!R33 -> 0.004273721545
A32: 2:Palmerston North | B32: 2997.513891 | C32: 0 | D32: 1107586.076 | E32: 67423.11301 | F32: 54951.60499 | G32: 26911.97858 | H32: 0 | I32: 28794.78829 | J32: =SUM(B32:I32) -> 1288665.075 | L32: 2:Palmerston North | M32: 2865179.133 | N32: 360.7217628 | O32: 7942.906217 | P32: 1288665.075 | Q32: 2.223369896 | R32: ='Cyc-QoS-Calcs'!C23 -> 85266.28714 | S32: 236.3768864 | T32: 0.06616636767 | U32: ='Cyc-QoS-Calcs'!I23 -> 0.04373427277 | V32: 0.02975949607 | W32: ='Ped-LoS-Calcs'!O34 -> 0.01741522418 | X32: ='Ped-LoS-Calcs'!R34 -> 0.00853725539
A33: 2:Queenstown | B33: 1437 | C33: 195571.2156 | D33: 128039.2867 | E33: 0 | F33: 164814.4364 | G33: 39638.71495 | H33: 0 | I33: 18498.36906 | J33: 547999.0227 | L33: 2:Queenstown | M33: 3213774.557 | N33: 164.0255022 | O33: 19593.13957 | P33: 547999.0227 | Q33: 5.86456257 | R33: ='Cyc-QoS-Calcs'!C24 -> 64526.84258 | S33: 393.3951838 | T33: 0.1177499227 | U33: ='Cyc-QoS-Calcs'!I24 -> 0.03086269745 | V33: 0.02007821066 | W33: ='Ped-LoS-Calcs'!O35 -> 0.01979976887 | X33: ='Ped-LoS-Calcs'!R35 -> 0.02585941345
A34: 2:Rotorua | B34: 5793.805748 | C34: 0 | D34: 627852.8135 | E34: 217309.9497 | F34: 68433.87072 | G34: 118837.4188 | H34: 0 | I34: 6028.202607 | J34: 1044256.061 | L34: 2:Rotorua | M34: 4694103.699 | N34: 332.3602261 | O34: 14123.54226 | P34: 1044256.061 | Q34: 4.495165385 | R34: ='Cyc-QoS-Calcs'!C25 -> 74965.49073 | S34: 225.5549396 | T34: 0.07178841811 | U34: ='Cyc-QoS-Calcs'!I25 -> 0.02635984309 | V34: 0.01597013946 | W34: ='Ped-LoS-Calcs'!O36 -> 0.008774407299 | X34: ='Ped-LoS-Calcs'!R36 -> 0.02407380539
A35: 2:Whangārei | B35: 2497.022619 | C35: 21485.74721 | D35: 827500.3821 | E35: 143893.655 | F35: 19147.37639 | G35: 39067.34005 | H35: 0 | I35: 12354.19859 | J35: =SUM(B35:I35) -> 1065945.722 | L35: 2:Whangārei | M35: 2780602.611 | N35: 371.026841 | O35: 7494.343546 | P35: 1065945.722 | Q35: 2.608578049 | R35: ='Cyc-QoS-Calcs'!C26 -> 42082.28135 | S35: 113.421124 | T35: 0.03947882194 | U35: ='Cyc-QoS-Calcs'!I26 -> 0.01378114716 | V35: 0.01513423068 | W35: ='Ped-LoS-Calcs'!O37 -> 0.0102323188 | X35: ='Ped-LoS-Calcs'!R37 -> 0.006054224767
A38: Urban area | B38: Average free flow speed by speed limit (km/hr) - interpolated
B39: ≤30 | C39: 40 | D39: 50 | E39: 60 | F39: 70 | G39: 80 | H39: 90 | I39: 100
A40: 1:Auckland | B40: 16.7 | C40: 29.17948718 | D40: 24.33462399 | E40: 46.38724374 | F40: 35 | G40: 65 | H40: =(G40+I40)/2 -> 50.79166667 | I40: 36.58333333
A41: 1:Christchurch | B41: 20.3 | C41: 23.14606742 | D41: 25.98186826 | E41: 51.6728972 | F41: 57.85 | G41: 62.53658537 | H41: =(G41+I41)/2 -> 75.01829268 | I41: 87.5
A42: 1:Hamilton | B42: 22.95212766 | C42: 21.78693182 | D42: 26.61040286 | E42: 50.42857143 | F42: 62.33333333 | G42: 59.4127907 | H42: =1.097*H39-22.47 -> 76.26 | I42: =1.097*I39-22.47 -> 87.23
A43: 1:Tauranga | B43: 17.7 | C43: =(B43+D43)/2 -> 20.48773585 | D43: 23.2754717 | E43: 51.36666667 | F43: 50.19047619 | G43: 58.52173913 | H43: 69 | I43: 55.21875
A44: 1:Wellington | B44: 17.5 | C44: 19.81355932 | D44: 24.25571767 | E44: 44.74358974 | F44: 53.53846154 | G44: 57.91803279 | H44: 49.28714139 | I44: 40.65625
A45: 2:Dunedin | B45: 22.55862069 | C45: 23.35365854 | D45: 25.50857843 | E45: 49.5 | F45: 46.2 | G45: 59.85714286 | H45: =0.937*H39-15.335 -> 68.995 | I45: =0.937*I39-15.335 -> 78.365
A46: 2:Napier Hastings | B46: 20.6 | C46: 25 | D46: 25.40142942 | E46: 53.33333333 | F46: 50.78125 | G46: 56.38554217 | H46: 46.04277108 | I46: 35.7
A47: 2:Nelson Tasman | B47: 17 | C47: 26.35135135 | D47: 24.62354189 | E47: 52.72727273 | F47: 52 | G47: 68.45454545 | H47: 46.22727273 | I47: 24
A48: 2:New Plymouth | B48: 21.0862069 | C48: 25.46666667 | D48: 24.91559829 | E48: 57.75 | F48: 33 | G48: 60.33333333 | H48: 56.18627451 | I48: 52.03921569
A49: 2:Palmerston North | B49: 19.83333333 | C49: =(B49+D49)/2 -> 22.88393171 | D49: 25.9345301 | E49: 50.90909091 | F49: 52.5 | G49: 55.66666667 | H49: 55.33333333 | I49: 55
A50: 2:Queenstown | B50: 13.5 | C50: 22.33673469 | D50: 41.32 | E50: =(D50+F50)/2 -> 48.00375 | F50: 54.6875 | G50: 68.14285714 | H50: 71.44642857 | I50: 74.75
A51: 2:Rotorua | B51: 18.04761905 | C51: =(B51+D51)/2 -> 22.01068303 | D51: 25.97374702 | E51: 51.03846154 | F51: 60 | G51: 62.81818182 | H51: 63.45909091 | I51: 64.1
A52: 2:Whangārei | B52: 23.88888889 | C52: 22.70247934 | D52: 26.22346369 | E52: 52.48648649 | F52: 47.30769231 | G52: 57.53846154 | H52: 53.15811966 | I52: 48.77777778
B54: Interpolated values | L54: For every 1% (absolute) increase in QoS/Risk ratio:
L55: Low increase in cycling modeshare: | N55: 0.006
B56: Extrapolation used for 90 & 100 km/hr average free speed for Hamilton and Dunedin: | L56: High increase in cycling modeshare: | N56: 0.008
K75: PED | L75: Risk / km | M75: % Diff | N75: %Ped | O75: % Diff | P75: Abs Diff
L76: 10000 | N76: =1.6506*L76^-0.512 -> 0.01477889082
L77: 9900 | M77: =L77/L$76-1 -> -0.01 | N77: =1.6506*L77^-0.512 -> 0.01485513562 | O77: =N77/N$76-1 -> 0.00515903418 | P77: =N77-N$76 -> 7.624480288e-05
L78: 9800 | M78: =L78/L$76-1 -> -0.02 | N78: =1.6506*L78^-0.512 -> 0.01493255387 | O78: =N78/N$76-1 -> 0.01039746803 | P78: =N78-N$76 -> 0.0001536630449
L79: 9700 | M79: -0.03 | N79: =1.6506*L79^-0.512 -> 0.01501117586 | O79: 0.01571735264 | P79: =N79-N$76 -> 0.0002322850387
L80: 9000 | M80: =L80/L$76-1 -> -0.1 | N80: =1.6506*L80^-0.512 -> 0.01559802729 | O80: =N80/N$76-1 -> 0.05542611306 | P80: =N80-N$76 -> 0.0008191364735
L82: For every 1% decrease in Weighted Risk: ==> | O82: 0.01
L83: Low increase in walking modeshare: | N83: 0.004 | O83: =O$82*100*N83 -> 0.004
L84: High increase in walking modeshare: | N84: 0.006 | O84: =O$82*100*N84 -> 0.006

Sheet OccupancyRates (hidden)
A1: Vehicle Occupancy Rates (HHTS/NZTA data)
B2: Public Transport occupancy rates | L2: Private vehicle occupancy rates | O2: Upper and lower range using 95% confidence intervals
B4: Region | C4: Urban Area | D4: Bus | F4: Train | H4: Ferry | L4: Urban Area | M4: Lower range | N4: Mean | O4: Upper range
D5: Per trip | E5: Per km | F5: Per trip | G5: Per km | H5: Per trip | I5: Per km
B6: ALL TIER 1 CITIES | C6: 1:* | D6: =_xlfn.AGGREGATE(1,6,D7:D11) -> 16.966 | E6: =_xlfn.AGGREGATE(1,6,E7:E11) -> 7.084 | F6: 87.44 | G6: 59.91 | H6: 25.87 | I6: 25.78666667 | L6: 1:Auckland | M6: 1.198347491 | N6: 1.203476636 | O6: 1.20860578
B7: Auckland | C7: 1:Auckland | D7: 16.31 | E7: 6.86 | F7: 105.95 | G7: 56.71 | H7: 47.31 | I7: 45.76 | L7: 1:Christchurch | M7: 1.215500818 | N7: 1.222782181 | O7: 1.230063543
B8: Canterbury | C8: 1:Christchurch | D8: 24.42 | E8: 7.83 | F8: =NA() ->  | G8: =NA() ->  | H8: 12.91 | I8: 12.9 | L8: 1:Hamilton | M8: 1.191117348 | N8: 1.198761441 | O8: 1.206405533
B9: Waikato | C9: 1:Hamilton | D9: 13.18 | E9: 5.4 | F9: 63.17 | G9: 41.27 | H9: =NA() ->  | I9: =NA() ->  | L9: 1:Tauranga | M9: 1.185318718 | N9: 1.194149578 | O9: 1.202980438
B10: Bay of Plenty | C10: 1:Tauranga | D10: 8.5 | E10: 5.88 | F10: =NA() ->  | G10: =NA() ->  | H10: =NA() ->  | I10: =NA() ->  | L10: 1:Wellington | M10: 1.238870124 | N10: 1.246729471 | O10: 1.254588818
B11: Wellington | C11: 1:Wellington | D11: 22.42 | E11: 9.45 | F11: 93.2 | G11: 81.75 | H11: 17.39 | I11: 18.7 | L11: 2:Dunedin | M11: 1.172215713 | N11: 1.18296146 | O11: 1.193707208
B12: ALL TIER 2 CITIES | C12: 2:* | D12: =_xlfn.AGGREGATE(1,6,D13:D20) -> 10.70375 | E12: =_xlfn.AGGREGATE(1,6,E13:E20) -> 6.46875 | F12: =NA() ->  | G12: =NA() ->  | H12: 13.33 | I12: 13.33 | L12: 2:Napier Hastings | M12: 1.171898235 | N12: 1.183086857 | O12: 1.194275478
B13: Otago | C13: 2:Dunedin | D13: 12.15 | E13: 5.29 | F13: =NA() ->  | G13: =NA() ->  | H13: =NA() ->  | I13: =NA() ->  | L13: 2:Nelson Tasman | M13: 1.183981036 | N13: 1.195776911 | O13: 1.207572785
B14: Hawkes Bay | C14: 2:Napier Hastings | D14: 7.17 | E14: 5.27 | F14: =NA() ->  | G14: =NA() ->  | H14: =NA() ->  | I14: =NA() ->  | L14: 2:New Plymouth | M14: 1.219717056 | N14: 1.235950875 | O14: 1.252184694
B15: Nelson-Tasman | C15: 2:Nelson Tasman | D15: 12.45 | E15: 6.19 | F15: =NA() ->  | G15: =NA() ->  | H15: =NA() ->  | I15: =NA() ->  | L15: 2:Palmerston North | M15: 1.182359668 | N15: 1.196092413 | O15: 1.209825158
B16: Taranaki | C16: 2:New Plymouth | D16: 15.57 | E16: 8.27 | F16: =NA() ->  | G16: =NA() ->  | H16: =NA() ->  | I16: =NA() ->  | L16: 2:Queenstown | M16: 1.186387251 | N16: 1.218344965 | O16: 1.250302679
B17: Horizons | C17: 2:Palmerston North | D17: 5.75 | E17: 4.5 | F17: =NA() ->  | G17: =NA() ->  | H17: =NA() ->  | I17: =NA() ->  | L17: 2:Rotorua | M17: 1.197056698 | N17: 1.214540122 | O17: 1.232023546
B18: Otago | C18: 2:Queenstown | D18: 12.15 | E18: 5.29 | F18: =NA() ->  | G18: =NA() ->  | H18: 13.33 | I18: 13.33 | L18: 2:Whangārei | M18: 1.189054557 | N18: 1.205986696 | O18: 1.222918835
B19: Bay of Plenty | C19: 2:Rotorua | D19: 8.5 | E19: 5.88 | F19: =NA() ->  | G19: =NA() ->  | H19: =NA() ->  | I19: =NA() ->  | L19: not stated | M19: 1.124644872 | N19: 1.145510836 | O19: 1.1663768
B20: Northland | C20: 2:Whangārei | D20: 11.89 | E20: 11.06 | F20: =NA() ->  | G20: =NA() ->  | H20: =NA() ->  | I20: =NA() ->  | L20: ALL of New Zealand | M20: 1.212086069 | N20: 1.214219769 | O20: 1.216353468
B21: - | C21: not stated | E21: =NA() ->  | G21: =NA() ->  | I21: =NA() -> 
B22: ALL OF NZ | C22: * | E22: =AVERAGE(E7:E11,E13:E20) -> 6.705384615 | G22: =_xlfn.AGGREGATE(1,6,G7:G11,G13:G20) -> 59.91 | I22: =_xlfn.AGGREGATE(1,6,I7:I11,I13:I20) -> 22.6725
L23: Max rate | M23: =MAX(N6:N20) -> 1.246729471
L24: Default rate | M24: 1.2
C25: Max rate | D25: =E25/E$26-1 -> 0.6494206722 | E25: =MAX(E7:E20) -> 11.06 | F25: =G25/G$26-1 -> 0.3645468202 | G25: =MAX(_xlfn.IFNA(G6:IG18,0)) -> 81.75 | H25: =I25/I$26-1 -> 1.018304113 | I25: =MAX(_xlfn.IFNA(I7:I20,0)) -> 45.76 | L25: Min rate | M25: =MIN(N6:N20) -> 1.145510836
C26: Default rate | E26: =E22 -> 6.705384615 | G26: =G22 -> 59.91 | I26: =I22 -> 22.6725
C27: Min rate | D27: =E27/E$26-1 -> -0.3288975565 | E27: =MIN(E7:E20) -> 4.5 | F27: =G27/G$26-1 -> -0.3111333667 | G27: =MIN(_xlfn.IFNA(G7:G20,G22)) -> 41.27 | H27: =I27/I$26-1 -> -0.4310287794 | I27: =MIN(_xlfn.IFNA(I7:I20,I22)) -> 12.9

Sheet TripLengths (hidden)
A1: Vehicle Trip Lengths (HHTS data)
A2: Average distance travelled per trip by mode
A3: Lookup code | B3: Geog Area | C3: =O9 -> Bicycle | D3: =O6 -> Bus | E3: =O8 -> Ferry | F3: =O3 -> Motor car | G3: =O5 -> Motorcycle | H3: Pedestrian | I3: =O7 -> Train | J3: =O4 -> Truck | K3: Wheeled Device | O3: Motor car
A4: 1:* | B4: ALL TIER 1 Cities | C4: 4.129963041 | D4: 7.342956388 | E4: 17.20868722 | F4: 8.228021577 | G4: 9.712970827 | H4: 0.8928807983 | I4: 15.82351506 | J4: 10.13883912 | K4: 3.896511905 | O4: Truck
A5: =B5 -> 1:Auckland | B5: 1:Auckland | C5: 5.168893933 | D5: 8.50928796 | E5: 12.55808485 | F5: 8.129172092 | G5: 11.90229752 | H5: 0.8596510827 | I5: 12.52336897 | J5: 8.892495238 | K5: 9.32454 | O5: Motorcycle
A6: =B6 -> 1:Christchurch | B6: 1:Christchurch | C6: 4.150643162 | D6: 7.290603008 | E6: 8.2764 | F6: 7.438239197 | G6: 7.328768595 | H6: 0.943068347 | J6: 11.22905128 | K6: 1.591521739 | O6: Bus
A7: 1:Hamilton | B7: 1:Hamilton | C7: 2.984421965 | D7: 7.81364751 | F7: 8.893334823 | G7: 5.173888889 | H7: 0.9658024529 | I7: 28.095 | J7: 19.94872727 | K7: 0.7776 | O7: Train
A8: 1:Tauranga | B8: 1:Tauranga | C8: 3.964493617 | D8: 8.839208163 | F8: 9.220915886 | G8: 9.893761194 | H8: 1.125072652 | J8: 10.22291667 | K8: 2.334742857 | O8: Ferry
A9: 1:Wellington | B9: 1:Wellington | C9: 3.880087926 | D9: 5.909949742 | E9: 10.7 | F9: 7.999904499 | G9: 11.63950459 | H9: 0.8447025418 | I9: 18.44477825 | J9: 4.97755814 | K9: 1.446457143 | O9: Bicycle
A10: 2:* | B10: ALL TIER 2 Cities | C10: 3.613921222 | D10: 9.022015228 | E10: 13.6 | F10: 6.973182223 | G10: 5.009894366 | H10: 0.9246684547 | J10: 6.983197183 | K10: 0.5501509434 | O10: Wheeled Device
A11: 2:Dunedin | B11: 2:Dunedin | C11: 5.301391304 | D11: 6.908700599 | F11: 6.480896204 | G11: 4.15952381 | H11: 0.8883566999 | J11: 2.318322581 | K11: 1.182857143 | O11: Pedestrian
A12: 2:Napier Hastings | B12: 2:Napier Hastings | C12: 2.792226415 | D12: 11.80812931 | F12: 7.632256938 | G12: 11.646 | H12: 0.8926676004 | J12: 9.201580645 | K12: 1.3775
A13: 2:Nelson Tasman | B13: 2:Nelson Tasman | C13: 3.727865196 | D13: 8.760793651 | F13: 6.284181747 | G13: 5.472 | H13: 0.9772858009 | J13: 12.206 | K13: 0.7395
A14: 2:New Plymouth | B14: 2:New Plymouth | C14: 5.202 | D14: 5.462119047 | F14: 6.866781091 | G14: 3.7136875 | H14: 0.9228272981 | J14: 4.919156627 | K14: 0.1333333333
A15: 2:Palmerston North | B15: 2:Palmerston North | C15: 3.559053254 | D15: 5.662761364 | F15: 6.894612371 | G15: 1.426666667 | H15: 1.065235808 | J15: 7.211818182 | K15: 1.66
A16: 2:Queenstown | B16: 2:Queenstown | C16: 1.534666667 | D16: 7.265708333 | E16: 8.7 | F16: 8.72843252 | H16: 0.6976414048
A17: 2:Rotorua | B17: 2:Rotorua | C17: 3.44412 | D17: 16.16251948 | F17: 7.781313536 | G17: 13.571 | H17: 1.000060484 | J17: 6.94372549 | K17: 0.635
A18: 2:Whangārei | B18: 2:Whangārei | C18: 3.122242424 | D18: 7.854428571 | F18: 6.941815258 | H18: 0.9466338798 | J18: 6.614 | K18: 0.4
A19: * | B19: ALL of New Zealand | C19: 3.762205316 | D19: 8.749345591 | E19: 19.73528477 | F19: 9.056464388 | G19: 9.000381335 | H19: 0.8915708161 | I19: 19.27874163 | J19: 11.39837964 | K19: 2.132486175
A22: Average time travelled per trip by mode
A23: Lookup code | B23: Geog Area | C23: Bicycle | D23: Bus | E23: Ferry | F23: Motor car | G23: Motorcycle | H23: Pedestrian | I23: Train | J23: Truck | K23: Wheeled Device
A24: 1:* | B24: ALL TIER 1 Cities | C24: 17.68456672 | D24: 22.08209374 | E24: 32.14096916 | F24: 14.07400304 | G24: 16.85813074 | H24: 11.67559856 | I24: 27.22779923 | J24: 16.40024375 | K24: 14.08333333
A25: =B25 -> 1:Auckland | B25: 1:Auckland | C25: 20.47125604 | D25: 25.67493261 | E25: 23.05454545 | F25: 15.45400441 | G25: 18.20661157 | H25: 11.84235795 | I25: 27.37413793 | J25: 22.4 | K25: 17.78
A26: =B26 -> 1:Christchurch | B26: 1:Christchurch | C26: 16.52530271 | D26: 20.40300752 | E26: 33.12 | F26: 12.81984763 | G26: 14.48319559 | H26: 11.90110884 | J26: 16.19202279 | K26: 16.2173913
A27: 1:Hamilton | B27: 1:Hamilton | C27: 13.7183526 | D27: 21.22803321 | F27: 13.28834124 | G27: 9.611111111 | H27: 12.16508249 | I27: 49.83333333 | J27: 17.16363636 | K27: 11.32
A28: 1:Tauranga | B28: 1:Tauranga | C28: 17.91489362 | D28: 20.43265306 | F28: 13.49735919 | G28: 21.29850746 | H28: 12.6185408 | J28: 14.95833333 | K28: 9.6
A29: 1:Wellington | B29: 1:Wellington | C29: 18.4963692 | D29: 19.1445436 | E29: 25 | F29: 13.63694704 | G29: 19.05504587 | H29: 11.21426064 | I29: 26.9279661 | J29: 11.8372093 | K29: 13.85714286
A30: 2:* | B30: ALL TIER 2 Cities | C30: 17.22766613 | D30: 22.21246475 | E30: 102.3636364 | F30: 11.44921004 | G30: 9.661971831 | H30: 11.76417372 | I30: 70.6 | J30: 11.94366197 | K30: 8.641509434
A31: 2:Dunedin | B31: 2:Dunedin | C31: 26.17391304 | D31: 19.20958084 | F31: 11.44476707 | G31: 7.333333333 | H31: 10.83977712 | J31: 9.483870968 | K31: 2.857142857
A32: 2:Napier Hastings | B32: 2:Napier Hastings | C32: 14.32062893 | D32: 28.34971264 | F32: 12.05642196 | G32: 15 | H32: 11.35029567 | J32: 19 | K32: 62.75
A33: 2:Nelson Tasman | B33: 2:Nelson Tasman | C33: 16.72622549 | D33: 20.46031746 | F33: 10.81675081 | G33: 11.62857143 | H33: 12.48907767 | J33: 16.83333333 | K33: 10
A34: 2:New Plymouth | B34: 2:New Plymouth | C34: 20.43820225 | D34: 16.73809524 | F34: 11.01821383 | G34: 10.5625 | H34: 12.71309192 | J34: 7.554216867 | K34: 2.291666667
A35: 2:Palmerston North | B35: 2:Palmerston North | C35: 15.55197239 | D35: 18.21590909 | F35: 11.45008113 | G35: 4.541666667 | H35: 14.1580786 | J35: 10.65151515 | K35: 5
A36: 2:Queenstown | B36: 2:Queenstown | C36: 7.5 | D36: 26.66666667 | E36: 25.5 | F36: 12.90934959 | H36: 8.475046211
A37: 2:Rotorua | B37: 2:Rotorua | C37: 17.51026667 | D37: 26.98701299 | F37: 11.51715887 | G37: 11.1 | H37: 12.61491935 | J37: 13.56862745 | K37: 5.2
A38: 2:Whangārei | B38: 2:Whangārei | C38: 23.3770202 | D38: 22.71428571 | F38: 11.50400567 | H38: 13.43715847 | J38: 11.71111111 | K38: 11.66666667
A39: * | B39: ALL of New Zealand | C39: 17.09057282 | D39: 22.73268912 | E39: 36.51324503 | F39: 13.41515405 | G39: 14.55146152 | H39: 11.61677345 | I39: 30.95488722 | J39: 15.0875516 | K39: 10.70737327

Sheet TripChains (hidden)
A1: Typical trip chains when using Public Trpt (HHTS data)
C2: Average kms per km travelled of supporting mode by main PT mode
A3: Main PT Mode | B3: Location | C3: Driven | D3: Biked | E3: Walked | F3: Bussed | G3: Mode Weighting | H3: Wgtd Drive | I3: Wgtd Bike | J3: Wgtd Walk | K3: Wgtd Bus
A4: Bus | B4: 1:Auckland | C4: 0.1852386616 | D4: 0.007415693344 | E4: 0.0714731587 | G4: =O4/SUM($O$4:$O$17) -> 0.3934569965 | H4: =C4*$G4 -> 0.07288344742 | I4: =D4*$G4 -> 0.00291775643 | J4: 0.02812161435 | K4: 0 | M4: Bus | N4: 1:Auckland | O4: 494418880.3
A5: Bus | B5: 1:Hamilton | C5: 0.09220976186 | D5: 0 | E5: 0.07946632571 | G5: =O5/SUM($O$4:$O$17) -> 0.02017478568 | H5: =C5*$G5 -> 0.001860312183 | I5: =D5*$G5 -> 0 | J5: =E5*$G5 -> 0.00160321609 | K5: =F5*$G5 -> 0 | M5: Bus | N5: 1:Hamilton | O5: 25351677.66
A6: Bus | B6: 1:Tauranga | C6: 0.1062817646 | D6: 0 | E6: 0.07759670557 | G6: 0.01299988258 | H6: 0.00138165046 | I6: 0 | J6: 0.001008748061 | K6: 0 | M6: Bus | N6: 1:Tauranga | O6: 16335679.5
A7: Bus | B7: 1:Wellington | C7: 0.06848376814 | D7: 0.001149210086 | E7: 0.1173494595 | G7: 0.1465719893 | H7: 0.01003780213 | I7: 0.0001684420085 | J7: 0.01720014373 | K7: 0 | M7: Bus | N7: 1:Wellington | O7: 184182666.7
A8: Bus | B8: 1:Christchurch | C8: 0.09247882859 | D8: 0.001424153453 | E8: 0.1623691593 | G8: 0.06615807936 | H8: 0.006118221681 | I8: 9.421925713e-05 | J8: 0.01074203172 | K8: 0 | M8: Bus | N8: 1:Christchurch | O8: 83134380.16
A9: Bus | B9: 2:Whangārei | C9: 0.3318026765 | D9: 0 | E9: 0.03949094726 | G9: 0.001925778732 | H9: 0.0006389785375 | I9: 0 | J9: 7.605082633e-05 | K9: 0 | M9: Bus | N9: 2:Whangārei | O9: 2419937.561
A10: Bus | B10: 2:Rotorua | C10: 0.03334167173 | D10: 0 | E10: 0.02649584867 | G10: 0.008572858758 | H10: 0.0002858334425 | I10: 0 | J10: 0.0002271451683 | K10: 0 | M10: Bus | N10: 2:Rotorua | O10: 10772672.15
A11: Bus | B11: 2:New Plymouth | C11: 0.3518447867 | D11: 0 | E11: 0.04822035082 | G11: 0.001588488182 | H11: 0.0005589012857 | I11: 0 | J11: 7.659745743e-05 | K11: 0 | M11: Bus | N11: 2:New Plymouth | O11: 1996097.555
A12: Bus | B12: 2:Napier Hastings | C12: 0.0551389324 | D12: 0.006708297413 | E12: 0.04983004164 | G12: 0.01730261539 | H12: 0.0009540477402 | I12: 0.0001160710901 | J12: 0.0008621900454 | K12: 0 | M12: Bus | N12: 2:Napier Hastings | O12: 21742502.49
A13: Bus | B13: 2:Palmerston North | C13: 0.07305016477 | D13: 0 | E13: 0.0852755401 | G13: 0.005244875109 | H13: 0.0003831389909 | I13: 0 | J13: 0.0004472595577 | K13: 0 | M13: Bus | N13: 2:Palmerston North | O13: 6590720.974
A14: Bus | B14: 2:Nelson Tasman | C14: 0.1012496812 | D14: 0 | E14: 0.1493666582 | G14: 0.005699944531 | H14: 0.0005771175667 | I14: 0 | J14: 0.0008513816664 | K14: 0 | M14: Bus | N14: 2:Nelson Tasman | O14: 7162562.157
A15: Bus | B15: 2:Queenstown | C15: 0.0833306503 | D15: 0 | E15: 0.07564215664 | G15: 0.004370968722 | H15: 0.000364235666 | I15: 0 | J15: 0.0003306295007 | K15: 0 | M15: Bus | N15: 2:Queenstown | O15: 5492568.389
A16: Bus | B16: 2:Dunedin | C16: 0.07127133715 | D16: 0 | E16: 0.1421386196 | G16: 0.008785480868 | H16: 0.0006261529689 | I16: 0 | J16: 0.001248756123 | K16: 0 | M16: Bus | N16: 2:Dunedin | O16: 11039853.54
A17: Bus | B17: Rest of NZ | C17: 0.2281344153 | D17: 0.007300543417 | E17: 0.02937546683 | G17: 0.3071472563 | H17: 0.07007085973 | I17: 0.00224234188 | J17: 0.009022594039 | K17: 0 | M17: Bus | N17: Rest of NZ | O17: 385961881.3
A18: Ferry | B18: 1:Auckland | C18: 0.3514761688 | D18: 0.01940963181 | E18: 0.02860671573 | F18: 0.02780582283 | G18: =O18/SUM($O$18:$O$21) -> 0.482429456 | H18: =C18*$G18 -> 0.1695624569 | I18: =D18*$G18 -> 0.009363778113 | J18: =E18*$G18 -> 0.01380072231 | K18: =F18*$G18 -> 0.01341434798 | M18: Ferry | N18: 1:Auckland | O18: 52080953.58
A19: Ferry | B19: 1:Wellington | C19: 0.5053918409 | D19: 0 | E19: 0.02181856011 | F19: 0 | G19: =O19/SUM($O$18:$O$21) -> 0.2625940065 | H19: =C19*$G19 -> 0.1327128684 | I19: 0 | J19: 0.005729423116 | K19: 0 | M19: Ferry | N19: 1:Wellington | O19: 28348489.28
A20: Ferry | B20: 1:Christchurch | C20: 1.197955018 | D20: 0 | E20: 0.09414804821 | F20: 0 | G20: =O20/SUM($O$18:$O$21) -> 0.01644742749 | H20: 0.0197032783 | I20: 0 | J20: 0.001548493196 | K20: 0 | M20: Ferry | N20: 1:Christchurch | O20: 1775591.637
A21: Ferry | B21: Rest of NZ | C21: 0.4869453863 | D21: 0 | E21: 0.008169372354 | F21: 0.4457175694 | G21: =O21/SUM($O$18:$O$21) -> 0.23852911 | H21: =C21*$G21 -> 0.1161506496 | I21: 0 | J21: 0.001948633117 | K21: 0.1063166151 | M21: Ferry | N21: Rest of NZ | O21: 25750549.33
A22: Train | B22: 1:Auckland | C22: 0.1671495821 | D22: 0.007700529247 | E22: 0.08700428557 | F22: 0.07942432932 | G22: =O22/SUM($O$22:$O$25) -> 0.4455595739 | H22: 0.07447509657 | I22: 0.00343104453 | J22: 0.03876559241 | K22: 0.03538827033 | M22: Train | N22: 1:Auckland | O22: 234175720.4
A23: Train | B23: 1:Hamilton | C23: 0.1988698325 | D23: 0.0160602756 | E23: 0.002577575097 | F23: 0 | G23: =O23/SUM($O$22:$O$25) -> 0.007848586388 | H23: =C23*$G23 -> 0.00156084706 | I23: =D23*$G23 -> 0.0001260504605 | J23: =E23*$G23 -> 2.023032082e-05 | K23: =F23*$G23 -> 0 | M23: Train | N23: 1:Hamilton | O23: 4125033.954
A24: Train | B24: 1:Wellington | C24: 0.148451631 | D24: 0.007083830745 | E24: 0.04758396593 | F24: 0.04231641792 | G24: =O24/SUM($O$22:$O$25) -> 0.343176192 | H24: 0.0509450654 | I24: 0.002431002059 | J24: 0.01632968423 | K24: 0.01452198716 | M24: Train | N24: 1:Wellington | O24: 180365402.7
A25: Train | B25: Rest of NZ | C25: 0.2060653625 | D25: 0.005845011984 | E25: 0.02432969445 | F25: 0.05361788069 | G25: =O25/SUM($O$22:$O$25) -> 0.2034156477 | H25: =C25*$G25 -> 0.0419169192 | I25: =D25*$G25 -> 0.001188966899 | J25: =E25*$G25 -> 0.004949040556 | K25: =F25*$G25 -> 0.01090671593 | M25: Train | N25: Rest of NZ | O25: 106910520.2

Sheet HHTS-Tier-Age (hidden)
A1: HHTS Travel Data by Age Group
A2: Use only if AGE sub-groups are selected - can only split by one demographic at a time
A3: User/Veh Type | B3: Geog Area | C3: Age Group | D3: '000 Person-Kms Travelled | E3: '000 Hrs Travelled
A4: Motor car occupant (car/taxi/van/ute) | B4: 1:Auckland | C4: 0 to 9 | D4: =SUMIF($A$20:$A$867,$A4,$D$20:$D$867)*0.001 -> 50026188.01 | E4: =SUMIF($A$20:$A$867,$A4,$E$20:$E$867)*0.001 -> 1288355.111 | J4: 0-9 | K4: 0 to 9 | N4: Bus occupancy | O4: =OccupancyRates!E26 -> 6.705384615
A5: Truck occupant | B5: 1:Hamilton | C5: 10 to 19 | D5: 420337.9907 | E5: 10236.71769 | J5: 10-19 | K5: 10 to 19 | N5: Train occupancy | O5: =OccupancyRates!G26 -> 59.91
A6: Motorcycle/motor-scooter/mo-ped rider | B6: 1:Tauranga | C6: 20 to 29 | D6: 138121.9199 | E6: 3756.78295 | J6: 20-29 | K6: 20 to 29 | N6: Ferry occupancy | O6: =OccupancyRates!I26 -> 22.6725
A7: Bicycle (incl. E-bike) | B7: 1:Wellington | C7: 30 to 39 | D7: 365464.4349 | E7: 28253.33705 | J7: 30-39 | K7: 30 to 39 | N7: Private vehicle occupancy | O7: =OccupancyRates!M24 -> 1.2
A8: Wheeled device - E-scooter rider | B8: 1:Christchurch | C8: 40 to 49 | D8: 2533.706872 | E8: 284.8891388 | J8: 40-49 | K8: 40 to 49
A9: Wheeled device - Other (e.g. skateboard, kick-scooter) | B9: 2:Whangārei | C9: 50 to 59 | D9: 10941.3386 | E9: 265.7946549 | J9: 50-59 | K9: 50 to 59
A10: ATV/Other/unknown vehicle | B10: 2:Rotorua | C10: 60 to 69 | D10: 282302.5546 | E10: 12682.66971 | J10: 60-69 | K10: 60 to 69
A11: Pedestrian | B11: 2:New Plymouth | C11: 70 to 79 | D11: 697881.0123 | E11: 158745.8772 | J11: 70-79 | K11: 70 to 79
A12: Pedestrian mobility device user (e.g. wheelchair, mobility scooter) | B12: 2:Napier Hastings | C12: 80+ | D12: 4438.106424 | E12: 772.7586012 | J12: 80+ | K12: 80+
A13: Bus occupant | B13: 2:Palmerston North | D13: 1248390.102 | E13: 55301.43857
A14: Train/tram passenger | B14: 2:Nelson Tasman | D14: 531190.5253 | E14: 14700.53728
A15: Ferry passenger | B15: 2:Dunedin | D15: 119614.052 | E15: 3311.658006
B16: 2:Queenstown | D16: =SUM(D4:D9)+SUM(D11:D15) -> 53565101.2 | E16: =SUM(E4:E9)+SUM(E11:E15) -> 1563984.903
B17: Rest of NZ
A19: User/Veh Type | B19: Geog Area | C19: Age Group | D19: Weighted PKT (km/year) | E19: Weighted duration (hours)
A20: ATV/Other/unknown vehicle | B20: Rest of NZ | C20: 80+ | D20: 726915.398 | E20: 65153.89964
A21: ATV/Other/unknown vehicle | B21: Rest of NZ | C21: 60 to 69 | D21: 13826862.27 | E21: 543861.0913
A22: ATV/Other/unknown vehicle | B22: Rest of NZ | C22: 70 to 79 | D22: 4336621.362 | E22: 173883.5815
A23: ATV/Other/unknown vehicle | B23: Rest of NZ | C23: 40 to 49 | D23: 32032593.04 | E23: 946582.4077
A24: ATV/Other/unknown vehicle | B24: Rest of NZ | C24: 50 to 59 | D24: 10572265.84 | E24: 343753.5501
A25: ATV/Other/unknown vehicle | B25: Rest of NZ | C25: 0 to 9 | D25: 537853.1712 | E25: 1732317.315
A26: ATV/Other/unknown vehicle | B26: Rest of NZ | C26: 30 to 39 | D26: 9256904.123 | E26: 335306.7037
A27: ATV/Other/unknown vehicle | B27: Rest of NZ | C27: 20 to 29 | D27: 7291744.268 | E27: 370709.0714
A28: ATV/Other/unknown vehicle | B28: Rest of NZ | C28: 10 to 19 | D28: 8406270.043 | E28: 492987.9507
A29: ATV/Other/unknown vehicle | B29: 2:Whangārei | C29: 80+ | D29: 3378.18 | E29: 428.769
A30: ATV/Other/unknown vehicle | B30: 2:Whangārei | C30: 60 to 69 | D30: 811962.2921 | E30: 16106.87252
A31: ATV/Other/unknown vehicle | B31: 2:Whangārei | C31: 70 to 79 | D31: 720410.9927 | E31: 12785.24922
A32: ATV/Other/unknown vehicle | B32: 2:Whangārei | C32: 40 to 49 | D32: 40423.11777 | E32: 925.8616071
A33: ATV/Other/unknown vehicle | B33: 2:Whangārei | C33: 50 to 59 | D33: 175682.3587 | E33: 4930.036378
A34: ATV/Other/unknown vehicle | B34: 2:Whangārei | C34: 30 to 39 | D34: 37826.82289 | E34: 2578.246137
A35: ATV/Other/unknown vehicle | B35: 2:Whangārei | C35: 20 to 29 | D35: 149851.845 | E35: 5286.5505
A36: ATV/Other/unknown vehicle | B36: 1:Auckland | C36: 80+ | D36: 1117403.008 | E36: 93664.25302
A37: ATV/Other/unknown vehicle | B37: 1:Auckland | C37: 60 to 69 | D37: 9469748.99 | E37: 385906.8967
A38: ATV/Other/unknown vehicle | B38: 1:Auckland | C38: 70 to 79 | D38: 2702004.066 | E38: 102091.6963
A39: ATV/Other/unknown vehicle | B39: 1:Auckland | C39: 40 to 49 | D39: 11940446.34 | E39: 661762.6277
A40: ATV/Other/unknown vehicle | B40: 1:Auckland | C40: 50 to 59 | D40: 9953887.074 | E40: 627180.9592
A41: ATV/Other/unknown vehicle | B41: 1:Auckland | C41: 0 to 9 | D41: 3853958.979 | E41: 459112.7125
A42: ATV/Other/unknown vehicle | B42: 1:Auckland | C42: 30 to 39 | D42: 12395917.96 | E42: 496701.4154
A43: ATV/Other/unknown vehicle | B43: 1:Auckland | C43: 20 to 29 | D43: 5700173.386 | E43: 356275.6013
A44: ATV/Other/unknown vehicle | B44: 1:Auckland | C44: 10 to 19 | D44: 9983978.549 | E44: 439005.569
A45: ATV/Other/unknown vehicle | B45: 1:Hamilton | C45: 60 to 69 | D45: 492857.0418 | E45: 15487.20513
A46: ATV/Other/unknown vehicle | B46: 1:Hamilton | C46: 70 to 79 | D46: 13923.88418 | E46: 736.3824634
A47: ATV/Other/unknown vehicle | B47: 1:Hamilton | C47: 40 to 49 | D47: 117673.286 | E47: 3832.688607
A48: ATV/Other/unknown vehicle | B48: 1:Hamilton | C48: 50 to 59 | D48: 236089.3252 | E48: 11322.09108
A49: ATV/Other/unknown vehicle | B49: 1:Hamilton | C49: 0 to 9 | D49: 13785651.36 | E49: 227710.6652
A50: ATV/Other/unknown vehicle | B50: 1:Hamilton | C50: 30 to 39 | D50: 372037.5542 | E50: 20145.44688
A51: ATV/Other/unknown vehicle | B51: 1:Hamilton | C51: 20 to 29 | D51: 2907211.476 | E51: 88283.65113
A52: ATV/Other/unknown vehicle | B52: 1:Hamilton | C52: 10 to 19 | D52: 189920.6448 | E52: 63988.84925
A53: ATV/Other/unknown vehicle | B53: 1:Tauranga | C53: 80+ | D53: 13374.41939 | E53: 1151.303112
A54: ATV/Other/unknown vehicle | B54: 1:Tauranga | C54: 60 to 69 | D54: 2734087.829 | E54: 42719.64982
A55: ATV/Other/unknown vehicle | B55: 1:Tauranga | C55: 70 to 79 | D55: 311013.1586 | E55: 29552.30159
A56: ATV/Other/unknown vehicle | B56: 1:Tauranga | C56: 40 to 49 | D56: 7598812.245 | E56: 202888.9105
A57: ATV/Other/unknown vehicle | B57: 1:Tauranga | C57: 50 to 59 | D57: 216618.9068 | E57: 49938.64771
A58: ATV/Other/unknown vehicle | B58: 1:Tauranga | C58: 0 to 9 | D58: 7711713.367 | E58: 44422.34172
A59: ATV/Other/unknown vehicle | B59: 1:Tauranga | C59: 30 to 39 | D59: 620696.1584 | E59: 24016.41152
A60: ATV/Other/unknown vehicle | B60: 1:Tauranga | C60: 10 to 19 | D60: 33391.5732 | E60: 15053.57808
A61: ATV/Other/unknown vehicle | B61: 2:Rotorua | C61: 80+ | D61: 2448.801429 | E61: 139.3283571
A62: ATV/Other/unknown vehicle | B62: 2:Rotorua | C62: 70 to 79 | D62: 3602.918067 | E62: 1787.398866
A63: ATV/Other/unknown vehicle | B63: 2:Rotorua | C63: 40 to 49 | D63: 20051.01429 | E63: 4128.15
A64: ATV/Other/unknown vehicle | B64: 2:Rotorua | C64: 30 to 39 | D64: 490792.7434 | E64: 9482.085459
A65: ATV/Other/unknown vehicle | B65: 2:Rotorua | C65: 20 to 29 | D65: 340247.2208 | E65: 31265.96083
A66: ATV/Other/unknown vehicle | B66: 2:Rotorua | C66: 10 to 19 | D66: 415059.5675 | E66: 13964.80875
A67: ATV/Other/unknown vehicle | B67: 2:Napier Hastings | C67: 80+ | D67: 19055.52857 | E67: 22312.99393
A68: ATV/Other/unknown vehicle | B68: 2:Napier Hastings | C68: 60 to 69 | D68: 5945404.094 | E68: 133334.1637
A69: ATV/Other/unknown vehicle | B69: 2:Napier Hastings | C69: 70 to 79 | D69: 874576.1032 | E69: 29869.52985
A70: ATV/Other/unknown vehicle | B70: 2:Napier Hastings | C70: 40 to 49 | D70: 332330.4512 | E70: 8694.169175
A71: ATV/Other/unknown vehicle | B71: 2:Napier Hastings | C71: 50 to 59 | D71: 520607.0204 | E71: 16822.04737
A72: ATV/Other/unknown vehicle | B72: 2:Napier Hastings | C72: 30 to 39 | D72: 243477.2813 | E72: 13646.81047
A73: ATV/Other/unknown vehicle | B73: 2:Napier Hastings | C73: 20 to 29 | D73: 61189.14626 | E73: 14680.69728
A74: ATV/Other/unknown vehicle | B74: 2:Napier Hastings | C74: 10 to 19 | D74: 321951.602 | E74: 14610.08219
A75: ATV/Other/unknown vehicle | B75: 2:New Plymouth | C75: 80+ | D75: 92090.82857 | E75: 5807.086714
A76: ATV/Other/unknown vehicle | B76: 2:New Plymouth | C76: 60 to 69 | D76: 95702.77653 | E76: 9626.189694
A77: ATV/Other/unknown vehicle | B77: 2:New Plymouth | C77: 70 to 79 | D77: 52635.15714 | E77: 6296.071429
A78: ATV/Other/unknown vehicle | B78: 2:New Plymouth | C78: 40 to 49 | D78: 50474.80714 | E78: 2133.581429
A79: ATV/Other/unknown vehicle | B79: 2:New Plymouth | C79: 50 to 59 | D79: 103113.0214 | E79: 33319.98238
A80: ATV/Other/unknown vehicle | B80: 2:New Plymouth | C80: 20 to 29 | D80: 36042.42273 | E80: 3708.068182
A81: ATV/Other/unknown vehicle | B81: 2:New Plymouth | C81: 10 to 19 | D81: 6275417.625 | E81: 25462.85625
A82: ATV/Other/unknown vehicle | B82: 2:Palmerston North | C82: 80+ | D82: 81583.14881 | E82: 2708.047976
A83: ATV/Other/unknown vehicle | B83: 2:Palmerston North | C83: 60 to 69 | D83: 236699.834 | E83: 8081.660392
A84: ATV/Other/unknown vehicle | B84: 2:Palmerston North | C84: 70 to 79 | D84: 84638.73265 | E84: 12722.02286
A85: ATV/Other/unknown vehicle | B85: 2:Palmerston North | C85: 40 to 49 | D85: 163404.7494 | E85: 5076.652408
A86: ATV/Other/unknown vehicle | B86: 2:Palmerston North | C86: 50 to 59 | D86: 95036.64876 | E86: 8897.600172
A87: ATV/Other/unknown vehicle | B87: 2:Palmerston North | C87: 0 to 9 | D87: 4952702.809 | E87: 46686.42
A88: ATV/Other/unknown vehicle | B88: 2:Palmerston North | C88: 30 to 39 | D88: 210875.4706 | E88: 14180.26989
A89: ATV/Other/unknown vehicle | B89: 2:Palmerston North | C89: 20 to 29 | D89: 68866.78408 | E89: 6424.140306
A90: ATV/Other/unknown vehicle | B90: 2:Palmerston North | C90: 10 to 19 | D90: 42753.66667 | E90: 1012.127619
A91: ATV/Other/unknown vehicle | B91: 1:Wellington | C91: 80+ | D91: 1168120.014 | E91: 58746.21525
A92: ATV/Other/unknown vehicle | B92: 1:Wellington | C92: 60 to 69 | D92: 672090.7454 | E92: 101490.9316
A93: ATV/Other/unknown vehicle | B93: 1:Wellington | C93: 70 to 79 | D93: 3335442.764 | E93: 102902.5179
A94: ATV/Other/unknown vehicle | B94: 1:Wellington | C94: 40 to 49 | D94: 3133192.38 | E94: 145351.4578
A95: ATV/Other/unknown vehicle | B95: 1:Wellington | C95: 50 to 59 | D95: 5135678.49 | E95: 242130.6373
A96: ATV/Other/unknown vehicle | B96: 1:Wellington | C96: 0 to 9 | D96: 61579.85878 | E96: 4776.883382
A97: ATV/Other/unknown vehicle | B97: 1:Wellington | C97: 30 to 39 | D97: 13173580.71 | E97: 273075.3355
A98: ATV/Other/unknown vehicle | B98: 1:Wellington | C98: 20 to 29 | D98: 11907234.27 | E98: 246244.6824
A99: ATV/Other/unknown vehicle | B99: 1:Wellington | C99: 10 to 19 | D99: 3556773.879 | E99: 161510.3156
A100: ATV/Other/unknown vehicle | B100: 2:Nelson Tasman | C100: 80+ | D100: 21800.92857 | E100: 1473.035714
A101: ATV/Other/unknown vehicle | B101: 2:Nelson Tasman | C101: 60 to 69 | D101: 119584.5776 | E101: 15218.6069
A102: ATV/Other/unknown vehicle | B102: 2:Nelson Tasman | C102: 70 to 79 | D102: 65637.60994 | E102: 4987.156372
A103: ATV/Other/unknown vehicle | B103: 2:Nelson Tasman | C103: 40 to 49 | D103: 523232.372 | E103: 14517.57546
A104: ATV/Other/unknown vehicle | B104: 2:Nelson Tasman | C104: 50 to 59 | D104: 156984.161 | E104: 7053.815694
A105: ATV/Other/unknown vehicle | B105: 2:Nelson Tasman | C105: 0 to 9 | D105: 6073631.286 | E105: 18473.17143
A106: ATV/Other/unknown vehicle | B106: 2:Nelson Tasman | C106: 30 to 39 | D106: 57429.7172 | E106: 2664.22758
A107: ATV/Other/unknown vehicle | B107: 2:Nelson Tasman | C107: 10 to 19 | D107: 243539.2479 | E107: 27159.88539
A108: ATV/Other/unknown vehicle | B108: 1:Christchurch | C108: 80+ | D108: 210341.0279 | E108: 11089.23743
A109: ATV/Other/unknown vehicle | B109: 1:Christchurch | C109: 60 to 69 | D109: 3218732.68 | E109: 152887.8537
A110: ATV/Other/unknown vehicle | B110: 1:Christchurch | C110: 70 to 79 | D110: 218569.0478 | E110: 10436.81369
A111: ATV/Other/unknown vehicle | B111: 1:Christchurch | C111: 40 to 49 | D111: 1361673.324 | E111: 106139.3734
A112: ATV/Other/unknown vehicle | B112: 1:Christchurch | C112: 50 to 59 | D112: 1209713.122 | E112: 66011.30402
A113: ATV/Other/unknown vehicle | B113: 1:Christchurch | C113: 0 to 9 | D113: 181936.6695 | E113: 12322.66095
A114: ATV/Other/unknown vehicle | B114: 1:Christchurch | C114: 30 to 39 | D114: 2828682.035 | E114: 227783.2982
A115: ATV/Other/unknown vehicle | B115: 1:Christchurch | C115: 20 to 29 | D115: 395996.8445 | E115: 55049.11194
A116: ATV/Other/unknown vehicle | B116: 1:Christchurch | C116: 10 to 19 | D116: 1197259.789 | E116: 72782.01241
A117: ATV/Other/unknown vehicle | B117: 2:Dunedin | C117: 80+ | D117: 17305.69286 | E117: 590.1685
A118: ATV/Other/unknown vehicle | B118: 2:Dunedin | C118: 60 to 69 | D118: 291091.3494 | E118: 17049.49719
A119: ATV/Other/unknown vehicle | B119: 2:Dunedin | C119: 70 to 79 | D119: 632113.0849 | E119: 30319.57698
A120: ATV/Other/unknown vehicle | B120: 2:Dunedin | C120: 40 to 49 | D120: 1625686.996 | E120: 84177.46964
A121: ATV/Other/unknown vehicle | B121: 2:Dunedin | C121: 50 to 59 | D121: 370079.9961 | E121: 10503.83747
A122: ATV/Other/unknown vehicle | B122: 2:Dunedin | C122: 0 to 9 | D122: 2421245.452 | E122: 264278.7841
A123: ATV/Other/unknown vehicle | B123: 2:Dunedin | C123: 30 to 39 | D123: 381588.1395 | E123: 23710.42808
A124: ATV/Other/unknown vehicle | B124: 2:Dunedin | C124: 20 to 29 | D124: 15222.19464 | E124: 1365.520402
A125: ATV/Other/unknown vehicle | B125: 2:Dunedin | C125: 10 to 19 | D125: 146778.0273 | E125: 51047.22312
A126: ATV/Other/unknown vehicle | B126: 2:Queenstown | C126: 60 to 69 | D126: 382508.8414 | E126: 16138.60275
A127: ATV/Other/unknown vehicle | B127: 2:Queenstown | C127: 40 to 49 | D127: 37223.84062 | E127: 7966.780045
A128: ATV/Other/unknown vehicle | B128: 2:Queenstown | C128: 50 to 59 | D128: 137.25 | E128: 4117.5
A129: ATV/Other/unknown vehicle | B129: 2:Queenstown | C129: 0 to 9 | D129: 107254.155 | E129: 11223.75
A130: ATV/Other/unknown vehicle | B130: 2:Queenstown | C130: 30 to 39 | D130: 12894.34339 | E130: 472.437375
A131: Bicycle (incl. E-bike) | B131: Rest of NZ | C131: 80+ | D131: 650666.6324 | E131: 79028.06976
A132: Bicycle (incl. E-bike) | B132: Rest of NZ | C132: 60 to 69 | D132: 16821400.56 | E132: 1271294.292
A133: Bicycle (incl. E-bike) | B133: Rest of NZ | C133: 70 to 79 | D133: 12176404.15 | E133: 910361.8123
A134: Bicycle (incl. E-bike) | B134: Rest of NZ | C134: 40 to 49 | D134: 12655689.54 | E134: 1028365.776
A135: Bicycle (incl. E-bike) | B135: Rest of NZ | C135: 50 to 59 | D135: 17238014.3 | E135: 1407411.936
A136: Bicycle (incl. E-bike) | B136: Rest of NZ | C136: 0 to 9 | D136: 5742431.142 | E136: 689984.3706
A137: Bicycle (incl. E-bike) | B137: Rest of NZ | C137: 30 to 39 | D137: 4600171.254 | E137: 375853.1533
A138: Bicycle (incl. E-bike) | B138: Rest of NZ | C138: 20 to 29 | D138: 5218101.61 | E138: 341552.4874
A139: Bicycle (incl. E-bike) | B139: Rest of NZ | C139: 10 to 19 | D139: 11524688.68 | E139: 1266341.924
A140: Bicycle (incl. E-bike) | B140: 2:Whangārei | C140: 60 to 69 | D140: 150106.761 | E140: 9576.943
A141: Bicycle (incl. E-bike) | B141: 2:Whangārei | C141: 70 to 79 | D141: 98820.98242 | E141: 22116.25648
A142: Bicycle (incl. E-bike) | B142: 2:Whangārei | C142: 40 to 49 | D142: 329356.6556 | E142: 33196.73185
A143: Bicycle (incl. E-bike) | B143: 2:Whangārei | C143: 0 to 9 | D143: 1139165.721 | E143: 217526.6427
A144: Bicycle (incl. E-bike) | B144: 2:Whangārei | C144: 30 to 39 | D144: 657073.2421 | E144: 49173.82423
A145: Bicycle (incl. E-bike) | B145: 2:Whangārei | C145: 10 to 19 | D145: 163558.1946 | E145: 40027.97268
A146: Bicycle (incl. E-bike) | B146: 1:Auckland | C146: 60 to 69 | D146: 10627752.79 | E146: 648390.5264
A147: Bicycle (incl. E-bike) | B147: 1:Auckland | C147: 70 to 79 | D147: 4488646.797 | E147: 432693.0243
A148: Bicycle (incl. E-bike) | B148: 1:Auckland | C148: 40 to 49 | D148: 26854999.2 | E148: 1579313.01
A149: Bicycle (incl. E-bike) | B149: 1:Auckland | C149: 50 to 59 | D149: 18644204.14 | E149: 938830.2758
A150: Bicycle (incl. E-bike) | B150: 1:Auckland | C150: 0 to 9 | D150: 1760731.341 | E150: 284982.9075
A151: Bicycle (incl. E-bike) | B151: 1:Auckland | C151: 30 to 39 | D151: 7011992.689 | E151: 470929.3453
A152: Bicycle (incl. E-bike) | B152: 1:Auckland | C152: 20 to 29 | D152: 9826025.146 | E152: 828189.0565
A153: Bicycle (incl. E-bike) | B153: 1:Auckland | C153: 10 to 19 | D153: 15344665.5 | E153: 1552983.537
A154: Bicycle (incl. E-bike) | B154: 1:Hamilton | C154: 60 to 69 | D154: 820948.8523 | E154: 60459.00339
A155: Bicycle (incl. E-bike) | B155: 1:Hamilton | C155: 70 to 79 | D155: 440112.4811 | E155: 24754.66337
A156: Bicycle (incl. E-bike) | B156: 1:Hamilton | C156: 40 to 49 | D156: 1509964.044 | E156: 96966.68585
A157: Bicycle (incl. E-bike) | B157: 1:Hamilton | C157: 50 to 59 | D157: 1024072.309 | E157: 80086.34915
A158: Bicycle (incl. E-bike) | B158: 1:Hamilton | C158: 0 to 9 | D158: 694154.1954 | E158: 94894.62645
A159: Bicycle (incl. E-bike) | B159: 1:Hamilton | C159: 30 to 39 | D159: 1555852.22 | E159: 138025.4397
A160: Bicycle (incl. E-bike) | B160: 1:Hamilton | C160: 20 to 29 | D160: 2401128.488 | E160: 150916.6071
A161: Bicycle (incl. E-bike) | B161: 1:Hamilton | C161: 10 to 19 | D161: 1787017.26 | E161: 175388.6142
A162: Bicycle (incl. E-bike) | B162: 1:Tauranga | C162: 80+ | D162: 177728.1092 | E162: 13098.65816
A163: Bicycle (incl. E-bike) | B163: 1:Tauranga | C163: 60 to 69 | D163: 1572102.443 | E163: 117125.0279
A164: Bicycle (incl. E-bike) | B164: 1:Tauranga | C164: 70 to 79 | D164: 1854872.955 | E164: 154220.582
A165: Bicycle (incl. E-bike) | B165: 1:Tauranga | C165: 40 to 49 | D165: 3026305.013 | E165: 245127.9331
A166: Bicycle (incl. E-bike) | B166: 1:Tauranga | C166: 50 to 59 | D166: 2458837.143 | E166: 136675.7851
A167: Bicycle (incl. E-bike) | B167: 1:Tauranga | C167: 0 to 9 | D167: 700321.4467 | E167: 89552.72712
A168: Bicycle (incl. E-bike) | B168: 1:Tauranga | C168: 30 to 39 | D168: 1536297.804 | E168: 95654.92551
A169: Bicycle (incl. E-bike) | B169: 1:Tauranga | C169: 20 to 29 | D169: 763246.6181 | E169: 46291.97952
A170: Bicycle (incl. E-bike) | B170: 1:Tauranga | C170: 10 to 19 | D170: 1368920.143 | E170: 113999.0638
A171: Bicycle (incl. E-bike) | B171: 2:Rotorua | C171: 60 to 69 | D171: 217100.129 | E171: 13236.25878
A172: Bicycle (incl. E-bike) | B172: 2:Rotorua | C172: 70 to 79 | D172: 5817.394538 | E172: 555.3766387
A173: Bicycle (incl. E-bike) | B173: 2:Rotorua | C173: 40 to 49 | D173: 428079.7192 | E173: 86490.63986
A174: Bicycle (incl. E-bike) | B174: 2:Rotorua | C174: 50 to 59 | D174: 2663297.743 | E174: 189829.1544
A175: Bicycle (incl. E-bike) | B175: 2:Rotorua | C175: 0 to 9 | D175: 144969.4833 | E175: 5562.7825
A176: Bicycle (incl. E-bike) | B176: 2:Rotorua | C176: 30 to 39 | D176: 46568.38347 | E176: 6685.225286
A177: Bicycle (incl. E-bike) | B177: 2:Rotorua | C177: 20 to 29 | D177: 255158.9149 | E177: 34066.17465
A178: Bicycle (incl. E-bike) | B178: 2:Rotorua | C178: 10 to 19 | D178: 761243.9392 | E178: 77385.8035
A179: Bicycle (incl. E-bike) | B179: 2:Napier Hastings | C179: 80+ | D179: 86007.38571 | E179: 7081.446429
A180: Bicycle (incl. E-bike) | B180: 2:Napier Hastings | C180: 60 to 69 | D180: 1807094.594 | E180: 97492.01798
A181: Bicycle (incl. E-bike) | B181: 2:Napier Hastings | C181: 70 to 79 | D181: 2206708.744 | E181: 212312.8958
A182: Bicycle (incl. E-bike) | B182: 2:Napier Hastings | C182: 40 to 49 | D182: 1498925.152 | E182: 143574.426
A183: Bicycle (incl. E-bike) | B183: 2:Napier Hastings | C183: 50 to 59 | D183: 379638.3536 | E183: 43483.82449
A184: Bicycle (incl. E-bike) | B184: 2:Napier Hastings | C184: 0 to 9 | D184: 235002.2974 | E184: 32176.96504
A185: Bicycle (incl. E-bike) | B185: 2:Napier Hastings | C185: 30 to 39 | D185: 1150399.618 | E185: 55052.75237
A186: Bicycle (incl. E-bike) | B186: 2:Napier Hastings | C186: 20 to 29 | D186: 1886381.516 | E186: 66574.02602
A187: Bicycle (incl. E-bike) | B187: 2:Napier Hastings | C187: 10 to 19 | D187: 3886183.19 | E187: 302539.9805
A188: Bicycle (incl. E-bike) | B188: 2:New Plymouth | C188: 60 to 69 | D188: 1339320.132 | E188: 71728.93592
A189: Bicycle (incl. E-bike) | B189: 2:New Plymouth | C189: 70 to 79 | D189: 116901.0091 | E189: 10947.52853
A190: Bicycle (incl. E-bike) | B190: 2:New Plymouth | C190: 40 to 49 | D190: 98581.9375 | E190: 27771.29875
A191: Bicycle (incl. E-bike) | B191: 2:New Plymouth | C191: 50 to 59 | D191: 1637049.067 | E191: 99178.36756
A192: Bicycle (incl. E-bike) | B192: 2:New Plymouth | C192: 0 to 9 | D192: 223146.751 | E192: 16523.26923
A193: Bicycle (incl. E-bike) | B193: 2:New Plymouth | C193: 30 to 39 | D193: 90173.13916 | E193: 25103.84065
A194: Bicycle (incl. E-bike) | B194: 2:New Plymouth | C194: 20 to 29 | D194: 92850.02727 | E194: 8395.066364
A195: Bicycle (incl. E-bike) | B195: 2:New Plymouth | C195: 10 to 19 | D195: 470576.25 | E195: 33470.04375
A196: Bicycle (incl. E-bike) | B196: 2:Palmerston North | C196: 60 to 69 | D196: 250922.6177 | E196: 12476.91335
A197: Bicycle (incl. E-bike) | B197: 2:Palmerston North | C197: 70 to 79 | D197: 404029.0776 | E197: 22420.81776
A198: Bicycle (incl. E-bike) | B198: 2:Palmerston North | C198: 40 to 49 | D198: 601521.2794 | E198: 75915.36129
A199: Bicycle (incl. E-bike) | B199: 2:Palmerston North | C199: 50 to 59 | D199: 1893674.756 | E199: 146698.3886
A200: Bicycle (incl. E-bike) | B200: 2:Palmerston North | C200: 0 to 9 | D200: 101996.0011 | E200: 15372.06725
A201: Bicycle (incl. E-bike) | B201: 2:Palmerston North | C201: 30 to 39 | D201: 189060.8273 | E201: 10917.52181
... 661 more rows

Sheet HHTS-Tier-Gender (hidden)
A1: HHTS Travel Data by Gender
A2: Use if GENDER sub-groups are selected - this is also the DEFAULT dataset otherwise
A3: User/Veh Type | B3: Geog Area | C3: Gender | D3: '000 Person-Kms Travelled | E3: '000 Hrs Travelled
A4: Motor car occupant (car/taxi/van/ute) | B4: 1:Auckland | C4: Male | D4: =SUMIF($A$20:$A$281,$A4,$D$20:$D$281)*0.001 -> 52209991.82 | E4: =SUMIF($A$20:$A$281,$A4,$E$20:$E$281)*0.001 -> 1337590.422
A5: Truck occupant | B5: 1:Hamilton | C5: Female | D5: =SUMIF($A$20:$A$281,$A5,$D$20:$D$281)*0.001 -> 463187.1234 | E5: =SUMIF($A$20:$A$281,$A5,$E$20:$E$281)*0.001 -> 11241.95032
A6: Motorcycle/motor-scooter/mo-ped rider | B6: 1:Tauranga | C6: Another/Unknown | D6: 154595.0014 | E6: 4099.97494
A7: Bicycle (incl. E-bike) | B7: 1:Wellington | D7: 388160.1394 | E7: 29172.2322
A8: Wheeled device - E-scooter rider | B8: 1:Christchurch | D8: 2577.702059 | E8: 273.2820073
A9: Wheeled device - Other (e.g. skateboard, kick-scooter) | B9: 2:Whangārei | D9: 14703.1369 | E9: 347.7249876
A10: ATV/Other/unknown vehicle | B10: 2:Rotorua | D10: 301833.2928 | E10: 12225.37922
A11: Pedestrian | B11: 2:New Plymouth | D11: 691132.7914 | E11: 157139.9331
A12: Pedestrian mobility device user (e.g. wheelchair, mobility scooter) | B12: 2:Napier Hastings | D12: 4917.094216 | E12: 900.9597063
A13: Bus occupant | B13: 2:Palmerston North | D13: 1126479.054 | E13: 50604.59363
A14: Train/tram passenger | B14: 2:Nelson Tasman | D14: 519566.8398 | E14: 14612.16573
A15: Ferry passenger | B15: 2:Dunedin | D15: 119594.6362 | E15: 3536.954212
B16: 2:Queenstown | D16: =SUM(D4:D9)+SUM(D11:D15) -> 55694905.34 | E16: =SUM(E4:E9)+SUM(E11:E15) -> 1609520.193
B17: Rest of NZ
A19: User/Veh Type | B19: Geog Area | C19: Gender | D19: Weighted PKT (km/year) | E19: Weighted duration (hours)
A20: ATV/Other/unknown vehicle | B20: Rest of NZ | C20: Female | D20: 18420677.27 | E20: 1120744.779
A21: ATV/Other/unknown vehicle | B21: Rest of NZ | C21: Male | D21: 78310447.3 | E21: 3027615.072
A22: ATV/Other/unknown vehicle | B22: 2:Whangārei | C22: Female | D22: 1569085.623 | E22: 33854.54153
A23: ATV/Other/unknown vehicle | B23: 2:Whangārei | C23: Male | D23: 1940127.285 | E23: 37423.10778
A24: ATV/Other/unknown vehicle | B24: 1:Auckland | C24: Female | D24: 27245583.01 | E24: 1826409.154
A25: ATV/Other/unknown vehicle | B25: 1:Auckland | C25: Male | D25: 45989106.14 | E25: 1973348.468
A26: ATV/Other/unknown vehicle | B26: 1:Hamilton | C26: Female | D26: 2744036.903 | E26: 132184.9363
A27: ATV/Other/unknown vehicle | B27: 1:Hamilton | C27: Male | D27: 10921904.03 | E27: 204469.9776
A28: ATV/Other/unknown vehicle | B28: 1:Tauranga | C28: Female | D28: 11708954.24 | E28: 171465.6367
A29: ATV/Other/unknown vehicle | B29: 1:Tauranga | C29: Male | D29: 10022674.13 | E29: 285184.7628
A30: ATV/Other/unknown vehicle | B30: 2:Rotorua | C30: Female | D30: 319014.4565 | E30: 24835.99551
A31: ATV/Other/unknown vehicle | B31: 2:Rotorua | C31: Male | D31: 657383.9212 | E31: 26915.0209
A32: ATV/Other/unknown vehicle | B32: 2:Napier Hastings | C32: Female | D32: 4566471.405 | E32: 161361.9978
A33: ATV/Other/unknown vehicle | B33: 2:Napier Hastings | C33: Male | D33: 6958877.063 | E33: 232206.6601
A34: ATV/Other/unknown vehicle | B34: 2:New Plymouth | C34: Female | D34: 3722304.396 | E34: 59742.31521
A35: ATV/Other/unknown vehicle | B35: 2:New Plymouth | C35: Male | D35: 502304.9694 | E35: 35113.99629
A36: ATV/Other/unknown vehicle | B36: 2:Palmerston North | C36: Female | D36: 4282903.603 | E36: 71909.54319
A37: ATV/Other/unknown vehicle | B37: 2:Palmerston North | C37: Male | D37: 604506.3471 | E37: 39599.05003
A38: ATV/Other/unknown vehicle | B38: 1:Wellington | C38: Female | D38: 26279217.21 | E38: 592199.7749
A39: ATV/Other/unknown vehicle | B39: 1:Wellington | C39: Male | D39: 21445664.71 | E39: 841897.2864
A40: ATV/Other/unknown vehicle | B40: 2:Nelson Tasman | C40: Female | D40: 231700.203 | E40: 29129.6273
A41: ATV/Other/unknown vehicle | B41: 2:Nelson Tasman | C41: Male | D41: 5184632.24 | E41: 68166.06896
A42: ATV/Other/unknown vehicle | B42: 1:Christchurch | C42: Female | D42: 5205984.516 | E42: 270264.8869
A43: ATV/Other/unknown vehicle | B43: 1:Christchurch | C43: Male | D43: 5543516.407 | E43: 462836.9751
A44: ATV/Other/unknown vehicle | B44: 2:Dunedin | C44: Female | D44: 1449233.152 | E44: 153750.5449
A45: ATV/Other/unknown vehicle | B45: 2:Dunedin | C45: Male | D45: 3697232.493 | E45: 231646.6871
A46: ATV/Other/unknown vehicle | B46: 2:Queenstown | C46: Female | D46: 1685926.615 | E46: 93979.90597
A47: ATV/Other/unknown vehicle | B47: 2:Queenstown | C47: Male | D47: 623823.1636 | E47: 17122.44693
A48: Bicycle (incl. E-bike) | B48: Rest of NZ | C48: Female | D48: 29514332.48 | E48: 2476339.06
A49: Bicycle (incl. E-bike) | B49: Rest of NZ | C49: Male | D49: 66830004.96 | E49: 5461567.925
A50: Bicycle (incl. E-bike) | B50: 2:Whangārei | C50: Female | D50: 901741.2132 | E50: 72396.47292
A51: Bicycle (incl. E-bike) | B51: 2:Whangārei | C51: Male | D51: 1607069.026 | E51: 238312.3444
A52: Bicycle (incl. E-bike) | B52: 1:Auckland | C52: Female | D52: 24835603.85 | E52: 2023168.222
A53: Bicycle (incl. E-bike) | B53: 1:Auckland | C53: Male | D53: 77910502.95 | E53: 5005439.045
A54: Bicycle (incl. E-bike) | B54: 1:Hamilton | C54: Female | D54: 2305976.783 | E54: 205363.3162
A55: Bicycle (incl. E-bike) | B55: 1:Hamilton | C55: Male | D55: 7940680.821 | E55: 581550.2854
A56: Bicycle (incl. E-bike) | B56: 1:Tauranga | C56: Female | D56: 4418250.326 | E56: 358849.1901
A57: Bicycle (incl. E-bike) | B57: 1:Tauranga | C57: Male | D57: 10984192.45 | E57: 782218.3121
A58: Bicycle (incl. E-bike) | B58: 2:Rotorua | C58: Female | D58: 684146.797 | E58: 61435.43462
A59: Bicycle (incl. E-bike) | B59: 2:Rotorua | C59: Male | D59: 4034489.231 | E59: 341353.353
A60: Bicycle (incl. E-bike) | B60: 2:Napier Hastings | C60: Female | D60: 3255544.278 | E60: 214444.4864
A61: Bicycle (incl. E-bike) | B61: 2:Napier Hastings | C61: Male | D61: 9913817.72 | E61: 759033.4448
A62: Bicycle (incl. E-bike) | B62: 2:New Plymouth | C62: Female | D62: 1781659.435 | E62: 152113.892
A63: Bicycle (incl. E-bike) | B63: 2:New Plymouth | C63: Male | D63: 2467115.121 | E63: 148018.5534
A64: Bicycle (incl. E-bike) | B64: 2:Palmerston North | C64: Female | D64: 1260980.823 | E64: 136495.9129
A65: Bicycle (incl. E-bike) | B65: 2:Palmerston North | C65: Male | D65: 4630635.877 | E65: 333943.0049
A66: Bicycle (incl. E-bike) | B66: 1:Wellington | C66: Female | D66: 12122526.45 | E66: 1002249.963
A67: Bicycle (incl. E-bike) | B67: 1:Wellington | C67: Male | D67: 33611611.37 | E67: 2557502.465
A68: Bicycle (incl. E-bike) | B68: 2:Nelson Tasman | C68: Female | D68: 4209765.449 | E68: 324801.3232
A69: Bicycle (incl. E-bike) | B69: 2:Nelson Tasman | C69: Male | D69: 8665175.957 | E69: 659504.009
A70: Bicycle (incl. E-bike) | B70: 1:Christchurch | C70: Female | D70: 18981423.79 | E70: 1457587.975
A71: Bicycle (incl. E-bike) | B71: 1:Christchurch | C71: Male | D71: 49299666.75 | E71: 3254224.1
A72: Bicycle (incl. E-bike) | B72: 2:Dunedin | C72: Female | D72: 1792410.338 | E72: 209160.2744
A73: Bicycle (incl. E-bike) | B73: 2:Dunedin | C73: Male | D73: 3612498.555 | E73: 309429.9388
A74: Bicycle (incl. E-bike) | B74: 2:Queenstown | C74: Female | D74: 262860.7461 | E74: 20720.82246
A75: Bicycle (incl. E-bike) | B75: 2:Queenstown | C75: Male | D75: 325455.8602 | E75: 25009.07704
A76: Bus occupant | B76: Rest of NZ | C76: Female | D76: 148960769 | E76: 4390883.137
A77: Bus occupant | B77: Rest of NZ | C77: Male | D77: 144882860 | E77: 4560067.141
A78: Bus occupant | B78: 2:Whangārei | C78: Female | D78: 818669.0173 | E78: 17107.78019
A79: Bus occupant | B79: 2:Whangārei | C79: Male | D79: 2024927.342 | E79: 84127.69554
A80: Bus occupant | B80: 1:Auckland | C80: Female | D80: 266293128.9 | E80: 12985562.98
A81: Bus occupant | B81: 1:Auckland | C81: Male | D81: 213562829 | E81: 11167441.55
A82: Bus occupant | B82: 1:Hamilton | C82: Female | D82: 11164184.57 | E82: 576819.7773
A83: Bus occupant | B83: 1:Hamilton | C83: Male | D83: 4401538.559 | E83: 170943.8153
A84: Bus occupant | B84: 1:Tauranga | C84: Female | D84: 8853990.136 | E84: 275050.5155
A85: Bus occupant | B85: 1:Tauranga | C85: Male | D85: 8667470.706 | E85: 286297.9557
A86: Bus occupant | B86: 2:Rotorua | C86: Female | D86: 14984749.36 | E86: 442671.1486
A87: Bus occupant | B87: 2:Rotorua | C87: Male | D87: 1167754.022 | E87: 39207.85421
A88: Bus occupant | B88: 2:Napier Hastings | C88: Female | D88: 10596499.38 | E88: 398729.9104
A89: Bus occupant | B89: 2:Napier Hastings | C89: Male | D89: 9678244.288 | E89: 326157.4298
A90: Bus occupant | B90: 2:New Plymouth | C90: Female | D90: 1405227.362 | E90: 70022.48574
A91: Bus occupant | B91: 2:New Plymouth | C91: Male | D91: 897378.2016 | E91: 48595.24317
A92: Bus occupant | B92: 2:Palmerston North | C92: Female | D92: 3145258.437 | E92: 154005.027
A93: Bus occupant | B93: 2:Palmerston North | C93: Male | D93: 3041432.908 | E93: 149768.3814
A94: Bus occupant | B94: 1:Wellington | C94: Female | D94: 94645426.3 | E94: 4972445.247
A95: Bus occupant | B95: 1:Wellington | C95: Male | D95: 79918238.72 | E95: 4737884.209
A96: Bus occupant | B96: 2:Nelson Tasman | C96: Female | D96: 5516971.341 | E96: 180773.0889
A97: Bus occupant | B97: 2:Nelson Tasman | C97: Male | D97: 1512061.855 | E97: 78478.0713
A98: Bus occupant | B98: 1:Christchurch | C98: Female | D98: 47454897.91 | E98: 2263186.995
A99: Bus occupant | B99: 1:Christchurch | C99: Male | D99: 26867789.15 | E99: 1358310.99
A100: Bus occupant | B100: 2:Dunedin | C100: Female | D100: 8493032.188 | E100: 463803.0392
A101: Bus occupant | B101: 2:Dunedin | C101: Male | D101: 3747576.971 | E101: 200135.3438
A102: Bus occupant | B102: 2:Queenstown | C102: Female | D102: 3147715.347 | E102: 115806.0241
A103: Bus occupant | B103: 2:Queenstown | C103: Male | D103: 628432.5563 | E103: 90310.79245
A104: Wheeled device - E-scooter rider | B104: 1:Auckland | C104: Female | D104: 267311.1978 | E104: 52390.13582
A105: Wheeled device - E-scooter rider | B105: 1:Auckland | C105: Male | D105: 1312943.047 | E105: 90550.17082
A106: Wheeled device - E-scooter rider | B106: 1:Tauranga | C106: Male | D106: 64321.0295 | E106: 5515.590206
A107: Wheeled device - E-scooter rider | B107: 1:Wellington | C107: Female | D107: 59424.94607 | E107: 12987.48214
A108: Wheeled device - E-scooter rider | B108: 1:Wellington | C108: Male | D108: 529354.2832 | E108: 95989.89666
A109: Wheeled device - E-scooter rider | B109: 1:Christchurch | C109: Male | D109: 344347.5549 | E109: 15848.73165
A110: Ferry passenger | B110: Rest of NZ | C110: Female | D110: 10424492.05 | E110: 326542.6163
A111: Ferry passenger | B111: Rest of NZ | C111: Male | D111: 12268801.39 | E111: 436021.8473
A112: Ferry passenger | B112: 1:Auckland | C112: Female | D112: 24840804.16 | E112: 752244.5097
A113: Ferry passenger | B113: 1:Auckland | C113: Male | D113: 27782518.36 | E113: 709136.8956
A114: Ferry passenger | B114: Rest of NZ | C114: Female | D114: 3573488.414 | E114: 128027.5259
A115: Ferry passenger | B115: Rest of NZ | C115: Female | D115: 1490721.163 | E115: 62336.56574
A116: Ferry passenger | B116: Rest of NZ | C116: Male | D116: 27604.68322 | E116: 15441.77467
A117: Ferry passenger | B117: 1:Wellington | C117: Female | D117: 21209590.97 | E117: 613646.0078
A118: Ferry passenger | B118: 1:Wellington | C118: Male | D118: 11435617.61 | E118: 286003.9882
A119: Ferry passenger | B119: Rest of NZ | C119: Male | D119: 3571393.21 | E119: 41031.91907
A120: Ferry passenger | B120: 1:Christchurch | C120: Female | D120: 1176351.407 | E120: 77425.91019
A121: Ferry passenger | B121: 1:Christchurch | C121: Male | D121: 901210.9076 | E121: 61314.3492
A122: Ferry passenger | B122: 2:Queenstown | C122: Female | D122: 892041.8413 | E122: 27780.30208
A123: Motor car occupant (car/taxi/van/ute) | B123: Rest of NZ | C123: Female | D123: 1.021065976e+10 | E123: 215917970.2
A124: Motor car occupant (car/taxi/van/ute) | B124: Rest of NZ | C124: Male | D124: 1.167993536e+10 | E124: 234236357.5
A125: Motor car occupant (car/taxi/van/ute) | B125: 2:Whangārei | C125: Female | D125: 194700909.1 | E125: 6345188.942
A126: Motor car occupant (car/taxi/van/ute) | B126: 2:Whangārei | C126: Male | D126: 262971261.5 | E126: 6981956.834
A127: Motor car occupant (car/taxi/van/ute) | B127: 1:Auckland | C127: Female | D127: 6252941406 | E127: 209680115.6
A128: Motor car occupant (car/taxi/van/ute) | B128: 1:Auckland | C128: Male | D128: 7312969275 | E128: 220853800.6
A129: Motor car occupant (car/taxi/van/ute) | B129: 1:Hamilton | C129: Female | D129: 1002850420 | E129: 26960539.79
A130: Motor car occupant (car/taxi/van/ute) | B130: 1:Hamilton | C130: Male | D130: 1169004549 | E130: 28019321.45
A131: Motor car occupant (car/taxi/van/ute) | B131: 1:Tauranga | C131: Female | D131: 819295353.1 | E131: 20417525.52
A132: Motor car occupant (car/taxi/van/ute) | B132: 1:Tauranga | C132: Male | D132: 852755660.1 | E132: 19935975.12
A133: Motor car occupant (car/taxi/van/ute) | B133: 2:Rotorua | C133: Female | D133: 273283831.7 | E133: 6821055.465
A134: Motor car occupant (car/taxi/van/ute) | B134: 2:Rotorua | C134: Male | D134: 368303185.4 | E134: 8429032.54
A135: Motor car occupant (car/taxi/van/ute) | B135: 2:Napier Hastings | C135: Female | D135: 667635433.3 | E135: 17819919.4
A136: Motor car occupant (car/taxi/van/ute) | B136: 2:Napier Hastings | C136: Male | D136: 740611055.5 | E136: 18227660.46
A137: Motor car occupant (car/taxi/van/ute) | B137: 2:New Plymouth | C137: Female | D137: 240965706.8 | E137: 7285614.095
A138: Motor car occupant (car/taxi/van/ute) | B138: 2:New Plymouth | C138: Male | D138: 279404285 | E138: 7171713.043
A139: Motor car occupant (car/taxi/van/ute) | B139: 2:Palmerston North | C139: Female | D139: 330888844.4 | E139: 9379632.548
A140: Motor car occupant (car/taxi/van/ute) | B140: 2:Palmerston North | C140: Male | D140: 365465175.5 | E140: 9242435.55
A141: Motor car occupant (car/taxi/van/ute) | B141: 1:Wellington | C141: Female | D141: 1976501171 | E141: 56659989.69
A142: Motor car occupant (car/taxi/van/ute) | B142: 1:Wellington | C142: Male | D142: 1918242125 | E142: 53239461.69
A143: Motor car occupant (car/taxi/van/ute) | B143: 2:Nelson Tasman | C143: Female | D143: 238578500.1 | E143: 7484192.158
A144: Motor car occupant (car/taxi/van/ute) | B144: 2:Nelson Tasman | C144: Male | D144: 271170026.4 | E144: 7634926.273
A145: Motor car occupant (car/taxi/van/ute) | B145: 1:Christchurch | C145: Female | D145: 1771020820 | E145: 54142046.32
A146: Motor car occupant (car/taxi/van/ute) | B146: 1:Christchurch | C146: Male | D146: 2064081147 | E146: 56828407.07
A147: Motor car occupant (car/taxi/van/ute) | B147: 2:Dunedin | C147: Female | D147: 411213229.2 | E147: 12668361.1
A148: Motor car occupant (car/taxi/van/ute) | B148: 2:Dunedin | C148: Male | D148: 396665076.8 | E148: 11678698.49
A149: Motor car occupant (car/taxi/van/ute) | B149: 2:Queenstown | C149: Female | D149: 53608243.82 | E149: 1248315.314
A150: Motor car occupant (car/taxi/van/ute) | B150: 2:Queenstown | C150: Male | D150: 84270014.08 | E150: 2280209.231
A151: Motorcycle/motor-scooter/mo-ped rider | B151: Rest of NZ | C151: Female | D151: 13358879.61 | E151: 364874.5796
A152: Motorcycle/motor-scooter/mo-ped rider | B152: Rest of NZ | C152: Male | D152: 44500365.7 | E152: 949463.6621
A153: Motorcycle/motor-scooter/mo-ped rider | B153: 1:Auckland | C153: Female | D153: 2148323.661 | E153: 55385.41403
A154: Motorcycle/motor-scooter/mo-ped rider | B154: 1:Auckland | C154: Male | D154: 34044229.85 | E154: 902774.1559
A155: Motorcycle/motor-scooter/mo-ped rider | B155: 1:Hamilton | C155: Female | D155: 1729240.985 | E155: 48125.26691
A156: Motorcycle/motor-scooter/mo-ped rider | B156: 1:Hamilton | C156: Male | D156: 2711319.61 | E156: 87196.43137
A157: Motorcycle/motor-scooter/mo-ped rider | B157: 1:Tauranga | C157: Female | D157: 1087206.758 | E157: 40572.49678
A158: Motorcycle/motor-scooter/mo-ped rider | B158: 1:Tauranga | C158: Male | D158: 4710724.354 | E158: 182060.4438
A159: Motorcycle/motor-scooter/mo-ped rider | B159: 2:Rotorua | C159: Male | D159: 803023.0106 | E159: 10952.73445
A160: Motorcycle/motor-scooter/mo-ped rider | B160: 2:Napier Hastings | C160: Male | D160: 464430.7683 | E160: 9969.74859
A161: Motorcycle/motor-scooter/mo-ped rider | B161: 2:New Plymouth | C161: Male | D161: 808127.0116 | E161: 40711.05981
A162: Motorcycle/motor-scooter/mo-ped rider | B162: 2:Palmerston North | C162: Female | D162: 154076.7104 | E162: 8171.825527
A163: Motorcycle/motor-scooter/mo-ped rider | B163: 1:Wellington | C163: Female | D163: 2075593.932 | E163: 82500.28166
A164: Motorcycle/motor-scooter/mo-ped rider | B164: 1:Wellington | C164: Male | D164: 27522519.66 | E164: 773160.695
A165: Motorcycle/motor-scooter/mo-ped rider | B165: 2:Nelson Tasman | C165: Male | D165: 3031001.211 | E165: 96232.70687
A166: Motorcycle/motor-scooter/mo-ped rider | B166: 1:Christchurch | C166: Female | D166: 308680.9166 | E166: 6721.051236
A167: Motorcycle/motor-scooter/mo-ped rider | B167: 1:Christchurch | C167: Male | D167: 14631211.51 | E167: 426246.2741
A168: Motorcycle/motor-scooter/mo-ped rider | B168: 2:Dunedin | C168: Female | D168: 192013.0732 | E168: 6097.287341
A169: Motorcycle/motor-scooter/mo-ped rider | B169: 2:Dunedin | C169: Male | D169: 314033.0866 | E169: 8758.825397
A170: Wheeled device - other (e.g. skateboard, kick-scooter) | B170: Rest of NZ | C170: Male | D170: 984262.6493 | E170: 34548.38723
A171: Wheeled device - other (e.g. skateboard, kick-scooter) | B171: 1:Auckland | C171: Male | D171: 13177802.21 | E171: 298606.9601
A172: Wheeled device - other (e.g. skateboard, kick-scooter) | B172: 1:Tauranga | C172: Female | D172: 96147.51531 | E172: 1262.725342
A173: Wheeled device - other (e.g. skateboard, kick-scooter) | B173: 1:Tauranga | C173: Male | D173: 444924.5326 | E173: 13306.91493
A174: Pedestrian | B174: Rest of NZ | C174: Female | D174: 79338279.52 | E174: 17811003.45
A175: Pedestrian | B175: Rest of NZ | C175: Male | D175: 60080397.6 | E175: 13935786.55
A176: Pedestrian | B176: 2:Whangārei | C176: Female | D176: 1885702.973 | E176: 510707.1772
A177: Pedestrian | B177: 2:Whangārei | C177: Male | D177: 2865243.423 | E177: 691082.1764
A178: Pedestrian | B178: 1:Auckland | C178: Female | D178: 112825050.8 | E178: 26422811.73
A179: Pedestrian | B179: 1:Auckland | C179: Male | D179: 94813123.91 | E179: 21922007.17
A180: Pedestrian | B180: 1:Hamilton | C180: Female | D180: 11179891.7 | E180: 2561204.252
A181: Pedestrian | B181: 1:Hamilton | C181: Male | D181: 8844015.111 | E181: 1983413.601
A182: Pedestrian | B182: 1:Tauranga | C182: Female | D182: 8422933.473 | E182: 1736155.317
A183: Pedestrian | B183: 1:Tauranga | C183: Male | D183: 7526647.874 | E183: 1413516.659
A184: Pedestrian | B184: 2:Rotorua | C184: Female | D184: 3232793.766 | E184: 744585.1762
A185: Pedestrian | B185: 2:Rotorua | C185: Male | D185: 2620949.617 | E185: 604293.6132
A186: Pedestrian | B186: 2:Napier Hastings | C186: Female | D186: 7825607.736 | E186: 1650886.229
A187: Pedestrian | B187: 2:Napier Hastings | C187: Male | D187: 4175791.542 | E187: 917560.7306
A188: Pedestrian | B188: 2:New Plymouth | C188: Female | D188: 4892840.466 | E188: 1131832.913
A189: Pedestrian | B189: 2:New Plymouth | C189: Male | D189: 3180756.836 | E189: 819051.333
A190: Pedestrian | B190: 2:Palmerston North | C190: Female | D190: 6411888.842 | E190: 1430145.854
A191: Pedestrian | B191: 2:Palmerston North | C191: Male | D191: 6198846.364 | E191: 1469391.452
A192: Pedestrian | B192: 1:Wellington | C192: Female | D192: 74896929.68 | E192: 17902055.63
A193: Pedestrian | B193: 1:Wellington | C193: Male | D193: 66231263.84 | E193: 15042817.71
A194: Pedestrian | B194: 2:Nelson Tasman | C194: Female | D194: 7885182.883 | E194: 1787259.993
A195: Pedestrian | B195: 2:Nelson Tasman | C195: Male | D195: 6098321.905 | E195: 1375700.408
A196: Pedestrian | B196: 1:Christchurch | C196: Female | D196: 38580448.96 | E196: 7985908.293
A197: Pedestrian | B197: 1:Christchurch | C197: Male | D197: 33239133.75 | E197: 7341819.919
A198: Pedestrian | B198: 2:Dunedin | C198: Female | D198: 19291539.26 | E198: 4182395.69
A199: Pedestrian | B199: 2:Dunedin | C199: Male | D199: 15697927.53 | E199: 3174770.687
A200: Pedestrian | B200: 2:Queenstown | C200: Female | D200: 1956427.668 | E200: 394519.9096
A201: Pedestrian | B201: 2:Queenstown | C201: Male | D201: 934854.2953 | E201: 197249.5136
... 77 more rows

Sheet HHTS-Tier-Ethnic (hidden)
A1: HHTS Travel Data by Ethnicity
A2: Use only if ETHNICITY sub-groups are selected - can only split by one demographic at a time
A3: User/Veh Type | B3: Geog Area | C3: Ethnicity | D3: '000 Person-Kms Travelled | E3: '000 Hrs Travelled
A4: Motor car occupant (car/taxi/van/ute) | B4: 1:Auckland | C4: Māori | D4: =SUMIF($A$20:$A$438,$A4,$D$20:$D$438)*0.001 -> 51414671.15 | E4: =SUMIF($A$20:$A$438,$A4,$E$20:$E$438)*0.001 -> 1328804.259
A5: Truck occupant | B5: 1:Hamilton | C5: Pacific People | D5: 475853.8839 | E5: 11918.29201
A6: Motorcycle/motor-scooter/mo-ped rider | B6: 1:Tauranga | C6: Asian | D6: 135603.0229 | E6: 3758.34597
A7: Bicycle (incl. E-bike) | B7: 1:Wellington | C7: European | D7: 347784.9562 | E7: 26707.82733
A8: Wheeled device - E-scooter rider | B8: 1:Christchurch | C8: Other/MELAA/Residual/Unknown | D8: 2517.608326 | E8: 286.5136286
A9: Wheeled device - Other (e.g. skateboard, kick-scooter) | B9: 2:Whangārei | D9: 10344.42736 | E9: 243.3678235
A10: ATV/Other/unknown vehicle | B10: 2:Rotorua | D10: 286529.4605 | E10: 11630.36575
A11: Pedestrian | B11: 2:New Plymouth | D11: 680327.7467 | E11: 153980.0963
A12: Pedestrian mobility device user (e.g. wheelchair, mobility scooter) | B12: 2:Napier Hastings | D12: 4734.118597 | E12: 857.1581115
A13: Bus occupant | B13: 2:Palmerston North | D13: 1149608.907 | E13: 52899.15561
A14: Train/tram passenger | B14: 2:Nelson Tasman | D14: 513889.141 | E14: 14058.23848
A15: Ferry passenger | B15: 2:Dunedin | D15: 107336.1238 | E15: 2963.16744
B16: 2:Queenstown | D16: =SUM(D4:D9)+SUM(D11:D15) -> 54842671.08 | E16: =SUM(E4:E9)+SUM(E11:E15) -> 1596476.422
B17: Rest of NZ
A19: User/Veh Type | B19: Geog Area | C19: Ethnicity | D19: Weighted PKT (km/year) | E19: Weighted duration (hrs)
A20: ATV/Other/unknown vehicle | B20: Rest of NZ | C20: Māori | D20: 6318746.839 | E20: 1155617.947
A21: ATV/Other/unknown vehicle | B21: Rest of NZ | C21: Pacific People | D21: 5198004.048 | E21: 143626.4116
A22: ATV/Other/unknown vehicle | B22: Rest of NZ | C22: European | D22: 76939214.53 | E22: 2898439.731
A23: ATV/Other/unknown vehicle | B23: Rest of NZ | C23: Asian | D23: 815195.2117 | E23: 39223.48527
A24: ATV/Other/unknown vehicle | B24: Rest of NZ | C24: Other/MELAA | D24: 625307.2203 | E24: 24039.40015
A25: ATV/Other/unknown vehicle | B25: 2:Whangārei | C25: Māori | D25: 281652.5293 | E25: 9638.063988
A26: ATV/Other/unknown vehicle | B26: 2:Whangārei | C26: Pacific People | D26: 67744.31286 | E26: 1901.055571
A27: ATV/Other/unknown vehicle | B27: 2:Whangārei | C27: European | D27: 2100004.757 | E27: 39058.27689
A28: ATV/Other/unknown vehicle | B28: 2:Whangārei | C28: Asian | D28: 60028.36929 | E28: 5631.470286
A29: ATV/Other/unknown vehicle | B29: 1:Auckland | C29: Māori | D29: 8658846.743 | E29: 475415.3527
A30: ATV/Other/unknown vehicle | B30: 1:Auckland | C30: Pacific People | D30: 3528886.271 | E30: 163378.2769
A31: ATV/Other/unknown vehicle | B31: 1:Auckland | C31: European | D31: 36009823.12 | E31: 1916505.689
A32: ATV/Other/unknown vehicle | B32: 1:Auckland | C32: Asian | D32: 15209127.91 | E32: 631492.5489
A33: ATV/Other/unknown vehicle | B33: 1:Auckland | C33: Other/MELAA | D33: 6182070.81 | E33: 288430.0502
A34: ATV/Other/unknown vehicle | B34: 1:Hamilton | C34: Māori | D34: 14237925.25 | E34: 126026.9162
A35: ATV/Other/unknown vehicle | B35: 1:Hamilton | C35: Pacific People | D35: 968.7397959 | E35: 63610.68413
A36: ATV/Other/unknown vehicle | B36: 1:Hamilton | C36: European | D36: 4457696.802 | E36: 144989.7252
A37: ATV/Other/unknown vehicle | B37: 1:Tauranga | C37: Māori | D37: 10060108.72 | E37: 168697.763
A38: ATV/Other/unknown vehicle | B38: 1:Tauranga | C38: Pacific People | D38: 67051.54286 | E38: 13140
A39: ATV/Other/unknown vehicle | B39: 1:Tauranga | C39: European | D39: 11734486.76 | E39: 261407.6408
A40: ATV/Other/unknown vehicle | B40: 1:Tauranga | C40: Asian | D40: 196842.3814 | E40: 20762.31729
A41: ATV/Other/unknown vehicle | B41: 2:Rotorua | C41: Māori | D41: 684805.0743 | E41: 17728.57143
A42: ATV/Other/unknown vehicle | B42: 2:Rotorua | C42: European | D42: 263760.6798 | E42: 18300.64844
A43: ATV/Other/unknown vehicle | B43: 2:Napier Hastings | C43: Māori | D43: 591146.3498 | E43: 22022.83716
A44: ATV/Other/unknown vehicle | B44: 2:Napier Hastings | C44: European | D44: 8343827.401 | E44: 228761.0613
A45: ATV/Other/unknown vehicle | B45: 2:Napier Hastings | C45: Asian | D45: 38386.74707 | E45: 53183.64198
A46: ATV/Other/unknown vehicle | B46: 2:New Plymouth | C46: Māori | D46: 66375.77143 | E46: 1800.388571
A47: ATV/Other/unknown vehicle | B47: 2:New Plymouth | C47: European | D47: 3373902.722 | E47: 64712.62796
A48: ATV/Other/unknown vehicle | B48: 2:Palmerston North | C48: European | D48: 2537932.487 | E48: 76524.73637
A49: ATV/Other/unknown vehicle | B49: 2:Palmerston North | C49: Asian | D49: 96945.36701 | E49: 4859.304019
A50: ATV/Other/unknown vehicle | B50: 2:Palmerston North | C50: Other/MELAA | D50: 4777572.6 | E50: 31529.67333
A51: ATV/Other/unknown vehicle | B51: 1:Wellington | C51: Māori | D51: 1276633.372 | E51: 153858.8776
A52: ATV/Other/unknown vehicle | B52: 1:Wellington | C52: Pacific People | D52: 1140441.315 | E52: 46383.7669
A53: ATV/Other/unknown vehicle | B53: 1:Wellington | C53: European | D53: 25882247.21 | E53: 1018535.913
A54: ATV/Other/unknown vehicle | B54: 1:Wellington | C54: Asian | D54: 11389397.28 | E54: 143028.4945
A55: ATV/Other/unknown vehicle | B55: 1:Wellington | C55: Other/MELAA | D55: 151387.5043 | E55: 9474.878571
A56: ATV/Other/unknown vehicle | B56: 2:Nelson Tasman | C56: Māori | D56: 166185.7167 | E56: 5051.617381
A57: ATV/Other/unknown vehicle | B57: 2:Nelson Tasman | C57: Pacific People | D57: 78608.016 | E57: 8136.18
A58: ATV/Other/unknown vehicle | B58: 2:Nelson Tasman | C58: European | D58: 5154815.679 | E58: 85761.14881
A59: ATV/Other/unknown vehicle | B59: 1:Christchurch | C59: Māori | D59: 192199.522 | E59: 14849.5238
A60: ATV/Other/unknown vehicle | B60: 1:Christchurch | C60: Pacific People | D60: 95893.25961 | E60: 7331.288961
A61: ATV/Other/unknown vehicle | B61: 1:Christchurch | C61: European | D61: 9046487.832 | E61: 617995.6963
A62: ATV/Other/unknown vehicle | B62: 1:Christchurch | C62: Asian | D62: 1187927.566 | E62: 51046.12161
A63: ATV/Other/unknown vehicle | B63: 1:Christchurch | C63: Other/MELAA | D63: 1211120.709 | E63: 13613.19643
A64: ATV/Other/unknown vehicle | B64: 2:Dunedin | C64: Māori | D64: 442575.5284 | E64: 13237.19296
A65: ATV/Other/unknown vehicle | B65: 2:Dunedin | C65: European | D65: 2734326.107 | E65: 161957.625
A66: ATV/Other/unknown vehicle | B66: 2:Dunedin | C66: Asian | D66: 344340.7619 | E66: 50666.24095
A67: ATV/Other/unknown vehicle | B67: 2:Dunedin | C67: Other/MELAA | D67: 323202.974 | E67: 25111.197
A68: ATV/Other/unknown vehicle | B68: 2:Queenstown | C68: Māori | D68: 57223.83857 | E68: 2096.631
A69: ATV/Other/unknown vehicle | B69: 2:Queenstown | C69: European | D69: 2130058.24 | E69: 91773.85945
A70: Bicycle (incl. E-bike) | B70: Rest of NZ | C70: Māori | D70: 10243597.46 | E70: 1132766.876
A71: Bicycle (incl. E-bike) | B71: Rest of NZ | C71: Pacific People | D71: 466961.068 | E71: 47946.56675
A72: Bicycle (incl. E-bike) | B72: Rest of NZ | C72: European | D72: 76691323.79 | E72: 6171768.521
A73: Bicycle (incl. E-bike) | B73: Rest of NZ | C73: Asian | D73: 713509.9259 | E73: 53932.38701
A74: Bicycle (incl. E-bike) | B74: Rest of NZ | C74: Other/MELAA | D74: 2023823.881 | E74: 351404.8229
A75: Bicycle (incl. E-bike) | B75: 2:Whangārei | C75: Māori | D75: 144444.9239 | E75: 35350.33803
A76: Bicycle (incl. E-bike) | B76: 2:Whangārei | C76: European | D76: 1691210.594 | E76: 200130.5805
A77: Bicycle (incl. E-bike) | B77: 1:Auckland | C77: Māori | D77: 4506657.343 | E77: 619119.3366
A78: Bicycle (incl. E-bike) | B78: 1:Auckland | C78: Pacific People | D78: 1142269.907 | E78: 135820.0356
A79: Bicycle (incl. E-bike) | B79: 1:Auckland | C79: European | D79: 68395672.57 | E79: 4531541.863
A80: Bicycle (incl. E-bike) | B80: 1:Auckland | C80: Asian | D80: 6512507.79 | E80: 325071.189
A81: Bicycle (incl. E-bike) | B81: 1:Auckland | C81: Other/MELAA | D81: 320266.8846 | E81: 23942.9824
A82: Bicycle (incl. E-bike) | B82: 1:Hamilton | C82: Māori | D82: 830067.5282 | E82: 66749.79993
A83: Bicycle (incl. E-bike) | B83: 1:Hamilton | C83: European | D83: 6400566.626 | E83: 496426.4036
A84: Bicycle (incl. E-bike) | B84: 1:Hamilton | C84: Asian | D84: 543347.4162 | E84: 51288.93906
A85: Bicycle (incl. E-bike) | B85: 1:Tauranga | C85: Māori | D85: 756602.6945 | E85: 69755.21095
A86: Bicycle (incl. E-bike) | B86: 1:Tauranga | C86: Pacific People | D86: 528588.4114 | E86: 33788.57143
A87: Bicycle (incl. E-bike) | B87: 1:Tauranga | C87: European | D87: 12061521.03 | E87: 900813.0002
A88: Bicycle (incl. E-bike) | B88: 1:Tauranga | C88: Asian | D88: 1111775.769 | E88: 66790.0602
A89: Bicycle (incl. E-bike) | B89: 2:Rotorua | C89: Māori | D89: 1552342.08 | E89: 85060.26743
A90: Bicycle (incl. E-bike) | B90: 2:Rotorua | C90: Pacific People | D90: 189909.5 | E90: 7287.225
A91: Bicycle (incl. E-bike) | B91: 2:Rotorua | C91: European | D91: 3425005.637 | E91: 280363.5389
A92: Bicycle (incl. E-bike) | B92: 2:Rotorua | C92: Asian | D92: 48276.37102 | E92: 6930.419143
A93: Bicycle (incl. E-bike) | B93: 2:Napier Hastings | C93: Māori | D93: 3610068.137 | E93: 226030.3832
A94: Bicycle (incl. E-bike) | B94: 2:Napier Hastings | C94: European | D94: 8616502.299 | E94: 631123.747
A95: Bicycle (incl. E-bike) | B95: 2:Napier Hastings | C95: Asian | D95: 513484.9056 | E95: 54773.94007
A96: Bicycle (incl. E-bike) | B96: 2:New Plymouth | C96: Māori | D96: 865571.304 | E96: 62369.424
A97: Bicycle (incl. E-bike) | B97: 2:New Plymouth | C97: European | D97: 3280420.599 | E97: 233763.0704
A98: Bicycle (incl. E-bike) | B98: 2:Palmerston North | C98: Māori | D98: 465122.9185 | E98: 48331.16234
A99: Bicycle (incl. E-bike) | B99: 2:Palmerston North | C99: Pacific People | D99: 62839.66041 | E99: 5074.218568
A100: Bicycle (incl. E-bike) | B100: 2:Palmerston North | C100: European | D100: 4275588.169 | E100: 331672.7046
A101: Bicycle (incl. E-bike) | B101: 2:Palmerston North | C101: Asian | D101: 21803.97201 | E101: 5218.821079
A102: Bicycle (incl. E-bike) | B102: 1:Wellington | C102: Māori | D102: 7823527.736 | E102: 646459.3868
A103: Bicycle (incl. E-bike) | B103: 1:Wellington | C103: Pacific People | D103: 1221026.771 | E103: 174318.253
A104: Bicycle (incl. E-bike) | B104: 1:Wellington | C104: European | D104: 30956471.87 | E104: 2456357.289
A105: Bicycle (incl. E-bike) | B105: 1:Wellington | C105: Asian | D105: 2606394.154 | E105: 81542.56275
A106: Bicycle (incl. E-bike) | B106: 1:Wellington | C106: Other/MELAA | D106: 728868.0831 | E106: 68086.82793
A107: Bicycle (incl. E-bike) | B107: 2:Nelson Tasman | C107: Māori | D107: 368677.0326 | E107: 56538.84414
A108: Bicycle (incl. E-bike) | B108: 2:Nelson Tasman | C108: Pacific People | D108: 45097.68343 | E108: 3515.545029
A109: Bicycle (incl. E-bike) | B109: 2:Nelson Tasman | C109: European | D109: 10705060.93 | E109: 807283.0352
A110: Bicycle (incl. E-bike) | B110: 2:Nelson Tasman | C110: Asian | D110: 1001541.459 | E110: 104141.8555
A111: Bicycle (incl. E-bike) | B111: 1:Christchurch | C111: Māori | D111: 4688920.031 | E111: 445640.0091
A112: Bicycle (incl. E-bike) | B112: 1:Christchurch | C112: European | D112: 54338616.79 | E112: 3689837.215
A113: Bicycle (incl. E-bike) | B113: 1:Christchurch | C113: Asian | D113: 4677542.361 | E113: 289176.7683
A114: Bicycle (incl. E-bike) | B114: 1:Christchurch | C114: Other/MELAA | D114: 773130.5144 | E114: 53237.46087
A115: Bicycle (incl. E-bike) | B115: 2:Dunedin | C115: European | D115: 5128469.421 | E115: 489792.4515
A116: Bicycle (incl. E-bike) | B116: 2:Queenstown | C116: European | D116: 521543.3922 | E116: 40176.1045
A117: Bicycle (incl. E-bike) | B117: 2:Queenstown | C117: Asian | D117: 188416.8 | E117: 9317.314286
A118: Bus occupant | B118: Rest of NZ | C118: Māori | D118: 47985365.68 | E118: 1629661.289
A119: Bus occupant | B119: Rest of NZ | C119: Pacific People | D119: 8041593.695 | E119: 260506.0248
A120: Bus occupant | B120: Rest of NZ | C120: European | D120: 221894929.7 | E120: 6525931.611
A121: Bus occupant | B121: Rest of NZ | C121: Asian | D121: 7423201.533 | E121: 272620.2049
A122: Bus occupant | B122: Rest of NZ | C122: Other/MELAA | D122: 7118868.439 | E122: 283780.5375
A123: Bus occupant | B123: 2:Whangārei | C123: Māori | D123: 2903755.114 | E123: 48155.14286
A124: Bus occupant | B124: 2:Whangārei | C124: European | D124: 384637.4603 | E124: 39845.04737
A125: Bus occupant | B125: 1:Auckland | C125: Māori | D125: 41576441.17 | E125: 2704622.023
A126: Bus occupant | B126: 1:Auckland | C126: Pacific People | D126: 82974059.1 | E126: 3911151.686
A127: Bus occupant | B127: 1:Auckland | C127: European | D127: 203867925.8 | E127: 9446602.401
A128: Bus occupant | B128: 1:Auckland | C128: Asian | D128: 156578406.3 | E128: 9023456.527
A129: Bus occupant | B129: 1:Auckland | C129: Other/MELAA | D129: 19523181.21 | E129: 743401.2843
A130: Bus occupant | B130: 1:Hamilton | C130: Māori | D130: 1792707.506 | E130: 71285.30891
A131: Bus occupant | B131: 1:Hamilton | C131: European | D131: 8506829.96 | E131: 410052.1312
A132: Bus occupant | B132: 1:Hamilton | C132: Asian | D132: 8003959.648 | E132: 346145.8992
A133: Bus occupant | B133: 1:Tauranga | C133: Māori | D133: 2886806.394 | E133: 123604.3188
A134: Bus occupant | B134: 1:Tauranga | C134: Pacific People | D134: 905233.3714 | E134: 36424.08
A135: Bus occupant | B135: 1:Tauranga | C135: European | D135: 11821952.64 | E135: 343173.6489
A136: Bus occupant | B136: 1:Tauranga | C136: Asian | D136: 1745817.413 | E136: 60834.5265
A137: Bus occupant | B137: 1:Tauranga | C137: Other/MELAA | D137: 33379.2 | E137: 4392
A138: Bus occupant | B138: 2:Rotorua | C138: Māori | D138: 3459986.19 | E138: 223369.9853
A139: Bus occupant | B139: 2:Rotorua | C139: European | D139: 7926399.46 | E139: 196126.2085
A140: Bus occupant | B140: 2:Rotorua | C140: Asian | D140: 1493140.085 | E140: 28815.53156
A141: Bus occupant | B141: 2:Napier Hastings | C141: Māori | D141: 6838990.129 | E141: 167214.3616
A142: Bus occupant | B142: 2:Napier Hastings | C142: European | D142: 11082854.8 | E142: 437608.6845
A143: Bus occupant | B143: 2:Napier Hastings | C143: Asian | D143: 543318.3156 | E143: 17882.55791
A144: Bus occupant | B144: 2:New Plymouth | C144: Māori | D144: 1178538.697 | E144: 56376.02286
A145: Bus occupant | B145: 2:New Plymouth | C145: European | D145: 1358051.671 | E145: 67458.53272
A146: Bus occupant | B146: 2:Palmerston North | C146: Māori | D146: 2103893.638 | E146: 111393.2598
A147: Bus occupant | B147: 2:Palmerston North | C147: European | D147: 3562644.614 | E147: 161316.7689
A148: Bus occupant | B148: 2:Palmerston North | C148: Asian | D148: 1189689.452 | E148: 49926.91985
A149: Bus occupant | B149: 1:Wellington | C149: Māori | D149: 12436565.29 | E149: 992653.1384
A150: Bus occupant | B150: 1:Wellington | C150: Pacific People | D150: 9082749.539 | E150: 361067.6016
A151: Bus occupant | B151: 1:Wellington | C151: European | D151: 115296515.2 | E151: 6181967.337
A152: Bus occupant | B152: 1:Wellington | C152: Asian | D152: 22396670.54 | E152: 1315709.095
A153: Bus occupant | B153: 1:Wellington | C153: Other/MELAA | D153: 9161426.261 | E153: 680255.5751
A154: Bus occupant | B154: 2:Nelson Tasman | C154: Māori | D154: 177406.792 | E154: 9644.544774
A155: Bus occupant | B155: 2:Nelson Tasman | C155: European | D155: 6045469.719 | E155: 222073.2715
A156: Bus occupant | B156: 1:Christchurch | C156: Māori | D156: 8928630.23 | E156: 498636.8293
A157: Bus occupant | B157: 1:Christchurch | C157: Pacific People | D157: 1492828.249 | E157: 104357.8794
A158: Bus occupant | B158: 1:Christchurch | C158: European | D158: 57552516.7 | E158: 2557426.034
A159: Bus occupant | B159: 1:Christchurch | C159: Asian | D159: 10325728.08 | E159: 610968.785
A160: Bus occupant | B160: 2:Dunedin | C160: Māori | D160: 1038686.009 | E160: 39509.84615
A161: Bus occupant | B161: 2:Dunedin | C161: European | D161: 10689194.68 | E161: 558555.0742
A162: Bus occupant | B162: 2:Dunedin | C162: Asian | D162: 1813339.221 | E162: 142600.0299
A163: Bus occupant | B163: 2:Queenstown | C163: European | D163: 1249188.823 | E163: 52478.41032
A164: Bus occupant | B164: 2:Queenstown | C164: Asian | D164: 5215433.143 | E164: 768117.636
A165: Wheeled device - E-scooter rider | B165: 1:Auckland | C165: European | D165: 308034.9139 | E165: 18483.26097
A166: Wheeled device - E-scooter rider | B166: 1:Auckland | C166: Asian | D166: 891580.3277 | E166: 110130.0886
A167: Wheeled device - E-scooter rider | B167: 1:Auckland | C167: Other/MELAA | D167: 365389.0248 | E167: 24126.72161
A168: Wheeled device - E-scooter rider | B168: 1:Tauranga | C168: European | D168: 55089.33575 | E168: 4723.963579
A169: Wheeled device - E-scooter rider | B169: 1:Wellington | C169: European | D169: 221929.3612 | E169: 38635.09664
A170: Wheeled device - E-scooter rider | B170: 1:Wellington | C170: Asian | D170: 396748.9311 | E170: 77580.94077
A171: Wheeled device - E-scooter rider | B171: 1:Christchurch | C171: European | D171: 278836.4314 | E171: 12833.55643
A172: Ferry passenger | B172: Rest of NZ | C172: Māori | D172: 1201266.769 | E172: 45155.63525
A173: Ferry passenger | B173: Rest of NZ | C173: European | D173: 22515085.25 | E173: 679370.5026
A174: Ferry passenger | B174: 1:Auckland | C174: Māori | D174: 1027405.959 | E174: 39323.56532
A175: Ferry passenger | B175: 1:Auckland | C175: European | D175: 36934115.36 | E175: 927301.8032
A176: Ferry passenger | B176: 1:Auckland | C176: Asian | D176: 6143393.153 | E176: 196162.8736
A177: Ferry passenger | B177: Rest of NZ | C177: Pacific People | D177: 1122239.846 | E177: 41796.17086
A178: Ferry passenger | B178: Rest of NZ | C178: Asian | D178: 514494.2099 | E178: 11422.49942
A179: Ferry passenger | B179: Rest of NZ | C179: European | D179: 3899408.969 | E179: 76510.29796
A180: Ferry passenger | B180: 1:Wellington | C180: Pacific People | D180: 11453678.41 | E180: 355697.4265
A181: Ferry passenger | B181: 1:Wellington | C181: European | D181: 15881067.74 | E181: 393630.7679
A182: Ferry passenger | B182: Rest of NZ | C182: European | D182: 3484926.38 | E182: 40038.49724
A183: Ferry passenger | B183: 1:Christchurch | C183: European | D183: 1911677.531 | E183: 117911.5148
A184: Ferry passenger | B184: 2:Queenstown | C184: European | D184: 1247364.231 | E184: 38845.88542
A185: Motor car occupant (car/taxi/van/ute) | B185: Rest of NZ | C185: Māori | D185: 4383029721 | E185: 93256444.65
A186: Motor car occupant (car/taxi/van/ute) | B186: Rest of NZ | C186: Pacific People | D186: 430712734.8 | E186: 8686236.381
A187: Motor car occupant (car/taxi/van/ute) | B187: Rest of NZ | C187: European | D187: 1.590286416e+10 | E187: 325370021.7
A188: Motor car occupant (car/taxi/van/ute) | B188: Rest of NZ | C188: Asian | D188: 614278055.4 | E188: 13534457.96
A189: Motor car occupant (car/taxi/van/ute) | B189: Rest of NZ | C189: Other/MELAA | D189: 369070169.8 | E189: 7329988.937
A190: Motor car occupant (car/taxi/van/ute) | B190: 2:Whangārei | C190: Māori | D190: 242428383.8 | E190: 5753663.301
A191: Motor car occupant (car/taxi/van/ute) | B191: 2:Whangārei | C191: Pacific People | D191: 7971641.3 | E191: 236580.4568
A192: Motor car occupant (car/taxi/van/ute) | B192: 2:Whangārei | C192: European | D192: 217569745.3 | E192: 6741492.841
A193: Motor car occupant (car/taxi/van/ute) | B193: 2:Whangārei | C193: Asian | D193: 34657753.68 | E193: 1003283.405
A194: Motor car occupant (car/taxi/van/ute) | B194: 2:Whangārei | C194: Other/MELAA | D194: 4634436.938 | E194: 221146.2
A195: Motor car occupant (car/taxi/van/ute) | B195: 1:Auckland | C195: Māori | D195: 1576219245 | E195: 49748461.89
A196: Motor car occupant (car/taxi/van/ute) | B196: 1:Auckland | C196: Pacific People | D196: 1678029500 | E196: 63207488.31
A197: Motor car occupant (car/taxi/van/ute) | B197: 1:Auckland | C197: European | D197: 6051921078 | E197: 183762022.9
A198: Motor car occupant (car/taxi/van/ute) | B198: 1:Auckland | C198: Asian | D198: 3532559850 | E198: 118367184.8
A199: Motor car occupant (car/taxi/van/ute) | B199: 1:Auckland | C199: Other/MELAA | D199: 404913026.6 | E199: 12635451.92
A200: Motor car occupant (car/taxi/van/ute) | B200: 1:Hamilton | C200: Māori | D200: 448781657.5 | E200: 11829807.66
A201: Motor car occupant (car/taxi/van/ute) | B201: 1:Hamilton | C201: Pacific People | D201: 61381941.54 | E201: 1556805.237
... 233 more rows

Sheet MOH_Injs-2Modes (hidden)
A1: MoH Hospital Admission Casualty data by Travel Mode(s)
A2: ICD Code | B2: User/Veh Type | C2: User/Veh Type 2 | D2: M. Veh Involved? | E2: Injury Severity | F2: TLA Area | G2: Geog Area | H2: Gender | I2: Ethnicity | J2: Age Group | K2: No. of Casualties
A3: V114 | B3: Bicycle | C3: Bicycle | D3: no | E3: Minor Injury | F3: 001:Far North District | G3: Rest of NZ | H3: Female | I3: European | J3: 60 to 69 | K3: 1
A4: V134 | B4: Bicycle | C4: Motor Car | D4: yes | E4: Minor Injury | F4: 001:Far North District | G4: Rest of NZ | H4: Male | I4: European | J4: 70 to 79 | K4: 1
A5: V134 | B5: Bicycle | C5: Motor Car | D5: yes | E5: Minor Injury | F5: 001:Far North District | G5: Rest of NZ | H5: Male | I5: Maori | J5: 10 to 19 | K5: 3
A6: V134 | B6: Bicycle | C6: Motor Car | D6: yes | E6: Minor Injury | F6: 001:Far North District | G6: Rest of NZ | H6: Male | I6: Maori | J6: 20 to 29 | K6: 2
A7: V134 | B7: Bicycle | C7: Motor Car | D7: yes | E7: Serious Injury | F7: 001:Far North District | G7: Rest of NZ | H7: Male | I7: European | J7: 70 to 79 | K7: 1
A8: V134 | B8: Bicycle | C8: Motor Car | D8: yes | E8: Serious Injury | F8: 001:Far North District | G8: Rest of NZ | H8: Male | I8: Maori | J8: 50 to 59 | K8: 1
A9: V139 | B9: Bicycle | C9: Motor Car | D9: yes | E9: Serious Injury | F9: 001:Far North District | G9: Rest of NZ | H9: Male | I9: European | J9: 60 to 69 | K9: 1
A10: V174 | B10: Bicycle | C10: None | D10: no | E10: Minor Injury | F10: 001:Far North District | G10: Rest of NZ | H10: Female | I10: European | J10: 10 to 19 | K10: 1
A11: V174 | B11: Bicycle | C11: None | D11: no | E11: Minor Injury | F11: 001:Far North District | G11: Rest of NZ | H11: Male | I11: Pacific people | J11: 50 to 59 | K11: 1
A12: V174 | B12: Bicycle | C12: None | D12: no | E12: Serious Injury | F12: 001:Far North District | G12: Rest of NZ | H12: Male | I12: European | J12: 70 to 79 | K12: 1
A13: V104 | B13: Bicycle | C13: Pedestrian | D13: no | E13: Minor Injury | F13: 001:Far North District | G13: Rest of NZ | H13: Female | I13: Other | J13: 50 to 59 | K13: 1
A14: V198 | B14: Bicycle | C14: Wheeled Device | D14: no | E14: Minor Injury | F14: 001:Far North District | G14: Rest of NZ | H14: Female | I14: Maori | J14: 50 to 59 | K14: 2
A15: V198 | B15: Bicycle | C15: Wheeled Device | D15: no | E15: Minor Injury | F15: 001:Far North District | G15: Rest of NZ | H15: Male | I15: Maori | J15: 40 to 49 | K15: 1
A16: V198 | B16: Bicycle | C16: Wheeled Device | D16: no | E16: Serious Injury | F16: 001:Far North District | G16: Rest of NZ | H16: Female | I16: Maori | J16: 50 to 59 | K16: 1
A17: V199 | B17: Bicycle | C17: Wheeled Device | D17: no | E17: Minor Injury | F17: 001:Far North District | G17: Rest of NZ | H17: Female | I17: Maori | J17: 10 to 19 | K17: 1
A18: V199 | B18: Bicycle | C18: Wheeled Device | D18: no | E18: Minor Injury | F18: 001:Far North District | G18: Rest of NZ | H18: Male | I18: European | J18: 10 to 19 | K18: 1
A19: V199 | B19: Bicycle | C19: Wheeled Device | D19: no | E19: Minor Injury | F19: 001:Far North District | G19: Rest of NZ | H19: Male | I19: European | J19: 40 to 49 | K19: 1
A20: V199 | B20: Bicycle | C20: Wheeled Device | D20: no | E20: Minor Injury | F20: 001:Far North District | G20: Rest of NZ | H20: Male | I20: European | J20: 70 to 79 | K20: 2
A21: V199 | B21: Bicycle | C21: Wheeled Device | D21: no | E21: Minor Injury | F21: 001:Far North District | G21: Rest of NZ | H21: Male | I21: Maori | J21: 0 to 9 | K21: 2
A22: V199 | B22: Bicycle | C22: Wheeled Device | D22: no | E22: Minor Injury | F22: 001:Far North District | G22: Rest of NZ | H22: Male | I22: Maori | J22: 10 to 19 | K22: 6
A23: V199 | B23: Bicycle | C23: Wheeled Device | D23: no | E23: Minor Injury | F23: 001:Far North District | G23: Rest of NZ | H23: Male | I23: Maori | J23: 20 to 29 | K23: 1
A24: V199 | B24: Bicycle | C24: Wheeled Device | D24: no | E24: Minor Injury | F24: 001:Far North District | G24: Rest of NZ | H24: Male | I24: Maori | J24: 40 to 49 | K24: 1
A25: V199 | B25: Bicycle | C25: Wheeled Device | D25: no | E25: Serious Injury | F25: 001:Far North District | G25: Rest of NZ | H25: Male | I25: European | J25: 60 to 69 | K25: 1
A26: V199 | B26: Bicycle | C26: Wheeled Device | D26: no | E26: Serious Injury | F26: 001:Far North District | G26: Rest of NZ | H26: Male | I26: Maori | J26: 0 to 9 | K26: 1
A27: V776 | B27: Bus | C27: None | D27: no | E27: Minor Injury | F27: 001:Far North District | G27: Rest of NZ | H27: Male | I27: Maori | J27: 10 to 19 | K27: 1
A28: V4350 | B28: Motor Car | C28: Motor Car | D28: yes | E28: Minor Injury | F28: 001:Far North District | G28: Rest of NZ | H28: Female | I28: European | J28: 20 to 29 | K28: 1
A29: V4350 | B29: Motor Car | C29: Motor Car | D29: yes | E29: Minor Injury | F29: 001:Far North District | G29: Rest of NZ | H29: Female | I29: Maori | J29: 20 to 29 | K29: 1
A30: V4350 | B30: Motor Car | C30: Motor Car | D30: yes | E30: Minor Injury | F30: 001:Far North District | G30: Rest of NZ | H30: Female | I30: Maori | J30: 30 to 39 | K30: 1
A31: V4350 | B31: Motor Car | C31: Motor Car | D31: yes | E31: Minor Injury | F31: 001:Far North District | G31: Rest of NZ | H31: Male | I31: European | J31: 70 to 79 | K31: 1
A32: V4350 | B32: Motor Car | C32: Motor Car | D32: yes | E32: Minor Injury | F32: 001:Far North District | G32: Rest of NZ | H32: Male | I32: Maori | J32: 20 to 29 | K32: 1
A33: V4350 | B33: Motor Car | C33: Motor Car | D33: yes | E33: Minor Injury | F33: 001:Far North District | G33: Rest of NZ | H33: Male | I33: Maori | J33: 30 to 39 | K33: 1
A34: V4350 | B34: Motor Car | C34: Motor Car | D34: yes | E34: Minor Injury | F34: 001:Far North District | G34: Rest of NZ | H34: Male | I34: Maori | J34: 40 to 49 | K34: 2
A35: V4350 | B35: Motor Car | C35: Motor Car | D35: yes | E35: Serious Injury | F35: 001:Far North District | G35: Rest of NZ | H35: Female | I35: European | J35: 70 to 79 | K35: 1
A36: V4350 | B36: Motor Car | C36: Motor Car | D36: yes | E36: Serious Injury | F36: 001:Far North District | G36: Rest of NZ | H36: Female | I36: Maori | J36: 10 to 19 | K36: 1
A37: V4350 | B37: Motor Car | C37: Motor Car | D37: yes | E37: Serious Injury | F37: 001:Far North District | G37: Rest of NZ | H37: Female | I37: Maori | J37: 20 to 29 | K37: 1
A38: V4350 | B38: Motor Car | C38: Motor Car | D38: yes | E38: Serious Injury | F38: 001:Far North District | G38: Rest of NZ | H38: Male | I38: European | J38: 70 to 79 | K38: 2
A39: V4351 | B39: Motor Car | C39: Motor Car | D39: yes | E39: Serious Injury | F39: 001:Far North District | G39: Rest of NZ | H39: Female | I39: Maori | J39: 20 to 29 | K39: 1
A40: V4358 | B40: Motor Car | C40: Motor Car | D40: yes | E40: Minor Injury | F40: 001:Far North District | G40: Rest of NZ | H40: Female | I40: Maori | J40: 50 to 59 | K40: 1
A41: V4358 | B41: Motor Car | C41: Motor Car | D41: yes | E41: Minor Injury | F41: 001:Far North District | G41: Rest of NZ | H41: Male | I41: European | J41: 20 to 29 | K41: 3
A42: V4358 | B42: Motor Car | C42: Motor Car | D42: yes | E42: Serious Injury | F42: 001:Far North District | G42: Rest of NZ | H42: Male | I42: European | J42: 20 to 29 | K42: 1
A43: V4359 | B43: Motor Car | C43: Motor Car | D43: yes | E43: Minor Injury | F43: 001:Far North District | G43: Rest of NZ | H43: Female | I43: European | J43: 10 to 19 | K43: 1
A44: V4359 | B44: Motor Car | C44: Motor Car | D44: yes | E44: Minor Injury | F44: 001:Far North District | G44: Rest of NZ | H44: Female | I44: European | J44: 30 to 39 | K44: 3
A45: V4359 | B45: Motor Car | C45: Motor Car | D45: yes | E45: Minor Injury | F45: 001:Far North District | G45: Rest of NZ | H45: Female | I45: European | J45: 40 to 49 | K45: 2
A46: V4359 | B46: Motor Car | C46: Motor Car | D46: yes | E46: Minor Injury | F46: 001:Far North District | G46: Rest of NZ | H46: Female | I46: European | J46: 50 to 59 | K46: 1
A47: V4359 | B47: Motor Car | C47: Motor Car | D47: yes | E47: Minor Injury | F47: 001:Far North District | G47: Rest of NZ | H47: Female | I47: European | J47: 60 to 69 | K47: 3
A48: V4359 | B48: Motor Car | C48: Motor Car | D48: yes | E48: Minor Injury | F48: 001:Far North District | G48: Rest of NZ | H48: Female | I48: European | J48: 70 to 79 | K48: 2
A49: V4359 | B49: Motor Car | C49: Motor Car | D49: yes | E49: Minor Injury | F49: 001:Far North District | G49: Rest of NZ | H49: Female | I49: European | J49: 80+ | K49: 4
A50: V4359 | B50: Motor Car | C50: Motor Car | D50: yes | E50: Minor Injury | F50: 001:Far North District | G50: Rest of NZ | H50: Female | I50: Maori | J50: 10 to 19 | K50: 4
A51: V4359 | B51: Motor Car | C51: Motor Car | D51: yes | E51: Minor Injury | F51: 001:Far North District | G51: Rest of NZ | H51: Female | I51: Maori | J51: 20 to 29 | K51: 7
A52: V4359 | B52: Motor Car | C52: Motor Car | D52: yes | E52: Minor Injury | F52: 001:Far North District | G52: Rest of NZ | H52: Female | I52: Maori | J52: 30 to 39 | K52: 6
A53: V4359 | B53: Motor Car | C53: Motor Car | D53: yes | E53: Minor Injury | F53: 001:Far North District | G53: Rest of NZ | H53: Female | I53: Maori | J53: 40 to 49 | K53: 2
A54: V4359 | B54: Motor Car | C54: Motor Car | D54: yes | E54: Minor Injury | F54: 001:Far North District | G54: Rest of NZ | H54: Female | I54: Maori | J54: 50 to 59 | K54: 1
A55: V4359 | B55: Motor Car | C55: Motor Car | D55: yes | E55: Minor Injury | F55: 001:Far North District | G55: Rest of NZ | H55: Female | I55: Maori | J55: 60 to 69 | K55: 2
A56: V4359 | B56: Motor Car | C56: Motor Car | D56: yes | E56: Minor Injury | F56: 001:Far North District | G56: Rest of NZ | H56: Female | I56: Maori | J56: 70 to 79 | K56: 2
A57: V4359 | B57: Motor Car | C57: Motor Car | D57: yes | E57: Minor Injury | F57: 001:Far North District | G57: Rest of NZ | H57: Female | I57: Maori | J57: 80+ | K57: 1
A58: V4359 | B58: Motor Car | C58: Motor Car | D58: yes | E58: Minor Injury | F58: 001:Far North District | G58: Rest of NZ | H58: Male | I58: Asian | J58: 20 to 29 | K58: 1
A59: V4359 | B59: Motor Car | C59: Motor Car | D59: yes | E59: Minor Injury | F59: 001:Far North District | G59: Rest of NZ | H59: Male | I59: Asian | J59: 30 to 39 | K59: 1
A60: V4359 | B60: Motor Car | C60: Motor Car | D60: yes | E60: Minor Injury | F60: 001:Far North District | G60: Rest of NZ | H60: Male | I60: Asian | J60: 60 to 69 | K60: 1
A61: V4359 | B61: Motor Car | C61: Motor Car | D61: yes | E61: Minor Injury | F61: 001:Far North District | G61: Rest of NZ | H61: Male | I61: European | J61: 30 to 39 | K61: 1
A62: V4359 | B62: Motor Car | C62: Motor Car | D62: yes | E62: Minor Injury | F62: 001:Far North District | G62: Rest of NZ | H62: Male | I62: European | J62: 40 to 49 | K62: 2
A63: V4359 | B63: Motor Car | C63: Motor Car | D63: yes | E63: Minor Injury | F63: 001:Far North District | G63: Rest of NZ | H63: Male | I63: European | J63: 50 to 59 | K63: 6
A64: V4359 | B64: Motor Car | C64: Motor Car | D64: yes | E64: Minor Injury | F64: 001:Far North District | G64: Rest of NZ | H64: Male | I64: European | J64: 60 to 69 | K64: 7
A65: V4359 | B65: Motor Car | C65: Motor Car | D65: yes | E65: Minor Injury | F65: 001:Far North District | G65: Rest of NZ | H65: Male | I65: European | J65: 70 to 79 | K65: 3
A66: V4359 | B66: Motor Car | C66: Motor Car | D66: yes | E66: Minor Injury | F66: 001:Far North District | G66: Rest of NZ | H66: Male | I66: European | J66: 80+ | K66: 2
A67: V4359 | B67: Motor Car | C67: Motor Car | D67: yes | E67: Minor Injury | F67: 001:Far North District | G67: Rest of NZ | H67: Male | I67: Maori | J67: 20 to 29 | K67: 11
A68: V4359 | B68: Motor Car | C68: Motor Car | D68: yes | E68: Minor Injury | F68: 001:Far North District | G68: Rest of NZ | H68: Male | I68: Maori | J68: 30 to 39 | K68: 10
A69: V4359 | B69: Motor Car | C69: Motor Car | D69: yes | E69: Minor Injury | F69: 001:Far North District | G69: Rest of NZ | H69: Male | I69: Maori | J69: 40 to 49 | K69: 3
A70: V4359 | B70: Motor Car | C70: Motor Car | D70: yes | E70: Minor Injury | F70: 001:Far North District | G70: Rest of NZ | H70: Male | I70: Maori | J70: 50 to 59 | K70: 6
A71: V4359 | B71: Motor Car | C71: Motor Car | D71: yes | E71: Minor Injury | F71: 001:Far North District | G71: Rest of NZ | H71: Male | I71: Maori | J71: 60 to 69 | K71: 2
A72: V4359 | B72: Motor Car | C72: Motor Car | D72: yes | E72: Minor Injury | F72: 001:Far North District | G72: Rest of NZ | H72: Male | I72: Pacific people | J72: 50 to 59 | K72: 1
A73: V4359 | B73: Motor Car | C73: Motor Car | D73: yes | E73: Serious Injury | F73: 001:Far North District | G73: Rest of NZ | H73: Female | I73: European | J73: 30 to 39 | K73: 2
A74: V4359 | B74: Motor Car | C74: Motor Car | D74: yes | E74: Serious Injury | F74: 001:Far North District | G74: Rest of NZ | H74: Female | I74: European | J74: 40 to 49 | K74: 1
A75: V4359 | B75: Motor Car | C75: Motor Car | D75: yes | E75: Serious Injury | F75: 001:Far North District | G75: Rest of NZ | H75: Female | I75: European | J75: 50 to 59 | K75: 2
A76: V4359 | B76: Motor Car | C76: Motor Car | D76: yes | E76: Serious Injury | F76: 001:Far North District | G76: Rest of NZ | H76: Female | I76: European | J76: 60 to 69 | K76: 2
A77: V4359 | B77: Motor Car | C77: Motor Car | D77: yes | E77: Serious Injury | F77: 001:Far North District | G77: Rest of NZ | H77: Female | I77: European | J77: 70 to 79 | K77: 3
A78: V4359 | B78: Motor Car | C78: Motor Car | D78: yes | E78: Serious Injury | F78: 001:Far North District | G78: Rest of NZ | H78: Female | I78: European | J78: 80+ | K78: 12
A79: V4359 | B79: Motor Car | C79: Motor Car | D79: yes | E79: Serious Injury | F79: 001:Far North District | G79: Rest of NZ | H79: Female | I79: Maori | J79: 10 to 19 | K79: 2
A80: V4359 | B80: Motor Car | C80: Motor Car | D80: yes | E80: Serious Injury | F80: 001:Far North District | G80: Rest of NZ | H80: Female | I80: Maori | J80: 20 to 29 | K80: 3
A81: V4359 | B81: Motor Car | C81: Motor Car | D81: yes | E81: Serious Injury | F81: 001:Far North District | G81: Rest of NZ | H81: Female | I81: Maori | J81: 30 to 39 | K81: 1
A82: V4359 | B82: Motor Car | C82: Motor Car | D82: yes | E82: Serious Injury | F82: 001:Far North District | G82: Rest of NZ | H82: Female | I82: Maori | J82: 40 to 49 | K82: 2
A83: V4359 | B83: Motor Car | C83: Motor Car | D83: yes | E83: Serious Injury | F83: 001:Far North District | G83: Rest of NZ | H83: Female | I83: Maori | J83: 50 to 59 | K83: 2
A84: V4359 | B84: Motor Car | C84: Motor Car | D84: yes | E84: Serious Injury | F84: 001:Far North District | G84: Rest of NZ | H84: Female | I84: Maori | J84: 60 to 69 | K84: 1
A85: V4359 | B85: Motor Car | C85: Motor Car | D85: yes | E85: Serious Injury | F85: 001:Far North District | G85: Rest of NZ | H85: Male | I85: Asian | J85: 10 to 19 | K85: 1
A86: V4359 | B86: Motor Car | C86: Motor Car | D86: yes | E86: Serious Injury | F86: 001:Far North District | G86: Rest of NZ | H86: Male | I86: European | J86: 20 to 29 | K86: 1
A87: V4359 | B87: Motor Car | C87: Motor Car | D87: yes | E87: Serious Injury | F87: 001:Far North District | G87: Rest of NZ | H87: Male | I87: European | J87: 30 to 39 | K87: 5
A88: V4359 | B88: Motor Car | C88: Motor Car | D88: yes | E88: Serious Injury | F88: 001:Far North District | G88: Rest of NZ | H88: Male | I88: European | J88: 40 to 49 | K88: 2
A89: V4359 | B89: Motor Car | C89: Motor Car | D89: yes | E89: Serious Injury | F89: 001:Far North District | G89: Rest of NZ | H89: Male | I89: European | J89: 50 to 59 | K89: 3
A90: V4359 | B90: Motor Car | C90: Motor Car | D90: yes | E90: Serious Injury | F90: 001:Far North District | G90: Rest of NZ | H90: Male | I90: European | J90: 60 to 69 | K90: 3
A91: V4359 | B91: Motor Car | C91: Motor Car | D91: yes | E91: Serious Injury | F91: 001:Far North District | G91: Rest of NZ | H91: Male | I91: European | J91: 70 to 79 | K91: 6
A92: V4359 | B92: Motor Car | C92: Motor Car | D92: yes | E92: Serious Injury | F92: 001:Far North District | G92: Rest of NZ | H92: Male | I92: European | J92: 80+ | K92: 5
A93: V4359 | B93: Motor Car | C93: Motor Car | D93: yes | E93: Serious Injury | F93: 001:Far North District | G93: Rest of NZ | H93: Male | I93: Maori | J93: 20 to 29 | K93: 3
A94: V4359 | B94: Motor Car | C94: Motor Car | D94: yes | E94: Serious Injury | F94: 001:Far North District | G94: Rest of NZ | H94: Male | I94: Maori | J94: 30 to 39 | K94: 7
A95: V4359 | B95: Motor Car | C95: Motor Car | D95: yes | E95: Serious Injury | F95: 001:Far North District | G95: Rest of NZ | H95: Male | I95: Maori | J95: 40 to 49 | K95: 5
A96: V4359 | B96: Motor Car | C96: Motor Car | D96: yes | E96: Serious Injury | F96: 001:Far North District | G96: Rest of NZ | H96: Male | I96: Maori | J96: 50 to 59 | K96: 1
A97: V4360 | B97: Motor Car | C97: Motor Car | D97: yes | E97: Minor Injury | F97: 001:Far North District | G97: Rest of NZ | H97: Female | I97: Asian | J97: 50 to 59 | K97: 1
A98: V4360 | B98: Motor Car | C98: Motor Car | D98: yes | E98: Minor Injury | F98: 001:Far North District | G98: Rest of NZ | H98: Female | I98: Maori | J98: 0 to 9 | K98: 1
A99: V4360 | B99: Motor Car | C99: Motor Car | D99: yes | E99: Minor Injury | F99: 001:Far North District | G99: Rest of NZ | H99: Female | I99: Maori | J99: 10 to 19 | K99: 1
A100: V4360 | B100: Motor Car | C100: Motor Car | D100: yes | E100: Minor Injury | F100: 001:Far North District | G100: Rest of NZ | H100: Female | I100: Maori | J100: 20 to 29 | K100: 1
A101: V4360 | B101: Motor Car | C101: Motor Car | D101: yes | E101: Minor Injury | F101: 001:Far North District | G101: Rest of NZ | H101: Male | I101: Maori | J101: 0 to 9 | K101: 1
A102: V4360 | B102: Motor Car | C102: Motor Car | D102: yes | E102: Minor Injury | F102: 001:Far North District | G102: Rest of NZ | H102: Male | I102: Maori | J102: 10 to 19 | K102: 1
A103: V4360 | B103: Motor Car | C103: Motor Car | D103: yes | E103: Minor Injury | F103: 001:Far North District | G103: Rest of NZ | H103: Male | I103: Maori | J103: 60 to 69 | K103: 1
A104: V4360 | B104: Motor Car | C104: Motor Car | D104: yes | E104: Serious Injury | F104: 001:Far North District | G104: Rest of NZ | H104: Female | I104: Maori | J104: 20 to 29 | K104: 1
A105: V4360 | B105: Motor Car | C105: Motor Car | D105: yes | E105: Serious Injury | F105: 001:Far North District | G105: Rest of NZ | H105: Female | I105: Pacific people | J105: 40 to 49 | K105: 2
A106: V4368 | B106: Motor Car | C106: Motor Car | D106: yes | E106: Minor Injury | F106: 001:Far North District | G106: Rest of NZ | H106: Female | I106: European | J106: 30 to 39 | K106: 1
A107: V4368 | B107: Motor Car | C107: Motor Car | D107: yes | E107: Minor Injury | F107: 001:Far North District | G107: Rest of NZ | H107: Female | I107: European | J107: 70 to 79 | K107: 1
A108: V4368 | B108: Motor Car | C108: Motor Car | D108: yes | E108: Minor Injury | F108: 001:Far North District | G108: Rest of NZ | H108: Female | I108: Maori | J108: 10 to 19 | K108: 1
A109: V4368 | B109: Motor Car | C109: Motor Car | D109: yes | E109: Minor Injury | F109: 001:Far North District | G109: Rest of NZ | H109: Female | I109: Maori | J109: 20 to 29 | K109: 1
A110: V4368 | B110: Motor Car | C110: Motor Car | D110: yes | E110: Minor Injury | F110: 001:Far North District | G110: Rest of NZ | H110: Female | I110: Maori | J110: 60 to 69 | K110: 1
A111: V4368 | B111: Motor Car | C111: Motor Car | D111: yes | E111: Minor Injury | F111: 001:Far North District | G111: Rest of NZ | H111: Male | I111: Maori | J111: 10 to 19 | K111: 1
A112: V4369 | B112: Motor Car | C112: Motor Car | D112: yes | E112: Fatality | F112: 001:Far North District | G112: Rest of NZ | H112: Female | I112: European | J112: 70 to 79 | K112: 1
A113: V4369 | B113: Motor Car | C113: Motor Car | D113: yes | E113: Minor Injury | F113: 001:Far North District | G113: Rest of NZ | H113: Female | I113: European | J113: 10 to 19 | K113: 1
A114: V4369 | B114: Motor Car | C114: Motor Car | D114: yes | E114: Minor Injury | F114: 001:Far North District | G114: Rest of NZ | H114: Female | I114: European | J114: 20 to 29 | K114: 4
A115: V4369 | B115: Motor Car | C115: Motor Car | D115: yes | E115: Minor Injury | F115: 001:Far North District | G115: Rest of NZ | H115: Female | I115: European | J115: 30 to 39 | K115: 3
A116: V4369 | B116: Motor Car | C116: Motor Car | D116: yes | E116: Minor Injury | F116: 001:Far North District | G116: Rest of NZ | H116: Female | I116: European | J116: 40 to 49 | K116: 2
A117: V4369 | B117: Motor Car | C117: Motor Car | D117: yes | E117: Minor Injury | F117: 001:Far North District | G117: Rest of NZ | H117: Female | I117: European | J117: 70 to 79 | K117: 1
A118: V4369 | B118: Motor Car | C118: Motor Car | D118: yes | E118: Minor Injury | F118: 001:Far North District | G118: Rest of NZ | H118: Female | I118: Maori | J118: 0 to 9 | K118: 1
A119: V4369 | B119: Motor Car | C119: Motor Car | D119: yes | E119: Minor Injury | F119: 001:Far North District | G119: Rest of NZ | H119: Female | I119: Maori | J119: 10 to 19 | K119: 8
A120: V4369 | B120: Motor Car | C120: Motor Car | D120: yes | E120: Minor Injury | F120: 001:Far North District | G120: Rest of NZ | H120: Female | I120: Maori | J120: 20 to 29 | K120: 6
A121: V4369 | B121: Motor Car | C121: Motor Car | D121: yes | E121: Minor Injury | F121: 001:Far North District | G121: Rest of NZ | H121: Female | I121: Maori | J121: 30 to 39 | K121: 1
A122: V4369 | B122: Motor Car | C122: Motor Car | D122: yes | E122: Minor Injury | F122: 001:Far North District | G122: Rest of NZ | H122: Female | I122: Maori | J122: 40 to 49 | K122: 1
A123: V4369 | B123: Motor Car | C123: Motor Car | D123: yes | E123: Minor Injury | F123: 001:Far North District | G123: Rest of NZ | H123: Female | I123: Maori | J123: 50 to 59 | K123: 3
A124: V4369 | B124: Motor Car | C124: Motor Car | D124: yes | E124: Minor Injury | F124: 001:Far North District | G124: Rest of NZ | H124: Female | I124: Maori | J124: 70 to 79 | K124: 1
A125: V4369 | B125: Motor Car | C125: Motor Car | D125: yes | E125: Minor Injury | F125: 001:Far North District | G125: Rest of NZ | H125: Female | I125: Other | J125: 40 to 49 | K125: 1
A126: V4369 | B126: Motor Car | C126: Motor Car | D126: yes | E126: Minor Injury | F126: 001:Far North District | G126: Rest of NZ | H126: Male | I126: European | J126: 10 to 19 | K126: 2
A127: V4369 | B127: Motor Car | C127: Motor Car | D127: yes | E127: Minor Injury | F127: 001:Far North District | G127: Rest of NZ | H127: Male | I127: European | J127: 20 to 29 | K127: 3
A128: V4369 | B128: Motor Car | C128: Motor Car | D128: yes | E128: Minor Injury | F128: 001:Far North District | G128: Rest of NZ | H128: Male | I128: European | J128: 50 to 59 | K128: 1
A129: V4369 | B129: Motor Car | C129: Motor Car | D129: yes | E129: Minor Injury | F129: 001:Far North District | G129: Rest of NZ | H129: Male | I129: European | J129: 80+ | K129: 1
A130: V4369 | B130: Motor Car | C130: Motor Car | D130: yes | E130: Minor Injury | F130: 001:Far North District | G130: Rest of NZ | H130: Male | I130: Maori | J130: 0 to 9 | K130: 7
A131: V4369 | B131: Motor Car | C131: Motor Car | D131: yes | E131: Minor Injury | F131: 001:Far North District | G131: Rest of NZ | H131: Male | I131: Maori | J131: 10 to 19 | K131: 7
A132: V4369 | B132: Motor Car | C132: Motor Car | D132: yes | E132: Minor Injury | F132: 001:Far North District | G132: Rest of NZ | H132: Male | I132: Maori | J132: 20 to 29 | K132: 4
A133: V4369 | B133: Motor Car | C133: Motor Car | D133: yes | E133: Minor Injury | F133: 001:Far North District | G133: Rest of NZ | H133: Male | I133: Maori | J133: 30 to 39 | K133: 2
A134: V4369 | B134: Motor Car | C134: Motor Car | D134: yes | E134: Minor Injury | F134: 001:Far North District | G134: Rest of NZ | H134: Male | I134: Maori | J134: 40 to 49 | K134: 1
A135: V4369 | B135: Motor Car | C135: Motor Car | D135: yes | E135: Minor Injury | F135: 001:Far North District | G135: Rest of NZ | H135: Male | I135: Maori | J135: 60 to 69 | K135: 1
A136: V4369 | B136: Motor Car | C136: Motor Car | D136: yes | E136: Minor Injury | F136: 001:Far North District | G136: Rest of NZ | H136: Male | I136: Maori | J136: 70 to 79 | K136: 2
A137: V4369 | B137: Motor Car | C137: Motor Car | D137: yes | E137: Minor Injury | F137: 001:Far North District | G137: Rest of NZ | H137: Male | I137: Pacific people | J137: 0 to 9 | K137: 1
A138: V4369 | B138: Motor Car | C138: Motor Car | D138: yes | E138: Serious Injury | F138: 001:Far North District | G138: Rest of NZ | H138: Female | I138: European | J138: 0 to 9 | K138: 1
A139: V4369 | B139: Motor Car | C139: Motor Car | D139: yes | E139: Serious Injury | F139: 001:Far North District | G139: Rest of NZ | H139: Female | I139: European | J139: 20 to 29 | K139: 1
A140: V4369 | B140: Motor Car | C140: Motor Car | D140: yes | E140: Serious Injury | F140: 001:Far North District | G140: Rest of NZ | H140: Female | I140: European | J140: 70 to 79 | K140: 3
A141: V4369 | B141: Motor Car | C141: Motor Car | D141: yes | E141: Serious Injury | F141: 001:Far North District | G141: Rest of NZ | H141: Female | I141: European | J141: 80+ | K141: 1
A142: V4369 | B142: Motor Car | C142: Motor Car | D142: yes | E142: Serious Injury | F142: 001:Far North District | G142: Rest of NZ | H142: Female | I142: Maori | J142: 10 to 19 | K142: 3
A143: V4369 | B143: Motor Car | C143: Motor Car | D143: yes | E143: Serious Injury | F143: 001:Far North District | G143: Rest of NZ | H143: Female | I143: Maori | J143: 20 to 29 | K143: 3
A144: V4369 | B144: Motor Car | C144: Motor Car | D144: yes | E144: Serious Injury | F144: 001:Far North District | G144: Rest of NZ | H144: Female | I144: Maori | J144: 50 to 59 | K144: 4
A145: V4369 | B145: Motor Car | C145: Motor Car | D145: yes | E145: Serious Injury | F145: 001:Far North District | G145: Rest of NZ | H145: Female | I145: Maori | J145: 60 to 69 | K145: 4
A146: V4369 | B146: Motor Car | C146: Motor Car | D146: yes | E146: Serious Injury | F146: 001:Far North District | G146: Rest of NZ | H146: Female | I146: Other | J146: 50 to 59 | K146: 1
A147: V4369 | B147: Motor Car | C147: Motor Car | D147: yes | E147: Serious Injury | F147: 001:Far North District | G147: Rest of NZ | H147: Female | I147: Pacific people | J147: 30 to 39 | K147: 1
A148: V4369 | B148: Motor Car | C148: Motor Car | D148: yes | E148: Serious Injury | F148: 001:Far North District | G148: Rest of NZ | H148: Male | I148: European | J148: 80+ | K148: 1
A149: V4369 | B149: Motor Car | C149: Motor Car | D149: yes | E149: Serious Injury | F149: 001:Far North District | G149: Rest of NZ | H149: Male | I149: Maori | J149: 10 to 19 | K149: 3
A150: V4369 | B150: Motor Car | C150: Motor Car | D150: yes | E150: Serious Injury | F150: 001:Far North District | G150: Rest of NZ | H150: Male | I150: Maori | J150: 30 to 39 | K150: 4
A151: V4379 | B151: Motor Car | C151: Motor Car | D151: yes | E151: Minor Injury | F151: 001:Far North District | G151: Rest of NZ | H151: Female | I151: Maori | J151: 20 to 29 | K151: 1
A152: V4390 | B152: Motor Car | C152: Motor Car | D152: yes | E152: Serious Injury | F152: 001:Far North District | G152: Rest of NZ | H152: Female | I152: European | J152: 70 to 79 | K152: 2
A153: V4399 | B153: Motor Car | C153: Motor Car | D153: yes | E153: Serious Injury | F153: 001:Far North District | G153: Rest of NZ | H153: Male | I153: European | J153: 30 to 39 | K153: 1
A154: V4399 | B154: Motor Car | C154: Motor Car | D154: yes | E154: Serious Injury | F154: 001:Far North District | G154: Rest of NZ | H154: Male | I154: Maori | J154: 60 to 69 | K154: 1
A155: V535 | B155: Motor Car | C155: Motor Car | D155: yes | E155: Minor Injury | F155: 001:Far North District | G155: Rest of NZ | H155: Female | I155: European | J155: 20 to 29 | K155: 1
A156: V535 | B156: Motor Car | C156: Motor Car | D156: yes | E156: Minor Injury | F156: 001:Far North District | G156: Rest of NZ | H156: Female | I156: European | J156: 50 to 59 | K156: 1
A157: V535 | B157: Motor Car | C157: Motor Car | D157: yes | E157: Minor Injury | F157: 001:Far North District | G157: Rest of NZ | H157: Male | I157: European | J157: 30 to 39 | K157: 1
A158: V535 | B158: Motor Car | C158: Motor Car | D158: yes | E158: Minor Injury | F158: 001:Far North District | G158: Rest of NZ | H158: Male | I158: European | J158: 40 to 49 | K158: 1
A159: V535 | B159: Motor Car | C159: Motor Car | D159: yes | E159: Minor Injury | F159: 001:Far North District | G159: Rest of NZ | H159: Male | I159: European | J159: 70 to 79 | K159: 1
A160: V535 | B160: Motor Car | C160: Motor Car | D160: yes | E160: Minor Injury | F160: 001:Far North District | G160: Rest of NZ | H160: Male | I160: Maori | J160: 20 to 29 | K160: 2
A161: V535 | B161: Motor Car | C161: Motor Car | D161: yes | E161: Minor Injury | F161: 001:Far North District | G161: Rest of NZ | H161: Male | I161: Maori | J161: 40 to 49 | K161: 1
A162: V535 | B162: Motor Car | C162: Motor Car | D162: yes | E162: Serious Injury | F162: 001:Far North District | G162: Rest of NZ | H162: Male | I162: Maori | J162: 60 to 69 | K162: 1
A163: V535 | B163: Motor Car | C163: Motor Car | D163: yes | E163: Serious Injury | F163: 001:Far North District | G163: Rest of NZ | H163: Male | I163: Pacific people | J163: 20 to 29 | K163: 1
A164: V536 | B164: Motor Car | C164: Motor Car | D164: yes | E164: Minor Injury | F164: 001:Far North District | G164: Rest of NZ | H164: Female | I164: Maori | J164: 40 to 49 | K164: 2
A165: V536 | B165: Motor Car | C165: Motor Car | D165: yes | E165: Minor Injury | F165: 001:Far North District | G165: Rest of NZ | H165: Male | I165: Maori | J165: 20 to 29 | K165: 3
A166: V536 | B166: Motor Car | C166: Motor Car | D166: yes | E166: Serious Injury | F166: 001:Far North District | G166: Rest of NZ | H166: Female | I166: Maori | J166: 20 to 29 | K166: 1
A167: V536 | B167: Motor Car | C167: Motor Car | D167: yes | E167: Serious Injury | F167: 001:Far North District | G167: Rest of NZ | H167: Male | I167: Maori | J167: 20 to 29 | K167: 1
A168: V594 | B168: Motor Car | C168: Motor Car | D168: yes | E168: Minor Injury | F168: 001:Far North District | G168: Rest of NZ | H168: Male | I168: Maori | J168: 60 to 69 | K168: 1
A169: V594 | B169: Motor Car | C169: Motor Car | D169: yes | E169: Serious Injury | F169: 001:Far North District | G169: Rest of NZ | H169: Male | I169: Maori | J169: 60 to 69 | K169: 1
A170: Y0380 | B170: Motor Car | C170: Motor Car | D170: yes | E170: Minor Injury | F170: 001:Far North District | G170: Rest of NZ | H170: Female | I170: Maori | J170: 40 to 49 | K170: 1
A171: Y0384 | B171: Motor Car | C171: Motor Car | D171: yes | E171: Minor Injury | F171: 001:Far North District | G171: Rest of NZ | H171: Female | I171: Maori | J171: 20 to 29 | K171: 1
A172: V4750 | B172: Motor Car | C172: None | D172: no | E172: Minor Injury | F172: 001:Far North District | G172: Rest of NZ | H172: Female | I172: Maori | J172: 20 to 29 | K172: 2
A173: V4750 | B173: Motor Car | C173: None | D173: no | E173: Minor Injury | F173: 001:Far North District | G173: Rest of NZ | H173: Female | I173: Maori | J173: 50 to 59 | K173: 1
A174: V4750 | B174: Motor Car | C174: None | D174: no | E174: Minor Injury | F174: 001:Far North District | G174: Rest of NZ | H174: Female | I174: Maori | J174: 60 to 69 | K174: 3
A175: V4750 | B175: Motor Car | C175: None | D175: no | E175: Minor Injury | F175: 001:Far North District | G175: Rest of NZ | H175: Male | I175: Asian | J175: 20 to 29 | K175: 2
A176: V4750 | B176: Motor Car | C176: None | D176: no | E176: Minor Injury | F176: 001:Far North District | G176: Rest of NZ | H176: Male | I176: European | J176: 20 to 29 | K176: 1
A177: V4750 | B177: Motor Car | C177: None | D177: no | E177: Minor Injury | F177: 001:Far North District | G177: Rest of NZ | H177: Male | I177: Maori | J177: 20 to 29 | K177: 1
A178: V4750 | B178: Motor Car | C178: None | D178: no | E178: Minor Injury | F178: 001:Far North District | G178: Rest of NZ | H178: Male | I178: Maori | J178: 40 to 49 | K178: 1
A179: V4750 | B179: Motor Car | C179: None | D179: no | E179: Minor Injury | F179: 001:Far North District | G179: Rest of NZ | H179: Male | I179: Maori | J179: 60 to 69 | K179: 1
A180: V4750 | B180: Motor Car | C180: None | D180: no | E180: Minor Injury | F180: 001:Far North District | G180: Rest of NZ | H180: Male | I180: Maori | J180: 70 to 79 | K180: 2
A181: V4750 | B181: Motor Car | C181: None | D181: no | E181: Serious Injury | F181: 001:Far North District | G181: Rest of NZ | H181: Female | I181: Maori | J181: 20 to 29 | K181: 1
A182: V4750 | B182: Motor Car | C182: None | D182: no | E182: Serious Injury | F182: 001:Far North District | G182: Rest of NZ | H182: Female | I182: Maori | J182: 40 to 49 | K182: 1
A183: V4750 | B183: Motor Car | C183: None | D183: no | E183: Serious Injury | F183: 001:Far North District | G183: Rest of NZ | H183: Male | I183: European | J183: 20 to 29 | K183: 1
A184: V4750 | B184: Motor Car | C184: None | D184: no | E184: Serious Injury | F184: 001:Far North District | G184: Rest of NZ | H184: Male | I184: Maori | J184: 30 to 39 | K184: 1
A185: V4750 | B185: Motor Car | C185: None | D185: no | E185: Serious Injury | F185: 001:Far North District | G185: Rest of NZ | H185: Male | I185: Maori | J185: 70 to 79 | K185: 3
A186: V4751 | B186: Motor Car | C186: None | D186: no | E186: Minor Injury | F186: 001:Far North District | G186: Rest of NZ | H186: Male | I186: European | J186: 50 to 59 | K186: 1
A187: V4753 | B187: Motor Car | C187: None | D187: no | E187: Minor Injury | F187: 001:Far North District | G187: Rest of NZ | H187: Male | I187: Maori | J187: 50 to 59 | K187: 1
A188: V4753 | B188: Motor Car | C188: None | D188: no | E188: Serious Injury | F188: 001:Far North District | G188: Rest of NZ | H188: Male | I188: European | J188: 40 to 49 | K188: 1
A189: V4758 | B189: Motor Car | C189: None | D189: no | E189: Minor Injury | F189: 001:Far North District | G189: Rest of NZ | H189: Female | I189: European | J189: 40 to 49 | K189: 1
A190: V4758 | B190: Motor Car | C190: None | D190: no | E190: Minor Injury | F190: 001:Far North District | G190: Rest of NZ | H190: Male | I190: European | J190: 30 to 39 | K190: 1
A191: V4758 | B191: Motor Car | C191: None | D191: no | E191: Serious Injury | F191: 001:Far North District | G191: Rest of NZ | H191: Female | I191: European | J191: 40 to 49 | K191: 1
A192: V4759 | B192: Motor Car | C192: None | D192: no | E192: Fatality | F192: 001:Far North District | G192: Rest of NZ | H192: Female | I192: Other | J192: 60 to 69 | K192: 1
A193: V4759 | B193: Motor Car | C193: None | D193: no | E193: Minor Injury | F193: 001:Far North District | G193: Rest of NZ | H193: Female | I193: Asian | J193: 30 to 39 | K193: 1
A194: V4759 | B194: Motor Car | C194: None | D194: no | E194: Minor Injury | F194: 001:Far North District | G194: Rest of NZ | H194: Female | I194: European | J194: 10 to 19 | K194: 1
A195: V4759 | B195: Motor Car | C195: None | D195: no | E195: Minor Injury | F195: 001:Far North District | G195: Rest of NZ | H195: Female | I195: European | J195: 20 to 29 | K195: 2
A196: V4759 | B196: Motor Car | C196: None | D196: no | E196: Minor Injury | F196: 001:Far North District | G196: Rest of NZ | H196: Female | I196: European | J196: 30 to 39 | K196: 1
A197: V4759 | B197: Motor Car | C197: None | D197: no | E197: Minor Injury | F197: 001:Far North District | G197: Rest of NZ | H197: Female | I197: European | J197: 60 to 69 | K197: 1
A198: V4759 | B198: Motor Car | C198: None | D198: no | E198: Minor Injury | F198: 001:Far North District | G198: Rest of NZ | H198: Female | I198: European | J198: 70 to 79 | K198: 1
A199: V4759 | B199: Motor Car | C199: None | D199: no | E199: Minor Injury | F199: 001:Far North District | G199: Rest of NZ | H199: Female | I199: European | J199: 80+ | K199: 1
A200: V4759 | B200: Motor Car | C200: None | D200: no | E200: Minor Injury | F200: 001:Far North District | G200: Rest of NZ | H200: Female | I200: Maori | J200: 10 to 19 | K200: 5
... 4300 more rows
